Workbook

Sheet AVISO LEGAL
H2: Fecha de actualización: | J2: 2017-03-14
J23: www.ree.es

Sheet Precio final mensual
O1: 8
L4: Concepto
L5: Horizonte temporal
L6: Periodo
C8: Ene. | D8: Feb. | E8: Mar. | F8: Abr. | G8: May. | H8: Jun. | I8: Jul. | J8: Ago. | K8: Sep. | L8: Oct. | M8: Nov. | N8: Dic. | O8: =OFFSET(Año!B2,($O$1-1),0) -> 2017
B10: Mercado diario e Intradiario | C10: =OFFSET('Precios finales '!AP3,0,($O$1-1)*13) -> 73.59 | D10: =OFFSET('Precios finales '!AQ3,0,($O$1-1)*13) -> 53.05 | E10: =OFFSET('Precios finales '!AR3,0,($O$1-1)*13) -> - | F10: =OFFSET('Precios finales '!AS3,0,($O$1-1)*13) -> - | G10: =OFFSET('Precios finales '!AT3,0,($O$1-1)*13) -> - | H10: =OFFSET('Precios finales '!AU3,0,($O$1-1)*13) -> - | I10: =OFFSET('Precios finales '!AV3,0,($O$1-1)*13) -> - | J10: =OFFSET('Precios finales '!AW3,0,($O$1-1)*13) -> - | K10: =OFFSET('Precios finales '!AX3,0,($O$1-1)*13) -> - | L10: =OFFSET('Precios finales '!AY3,0,($O$1-1)*13) -> - | M10: =OFFSET('Precios finales '!AZ3,0,($O$1-1)*13) -> - | N10: =OFFSET('Precios finales '!BA3,0,($O$1-1)*13) -> - | O10: =OFFSET('Precios finales '!BB3,0,($O$1-1)*13) -> 64.07
B11: Servicio de interrumpibilidad | C11: =OFFSET('Precios finales '!AP4,0,($O$1-1)*13) -> 1.9 | D11: =OFFSET('Precios finales '!AQ4,0,($O$1-1)*13) -> 2.19 | E11: =OFFSET('Precios finales '!AR4,0,($O$1-1)*13) -> - | F11: =OFFSET('Precios finales '!AS4,0,($O$1-1)*13) -> - | G11: =OFFSET('Precios finales '!AT4,0,($O$1-1)*13) -> - | H11: =OFFSET('Precios finales '!AU4,0,($O$1-1)*13) -> - | I11: =OFFSET('Precios finales '!AV4,0,($O$1-1)*13) -> - | J11: =OFFSET('Precios finales '!AW4,0,($O$1-1)*13) -> - | K11: =OFFSET('Precios finales '!AX4,0,($O$1-1)*13) -> - | L11: =OFFSET('Precios finales '!AY4,0,($O$1-1)*13) -> - | M11: =OFFSET('Precios finales '!AZ4,0,($O$1-1)*13) -> - | N11: =OFFSET('Precios finales '!BA4,0,($O$1-1)*13) -> - | O11: =OFFSET('Precios finales '!BB4,0,($O$1-1)*13) -> 2.03
B12: Pagos por capacidad | C12: =OFFSET('Precios finales '!AP5,0,($O$1-1)*13) -> 3.31 | D12: =OFFSET('Precios finales '!AQ5,0,($O$1-1)*13) -> 3.26 | E12: =OFFSET('Precios finales '!AR5,0,($O$1-1)*13) -> - | F12: =OFFSET('Precios finales '!AS5,0,($O$1-1)*13) -> - | G12: =OFFSET('Precios finales '!AT5,0,($O$1-1)*13) -> - | H12: =OFFSET('Precios finales '!AU5,0,($O$1-1)*13) -> - | I12: =OFFSET('Precios finales '!AV5,0,($O$1-1)*13) -> - | J12: =OFFSET('Precios finales '!AW5,0,($O$1-1)*13) -> - | K12: =OFFSET('Precios finales '!AX5,0,($O$1-1)*13) -> - | L12: =OFFSET('Precios finales '!AY5,0,($O$1-1)*13) -> - | M12: =OFFSET('Precios finales '!AZ5,0,($O$1-1)*13) -> - | N12: =OFFSET('Precios finales '!BA5,0,($O$1-1)*13) -> - | O12: =OFFSET('Precios finales '!BB5,0,($O$1-1)*13) -> 3.29
B13: Servicios ajustes del sistema | C13: =OFFSET('Precios finales '!AP6,0,($O$1-1)*13) -> 2.9 | D13: =OFFSET('Precios finales '!AQ6,0,($O$1-1)*13) -> 2.84 | E13: =OFFSET('Precios finales '!AR6,0,($O$1-1)*13) -> - | F13: =OFFSET('Precios finales '!AS6,0,($O$1-1)*13) -> - | G13: =OFFSET('Precios finales '!AT6,0,($O$1-1)*13) -> - | H13: =OFFSET('Precios finales '!AU6,0,($O$1-1)*13) -> - | I13: =OFFSET('Precios finales '!AV6,0,($O$1-1)*13) -> - | J13: =OFFSET('Precios finales '!AW6,0,($O$1-1)*13) -> - | K13: =OFFSET('Precios finales '!AX6,0,($O$1-1)*13) -> - | L13: =OFFSET('Precios finales '!AY6,0,($O$1-1)*13) -> - | M13: =OFFSET('Precios finales '!AZ6,0,($O$1-1)*13) -> - | N13: =OFFSET('Precios finales '!BA6,0,($O$1-1)*13) -> - | O13: =OFFSET('Precios finales '!BB6,0,($O$1-1)*13) -> 2.88
B14: Restricciones técnicas PBF | C14: =OFFSET('Precios finales '!AP7,0,($O$1-1)*13) -> 1.48 | D14: =OFFSET('Precios finales '!AQ7,0,($O$1-1)*13) -> 1.82 | E14: =OFFSET('Precios finales '!AR7,0,($O$1-1)*13) -> - | F14: =OFFSET('Precios finales '!AS7,0,($O$1-1)*13) -> - | G14: =OFFSET('Precios finales '!AT7,0,($O$1-1)*13) -> - | H14: =OFFSET('Precios finales '!AU7,0,($O$1-1)*13) -> - | I14: =OFFSET('Precios finales '!AV7,0,($O$1-1)*13) -> - | J14: =OFFSET('Precios finales '!AW7,0,($O$1-1)*13) -> - | K14: =OFFSET('Precios finales '!AX7,0,($O$1-1)*13) -> - | L14: =OFFSET('Precios finales '!AY7,0,($O$1-1)*13) -> - | M14: =OFFSET('Precios finales '!AZ7,0,($O$1-1)*13) -> - | N14: =OFFSET('Precios finales '!BA7,0,($O$1-1)*13) -> - | O14: =OFFSET('Precios finales '!BB7,0,($O$1-1)*13) -> 1.64
B15: Banda de regulación secundaria | C15: =OFFSET('Precios finales '!AP8,0,($O$1-1)*13) -> 0.87 | D15: =OFFSET('Precios finales '!AQ8,0,($O$1-1)*13) -> 0.65 | E15: =OFFSET('Precios finales '!AR8,0,($O$1-1)*13) -> - | F15: =OFFSET('Precios finales '!AS8,0,($O$1-1)*13) -> - | G15: =OFFSET('Precios finales '!AT8,0,($O$1-1)*13) -> - | H15: =OFFSET('Precios finales '!AU8,0,($O$1-1)*13) -> - | I15: =OFFSET('Precios finales '!AV8,0,($O$1-1)*13) -> - | J15: =OFFSET('Precios finales '!AW8,0,($O$1-1)*13) -> - | K15: =OFFSET('Precios finales '!AX8,0,($O$1-1)*13) -> - | L15: =OFFSET('Precios finales '!AY8,0,($O$1-1)*13) -> - | M15: =OFFSET('Precios finales '!AZ8,0,($O$1-1)*13) -> - | N15: =OFFSET('Precios finales '!BA8,0,($O$1-1)*13) -> - | O15: =OFFSET('Precios finales '!BB8,0,($O$1-1)*13) -> 0.77
B16: Reserva de potencia adicional a subir | C16: =OFFSET('Precios finales '!AP9,0,($O$1-1)*13) -> 0.27 | D16: =OFFSET('Precios finales '!AQ9,0,($O$1-1)*13) -> 0.02 | E16: =OFFSET('Precios finales '!AR9,0,($O$1-1)*13) -> - | F16: =OFFSET('Precios finales '!AS9,0,($O$1-1)*13) -> - | G16: =OFFSET('Precios finales '!AT9,0,($O$1-1)*13) -> - | H16: =OFFSET('Precios finales '!AU9,0,($O$1-1)*13) -> - | I16: =OFFSET('Precios finales '!AV9,0,($O$1-1)*13) -> - | J16: =OFFSET('Precios finales '!AW9,0,($O$1-1)*13) -> - | K16: =OFFSET('Precios finales '!AX9,0,($O$1-1)*13) -> - | L16: =OFFSET('Precios finales '!AY9,0,($O$1-1)*13) -> - | M16: =OFFSET('Precios finales '!AZ9,0,($O$1-1)*13) -> - | N16: =OFFSET('Precios finales '!BA9,0,($O$1-1)*13) -> - | O16: =OFFSET('Precios finales '!BB9,0,($O$1-1)*13) -> 0.15
B17: Restricciones técnicas en tiempo real | C17: =OFFSET('Precios finales '!AP10,0,($O$1-1)*13) -> 0.17 | D17: =OFFSET('Precios finales '!AQ10,0,($O$1-1)*13) -> 0.23 | E17: =OFFSET('Precios finales '!AR10,0,($O$1-1)*13) -> - | F17: =OFFSET('Precios finales '!AS10,0,($O$1-1)*13) -> - | G17: =OFFSET('Precios finales '!AT10,0,($O$1-1)*13) -> - | H17: =OFFSET('Precios finales '!AU10,0,($O$1-1)*13) -> - | I17: =OFFSET('Precios finales '!AV10,0,($O$1-1)*13) -> - | J17: =OFFSET('Precios finales '!AW10,0,($O$1-1)*13) -> - | K17: =OFFSET('Precios finales '!AX10,0,($O$1-1)*13) -> - | L17: =OFFSET('Precios finales '!AY10,0,($O$1-1)*13) -> - | M17: =OFFSET('Precios finales '!AZ10,0,($O$1-1)*13) -> - | N17: =OFFSET('Precios finales '!BA10,0,($O$1-1)*13) -> - | O17: =OFFSET('Precios finales '!BB10,0,($O$1-1)*13) -> 0.2
B18: Restricciones intradiario | C18: =OFFSET('Precios finales '!AP11,0,($O$1-1)*13) -> 0 | D18: =OFFSET('Precios finales '!AQ11,0,($O$1-1)*13) -> 0 | E18: =OFFSET('Precios finales '!AR11,0,($O$1-1)*13) -> - | F18: =OFFSET('Precios finales '!AS11,0,($O$1-1)*13) -> - | G18: =OFFSET('Precios finales '!AT11,0,($O$1-1)*13) -> - | H18: =OFFSET('Precios finales '!AU11,0,($O$1-1)*13) -> - | I18: =OFFSET('Precios finales '!AV11,0,($O$1-1)*13) -> - | J18: =OFFSET('Precios finales '!AW11,0,($O$1-1)*13) -> - | K18: =OFFSET('Precios finales '!AX11,0,($O$1-1)*13) -> - | L18: =OFFSET('Precios finales '!AY11,0,($O$1-1)*13) -> - | M18: =OFFSET('Precios finales '!AZ11,0,($O$1-1)*13) -> - | N18: =OFFSET('Precios finales '!BA11,0,($O$1-1)*13) -> - | O18: =OFFSET('Precios finales '!BB11,0,($O$1-1)*13) -> 0
B19: Incumplimiento energía balance | C19: =OFFSET('Precios finales '!AP12,0,($O$1-1)*13) -> -0.05 | D19: =OFFSET('Precios finales '!AQ12,0,($O$1-1)*13) -> -0.03 | E19: =OFFSET('Precios finales '!AR12,0,($O$1-1)*13) -> - | F19: =OFFSET('Precios finales '!AS12,0,($O$1-1)*13) -> - | G19: =OFFSET('Precios finales '!AT12,0,($O$1-1)*13) -> - | H19: =OFFSET('Precios finales '!AU12,0,($O$1-1)*13) -> - | I19: =OFFSET('Precios finales '!AV12,0,($O$1-1)*13) -> - | J19: =OFFSET('Precios finales '!AW12,0,($O$1-1)*13) -> - | K19: =OFFSET('Precios finales '!AX12,0,($O$1-1)*13) -> - | L19: =OFFSET('Precios finales '!AY12,0,($O$1-1)*13) -> - | M19: =OFFSET('Precios finales '!AZ12,0,($O$1-1)*13) -> - | N19: =OFFSET('Precios finales '!BA12,0,($O$1-1)*13) -> - | O19: =OFFSET('Precios finales '!BB12,0,($O$1-1)*13) -> -0.04
B20: Desvíos (2) | C20: =OFFSET('Precios finales '!AP13,0,($O$1-1)*13) -> 0.27 | D20: =OFFSET('Precios finales '!AQ13,0,($O$1-1)*13) -> 0.31 | E20: =OFFSET('Precios finales '!AR13,0,($O$1-1)*13) -> - | F20: =OFFSET('Precios finales '!AS13,0,($O$1-1)*13) -> - | G20: =OFFSET('Precios finales '!AT13,0,($O$1-1)*13) -> - | H20: =OFFSET('Precios finales '!AU13,0,($O$1-1)*13) -> - | I20: =OFFSET('Precios finales '!AV13,0,($O$1-1)*13) -> - | J20: =OFFSET('Precios finales '!AW13,0,($O$1-1)*13) -> - | K20: =OFFSET('Precios finales '!AX13,0,($O$1-1)*13) -> - | L20: =OFFSET('Precios finales '!AY13,0,($O$1-1)*13) -> - | M20: =OFFSET('Precios finales '!AZ13,0,($O$1-1)*13) -> - | N20: =OFFSET('Precios finales '!BA13,0,($O$1-1)*13) -> - | O20: =OFFSET('Precios finales '!BB13,0,($O$1-1)*13) -> 0.29
B21: Excedente desvíos | C21: =OFFSET('Precios finales '!AP14,0,($O$1-1)*13) -> -0.04 | D21: =OFFSET('Precios finales '!AQ14,0,($O$1-1)*13) -> -0.09 | E21: =OFFSET('Precios finales '!AR14,0,($O$1-1)*13) -> - | F21: =OFFSET('Precios finales '!AS14,0,($O$1-1)*13) -> - | G21: =OFFSET('Precios finales '!AT14,0,($O$1-1)*13) -> - | H21: =OFFSET('Precios finales '!AU14,0,($O$1-1)*13) -> - | I21: =OFFSET('Precios finales '!AV14,0,($O$1-1)*13) -> - | J21: =OFFSET('Precios finales '!AW14,0,($O$1-1)*13) -> - | K21: =OFFSET('Precios finales '!AX14,0,($O$1-1)*13) -> - | L21: =OFFSET('Precios finales '!AY14,0,($O$1-1)*13) -> - | M21: =OFFSET('Precios finales '!AZ14,0,($O$1-1)*13) -> - | N21: =OFFSET('Precios finales '!BA14,0,($O$1-1)*13) -> - | O21: =OFFSET('Precios finales '!BB14,0,($O$1-1)*13) -> -0.06
B22: Control del factor de potencia | C22: =OFFSET('Precios finales '!AP15,0,($O$1-1)*13) -> -0.07 | D22: =OFFSET('Precios finales '!AQ15,0,($O$1-1)*13) -> -0.07 | E22: =OFFSET('Precios finales '!AR15,0,($O$1-1)*13) -> - | F22: =OFFSET('Precios finales '!AS15,0,($O$1-1)*13) -> - | G22: =OFFSET('Precios finales '!AT15,0,($O$1-1)*13) -> - | H22: =OFFSET('Precios finales '!AU15,0,($O$1-1)*13) -> - | I22: =OFFSET('Precios finales '!AV15,0,($O$1-1)*13) -> - | J22: =OFFSET('Precios finales '!AW15,0,($O$1-1)*13) -> - | K22: =OFFSET('Precios finales '!AX15,0,($O$1-1)*13) -> - | L22: =OFFSET('Precios finales '!AY15,0,($O$1-1)*13) -> - | M22: =OFFSET('Precios finales '!AZ15,0,($O$1-1)*13) -> - | N22: =OFFSET('Precios finales '!BA15,0,($O$1-1)*13) -> - | O22: =OFFSET('Precios finales '!BB15,0,($O$1-1)*13) -> -0.07
B23: Precio total (€/MWh) | C23: =OFFSET('Precios finales '!AP16,0,($O$1-1)*13) -> 81.7 | D23: =OFFSET('Precios finales '!AQ16,0,($O$1-1)*13) -> 61.34 | E23: =OFFSET('Precios finales '!AR16,0,($O$1-1)*13) -> - | F23: =OFFSET('Precios finales '!AS16,0,($O$1-1)*13) -> - | G23: =OFFSET('Precios finales '!AT16,0,($O$1-1)*13) -> - | H23: =OFFSET('Precios finales '!AU16,0,($O$1-1)*13) -> - | I23: =OFFSET('Precios finales '!AV16,0,($O$1-1)*13) -> - | J23: =OFFSET('Precios finales '!AW16,0,($O$1-1)*13) -> - | K23: =OFFSET('Precios finales '!AX16,0,($O$1-1)*13) -> - | L23: =OFFSET('Precios finales '!AY16,0,($O$1-1)*13) -> - | M23: =OFFSET('Precios finales '!AZ16,0,($O$1-1)*13) -> - | N23: =OFFSET('Precios finales '!BA16,0,($O$1-1)*13) -> - | O23: =OFFSET('Precios finales '!BB16,0,($O$1-1)*13) -> 72.27
B24: Energía cierre (GWh) | C24: =IF(OFFSET('Precios finales '!AP17,0,($O$1-1)*13)="-","-",OFFSET('Precios finales '!AP17,0,($O$1-1)*13)/1000) -> 23014.49333 | D24: =IF(OFFSET('Precios finales '!AQ17,0,($O$1-1)*13)="-","-",OFFSET('Precios finales '!AQ17,0,($O$1-1)*13)/1000) -> 19924.78899 | E24: =IF(OFFSET('Precios finales '!AR17,0,($O$1-1)*13)="-","-",OFFSET('Precios finales '!AR17,0,($O$1-1)*13)/1000) -> - | F24: =IF(OFFSET('Precios finales '!AS17,0,($O$1-1)*13)="-","-",OFFSET('Precios finales '!AS17,0,($O$1-1)*13)/1000) -> - | G24: =IF(OFFSET('Precios finales '!AT17,0,($O$1-1)*13)="-","-",OFFSET('Precios finales '!AT17,0,($O$1-1)*13)/1000) -> - | H24: =IF(OFFSET('Precios finales '!AU17,0,($O$1-1)*13)="-","-",OFFSET('Precios finales '!AU17,0,($O$1-1)*13)/1000) -> - | I24: =IF(OFFSET('Precios finales '!AV17,0,($O$1-1)*13)="-","-",OFFSET('Precios finales '!AV17,0,($O$1-1)*13)/1000) -> - | J24: =IF(OFFSET('Precios finales '!AW17,0,($O$1-1)*13)="-","-",OFFSET('Precios finales '!AW17,0,($O$1-1)*13)/1000) -> - | K24: =IF(OFFSET('Precios finales '!AX17,0,($O$1-1)*13)="-","-",OFFSET('Precios finales '!AX17,0,($O$1-1)*13)/1000) -> - | L24: =IF(OFFSET('Precios finales '!AY17,0,($O$1-1)*13)="-","-",OFFSET('Precios finales '!AY17,0,($O$1-1)*13)/1000) -> - | M24: =IF(OFFSET('Precios finales '!AZ17,0,($O$1-1)*13)="-","-",OFFSET('Precios finales '!AZ17,0,($O$1-1)*13)/1000) -> - | N24: =IF(OFFSET('Precios finales '!BA17,0,($O$1-1)*13)="-","-",OFFSET('Precios finales '!BA17,0,($O$1-1)*13)/1000) -> - | O24: =IF(OFFSET('Precios finales '!BB17,0,($O$1-1)*13)="-","-",OFFSET('Precios finales '!BB17,0,($O$1-1)*13)/1000) -> 42939.28232

Sheet Precio final anual
O1: 1
I4: Concepto
I5: Horizonte temporal
I6: Periodo
C8: =OFFSET('Precios finales '!F21,0,($O$1-1)*10) -> 2010 | D8: =OFFSET('Precios finales '!G21,0,($O$1-1)*10) -> 2011 | E8: =OFFSET('Precios finales '!H21,0,($O$1-1)*10) -> 2012 | F8: =OFFSET('Precios finales '!I21,0,($O$1-1)*10) -> 2013 | G8: =OFFSET('Precios finales '!J21,0,($O$1-1)*10) -> 2014 | H8: =OFFSET('Precios finales '!K21,0,($O$1-1)*10) -> 2015 | I8: =OFFSET('Precios finales '!L21,0,($O$1-1)*10) -> 2016 | J8: =OFFSET('Precios finales '!M21,0,($O$1-1)*10) -> 2017 | K8: =OFFSET('Precios finales '!N21,0,($O$1-1)*10) -> 2018 | L8: =OFFSET('Precios finales '!O21,0,($O$1-1)*10) -> 2019
C9: =OFFSET('Precios finales '!C22,0,($O$1-1)*10) -> 0 | D9: =OFFSET('Precios finales '!D22,0,($O$1-1)*10) -> 0 | E9: =OFFSET('Precios finales '!E22,0,($O$1-1)*10) -> 0 | F9: =OFFSET('Precios finales '!F22,0,($O$1-1)*10) -> 38.44 | G9: =OFFSET('Precios finales '!G22,0,($O$1-1)*10) -> 50.91 | H9: =OFFSET('Precios finales '!H22,0,($O$1-1)*10) -> 48.84 | I9: =OFFSET('Precios finales '!I22,0,($O$1-1)*10) -> 46.17 | J9: =OFFSET('Precios finales '!J22,0,($O$1-1)*10) -> 43.42 | K9: =OFFSET('Precios finales '!K22,0,($O$1-1)*10) -> 51.67 | L9: =OFFSET('Precios finales '!L22,0,($O$1-1)*10) -> 40.62
B10: Mercado diario e Intradiario | C10: =OFFSET('Precios finales '!F22,0,($O$1-1)*10) -> 38.44 | D10: =OFFSET('Precios finales '!G22,0,($O$1-1)*10) -> 50.91 | E10: =OFFSET('Precios finales '!H22,0,($O$1-1)*10) -> 48.84 | F10: =OFFSET('Precios finales '!I22,0,($O$1-1)*10) -> 46.17 | G10: =OFFSET('Precios finales '!J22,0,($O$1-1)*10) -> 43.42 | H10: =OFFSET('Precios finales '!K22,0,($O$1-1)*10) -> 51.67 | I10: =OFFSET('Precios finales '!L22,0,($O$1-1)*10) -> 40.62 | J10: =OFFSET('Precios finales '!M22,0,($O$1-1)*10) -> 64.07 | K10: =OFFSET('Precios finales '!N22,0,($O$1-1)*10) -> - | L10: =OFFSET('Precios finales '!O22,0,($O$1-1)*10) -> -
B11: Servicio de interrumpibilidad | C11: =OFFSET('Precios finales '!F23,0,($O$1-1)*10) -> - | D11: =OFFSET('Precios finales '!G23,0,($O$1-1)*10) -> - | E11: =OFFSET('Precios finales '!H23,0,($O$1-1)*10) -> - | F11: =OFFSET('Precios finales '!I23,0,($O$1-1)*10) -> - | G11: =OFFSET('Precios finales '!J23,0,($O$1-1)*10) -> - | H11: =OFFSET('Precios finales '!K23,0,($O$1-1)*10) -> 1.89 | I11: =OFFSET('Precios finales '!L23,0,($O$1-1)*10) -> 1.94 | J11: =OFFSET('Precios finales '!M23,0,($O$1-1)*10) -> 2.03 | K11: =OFFSET('Precios finales '!N23,0,($O$1-1)*10) -> - | L11: =OFFSET('Precios finales '!O23,0,($O$1-1)*10) -> -
B12: Pagos por capacidad | C12: =OFFSET('Precios finales '!F24,0,($O$1-1)*10) -> 3.63 | D12: =OFFSET('Precios finales '!G24,0,($O$1-1)*10) -> 6.1 | E12: =OFFSET('Precios finales '!H24,0,($O$1-1)*10) -> 6.1 | F12: =OFFSET('Precios finales '!I24,0,($O$1-1)*10) -> 6.04 | G12: =OFFSET('Precios finales '!J24,0,($O$1-1)*10) -> 5.93 | H12: =OFFSET('Precios finales '!K24,0,($O$1-1)*10) -> 5.02 | I12: =OFFSET('Precios finales '!L24,0,($O$1-1)*10) -> 2.75 | J12: =OFFSET('Precios finales '!M24,0,($O$1-1)*10) -> 3.29 | K12: =OFFSET('Precios finales '!N24,0,($O$1-1)*10) -> - | L12: =OFFSET('Precios finales '!O24,0,($O$1-1)*10) -> -
B13: Servicios ajustes del sistema | C13: =OFFSET('Precios finales '!F25,0,($O$1-1)*10) -> 3.76 | D13: =OFFSET('Precios finales '!G25,0,($O$1-1)*10) -> 3.21 | E13: =OFFSET('Precios finales '!H25,0,($O$1-1)*10) -> 4.63 | F13: =OFFSET('Precios finales '!I25,0,($O$1-1)*10) -> 5.58 | G13: =OFFSET('Precios finales '!J25,0,($O$1-1)*10) -> 5.7 | H13: =OFFSET('Precios finales '!K25,0,($O$1-1)*10) -> 4.26 | I13: =OFFSET('Precios finales '!L25,0,($O$1-1)*10) -> 3.1 | J13: =OFFSET('Precios finales '!M25,0,($O$1-1)*10) -> 2.88 | K13: =OFFSET('Precios finales '!N25,0,($O$1-1)*10) -> - | L13: =OFFSET('Precios finales '!O25,0,($O$1-1)*10) -> -
B14: Restricciones técnicas PBF | C14: =OFFSET('Precios finales '!F26,0,($O$1-1)*10) -> 2.29 | D14: =OFFSET('Precios finales '!G26,0,($O$1-1)*10) -> 1.85 | E14: =OFFSET('Precios finales '!H26,0,($O$1-1)*10) -> 2.11 | F14: =OFFSET('Precios finales '!I26,0,($O$1-1)*10) -> 2.83 | G14: =OFFSET('Precios finales '!J26,0,($O$1-1)*10) -> 3.39 | H14: =OFFSET('Precios finales '!K26,0,($O$1-1)*10) -> 2.79 | I14: =OFFSET('Precios finales '!L26,0,($O$1-1)*10) -> 2.07 | J14: =OFFSET('Precios finales '!M26,0,($O$1-1)*10) -> 1.64 | K14: =OFFSET('Precios finales '!N26,0,($O$1-1)*10) -> - | L14: =OFFSET('Precios finales '!O26,0,($O$1-1)*10) -> -
B15: Banda de regulación secundaria | C15: =OFFSET('Precios finales '!F27,0,($O$1-1)*10) -> 0.7 | D15: =OFFSET('Precios finales '!G27,0,($O$1-1)*10) -> 0.76 | E15: =OFFSET('Precios finales '!H27,0,($O$1-1)*10) -> 1.37 | F15: =OFFSET('Precios finales '!I27,0,($O$1-1)*10) -> 1.45 | G15: =OFFSET('Precios finales '!J27,0,($O$1-1)*10) -> 1.13 | H15: =OFFSET('Precios finales '!K27,0,($O$1-1)*10) -> 0.91 | I15: =OFFSET('Precios finales '!L27,0,($O$1-1)*10) -> 0.71 | J15: =OFFSET('Precios finales '!M27,0,($O$1-1)*10) -> 0.77 | K15: =OFFSET('Precios finales '!N27,0,($O$1-1)*10) -> - | L15: =OFFSET('Precios finales '!O27,0,($O$1-1)*10) -> -
B16: Reserva de potencia adicional a subir | C16: =OFFSET('Precios finales '!F28,0,($O$1-1)*10) -> 0 | D16: =OFFSET('Precios finales '!G28,0,($O$1-1)*10) -> 0 | E16: =OFFSET('Precios finales '!H28,0,($O$1-1)*10) -> 0.25 | F16: =OFFSET('Precios finales '!I28,0,($O$1-1)*10) -> 0.44 | G16: =OFFSET('Precios finales '!J28,0,($O$1-1)*10) -> 0.59 | H16: =OFFSET('Precios finales '!K28,0,($O$1-1)*10) -> 0.19 | I16: =OFFSET('Precios finales '!L28,0,($O$1-1)*10) -> 0.15 | J16: =OFFSET('Precios finales '!M28,0,($O$1-1)*10) -> 0.15 | K16: =OFFSET('Precios finales '!N28,0,($O$1-1)*10) -> - | L16: =OFFSET('Precios finales '!O28,0,($O$1-1)*10) -> -
B17: Restricciones técnicas en tiempo real | C17: =OFFSET('Precios finales '!F29,0,($O$1-1)*10) -> 0.26 | D17: =OFFSET('Precios finales '!G29,0,($O$1-1)*10) -> 0.24 | E17: =OFFSET('Precios finales '!H29,0,($O$1-1)*10) -> 0.48 | F17: =OFFSET('Precios finales '!I29,0,($O$1-1)*10) -> 0.46 | G17: =OFFSET('Precios finales '!J29,0,($O$1-1)*10) -> 0.37 | H17: =OFFSET('Precios finales '!K29,0,($O$1-1)*10) -> 0.18 | I17: =OFFSET('Precios finales '!L29,0,($O$1-1)*10) -> 0.12 | J17: =OFFSET('Precios finales '!M29,0,($O$1-1)*10) -> 0.2 | K17: =OFFSET('Precios finales '!N29,0,($O$1-1)*10) -> - | L17: =OFFSET('Precios finales '!O29,0,($O$1-1)*10) -> -
B18: Restricciones intradiario | C18: =OFFSET('Precios finales '!F30,0,($O$1-1)*10) -> 0 | D18: =OFFSET('Precios finales '!G30,0,($O$1-1)*10) -> 0 | E18: =OFFSET('Precios finales '!H30,0,($O$1-1)*10) -> 0 | F18: =OFFSET('Precios finales '!I30,0,($O$1-1)*10) -> 0 | G18: =OFFSET('Precios finales '!J30,0,($O$1-1)*10) -> 0 | H18: =OFFSET('Precios finales '!K30,0,($O$1-1)*10) -> 0 | I18: =OFFSET('Precios finales '!L30,0,($O$1-1)*10) -> 0 | J18: =OFFSET('Precios finales '!M30,0,($O$1-1)*10) -> 0 | K18: =OFFSET('Precios finales '!N30,0,($O$1-1)*10) -> - | L18: =OFFSET('Precios finales '!O30,0,($O$1-1)*10) -> -
B19: Incumplimiento energía balance | C19: =OFFSET('Precios finales '!F31,0,($O$1-1)*10) -> - | D19: =OFFSET('Precios finales '!G31,0,($O$1-1)*10) -> - | E19: =OFFSET('Precios finales '!H31,0,($O$1-1)*10) -> - | F19: =OFFSET('Precios finales '!I31,0,($O$1-1)*10) -> - | G19: =OFFSET('Precios finales '!J31,0,($O$1-1)*10) -> - | H19: =OFFSET('Precios finales '!K31,0,($O$1-1)*10) -> 0 | I19: =OFFSET('Precios finales '!L31,0,($O$1-1)*10) -> -0.02 | J19: =OFFSET('Precios finales '!M31,0,($O$1-1)*10) -> -0.04 | K19: =OFFSET('Precios finales '!N31,0,($O$1-1)*10) -> - | L19: =OFFSET('Precios finales '!O31,0,($O$1-1)*10) -> -
B20: Desvíos (2) | C20: =OFFSET('Precios finales '!F32,0,($O$1-1)*10) -> 0.38 | D20: =OFFSET('Precios finales '!G32,0,($O$1-1)*10) -> 0.33 | E20: =OFFSET('Precios finales '!H32,0,($O$1-1)*10) -> 0.28 | F20: =OFFSET('Precios finales '!I32,0,($O$1-1)*10) -> 0.3 | G20: =OFFSET('Precios finales '!J32,0,($O$1-1)*10) -> 0.26 | H20: =OFFSET('Precios finales '!K32,0,($O$1-1)*10) -> 0.27 | I20: =OFFSET('Precios finales '!L32,0,($O$1-1)*10) -> 0.2 | J20: =OFFSET('Precios finales '!M32,0,($O$1-1)*10) -> 0.29 | K20: =OFFSET('Precios finales '!N32,0,($O$1-1)*10) -> - | L20: =OFFSET('Precios finales '!O32,0,($O$1-1)*10) -> -
B21: Excedente desvíos | C21: =OFFSET('Precios finales '!F33,0,($O$1-1)*10) -> 0.13 | D21: =OFFSET('Precios finales '!G33,0,($O$1-1)*10) -> 0.03 | E21: =OFFSET('Precios finales '!H33,0,($O$1-1)*10) -> 0.14 | F21: =OFFSET('Precios finales '!I33,0,($O$1-1)*10) -> 0.1 | G21: =OFFSET('Precios finales '!J33,0,($O$1-1)*10) -> -0.01 | H21: =OFFSET('Precios finales '!K33,0,($O$1-1)*10) -> -0.02 | I21: =OFFSET('Precios finales '!L33,0,($O$1-1)*10) -> -0.07 | J21: =OFFSET('Precios finales '!M33,0,($O$1-1)*10) -> -0.06 | K21: =OFFSET('Precios finales '!N33,0,($O$1-1)*10) -> - | L21: =OFFSET('Precios finales '!O33,0,($O$1-1)*10) -> -
B22: Control del factor de potencia | C22: =OFFSET('Precios finales '!F34,0,($O$1-1)*10) -> 0 | D22: =OFFSET('Precios finales '!G34,0,($O$1-1)*10) -> 0 | E22: =OFFSET('Precios finales '!H34,0,($O$1-1)*10) -> 0 | F22: =OFFSET('Precios finales '!I34,0,($O$1-1)*10) -> 0 | G22: =OFFSET('Precios finales '!J34,0,($O$1-1)*10) -> -0.03 | H22: =OFFSET('Precios finales '!K34,0,($O$1-1)*10) -> -0.06 | I22: =OFFSET('Precios finales '!L34,0,($O$1-1)*10) -> -0.06 | J22: =OFFSET('Precios finales '!M34,0,($O$1-1)*10) -> -0.07 | K22: =OFFSET('Precios finales '!N34,0,($O$1-1)*10) -> - | L22: =OFFSET('Precios finales '!O34,0,($O$1-1)*10) -> -
B23: Precio total (€/MWh) | C23: =OFFSET('Precios finales '!F35,0,($O$1-1)*10) -> 45.83 | D23: =OFFSET('Precios finales '!G35,0,($O$1-1)*10) -> 60.22 | E23: =OFFSET('Precios finales '!H35,0,($O$1-1)*10) -> 59.57 | F23: =OFFSET('Precios finales '!I35,0,($O$1-1)*10) -> 57.79 | G23: =OFFSET('Precios finales '!J35,0,($O$1-1)*10) -> 55.05 | H23: =OFFSET('Precios finales '!K35,0,($O$1-1)*10) -> 62.84 | I23: =OFFSET('Precios finales '!L35,0,($O$1-1)*10) -> 48.41 | J23: =OFFSET('Precios finales '!M35,0,($O$1-1)*10) -> 72.27 | K23: =OFFSET('Precios finales '!N35,0,($O$1-1)*10) -> - | L23: =OFFSET('Precios finales '!O35,0,($O$1-1)*10) -> -
B24: Energía cierre (GWh) | C24: =IF(OFFSET('Precios finales '!F36,0,($O$1-1)*10)="-","-",OFFSET('Precios finales '!F36,0,($O$1-1)*10)/1000) -> 259577.0167 | D24: =IF(OFFSET('Precios finales '!G36,0,($O$1-1)*10)="-","-",OFFSET('Precios finales '!G36,0,($O$1-1)*10)/1000) -> 253050.1423 | E24: =IF(OFFSET('Precios finales '!H36,0,($O$1-1)*10)="-","-",OFFSET('Precios finales '!H36,0,($O$1-1)*10)/1000) -> 247643.5775 | F24: =IF(OFFSET('Precios finales '!I36,0,($O$1-1)*10)="-","-",OFFSET('Precios finales '!I36,0,($O$1-1)*10)/1000) -> 240660.9137 | G24: =IF(OFFSET('Precios finales '!J36,0,($O$1-1)*10)="-","-",OFFSET('Precios finales '!J36,0,($O$1-1)*10)/1000) -> 238985.133 | H24: =IF(OFFSET('Precios finales '!K36,0,($O$1-1)*10)="-","-",OFFSET('Precios finales '!K36,0,($O$1-1)*10)/1000) -> 247272.773 | I24: =IF(OFFSET('Precios finales '!L36,0,($O$1-1)*10)="-","-",OFFSET('Precios finales '!L36,0,($O$1-1)*10)/1000) -> 249141.4993 | J24: =IF(OFFSET('Precios finales '!M36,0,($O$1-1)*10)="-","-",OFFSET('Precios finales '!M36,0,($O$1-1)*10)/1000) -> 42939.28232 | K24: =IF(OFFSET('Precios finales '!N36,0,($O$1-1)*10)="-","-",OFFSET('Precios finales '!N36,0,($O$1-1)*10)/1000) -> - | L24: =IF(OFFSET('Precios finales '!O36,0,($O$1-1)*10)="-","-",OFFSET('Precios finales '!O36,0,($O$1-1)*10)/1000) -> -

Sheet Energía gestionada SA mensual
O1: 8
L4: Concepto
L5: Horizonte temporal
L6: Periodo
C8: Ene. | D8: Feb. | E8: Mar. | F8: Abr. | G8: May. | H8: Jun. | I8: Jul. | J8: Ago. | K8: Sep. | L8: Oct. | M8: Nov. | N8: Dic. | O8: =OFFSET(Año!B2,($O$1-1),0) -> 2017
B10: Subir
B11: Restricciones garantía de suministro | C11: =OFFSET('Precios finales '!AP112,0,($O$1-1)*13) -> - | D11: =OFFSET('Precios finales '!AQ112,0,($O$1-1)*13) -> - | E11: =OFFSET('Precios finales '!AR112,0,($O$1-1)*13) -> - | F11: =OFFSET('Precios finales '!AS112,0,($O$1-1)*13) -> - | G11: =OFFSET('Precios finales '!AT112,0,($O$1-1)*13) -> - | H11: =OFFSET('Precios finales '!AU112,0,($O$1-1)*13) -> - | I11: =OFFSET('Precios finales '!AV112,0,($O$1-1)*13) -> - | J11: =OFFSET('Precios finales '!AW112,0,($O$1-1)*13) -> - | K11: =OFFSET('Precios finales '!AX112,0,($O$1-1)*13) -> - | L11: =OFFSET('Precios finales '!AY112,0,($O$1-1)*13) -> - | M11: =OFFSET('Precios finales '!AZ112,0,($O$1-1)*13) -> - | N11: =OFFSET('Precios finales '!BA112,0,($O$1-1)*13) -> - | O11: =OFFSET('Precios finales '!BB112,0,($O$1-1)*13) -> -
B12: Restricciones técnicas al PBF | C12: =OFFSET('Precios finales '!AP113,0,($O$1-1)*13) -> 731.8852 | D12: =OFFSET('Precios finales '!AQ113,0,($O$1-1)*13) -> 864.4636 | E12: =OFFSET('Precios finales '!AR113,0,($O$1-1)*13) -> - | F12: =OFFSET('Precios finales '!AS113,0,($O$1-1)*13) -> - | G12: =OFFSET('Precios finales '!AT113,0,($O$1-1)*13) -> - | H12: =OFFSET('Precios finales '!AU113,0,($O$1-1)*13) -> - | I12: =OFFSET('Precios finales '!AV113,0,($O$1-1)*13) -> - | J12: =OFFSET('Precios finales '!AW113,0,($O$1-1)*13) -> - | K12: =OFFSET('Precios finales '!AX113,0,($O$1-1)*13) -> - | L12: =OFFSET('Precios finales '!AY113,0,($O$1-1)*13) -> - | M12: =OFFSET('Precios finales '!AZ113,0,($O$1-1)*13) -> - | N12: =OFFSET('Precios finales '!BA113,0,($O$1-1)*13) -> - | O12: =OFFSET('Precios finales '!BB113,0,($O$1-1)*13) -> 1596.3488
B13: Regulación secundaria | C13: =OFFSET('Precios finales '!AP114,0,($O$1-1)*13) -> 114.0994 | D13: =OFFSET('Precios finales '!AQ114,0,($O$1-1)*13) -> 123.0622 | E13: =OFFSET('Precios finales '!AR114,0,($O$1-1)*13) -> - | F13: =OFFSET('Precios finales '!AS114,0,($O$1-1)*13) -> - | G13: =OFFSET('Precios finales '!AT114,0,($O$1-1)*13) -> - | H13: =OFFSET('Precios finales '!AU114,0,($O$1-1)*13) -> - | I13: =OFFSET('Precios finales '!AV114,0,($O$1-1)*13) -> - | J13: =OFFSET('Precios finales '!AW114,0,($O$1-1)*13) -> - | K13: =OFFSET('Precios finales '!AX114,0,($O$1-1)*13) -> - | L13: =OFFSET('Precios finales '!AY114,0,($O$1-1)*13) -> - | M13: =OFFSET('Precios finales '!AZ114,0,($O$1-1)*13) -> - | N13: =OFFSET('Precios finales '!BA114,0,($O$1-1)*13) -> - | O13: =OFFSET('Precios finales '!BB114,0,($O$1-1)*13) -> 237.162199
B14: Regulación terciaria | C14: =OFFSET('Precios finales '!AP115,0,($O$1-1)*13) -> 289.6221 | D14: =OFFSET('Precios finales '!AQ115,0,($O$1-1)*13) -> 110.8397 | E14: =OFFSET('Precios finales '!AR115,0,($O$1-1)*13) -> - | F14: =OFFSET('Precios finales '!AS115,0,($O$1-1)*13) -> - | G14: =OFFSET('Precios finales '!AT115,0,($O$1-1)*13) -> - | H14: =OFFSET('Precios finales '!AU115,0,($O$1-1)*13) -> - | I14: =OFFSET('Precios finales '!AV115,0,($O$1-1)*13) -> - | J14: =OFFSET('Precios finales '!AW115,0,($O$1-1)*13) -> - | K14: =OFFSET('Precios finales '!AX115,0,($O$1-1)*13) -> - | L14: =OFFSET('Precios finales '!AY115,0,($O$1-1)*13) -> - | M14: =OFFSET('Precios finales '!AZ115,0,($O$1-1)*13) -> - | N14: =OFFSET('Precios finales '!BA115,0,($O$1-1)*13) -> - | O14: =OFFSET('Precios finales '!BB115,0,($O$1-1)*13) -> 400.4618
B15: Gestión de desvíos | C15: =OFFSET('Precios finales '!AP116,0,($O$1-1)*13) -> 151.5086 | D15: =OFFSET('Precios finales '!AQ116,0,($O$1-1)*13) -> 31.8599 | E15: =OFFSET('Precios finales '!AR116,0,($O$1-1)*13) -> - | F15: =OFFSET('Precios finales '!AS116,0,($O$1-1)*13) -> - | G15: =OFFSET('Precios finales '!AT116,0,($O$1-1)*13) -> - | H15: =OFFSET('Precios finales '!AU116,0,($O$1-1)*13) -> - | I15: =OFFSET('Precios finales '!AV116,0,($O$1-1)*13) -> - | J15: =OFFSET('Precios finales '!AW116,0,($O$1-1)*13) -> - | K15: =OFFSET('Precios finales '!AX116,0,($O$1-1)*13) -> - | L15: =OFFSET('Precios finales '!AY116,0,($O$1-1)*13) -> - | M15: =OFFSET('Precios finales '!AZ116,0,($O$1-1)*13) -> - | N15: =OFFSET('Precios finales '!BA116,0,($O$1-1)*13) -> - | O15: =OFFSET('Precios finales '!BB116,0,($O$1-1)*13) -> 183.3685
B16: Restricciones en tiempo real | C16: =OFFSET('Precios finales '!AP117,0,($O$1-1)*13) -> 34.5139 | D16: =OFFSET('Precios finales '!AQ117,0,($O$1-1)*13) -> 22.3091 | E16: =OFFSET('Precios finales '!AR117,0,($O$1-1)*13) -> - | F16: =OFFSET('Precios finales '!AS117,0,($O$1-1)*13) -> - | G16: =OFFSET('Precios finales '!AT117,0,($O$1-1)*13) -> - | H16: =OFFSET('Precios finales '!AU117,0,($O$1-1)*13) -> - | I16: =OFFSET('Precios finales '!AV117,0,($O$1-1)*13) -> - | J16: =OFFSET('Precios finales '!AW117,0,($O$1-1)*13) -> - | K16: =OFFSET('Precios finales '!AX117,0,($O$1-1)*13) -> - | L16: =OFFSET('Precios finales '!AY117,0,($O$1-1)*13) -> - | M16: =OFFSET('Precios finales '!AZ117,0,($O$1-1)*13) -> - | N16: =OFFSET('Precios finales '!BA117,0,($O$1-1)*13) -> - | O16: =OFFSET('Precios finales '!BB117,0,($O$1-1)*13) -> 56.823
B17: Energía a subir | C17: =SUM(C11:C16) -> 1321.6292 | D17: =SUM(D11:D16) -> 1152.5345 | E17: 0 | F17: 0 | G17: 0 | H17: 0 | I17: 0 | J17: 0 | K17: 0 | L17: 0 | M17: 0 | N17: 0 | O17: =SUM(O11:O16) -> 2474.164299
B19: Bajar
B20: Restricciones garantía de suministro | C20: =OFFSET('Precios finales '!AP120,0,($O$1-1)*13) -> - | D20: =OFFSET('Precios finales '!AQ120,0,($O$1-1)*13) -> - | E20: =OFFSET('Precios finales '!AR120,0,($O$1-1)*13) -> - | F20: =OFFSET('Precios finales '!AS120,0,($O$1-1)*13) -> - | G20: =OFFSET('Precios finales '!AT120,0,($O$1-1)*13) -> - | H20: =OFFSET('Precios finales '!AU120,0,($O$1-1)*13) -> - | I20: =OFFSET('Precios finales '!AV120,0,($O$1-1)*13) -> - | J20: =OFFSET('Precios finales '!AW120,0,($O$1-1)*13) -> - | K20: =OFFSET('Precios finales '!AX120,0,($O$1-1)*13) -> - | L20: =OFFSET('Precios finales '!AY120,0,($O$1-1)*13) -> - | M20: =OFFSET('Precios finales '!AZ120,0,($O$1-1)*13) -> - | N20: =OFFSET('Precios finales '!BA120,0,($O$1-1)*13) -> - | O20: =OFFSET('Precios finales '!BB120,0,($O$1-1)*13) -> -
B21: Restricciones técnicas al PBF | C21: =OFFSET('Precios finales '!AP121,0,($O$1-1)*13) -> 3.1632 | D21: =OFFSET('Precios finales '!AQ121,0,($O$1-1)*13) -> 67.0397 | E21: =OFFSET('Precios finales '!AR121,0,($O$1-1)*13) -> - | F21: =OFFSET('Precios finales '!AS121,0,($O$1-1)*13) -> - | G21: =OFFSET('Precios finales '!AT121,0,($O$1-1)*13) -> - | H21: =OFFSET('Precios finales '!AU121,0,($O$1-1)*13) -> - | I21: =OFFSET('Precios finales '!AV121,0,($O$1-1)*13) -> - | J21: =OFFSET('Precios finales '!AW121,0,($O$1-1)*13) -> - | K21: =OFFSET('Precios finales '!AX121,0,($O$1-1)*13) -> - | L21: =OFFSET('Precios finales '!AY121,0,($O$1-1)*13) -> - | M21: =OFFSET('Precios finales '!AZ121,0,($O$1-1)*13) -> - | N21: =OFFSET('Precios finales '!BA121,0,($O$1-1)*13) -> - | O21: =OFFSET('Precios finales '!BB121,0,($O$1-1)*13) -> 70.2029
B22: Regulación secundaria | C22: =OFFSET('Precios finales '!AP122,0,($O$1-1)*13) -> 108.0405 | D22: =OFFSET('Precios finales '!AQ122,0,($O$1-1)*13) -> 65.0634 | E22: =OFFSET('Precios finales '!AR122,0,($O$1-1)*13) -> - | F22: =OFFSET('Precios finales '!AS122,0,($O$1-1)*13) -> - | G22: =OFFSET('Precios finales '!AT122,0,($O$1-1)*13) -> - | H22: =OFFSET('Precios finales '!AU122,0,($O$1-1)*13) -> - | I22: =OFFSET('Precios finales '!AV122,0,($O$1-1)*13) -> - | J22: =OFFSET('Precios finales '!AW122,0,($O$1-1)*13) -> - | K22: =OFFSET('Precios finales '!AX122,0,($O$1-1)*13) -> - | L22: =OFFSET('Precios finales '!AY122,0,($O$1-1)*13) -> - | M22: =OFFSET('Precios finales '!AZ122,0,($O$1-1)*13) -> - | N22: =OFFSET('Precios finales '!BA122,0,($O$1-1)*13) -> - | O22: =OFFSET('Precios finales '!BB122,0,($O$1-1)*13) -> 173.09948
B23: Regulación terciaria | C23: =OFFSET('Precios finales '!AP123,0,($O$1-1)*13) -> 145.4631 | D23: =OFFSET('Precios finales '!AQ123,0,($O$1-1)*13) -> 223.4613 | E23: =OFFSET('Precios finales '!AR123,0,($O$1-1)*13) -> - | F23: =OFFSET('Precios finales '!AS123,0,($O$1-1)*13) -> - | G23: =OFFSET('Precios finales '!AT123,0,($O$1-1)*13) -> - | H23: =OFFSET('Precios finales '!AU123,0,($O$1-1)*13) -> - | I23: =OFFSET('Precios finales '!AV123,0,($O$1-1)*13) -> - | J23: =OFFSET('Precios finales '!AW123,0,($O$1-1)*13) -> - | K23: =OFFSET('Precios finales '!AX123,0,($O$1-1)*13) -> - | L23: =OFFSET('Precios finales '!AY123,0,($O$1-1)*13) -> - | M23: =OFFSET('Precios finales '!AZ123,0,($O$1-1)*13) -> - | N23: =OFFSET('Precios finales '!BA123,0,($O$1-1)*13) -> - | O23: =OFFSET('Precios finales '!BB123,0,($O$1-1)*13) -> 368.9244
B24: Gestión de desvíos | C24: =OFFSET('Precios finales '!AP124,0,($O$1-1)*13) -> 47.0948 | D24: =OFFSET('Precios finales '!AQ124,0,($O$1-1)*13) -> 110.5849 | E24: =OFFSET('Precios finales '!AR124,0,($O$1-1)*13) -> - | F24: =OFFSET('Precios finales '!AS124,0,($O$1-1)*13) -> - | G24: =OFFSET('Precios finales '!AT124,0,($O$1-1)*13) -> - | H24: =OFFSET('Precios finales '!AU124,0,($O$1-1)*13) -> - | I24: =OFFSET('Precios finales '!AV124,0,($O$1-1)*13) -> - | J24: =OFFSET('Precios finales '!AW124,0,($O$1-1)*13) -> - | K24: =OFFSET('Precios finales '!AX124,0,($O$1-1)*13) -> - | L24: =OFFSET('Precios finales '!AY124,0,($O$1-1)*13) -> - | M24: =OFFSET('Precios finales '!AZ124,0,($O$1-1)*13) -> - | N24: =OFFSET('Precios finales '!BA124,0,($O$1-1)*13) -> - | O24: =OFFSET('Precios finales '!BB124,0,($O$1-1)*13) -> 157.6797
B25: Restricciones en tiempo real | C25: =OFFSET('Precios finales '!AP125,0,($O$1-1)*13) -> 55.794 | D25: =OFFSET('Precios finales '!AQ125,0,($O$1-1)*13) -> 96.1476 | E25: =OFFSET('Precios finales '!AR125,0,($O$1-1)*13) -> - | F25: =OFFSET('Precios finales '!AS125,0,($O$1-1)*13) -> - | G25: =OFFSET('Precios finales '!AT125,0,($O$1-1)*13) -> - | H25: =OFFSET('Precios finales '!AU125,0,($O$1-1)*13) -> - | I25: =OFFSET('Precios finales '!AV125,0,($O$1-1)*13) -> - | J25: =OFFSET('Precios finales '!AW125,0,($O$1-1)*13) -> - | K25: =OFFSET('Precios finales '!AX125,0,($O$1-1)*13) -> - | L25: =OFFSET('Precios finales '!AY125,0,($O$1-1)*13) -> - | M25: =OFFSET('Precios finales '!AZ125,0,($O$1-1)*13) -> - | N25: =OFFSET('Precios finales '!BA125,0,($O$1-1)*13) -> - | O25: =OFFSET('Precios finales '!BB125,0,($O$1-1)*13) -> 151.9416
B26: Energía a Bajar | C26: =SUM(C20:C25) -> 359.5556 | D26: =SUM(D20:D25) -> 562.2969 | E26: 0 | F26: 0 | G26: 0 | H26: 0 | I26: 0 | J26: 0 | K26: 0 | L26: 0 | M26: 0 | N26: 0 | O26: 921.84808
B28: Volumen
B29: Restricciones garantía de suministro | C29: =OFFSET('Precios finales '!AP128,0,($O$1-1)*13) -> - | D29: =OFFSET('Precios finales '!AQ128,0,($O$1-1)*13) -> - | E29: =OFFSET('Precios finales '!AR128,0,($O$1-1)*13) -> - | F29: =OFFSET('Precios finales '!AS128,0,($O$1-1)*13) -> - | G29: =OFFSET('Precios finales '!AT128,0,($O$1-1)*13) -> - | H29: =OFFSET('Precios finales '!AU128,0,($O$1-1)*13) -> - | I29: =OFFSET('Precios finales '!AV128,0,($O$1-1)*13) -> - | J29: =OFFSET('Precios finales '!AW128,0,($O$1-1)*13) -> - | K29: =OFFSET('Precios finales '!AX128,0,($O$1-1)*13) -> - | L29: =OFFSET('Precios finales '!AY128,0,($O$1-1)*13) -> - | M29: =OFFSET('Precios finales '!AZ128,0,($O$1-1)*13) -> - | N29: =OFFSET('Precios finales '!BA128,0,($O$1-1)*13) -> - | O29: =OFFSET('Precios finales '!BB128,0,($O$1-1)*13) -> -
B30: Restricciones técnicas al PBF | C30: =OFFSET('Precios finales '!AP129,0,($O$1-1)*13) -> 735.0484 | D30: =OFFSET('Precios finales '!AQ129,0,($O$1-1)*13) -> 931.5033 | E30: =OFFSET('Precios finales '!AR129,0,($O$1-1)*13) -> - | F30: =OFFSET('Precios finales '!AS129,0,($O$1-1)*13) -> - | G30: =OFFSET('Precios finales '!AT129,0,($O$1-1)*13) -> - | H30: =OFFSET('Precios finales '!AU129,0,($O$1-1)*13) -> - | I30: =OFFSET('Precios finales '!AV129,0,($O$1-1)*13) -> - | J30: =OFFSET('Precios finales '!AW129,0,($O$1-1)*13) -> - | K30: =OFFSET('Precios finales '!AX129,0,($O$1-1)*13) -> - | L30: =OFFSET('Precios finales '!AY129,0,($O$1-1)*13) -> - | M30: =OFFSET('Precios finales '!AZ129,0,($O$1-1)*13) -> - | N30: =OFFSET('Precios finales '!BA129,0,($O$1-1)*13) -> - | O30: =OFFSET('Precios finales '!BB129,0,($O$1-1)*13) -> 1666.5517
B31: Regulación secundaria | C31: =OFFSET('Precios finales '!AP130,0,($O$1-1)*13) -> 222.1399 | D31: =OFFSET('Precios finales '!AQ130,0,($O$1-1)*13) -> 188.1256 | E31: =OFFSET('Precios finales '!AR130,0,($O$1-1)*13) -> - | F31: =OFFSET('Precios finales '!AS130,0,($O$1-1)*13) -> - | G31: =OFFSET('Precios finales '!AT130,0,($O$1-1)*13) -> - | H31: =OFFSET('Precios finales '!AU130,0,($O$1-1)*13) -> - | I31: =OFFSET('Precios finales '!AV130,0,($O$1-1)*13) -> - | J31: =OFFSET('Precios finales '!AW130,0,($O$1-1)*13) -> - | K31: =OFFSET('Precios finales '!AX130,0,($O$1-1)*13) -> - | L31: =OFFSET('Precios finales '!AY130,0,($O$1-1)*13) -> - | M31: =OFFSET('Precios finales '!AZ130,0,($O$1-1)*13) -> - | N31: =OFFSET('Precios finales '!BA130,0,($O$1-1)*13) -> - | O31: =OFFSET('Precios finales '!BB130,0,($O$1-1)*13) -> 410.261679
B32: Regulación terciaria | C32: =OFFSET('Precios finales '!AP131,0,($O$1-1)*13) -> 435.0852 | D32: =OFFSET('Precios finales '!AQ131,0,($O$1-1)*13) -> 334.301 | E32: =OFFSET('Precios finales '!AR131,0,($O$1-1)*13) -> - | F32: =OFFSET('Precios finales '!AS131,0,($O$1-1)*13) -> - | G32: =OFFSET('Precios finales '!AT131,0,($O$1-1)*13) -> - | H32: =OFFSET('Precios finales '!AU131,0,($O$1-1)*13) -> - | I32: =OFFSET('Precios finales '!AV131,0,($O$1-1)*13) -> - | J32: =OFFSET('Precios finales '!AW131,0,($O$1-1)*13) -> - | K32: =OFFSET('Precios finales '!AX131,0,($O$1-1)*13) -> - | L32: =OFFSET('Precios finales '!AY131,0,($O$1-1)*13) -> - | M32: =OFFSET('Precios finales '!AZ131,0,($O$1-1)*13) -> - | N32: =OFFSET('Precios finales '!BA131,0,($O$1-1)*13) -> - | O32: =OFFSET('Precios finales '!BB131,0,($O$1-1)*13) -> 769.3862
B33: Gestión de desvíos | C33: =OFFSET('Precios finales '!AP132,0,($O$1-1)*13) -> 198.6034 | D33: =OFFSET('Precios finales '!AQ132,0,($O$1-1)*13) -> 142.4448 | E33: =OFFSET('Precios finales '!AR132,0,($O$1-1)*13) -> - | F33: =OFFSET('Precios finales '!AS132,0,($O$1-1)*13) -> - | G33: =OFFSET('Precios finales '!AT132,0,($O$1-1)*13) -> - | H33: =OFFSET('Precios finales '!AU132,0,($O$1-1)*13) -> - | I33: =OFFSET('Precios finales '!AV132,0,($O$1-1)*13) -> - | J33: =OFFSET('Precios finales '!AW132,0,($O$1-1)*13) -> - | K33: =OFFSET('Precios finales '!AX132,0,($O$1-1)*13) -> - | L33: =OFFSET('Precios finales '!AY132,0,($O$1-1)*13) -> - | M33: =OFFSET('Precios finales '!AZ132,0,($O$1-1)*13) -> - | N33: =OFFSET('Precios finales '!BA132,0,($O$1-1)*13) -> - | O33: =OFFSET('Precios finales '!BB132,0,($O$1-1)*13) -> 341.0482
B34: Restricciones en tiempo real | C34: =OFFSET('Precios finales '!AP133,0,($O$1-1)*13) -> 90.3079 | D34: =OFFSET('Precios finales '!AQ133,0,($O$1-1)*13) -> 118.4567 | E34: =OFFSET('Precios finales '!AR133,0,($O$1-1)*13) -> - | F34: =OFFSET('Precios finales '!AS133,0,($O$1-1)*13) -> - | G34: =OFFSET('Precios finales '!AT133,0,($O$1-1)*13) -> - | H34: =OFFSET('Precios finales '!AU133,0,($O$1-1)*13) -> - | I34: =OFFSET('Precios finales '!AV133,0,($O$1-1)*13) -> - | J34: =OFFSET('Precios finales '!AW133,0,($O$1-1)*13) -> - | K34: =OFFSET('Precios finales '!AX133,0,($O$1-1)*13) -> - | L34: =OFFSET('Precios finales '!AY133,0,($O$1-1)*13) -> - | M34: =OFFSET('Precios finales '!AZ133,0,($O$1-1)*13) -> - | N34: =OFFSET('Precios finales '!BA133,0,($O$1-1)*13) -> - | O34: =OFFSET('Precios finales '!BB133,0,($O$1-1)*13) -> 208.7646
B35: Volumen total de energía | C35: =SUM(C29:C34) -> 1681.1848 | D35: =SUM(D29:D34) -> 1714.8314 | E35: =SUM(E29:E34) -> 0 | F35: =SUM(F29:F34) -> 0 | G35: =SUM(G29:G34) -> 0 | H35: =SUM(H29:H34) -> 0 | I35: =SUM(I29:I34) -> 0 | J35: =SUM(J29:J34) -> 0 | K35: =SUM(K29:K34) -> 0 | L35: =SUM(L29:L34) -> 0 | M35: =SUM(M29:M34) -> 0 | N35: =SUM(N29:N34) -> 0 | O35: =SUM(O29:O34) -> 3396.012379

Sheet Energía gestionada SA anual
O1: 1
I4: Concepto
I5: Horizonte temporal
I6: Periodo
C8: =OFFSET('Precios finales '!F21,0,($O$1-1)*10) -> 2010 | D8: =OFFSET('Precios finales '!G21,0,($O$1-1)*10) -> 2011 | E8: =OFFSET('Precios finales '!H21,0,($O$1-1)*10) -> 2012 | F8: =OFFSET('Precios finales '!I21,0,($O$1-1)*10) -> 2013 | G8: =OFFSET('Precios finales '!J21,0,($O$1-1)*10) -> 2014 | H8: =OFFSET('Precios finales '!K21,0,($O$1-1)*10) -> 2015 | I8: =OFFSET('Precios finales '!L21,0,($O$1-1)*10) -> 2016 | J8: =OFFSET('Precios finales '!M21,0,($O$1-1)*10) -> 2017 | K8: =OFFSET('Precios finales '!N21,0,($O$1-1)*10) -> 2018 | L8: =OFFSET('Precios finales '!O21,0,($O$1-1)*10) -> 2019
C9: =OFFSET('Precios finales '!C22,0,($O$1-1)*10) -> 0 | D9: =OFFSET('Precios finales '!D22,0,($O$1-1)*10) -> 0 | E9: =OFFSET('Precios finales '!E22,0,($O$1-1)*10) -> 0 | F9: =OFFSET('Precios finales '!F22,0,($O$1-1)*10) -> 38.44 | G9: =OFFSET('Precios finales '!G22,0,($O$1-1)*10) -> 50.91 | H9: =OFFSET('Precios finales '!H22,0,($O$1-1)*10) -> 48.84 | I9: =OFFSET('Precios finales '!I22,0,($O$1-1)*10) -> 46.17 | J9: =OFFSET('Precios finales '!J22,0,($O$1-1)*10) -> 43.42 | K9: =OFFSET('Precios finales '!K22,0,($O$1-1)*10) -> 51.67 | L9: =OFFSET('Precios finales '!L22,0,($O$1-1)*10) -> 40.62
B10: Subir
B11: Restricciones garantía de suministro | C11: =OFFSET('Precios finales '!F139,0,($O$1-1)*10) -> - | D11: =OFFSET('Precios finales '!G139,0,($O$1-1)*10) -> 12773.1949 | E11: =OFFSET('Precios finales '!H139,0,($O$1-1)*10) -> 12008.1666 | F11: =OFFSET('Precios finales '!I139,0,($O$1-1)*10) -> 4085.3867 | G11: =OFFSET('Precios finales '!J139,0,($O$1-1)*10) -> 3259.8142 | H11: =OFFSET('Precios finales '!K139,0,($O$1-1)*10) -> - | I11: =OFFSET('Precios finales '!L139,0,($O$1-1)*10) -> - | J11: =OFFSET('Precios finales '!M139,0,($O$1-1)*10) -> - | K11: =OFFSET('Precios finales '!N139,0,($O$1-1)*10) -> - | L11: =OFFSET('Precios finales '!O139,0,($O$1-1)*10) -> -
B12: Restricciones técnicas al PBF | C12: =OFFSET('Precios finales '!F140,0,($O$1-1)*10) -> 12509.2726 | D12: =OFFSET('Precios finales '!G140,0,($O$1-1)*10) -> 9997.6438 | E12: =OFFSET('Precios finales '!H140,0,($O$1-1)*10) -> 6162.0611 | F12: =OFFSET('Precios finales '!I140,0,($O$1-1)*10) -> 7239.8015 | G12: =OFFSET('Precios finales '!J140,0,($O$1-1)*10) -> 9570.6136 | H12: =OFFSET('Precios finales '!K140,0,($O$1-1)*10) -> 6283.1513 | I12: =OFFSET('Precios finales '!L140,0,($O$1-1)*10) -> 11833.686 | J12: =OFFSET('Precios finales '!M140,0,($O$1-1)*10) -> 1596.3488 | K12: =OFFSET('Precios finales '!N140,0,($O$1-1)*10) -> - | L12: =OFFSET('Precios finales '!O140,0,($O$1-1)*10) -> -
B13: Regulación secundaria | C13: =OFFSET('Precios finales '!F141,0,($O$1-1)*10) -> 1165.09063 | D13: =OFFSET('Precios finales '!G141,0,($O$1-1)*10) -> 1212.507541 | E13: =OFFSET('Precios finales '!H141,0,($O$1-1)*10) -> 1510.36508 | F13: =OFFSET('Precios finales '!I141,0,($O$1-1)*10) -> 1805.627994 | G13: =OFFSET('Precios finales '!J141,0,($O$1-1)*10) -> 1746.015378 | H13: =OFFSET('Precios finales '!K141,0,($O$1-1)*10) -> 1366.304665 | I13: =OFFSET('Precios finales '!L141,0,($O$1-1)*10) -> 1529.977857 | J13: =OFFSET('Precios finales '!M141,0,($O$1-1)*10) -> 237.162199 | K13: =OFFSET('Precios finales '!N141,0,($O$1-1)*10) -> - | L13: =OFFSET('Precios finales '!O141,0,($O$1-1)*10) -> -
B14: Regulación terciaria | C14: =OFFSET('Precios finales '!F142,0,($O$1-1)*10) -> 2725.7446 | D14: =OFFSET('Precios finales '!G142,0,($O$1-1)*10) -> 2693.8277 | E14: =OFFSET('Precios finales '!H142,0,($O$1-1)*10) -> 2991.6152 | F14: =OFFSET('Precios finales '!I142,0,($O$1-1)*10) -> 3330.3062 | G14: =OFFSET('Precios finales '!J142,0,($O$1-1)*10) -> 3066.3833 | H14: =OFFSET('Precios finales '!K142,0,($O$1-1)*10) -> 3125.9391 | I14: =OFFSET('Precios finales '!L142,0,($O$1-1)*10) -> 2556.7548 | J14: =OFFSET('Precios finales '!M142,0,($O$1-1)*10) -> 400.4618 | K14: =OFFSET('Precios finales '!N142,0,($O$1-1)*10) -> - | L14: =OFFSET('Precios finales '!O142,0,($O$1-1)*10) -> -
B15: Gestión de desvíos | C15: =OFFSET('Precios finales '!F143,0,($O$1-1)*10) -> 2198.4272 | D15: =OFFSET('Precios finales '!G143,0,($O$1-1)*10) -> 1774.5753 | E15: =OFFSET('Precios finales '!H143,0,($O$1-1)*10) -> 2658.2959 | F15: =OFFSET('Precios finales '!I143,0,($O$1-1)*10) -> 2346.6759 | G15: =OFFSET('Precios finales '!J143,0,($O$1-1)*10) -> 1865.428 | H15: =OFFSET('Precios finales '!K143,0,($O$1-1)*10) -> 2214.2889 | I15: =OFFSET('Precios finales '!L143,0,($O$1-1)*10) -> 1183.2825 | J15: =OFFSET('Precios finales '!M143,0,($O$1-1)*10) -> 183.3685 | K15: =OFFSET('Precios finales '!N143,0,($O$1-1)*10) -> - | L15: =OFFSET('Precios finales '!O143,0,($O$1-1)*10) -> -
B16: Restricciones en tiempo real | C16: =OFFSET('Precios finales '!F144,0,($O$1-1)*10) -> 887.0243 | D16: =OFFSET('Precios finales '!G144,0,($O$1-1)*10) -> 657.3699 | E16: =OFFSET('Precios finales '!H144,0,($O$1-1)*10) -> 635.1718 | F16: =OFFSET('Precios finales '!I144,0,($O$1-1)*10) -> 558.3321 | G16: =OFFSET('Precios finales '!J144,0,($O$1-1)*10) -> 555.6357 | H16: =OFFSET('Precios finales '!K144,0,($O$1-1)*10) -> 518.8256 | I16: =OFFSET('Precios finales '!L144,0,($O$1-1)*10) -> 390.4507 | J16: =OFFSET('Precios finales '!M144,0,($O$1-1)*10) -> 56.823 | K16: =OFFSET('Precios finales '!N144,0,($O$1-1)*10) -> - | L16: =OFFSET('Precios finales '!O144,0,($O$1-1)*10) -> -
B17: Energía a subir | C17: =SUM(C11:C16) -> 19485.55933 | D17: =SUM(D11:D16) -> 29109.11914 | E17: 25965.67568 | F17: 19366.13039 | G17: 20063.89018 | H17: 13508.50957 | I17: 17494.15186 | J17: 2474.164299 | K17: 0 | L17: 0
B19: Bajar
B20: Restricciones garantía de suministro | C20: =OFFSET('Precios finales '!F147,0,($O$1-1)*10) -> - | D20: =OFFSET('Precios finales '!G147,0,($O$1-1)*10) -> - | E20: =OFFSET('Precios finales '!H147,0,($O$1-1)*10) -> - | F20: =OFFSET('Precios finales '!I147,0,($O$1-1)*10) -> - | G20: =OFFSET('Precios finales '!J147,0,($O$1-1)*10) -> - | H20: =OFFSET('Precios finales '!K147,0,($O$1-1)*10) -> - | I20: =OFFSET('Precios finales '!L147,0,($O$1-1)*10) -> - | J20: =OFFSET('Precios finales '!M147,0,($O$1-1)*10) -> - | K20: =OFFSET('Precios finales '!N147,0,($O$1-1)*10) -> - | L20: =OFFSET('Precios finales '!O147,0,($O$1-1)*10) -> -
B21: Restricciones técnicas al PBF | C21: =OFFSET('Precios finales '!F148,0,($O$1-1)*10) -> 446.6936 | D21: =OFFSET('Precios finales '!G148,0,($O$1-1)*10) -> 228.4256 | E21: =OFFSET('Precios finales '!H148,0,($O$1-1)*10) -> 60.8891 | F21: =OFFSET('Precios finales '!I148,0,($O$1-1)*10) -> 193.3481 | G21: =OFFSET('Precios finales '!J148,0,($O$1-1)*10) -> 110.357 | H21: =OFFSET('Precios finales '!K148,0,($O$1-1)*10) -> 178.1587 | I21: =OFFSET('Precios finales '!L148,0,($O$1-1)*10) -> 180.9111 | J21: =OFFSET('Precios finales '!M148,0,($O$1-1)*10) -> 70.2029 | K21: =OFFSET('Precios finales '!N148,0,($O$1-1)*10) -> - | L21: =OFFSET('Precios finales '!O148,0,($O$1-1)*10) -> -
B22: Regulación secundaria | C22: =OFFSET('Precios finales '!F149,0,($O$1-1)*10) -> 1723.829504 | D22: =OFFSET('Precios finales '!G149,0,($O$1-1)*10) -> 1514.341644 | E22: =OFFSET('Precios finales '!H149,0,($O$1-1)*10) -> 1262.416674 | F22: =OFFSET('Precios finales '!I149,0,($O$1-1)*10) -> 1070.322692 | G22: =OFFSET('Precios finales '!J149,0,($O$1-1)*10) -> 994.640484 | H22: =OFFSET('Precios finales '!K149,0,($O$1-1)*10) -> 1193.016203 | I22: =OFFSET('Precios finales '!L149,0,($O$1-1)*10) -> 1012.33132 | J22: =OFFSET('Precios finales '!M149,0,($O$1-1)*10) -> 173.09948 | K22: =OFFSET('Precios finales '!N149,0,($O$1-1)*10) -> - | L22: =OFFSET('Precios finales '!O149,0,($O$1-1)*10) -> -
B23: Regulación terciaria | C23: =OFFSET('Precios finales '!F150,0,($O$1-1)*10) -> 2982.6402 | D23: =OFFSET('Precios finales '!G150,0,($O$1-1)*10) -> 2804.8267 | E23: =OFFSET('Precios finales '!H150,0,($O$1-1)*10) -> 2330.193 | F23: =OFFSET('Precios finales '!I150,0,($O$1-1)*10) -> 1811.622 | G23: =OFFSET('Precios finales '!J150,0,($O$1-1)*10) -> 1765.2282 | H23: =OFFSET('Precios finales '!K150,0,($O$1-1)*10) -> 1626.5712 | I23: =OFFSET('Precios finales '!L150,0,($O$1-1)*10) -> 1553.3404 | J23: =OFFSET('Precios finales '!M150,0,($O$1-1)*10) -> 368.9244 | K23: =OFFSET('Precios finales '!N150,0,($O$1-1)*10) -> - | L23: =OFFSET('Precios finales '!O150,0,($O$1-1)*10) -> -
B24: Gestión de desvíos | C24: =OFFSET('Precios finales '!F151,0,($O$1-1)*10) -> 2674.5384 | D24: =OFFSET('Precios finales '!G151,0,($O$1-1)*10) -> 2238.4268 | E24: =OFFSET('Precios finales '!H151,0,($O$1-1)*10) -> 1231.8156 | F24: =OFFSET('Precios finales '!I151,0,($O$1-1)*10) -> 904.9999 | G24: =OFFSET('Precios finales '!J151,0,($O$1-1)*10) -> 571.4409 | H24: =OFFSET('Precios finales '!K151,0,($O$1-1)*10) -> 548.6064 | I24: =OFFSET('Precios finales '!L151,0,($O$1-1)*10) -> 465.095 | J24: =OFFSET('Precios finales '!M151,0,($O$1-1)*10) -> 157.6797 | K24: =OFFSET('Precios finales '!N151,0,($O$1-1)*10) -> - | L24: =OFFSET('Precios finales '!O151,0,($O$1-1)*10) -> -
B25: Restricciones en tiempo real | C25: =OFFSET('Precios finales '!F152,0,($O$1-1)*10) -> 900.8324 | D25: =OFFSET('Precios finales '!G152,0,($O$1-1)*10) -> 509.3206 | E25: =OFFSET('Precios finales '!H152,0,($O$1-1)*10) -> 483.8271 | F25: =OFFSET('Precios finales '!I152,0,($O$1-1)*10) -> 1701.4657 | G25: =OFFSET('Precios finales '!J152,0,($O$1-1)*10) -> 1274.0256 | H25: =OFFSET('Precios finales '!K152,0,($O$1-1)*10) -> 1151.572 | I25: =OFFSET('Precios finales '!L152,0,($O$1-1)*10) -> 645.1732 | J25: =OFFSET('Precios finales '!M152,0,($O$1-1)*10) -> 151.9416 | K25: =OFFSET('Precios finales '!N152,0,($O$1-1)*10) -> - | L25: =OFFSET('Precios finales '!O152,0,($O$1-1)*10) -> -
B26: Energía a Bajar | C26: =SUM(C20:C25) -> 8728.534104 | D26: =SUM(D20:D25) -> 7295.341344 | E26: 5369.141474 | F26: 5681.758392 | G26: 4715.692184 | H26: 4697.924503 | I26: 3856.85102 | J26: 921.84808 | K26: 0 | L26: 0
B28: Volumen
B29: Restricciones garantía de suministro | C29: =OFFSET('Precios finales '!F155,0,($O$1-1)*10) -> - | D29: =OFFSET('Precios finales '!G155,0,($O$1-1)*10) -> 12773.1949 | E29: =OFFSET('Precios finales '!H155,0,($O$1-1)*10) -> 12008.1666 | F29: =OFFSET('Precios finales '!I155,0,($O$1-1)*10) -> 4085.3867 | G29: =OFFSET('Precios finales '!J155,0,($O$1-1)*10) -> 3259.8142 | H29: =OFFSET('Precios finales '!K155,0,($O$1-1)*10) -> - | I29: =OFFSET('Precios finales '!L155,0,($O$1-1)*10) -> - | J29: =OFFSET('Precios finales '!M155,0,($O$1-1)*10) -> - | K29: =OFFSET('Precios finales '!N155,0,($O$1-1)*10) -> - | L29: =OFFSET('Precios finales '!O155,0,($O$1-1)*10) -> -
B30: Restricciones técnicas al PBF | C30: =OFFSET('Precios finales '!F156,0,($O$1-1)*10) -> 12955.9662 | D30: =OFFSET('Precios finales '!G156,0,($O$1-1)*10) -> 10226.0694 | E30: =OFFSET('Precios finales '!H156,0,($O$1-1)*10) -> 6222.9502 | F30: =OFFSET('Precios finales '!I156,0,($O$1-1)*10) -> 7433.1496 | G30: =OFFSET('Precios finales '!J156,0,($O$1-1)*10) -> 9680.9706 | H30: =OFFSET('Precios finales '!K156,0,($O$1-1)*10) -> 6461.31 | I30: =OFFSET('Precios finales '!L156,0,($O$1-1)*10) -> 12014.5971 | J30: =OFFSET('Precios finales '!M156,0,($O$1-1)*10) -> 1666.5517 | K30: =OFFSET('Precios finales '!N156,0,($O$1-1)*10) -> - | L30: =OFFSET('Precios finales '!O156,0,($O$1-1)*10) -> -
B31: Regulación secundaria | C31: =OFFSET('Precios finales '!F157,0,($O$1-1)*10) -> 2888.920134 | D31: =OFFSET('Precios finales '!G157,0,($O$1-1)*10) -> 2726.849185 | E31: =OFFSET('Precios finales '!H157,0,($O$1-1)*10) -> 2772.781754 | F31: =OFFSET('Precios finales '!I157,0,($O$1-1)*10) -> 2875.950686 | G31: =OFFSET('Precios finales '!J157,0,($O$1-1)*10) -> 2740.655862 | H31: =OFFSET('Precios finales '!K157,0,($O$1-1)*10) -> 2559.320868 | I31: =OFFSET('Precios finales '!L157,0,($O$1-1)*10) -> 2542.309177 | J31: =OFFSET('Precios finales '!M157,0,($O$1-1)*10) -> 410.261679 | K31: =OFFSET('Precios finales '!N157,0,($O$1-1)*10) -> - | L31: =OFFSET('Precios finales '!O157,0,($O$1-1)*10) -> -
B32: Regulación terciaria | C32: =OFFSET('Precios finales '!F158,0,($O$1-1)*10) -> 5708.3848 | D32: =OFFSET('Precios finales '!G158,0,($O$1-1)*10) -> 5498.6544 | E32: =OFFSET('Precios finales '!H158,0,($O$1-1)*10) -> 5321.8082 | F32: =OFFSET('Precios finales '!I158,0,($O$1-1)*10) -> 5141.9282 | G32: =OFFSET('Precios finales '!J158,0,($O$1-1)*10) -> 4831.6115 | H32: =OFFSET('Precios finales '!K158,0,($O$1-1)*10) -> 4752.5103 | I32: =OFFSET('Precios finales '!L158,0,($O$1-1)*10) -> 4110.0952 | J32: =OFFSET('Precios finales '!M158,0,($O$1-1)*10) -> 769.3862 | K32: =OFFSET('Precios finales '!N158,0,($O$1-1)*10) -> - | L32: =OFFSET('Precios finales '!O158,0,($O$1-1)*10) -> -
B33: Gestión de desvíos | C33: =OFFSET('Precios finales '!F159,0,($O$1-1)*10) -> 4872.9656 | D33: =OFFSET('Precios finales '!G159,0,($O$1-1)*10) -> 4013.0021 | E33: =OFFSET('Precios finales '!H159,0,($O$1-1)*10) -> 3890.1115 | F33: =OFFSET('Precios finales '!I159,0,($O$1-1)*10) -> 3251.6758 | G33: =OFFSET('Precios finales '!J159,0,($O$1-1)*10) -> 2436.8689 | H33: =OFFSET('Precios finales '!K159,0,($O$1-1)*10) -> 2762.8953 | I33: =OFFSET('Precios finales '!L159,0,($O$1-1)*10) -> 1648.3775 | J33: =OFFSET('Precios finales '!M159,0,($O$1-1)*10) -> 341.0482 | K33: =OFFSET('Precios finales '!N159,0,($O$1-1)*10) -> - | L33: =OFFSET('Precios finales '!O159,0,($O$1-1)*10) -> -
B34: Restricciones en tiempo real | C34: =OFFSET('Precios finales '!F160,0,($O$1-1)*10) -> 1787.8567 | D34: =OFFSET('Precios finales '!G160,0,($O$1-1)*10) -> 1166.6905 | E34: =OFFSET('Precios finales '!H160,0,($O$1-1)*10) -> 1118.9989 | F34: =OFFSET('Precios finales '!I160,0,($O$1-1)*10) -> 2259.7978 | G34: =OFFSET('Precios finales '!J160,0,($O$1-1)*10) -> 1829.6613 | H34: =OFFSET('Precios finales '!K160,0,($O$1-1)*10) -> 1670.3976 | I34: =OFFSET('Precios finales '!L160,0,($O$1-1)*10) -> 1035.6239 | J34: =OFFSET('Precios finales '!M160,0,($O$1-1)*10) -> 208.7646 | K34: =OFFSET('Precios finales '!N160,0,($O$1-1)*10) -> - | L34: =OFFSET('Precios finales '!O160,0,($O$1-1)*10) -> -
B35: Volumen total de energía | C35: =SUM(C29:C34) -> 28214.09343 | D35: =SUM(D29:D34) -> 36404.46048 | E35: 31334.81715 | F35: 25047.88879 | G35: 24779.58236 | H35: 18206.43407 | I35: 21351.00288 | J35: 3396.012379 | K35: 0 | L35: 0

Sheet Restricciones PBF mensual
O1: 8
L4: Concepto
L5: Horizonte temporal
L6: Periodo
C8: Ene. | D8: Feb. | E8: Mar. | F8: Abr. | G8: May. | H8: Jun. | I8: Jul. | J8: Ago. | K8: Sep. | L8: Oct. | M8: Nov. | N8: Dic. | O8: =OFFSET(Año!B2,($O$1-1),0) -> 2017
B10: Energía a subir fase I (GWh) | C10: =OFFSET('Precios finales '!AP41,0,($O$1-1)*13) -> 731.8852 | D10: =OFFSET('Precios finales '!AQ41,0,($O$1-1)*13) -> 864.4636 | E10: =OFFSET('Precios finales '!AR41,0,($O$1-1)*13) -> - | F10: =OFFSET('Precios finales '!AS41,0,($O$1-1)*13) -> - | G10: =OFFSET('Precios finales '!AT41,0,($O$1-1)*13) -> - | H10: =OFFSET('Precios finales '!AU41,0,($O$1-1)*13) -> - | I10: =OFFSET('Precios finales '!AV41,0,($O$1-1)*13) -> - | J10: =OFFSET('Precios finales '!AW41,0,($O$1-1)*13) -> - | K10: =OFFSET('Precios finales '!AX41,0,($O$1-1)*13) -> - | L10: =OFFSET('Precios finales '!AY41,0,($O$1-1)*13) -> - | M10: =OFFSET('Precios finales '!AZ41,0,($O$1-1)*13) -> - | N10: =OFFSET('Precios finales '!BA41,0,($O$1-1)*13) -> - | O10: =OFFSET('Precios finales '!BB41,0,($O$1-1)*13) -> 1596.3488
B11: Precio a subir (€/MWh) | C11: =OFFSET('Precios finales '!AP43,0,($O$1-1)*13) -> 114.1208055 | D11: =OFFSET('Precios finales '!AQ43,0,($O$1-1)*13) -> 92.0844512 | E11: =OFFSET('Precios finales '!AR43,0,($O$1-1)*13) -> - | F11: =OFFSET('Precios finales '!AS43,0,($O$1-1)*13) -> - | G11: =OFFSET('Precios finales '!AT43,0,($O$1-1)*13) -> - | H11: =OFFSET('Precios finales '!AU43,0,($O$1-1)*13) -> - | I11: =OFFSET('Precios finales '!AV43,0,($O$1-1)*13) -> - | J11: =OFFSET('Precios finales '!AW43,0,($O$1-1)*13) -> - | K11: =OFFSET('Precios finales '!AX43,0,($O$1-1)*13) -> - | L11: =OFFSET('Precios finales '!AY43,0,($O$1-1)*13) -> - | M11: =OFFSET('Precios finales '!AZ43,0,($O$1-1)*13) -> - | N11: =OFFSET('Precios finales '!BA43,0,($O$1-1)*13) -> - | O11: =OFFSET('Precios finales '!BB43,0,($O$1-1)*13) -> 102.1879312
B13: Energía a bajar fase I (GWh) | C13: =OFFSET('Precios finales '!AP42,0,($O$1-1)*13) -> 3.1632 | D13: =OFFSET('Precios finales '!AQ42,0,($O$1-1)*13) -> 67.0397 | E13: =OFFSET('Precios finales '!AR42,0,($O$1-1)*13) -> - | F13: =OFFSET('Precios finales '!AS42,0,($O$1-1)*13) -> - | G13: =OFFSET('Precios finales '!AT42,0,($O$1-1)*13) -> - | H13: =OFFSET('Precios finales '!AU42,0,($O$1-1)*13) -> - | I13: =OFFSET('Precios finales '!AV42,0,($O$1-1)*13) -> - | J13: =OFFSET('Precios finales '!AW42,0,($O$1-1)*13) -> - | K13: =OFFSET('Precios finales '!AX42,0,($O$1-1)*13) -> - | L13: =OFFSET('Precios finales '!AY42,0,($O$1-1)*13) -> - | M13: =OFFSET('Precios finales '!AZ42,0,($O$1-1)*13) -> - | N13: =OFFSET('Precios finales '!BA42,0,($O$1-1)*13) -> - | O13: =OFFSET('Precios finales '!BB42,0,($O$1-1)*13) -> 70.2029
B14: Precio a bajar (€/MWh) | C14: =OFFSET('Precios finales '!AP44,0,($O$1-1)*13) -> 19.84042446 | D14: =OFFSET('Precios finales '!AQ44,0,($O$1-1)*13) -> 15.12506532 | E14: =OFFSET('Precios finales '!AR44,0,($O$1-1)*13) -> - | F14: =OFFSET('Precios finales '!AS44,0,($O$1-1)*13) -> - | G14: =OFFSET('Precios finales '!AT44,0,($O$1-1)*13) -> - | H14: =OFFSET('Precios finales '!AU44,0,($O$1-1)*13) -> - | I14: =OFFSET('Precios finales '!AV44,0,($O$1-1)*13) -> - | J14: =OFFSET('Precios finales '!AW44,0,($O$1-1)*13) -> - | K14: =OFFSET('Precios finales '!AX44,0,($O$1-1)*13) -> - | L14: =OFFSET('Precios finales '!AY44,0,($O$1-1)*13) -> - | M14: =OFFSET('Precios finales '!AZ44,0,($O$1-1)*13) -> - | N14: =OFFSET('Precios finales '!BA44,0,($O$1-1)*13) -> - | O14: =OFFSET('Precios finales '!BB44,0,($O$1-1)*13) -> 57.88332883

Sheet Restricciones PBF anual
O1: 1
I4: Concepto
I5: Horizonte temporal
I6: Periodo
C8: =OFFSET('Precios finales '!F47,0,($O$1-1)*10) -> 2010 | D8: =OFFSET('Precios finales '!G21,0,($O$1-1)*10) -> 2011 | E8: =OFFSET('Precios finales '!H21,0,($O$1-1)*10) -> 2012 | F8: =OFFSET('Precios finales '!I21,0,($O$1-1)*10) -> 2013 | G8: =OFFSET('Precios finales '!J21,0,($O$1-1)*10) -> 2014 | H8: =OFFSET('Precios finales '!K21,0,($O$1-1)*10) -> 2015 | I8: =OFFSET('Precios finales '!L21,0,($O$1-1)*10) -> 2016 | J8: =OFFSET('Precios finales '!M21,0,($O$1-1)*10) -> 2017 | K8: =OFFSET('Precios finales '!N21,0,($O$1-1)*10) -> 2018 | L8: =OFFSET('Precios finales '!O21,0,($O$1-1)*10) -> 2019
C9: =OFFSET('Precios finales '!C22,0,($O$1-1)*10) -> 0
B10: Energía a subir fase I (GWh) | C10: =OFFSET('Precios finales '!F48,0,($O$1-1)*10) -> 12509.2726 | D10: =OFFSET('Precios finales '!G48,0,($O$1-1)*10) -> 9997.6438 | E10: =OFFSET('Precios finales '!H48,0,($O$1-1)*10) -> 6162.0611 | F10: =OFFSET('Precios finales '!I48,0,($O$1-1)*10) -> 7239.8015 | G10: =OFFSET('Precios finales '!J48,0,($O$1-1)*10) -> 9570.6136 | H10: =OFFSET('Precios finales '!K48,0,($O$1-1)*10) -> 6283.1513 | I10: =OFFSET('Precios finales '!L48,0,($O$1-1)*10) -> 11833.686 | J10: =OFFSET('Precios finales '!M48,0,($O$1-1)*10) -> 1596.3488 | K10: =OFFSET('Precios finales '!N48,0,($O$1-1)*10) -> - | L10: =OFFSET('Precios finales '!O48,0,($O$1-1)*10) -> -
B11: Precio a subir (€/MWh) | C11: =OFFSET('Precios finales '!F50,0,($O$1-1)*10) -> 80.49792412 | D11: =OFFSET('Precios finales '!G50,0,($O$1-1)*10) -> 94.11184696 | E11: =OFFSET('Precios finales '!H50,0,($O$1-1)*10) -> 129.9352769 | F11: =OFFSET('Precios finales '!I50,0,($O$1-1)*10) -> 127.399839 | G11: =OFFSET('Precios finales '!J50,0,($O$1-1)*10) -> 117.6244868 | H11: =OFFSET('Precios finales '!K50,0,($O$1-1)*10) -> 155.9838376 | I11: =OFFSET('Precios finales '!L50,0,($O$1-1)*10) -> 78.86918955 | J11: =OFFSET('Precios finales '!M50,0,($O$1-1)*10) -> 102.1879312 | K11: =OFFSET('Precios finales '!N50,0,($O$1-1)*10) -> - | L11: =OFFSET('Precios finales '!O50,0,($O$1-1)*10) -> -
B13: Energía a bajar fase I (GWh) | C13: =OFFSET('Precios finales '!F49,0,($O$1-1)*10) -> 446.6936 | D13: =OFFSET('Precios finales '!G49,0,($O$1-1)*10) -> 228.4256 | E13: =OFFSET('Precios finales '!H49,0,($O$1-1)*10) -> 60.8891 | F13: =OFFSET('Precios finales '!I49,0,($O$1-1)*10) -> 193.3481 | G13: =OFFSET('Precios finales '!J49,0,($O$1-1)*10) -> 110.357 | H13: =OFFSET('Precios finales '!K49,0,($O$1-1)*10) -> 178.1587 | I13: =OFFSET('Precios finales '!L49,0,($O$1-1)*10) -> 180.9111 | J13: =OFFSET('Precios finales '!M49,0,($O$1-1)*10) -> 70.2029 | K13: =OFFSET('Precios finales '!N49,0,($O$1-1)*10) -> - | L13: =OFFSET('Precios finales '!O49,0,($O$1-1)*10) -> -
B14: Precio a bajar (€/MWh) | C14: =OFFSET('Precios finales '!F51,0,($O$1-1)*10) -> 32.41921309 | D14: =OFFSET('Precios finales '!G51,0,($O$1-1)*10) -> 46.71754011 | E14: =OFFSET('Precios finales '!H51,0,($O$1-1)*10) -> 44.36393489 | F14: =OFFSET('Precios finales '!I51,0,($O$1-1)*10) -> 32.8802697 | G14: =OFFSET('Precios finales '!J51,0,($O$1-1)*10) -> 32.5372 | H14: =OFFSET('Precios finales '!K51,0,($O$1-1)*10) -> 44.86863748 | I14: =OFFSET('Precios finales '!L51,0,($O$1-1)*10) -> 35.16908657 | J14: =OFFSET('Precios finales '!M51,0,($O$1-1)*10) -> 57.88332883 | K14: =OFFSET('Precios finales '!N51,0,($O$1-1)*10) -> - | L14: =OFFSET('Precios finales '!O51,0,($O$1-1)*10) -> -

Sheet Regulación secundaria mensual
O1: 8
L4: Concepto
L5: Horizonte temporal
L6: Periodo
C8: Ene. | D8: Feb. | E8: Mar. | F8: Abr. | G8: May. | H8: Jun. | I8: Jul. | J8: Ago. | K8: Sep. | L8: Oct. | M8: Nov. | N8: Dic. | O8: =OFFSET(Año!B2,($O$1-1),0) -> 2017
B10: Energía a subir (GWh) | C10: =OFFSET('Precios finales '!AP55,0,($O$1-1)*13) -> 114.0994 | D10: =OFFSET('Precios finales '!AQ55,0,($O$1-1)*13) -> 123.0622 | E10: =OFFSET('Precios finales '!AR55,0,($O$1-1)*13) -> - | F10: =OFFSET('Precios finales '!AS55,0,($O$1-1)*13) -> - | G10: =OFFSET('Precios finales '!AT55,0,($O$1-1)*13) -> - | H10: =OFFSET('Precios finales '!AU55,0,($O$1-1)*13) -> - | I10: =OFFSET('Precios finales '!AV55,0,($O$1-1)*13) -> - | J10: =OFFSET('Precios finales '!AW55,0,($O$1-1)*13) -> - | K10: =OFFSET('Precios finales '!AX55,0,($O$1-1)*13) -> - | L10: =OFFSET('Precios finales '!AY55,0,($O$1-1)*13) -> - | M10: =OFFSET('Precios finales '!AZ55,0,($O$1-1)*13) -> - | N10: =OFFSET('Precios finales '!BA55,0,($O$1-1)*13) -> - | O10: =OFFSET('Precios finales '!BB55,0,($O$1-1)*13) -> 237.162199
B11: Precio a subir (€/MWh) | C11: =OFFSET('Precios finales '!AP57,0,($O$1-1)*13) -> 75.30717304 | D11: =OFFSET('Precios finales '!AQ57,0,($O$1-1)*13) -> 56.12176929 | E11: =OFFSET('Precios finales '!AR57,0,($O$1-1)*13) -> - | F11: =OFFSET('Precios finales '!AS57,0,($O$1-1)*13) -> - | G11: =OFFSET('Precios finales '!AT57,0,($O$1-1)*13) -> - | H11: =OFFSET('Precios finales '!AU57,0,($O$1-1)*13) -> - | I11: =OFFSET('Precios finales '!AV57,0,($O$1-1)*13) -> - | J11: =OFFSET('Precios finales '!AW57,0,($O$1-1)*13) -> - | K11: =OFFSET('Precios finales '!AX57,0,($O$1-1)*13) -> - | L11: =OFFSET('Precios finales '!AY57,0,($O$1-1)*13) -> - | M11: =OFFSET('Precios finales '!AZ57,0,($O$1-1)*13) -> - | N11: =OFFSET('Precios finales '!BA57,0,($O$1-1)*13) -> - | O11: =OFFSET('Precios finales '!BB57,0,($O$1-1)*13) -> 65.3518566
B13: Energía a bajar (GWh) | C13: =OFFSET('Precios finales '!AP56,0,($O$1-1)*13) -> 108.0405 | D13: =OFFSET('Precios finales '!AQ56,0,($O$1-1)*13) -> 65.0634 | E13: =OFFSET('Precios finales '!AR56,0,($O$1-1)*13) -> - | F13: =OFFSET('Precios finales '!AS56,0,($O$1-1)*13) -> - | G13: =OFFSET('Precios finales '!AT56,0,($O$1-1)*13) -> - | H13: =OFFSET('Precios finales '!AU56,0,($O$1-1)*13) -> - | I13: =OFFSET('Precios finales '!AV56,0,($O$1-1)*13) -> - | J13: =OFFSET('Precios finales '!AW56,0,($O$1-1)*13) -> - | K13: =OFFSET('Precios finales '!AX56,0,($O$1-1)*13) -> - | L13: =OFFSET('Precios finales '!AY56,0,($O$1-1)*13) -> - | M13: =OFFSET('Precios finales '!AZ56,0,($O$1-1)*13) -> - | N13: =OFFSET('Precios finales '!BA56,0,($O$1-1)*13) -> - | O13: =OFFSET('Precios finales '!BB56,0,($O$1-1)*13) -> 173.09948
B14: Precio a bajar (€/MWh) | C14: =OFFSET('Precios finales '!AP58,0,($O$1-1)*13) -> 65.80000178 | D14: =OFFSET('Precios finales '!AQ58,0,($O$1-1)*13) -> 39.8691004 | E14: =OFFSET('Precios finales '!AR58,0,($O$1-1)*13) -> - | F14: =OFFSET('Precios finales '!AS58,0,($O$1-1)*13) -> - | G14: =OFFSET('Precios finales '!AT58,0,($O$1-1)*13) -> - | H14: =OFFSET('Precios finales '!AU58,0,($O$1-1)*13) -> - | I14: =OFFSET('Precios finales '!AV58,0,($O$1-1)*13) -> - | J14: =OFFSET('Precios finales '!AW58,0,($O$1-1)*13) -> - | K14: =OFFSET('Precios finales '!AX58,0,($O$1-1)*13) -> - | L14: =OFFSET('Precios finales '!AY58,0,($O$1-1)*13) -> - | M14: =OFFSET('Precios finales '!AZ58,0,($O$1-1)*13) -> - | N14: =OFFSET('Precios finales '!BA58,0,($O$1-1)*13) -> - | O14: =OFFSET('Precios finales '!BB58,0,($O$1-1)*13) -> 56.0540841

Sheet Regulación secundaria anual
O1: 1
I4: Concepto
I5: Horizonte temporal
I6: Periodo
C8: =OFFSET('Precios finales '!F47,0,($O$1-1)*10) -> 2010 | D8: =OFFSET('Precios finales '!G21,0,($O$1-1)*10) -> 2011 | E8: =OFFSET('Precios finales '!H21,0,($O$1-1)*10) -> 2012 | F8: =OFFSET('Precios finales '!I21,0,($O$1-1)*10) -> 2013 | G8: =OFFSET('Precios finales '!J21,0,($O$1-1)*10) -> 2014 | H8: =OFFSET('Precios finales '!K21,0,($O$1-1)*10) -> 2015 | I8: =OFFSET('Precios finales '!L21,0,($O$1-1)*10) -> 2016 | J8: =OFFSET('Precios finales '!M21,0,($O$1-1)*10) -> 2017 | K8: =OFFSET('Precios finales '!N21,0,($O$1-1)*10) -> 2018 | L8: =OFFSET('Precios finales '!O21,0,($O$1-1)*10) -> 2019
C9: =OFFSET('Precios finales '!C22,0,($O$1-1)*10) -> 0
B10: Energía a subir (GWh) | C10: =OFFSET('Precios finales '!F62,0,($O$1-1)*10) -> 1165.09063 | D10: =OFFSET('Precios finales '!G62,0,($O$1-1)*10) -> 1212.507541 | E10: =OFFSET('Precios finales '!H62,0,($O$1-1)*10) -> 1510.36508 | F10: =OFFSET('Precios finales '!I62,0,($O$1-1)*10) -> 1805.627994 | G10: =OFFSET('Precios finales '!J62,0,($O$1-1)*10) -> 1746.015378 | H10: =OFFSET('Precios finales '!K62,0,($O$1-1)*10) -> 1366.304665 | I10: =OFFSET('Precios finales '!L62,0,($O$1-1)*10) -> 1529.977857 | J10: =OFFSET('Precios finales '!M62,0,($O$1-1)*10) -> 237.162199 | K10: =OFFSET('Precios finales '!N62,0,($O$1-1)*10) -> - | L10: =OFFSET('Precios finales '!O62,0,($O$1-1)*10) -> -
B11: Precio a subir (€/MWh) | C11: =OFFSET('Precios finales '!F64,0,($O$1-1)*10) -> 40.36460357 | D11: =OFFSET('Precios finales '!G64,0,($O$1-1)*10) -> 51.57979881 | E11: =OFFSET('Precios finales '!H64,0,($O$1-1)*10) -> 50.97878464 | F11: =OFFSET('Precios finales '!I64,0,($O$1-1)*10) -> 50.54609862 | G11: =OFFSET('Precios finales '!J64,0,($O$1-1)*10) -> 45.35476849 | H11: =OFFSET('Precios finales '!K64,0,($O$1-1)*10) -> 53.73162437 | I11: =OFFSET('Precios finales '!L64,0,($O$1-1)*10) -> 43.03100645 | J11: =OFFSET('Precios finales '!M64,0,($O$1-1)*10) -> 65.3518566 | K11: =OFFSET('Precios finales '!N64,0,($O$1-1)*10) -> - | L11: =OFFSET('Precios finales '!O64,0,($O$1-1)*10) -> -
B13: Energía a bajar (GWh) | C13: =OFFSET('Precios finales '!F63,0,($O$1-1)*10) -> 1723.829504 | D13: =OFFSET('Precios finales '!G63,0,($O$1-1)*10) -> 1514.341644 | E13: =OFFSET('Precios finales '!H63,0,($O$1-1)*10) -> 1262.416674 | F13: =OFFSET('Precios finales '!I63,0,($O$1-1)*10) -> 1070.322692 | G13: =OFFSET('Precios finales '!J63,0,($O$1-1)*10) -> 994.640484 | H13: =OFFSET('Precios finales '!K63,0,($O$1-1)*10) -> 1193.016203 | I13: =OFFSET('Precios finales '!L63,0,($O$1-1)*10) -> 1012.33132 | J13: =OFFSET('Precios finales '!M63,0,($O$1-1)*10) -> 173.09948 | K13: =OFFSET('Precios finales '!N63,0,($O$1-1)*10) -> - | L13: =OFFSET('Precios finales '!O63,0,($O$1-1)*10) -> -
B14: Precio a bajar (€/MWh) | C14: =OFFSET('Precios finales '!F65,0,($O$1-1)*10) -> 24.68443616 | D14: =OFFSET('Precios finales '!G65,0,($O$1-1)*10) -> 33.32316954 | E14: =OFFSET('Precios finales '!H65,0,($O$1-1)*10) -> 32.8599998 | F14: =OFFSET('Precios finales '!I65,0,($O$1-1)*10) -> 28.65536121 | G14: =OFFSET('Precios finales '!J65,0,($O$1-1)*10) -> 31.61362137 | H14: =OFFSET('Precios finales '!K65,0,($O$1-1)*10) -> 38.47668718 | I14: =OFFSET('Precios finales '!L65,0,($O$1-1)*10) -> 32.39062527 | J14: =OFFSET('Precios finales '!M65,0,($O$1-1)*10) -> 56.0540841 | K14: =OFFSET('Precios finales '!N65,0,($O$1-1)*10) -> - | L14: =OFFSET('Precios finales '!O65,0,($O$1-1)*10) -> -

Sheet Regulación terciaria mensual
O1: 8
L4: Concepto
L5: Horizonte temporal
L6: Periodo
C8: Ene. | D8: Feb. | E8: Mar. | F8: Abr. | G8: May. | H8: Jun. | I8: Jul. | J8: Ago. | K8: Sep. | L8: Oct. | M8: Nov. | N8: Dic. | O8: =OFFSET(Año!B2,($O$1-1),0) -> 2017
B10: Energía a subir (GWh) | C10: =OFFSET('Precios finales '!AP69,0,($O$1-1)*13) -> 289.6221 | D10: =OFFSET('Precios finales '!AQ69,0,($O$1-1)*13) -> 110.8397 | E10: =OFFSET('Precios finales '!AR69,0,($O$1-1)*13) -> - | F10: =OFFSET('Precios finales '!AS69,0,($O$1-1)*13) -> - | G10: =OFFSET('Precios finales '!AT69,0,($O$1-1)*13) -> - | H10: =OFFSET('Precios finales '!AU69,0,($O$1-1)*13) -> - | I10: =OFFSET('Precios finales '!AV69,0,($O$1-1)*13) -> - | J10: =OFFSET('Precios finales '!AW69,0,($O$1-1)*13) -> - | K10: =OFFSET('Precios finales '!AX69,0,($O$1-1)*13) -> - | L10: =OFFSET('Precios finales '!AY69,0,($O$1-1)*13) -> - | M10: =OFFSET('Precios finales '!AZ69,0,($O$1-1)*13) -> - | N10: =OFFSET('Precios finales '!BA69,0,($O$1-1)*13) -> - | O10: =OFFSET('Precios finales '!BB69,0,($O$1-1)*13) -> 400.4618
B11: Precio a subir (€/MWh) | C11: =OFFSET('Precios finales '!AP71,0,($O$1-1)*13) -> 86.02206838 | D11: =OFFSET('Precios finales '!AQ71,0,($O$1-1)*13) -> 68.2725002 | E11: =OFFSET('Precios finales '!AR71,0,($O$1-1)*13) -> - | F11: =OFFSET('Precios finales '!AS71,0,($O$1-1)*13) -> - | G11: =OFFSET('Precios finales '!AT71,0,($O$1-1)*13) -> - | H11: =OFFSET('Precios finales '!AU71,0,($O$1-1)*13) -> - | I11: =OFFSET('Precios finales '!AV71,0,($O$1-1)*13) -> - | J11: =OFFSET('Precios finales '!AW71,0,($O$1-1)*13) -> - | K11: =OFFSET('Precios finales '!AX71,0,($O$1-1)*13) -> - | L11: =OFFSET('Precios finales '!AY71,0,($O$1-1)*13) -> - | M11: =OFFSET('Precios finales '!AZ71,0,($O$1-1)*13) -> - | N11: =OFFSET('Precios finales '!BA71,0,($O$1-1)*13) -> - | O11: =OFFSET('Precios finales '!BB71,0,($O$1-1)*13) -> 81.10934808
B13: Energía a bajar (GWh) | C13: =OFFSET('Precios finales '!AP70,0,($O$1-1)*13) -> 145.4631 | D13: =OFFSET('Precios finales '!AQ70,0,($O$1-1)*13) -> 223.4613 | E13: =OFFSET('Precios finales '!AR70,0,($O$1-1)*13) -> - | F13: =OFFSET('Precios finales '!AS70,0,($O$1-1)*13) -> - | G13: =OFFSET('Precios finales '!AT70,0,($O$1-1)*13) -> - | H13: =OFFSET('Precios finales '!AU70,0,($O$1-1)*13) -> - | I13: =OFFSET('Precios finales '!AV70,0,($O$1-1)*13) -> - | J13: =OFFSET('Precios finales '!AW70,0,($O$1-1)*13) -> - | K13: =OFFSET('Precios finales '!AX70,0,($O$1-1)*13) -> - | L13: =OFFSET('Precios finales '!AY70,0,($O$1-1)*13) -> - | M13: =OFFSET('Precios finales '!AZ70,0,($O$1-1)*13) -> - | N13: =OFFSET('Precios finales '!BA70,0,($O$1-1)*13) -> - | O13: =OFFSET('Precios finales '!BB70,0,($O$1-1)*13) -> 368.9244
B14: Precio a bajar (€/MWh) | C14: =OFFSET('Precios finales '!AP72,0,($O$1-1)*13) -> 51.36483424 | D14: =OFFSET('Precios finales '!AQ72,0,($O$1-1)*13) -> 28.5257611 | E14: =OFFSET('Precios finales '!AR72,0,($O$1-1)*13) -> - | F14: =OFFSET('Precios finales '!AS72,0,($O$1-1)*13) -> - | G14: =OFFSET('Precios finales '!AT72,0,($O$1-1)*13) -> - | H14: =OFFSET('Precios finales '!AU72,0,($O$1-1)*13) -> - | I14: =OFFSET('Precios finales '!AV72,0,($O$1-1)*13) -> - | J14: =OFFSET('Precios finales '!AW72,0,($O$1-1)*13) -> - | K14: =OFFSET('Precios finales '!AX72,0,($O$1-1)*13) -> - | L14: =OFFSET('Precios finales '!AY72,0,($O$1-1)*13) -> - | M14: =OFFSET('Precios finales '!AZ72,0,($O$1-1)*13) -> - | N14: =OFFSET('Precios finales '!BA72,0,($O$1-1)*13) -> - | O14: =OFFSET('Precios finales '!BB72,0,($O$1-1)*13) -> 37.53097296

Sheet Regulación terciaria anual
O1: 1
I4: Concepto
I5: Horizonte temporal
I6: Periodo
C8: =OFFSET('Precios finales '!F47,0,($O$1-1)*10) -> 2010 | D8: =OFFSET('Precios finales '!G21,0,($O$1-1)*10) -> 2011 | E8: =OFFSET('Precios finales '!H21,0,($O$1-1)*10) -> 2012 | F8: =OFFSET('Precios finales '!I21,0,($O$1-1)*10) -> 2013 | G8: =OFFSET('Precios finales '!J21,0,($O$1-1)*10) -> 2014 | H8: =OFFSET('Precios finales '!K21,0,($O$1-1)*10) -> 2015 | I8: =OFFSET('Precios finales '!L21,0,($O$1-1)*10) -> 2016 | J8: =OFFSET('Precios finales '!M21,0,($O$1-1)*10) -> 2017 | K8: =OFFSET('Precios finales '!N21,0,($O$1-1)*10) -> 2018 | L8: =OFFSET('Precios finales '!O21,0,($O$1-1)*10) -> 2019
C9: =OFFSET('Precios finales '!C22,0,($O$1-1)*10) -> 0
B10: Energía a subir (GWh) | C10: =OFFSET('Precios finales '!F76,0,($O$1-1)*10) -> 2725.7446 | D10: =OFFSET('Precios finales '!G76,0,($O$1-1)*10) -> 2693.8277 | E10: =OFFSET('Precios finales '!H76,0,($O$1-1)*10) -> 2991.6152 | F10: =OFFSET('Precios finales '!I76,0,($O$1-1)*10) -> 3330.3062 | G10: =OFFSET('Precios finales '!J76,0,($O$1-1)*10) -> 3066.3833 | H10: =OFFSET('Precios finales '!K76,0,($O$1-1)*10) -> 3125.9391 | I10: =OFFSET('Precios finales '!L76,0,($O$1-1)*10) -> 2556.7548 | J10: =OFFSET('Precios finales '!M76,0,($O$1-1)*10) -> 400.4618 | K10: =OFFSET('Precios finales '!N76,0,($O$1-1)*10) -> - | L10: =OFFSET('Precios finales '!O76,0,($O$1-1)*10) -> -
B11: Precio a subir (€/MWh) | C11: =OFFSET('Precios finales '!F78,0,($O$1-1)*10) -> 50.4106099 | D11: =OFFSET('Precios finales '!G78,0,($O$1-1)*10) -> 57.97133776 | E11: =OFFSET('Precios finales '!H78,0,($O$1-1)*10) -> 59.72870424 | F11: =OFFSET('Precios finales '!I78,0,($O$1-1)*10) -> 62.50653885 | G11: =OFFSET('Precios finales '!J78,0,($O$1-1)*10) -> 58.23448099 | H11: =OFFSET('Precios finales '!K78,0,($O$1-1)*10) -> 63.7100972 | I11: =OFFSET('Precios finales '!L78,0,($O$1-1)*10) -> 50.17798767 | J11: =OFFSET('Precios finales '!M78,0,($O$1-1)*10) -> 81.10934808 | K11: =OFFSET('Precios finales '!N78,0,($O$1-1)*10) -> - | L11: =OFFSET('Precios finales '!O78,0,($O$1-1)*10) -> -
B13: Energía a bajar (GWh) | C13: =OFFSET('Precios finales '!F77,0,($O$1-1)*10) -> 2982.6402 | D13: =OFFSET('Precios finales '!G77,0,($O$1-1)*10) -> 2804.8267 | E13: =OFFSET('Precios finales '!H77,0,($O$1-1)*10) -> 2330.193 | F13: =OFFSET('Precios finales '!I77,0,($O$1-1)*10) -> 1811.622 | G13: =OFFSET('Precios finales '!J77,0,($O$1-1)*10) -> 1765.2282 | H13: =OFFSET('Precios finales '!K77,0,($O$1-1)*10) -> 1626.5712 | I13: =OFFSET('Precios finales '!L77,0,($O$1-1)*10) -> 1553.3404 | J13: =OFFSET('Precios finales '!M77,0,($O$1-1)*10) -> 368.9244 | K13: =OFFSET('Precios finales '!N77,0,($O$1-1)*10) -> - | L13: =OFFSET('Precios finales '!O77,0,($O$1-1)*10) -> -
B14: Precio a bajar (€/MWh) | C14: =OFFSET('Precios finales '!F79,0,($O$1-1)*10) -> 17.87816248 | D14: =OFFSET('Precios finales '!G79,0,($O$1-1)*10) -> 24.45667554 | E14: =OFFSET('Precios finales '!H79,0,($O$1-1)*10) -> 22.16972604 | F14: =OFFSET('Precios finales '!I79,0,($O$1-1)*10) -> 16.833822 | G14: =OFFSET('Precios finales '!J79,0,($O$1-1)*10) -> 11.89922168 | H14: =OFFSET('Precios finales '!K79,0,($O$1-1)*10) -> 24.77513785 | I14: =OFFSET('Precios finales '!L79,0,($O$1-1)*10) -> 19.35933732 | J14: =OFFSET('Precios finales '!M79,0,($O$1-1)*10) -> 37.53097296 | K14: =OFFSET('Precios finales '!N79,0,($O$1-1)*10) -> - | L14: =OFFSET('Precios finales '!O79,0,($O$1-1)*10) -> -

Sheet Gestión de desvíos mensual
O1: 8
L4: Concepto
L5: Horizonte temporal
L6: Periodo
C8: Ene. | D8: Feb. | E8: Mar. | F8: Abr. | G8: May. | H8: Jun. | I8: Jul. | J8: Ago. | K8: Sep. | L8: Oct. | M8: Nov. | N8: Dic. | O8: =OFFSET(Año!B2,($O$1-1),0) -> 2017
B10: Energía a subir (GWh) | C10: =OFFSET('Precios finales '!AP83,0,($O$1-1)*13) -> 151.5086 | D10: =OFFSET('Precios finales '!AQ83,0,($O$1-1)*13) -> 31.8599 | E10: =OFFSET('Precios finales '!AR83,0,($O$1-1)*13) -> - | F10: =OFFSET('Precios finales '!AS83,0,($O$1-1)*13) -> - | G10: =OFFSET('Precios finales '!AT83,0,($O$1-1)*13) -> - | H10: =OFFSET('Precios finales '!AU83,0,($O$1-1)*13) -> - | I10: =OFFSET('Precios finales '!AV83,0,($O$1-1)*13) -> - | J10: =OFFSET('Precios finales '!AW83,0,($O$1-1)*13) -> - | K10: =OFFSET('Precios finales '!AX83,0,($O$1-1)*13) -> - | L10: =OFFSET('Precios finales '!AY83,0,($O$1-1)*13) -> - | M10: =OFFSET('Precios finales '!AZ83,0,($O$1-1)*13) -> - | N10: =OFFSET('Precios finales '!BA83,0,($O$1-1)*13) -> - | O10: =OFFSET('Precios finales '!BB83,0,($O$1-1)*13) -> 183.3685
B11: Precio a subir (€/MWh) | C11: =OFFSET('Precios finales '!AP85,0,($O$1-1)*13) -> 84.92563234 | D11: =OFFSET('Precios finales '!AQ85,0,($O$1-1)*13) -> 75.52373736 | E11: =OFFSET('Precios finales '!AR85,0,($O$1-1)*13) -> - | F11: =OFFSET('Precios finales '!AS85,0,($O$1-1)*13) -> - | G11: =OFFSET('Precios finales '!AT85,0,($O$1-1)*13) -> - | H11: =OFFSET('Precios finales '!AU85,0,($O$1-1)*13) -> - | I11: =OFFSET('Precios finales '!AV85,0,($O$1-1)*13) -> - | J11: =OFFSET('Precios finales '!AW85,0,($O$1-1)*13) -> - | K11: =OFFSET('Precios finales '!AX85,0,($O$1-1)*13) -> - | L11: =OFFSET('Precios finales '!AY85,0,($O$1-1)*13) -> - | M11: =OFFSET('Precios finales '!AZ85,0,($O$1-1)*13) -> - | N11: =OFFSET('Precios finales '!BA85,0,($O$1-1)*13) -> - | O11: =OFFSET('Precios finales '!BB85,0,($O$1-1)*13) -> 83.29207241
B13: Energía a bajar (GWh) | C13: =OFFSET('Precios finales '!AP84,0,($O$1-1)*13) -> 47.0948 | D13: =OFFSET('Precios finales '!AQ84,0,($O$1-1)*13) -> 110.5849 | E13: =OFFSET('Precios finales '!AR84,0,($O$1-1)*13) -> - | F13: =OFFSET('Precios finales '!AS84,0,($O$1-1)*13) -> - | G13: =OFFSET('Precios finales '!AT84,0,($O$1-1)*13) -> - | H13: =OFFSET('Precios finales '!AU84,0,($O$1-1)*13) -> - | I13: =OFFSET('Precios finales '!AV84,0,($O$1-1)*13) -> - | J13: =OFFSET('Precios finales '!AW84,0,($O$1-1)*13) -> - | K13: =OFFSET('Precios finales '!AX84,0,($O$1-1)*13) -> - | L13: =OFFSET('Precios finales '!AY84,0,($O$1-1)*13) -> - | M13: =OFFSET('Precios finales '!AZ84,0,($O$1-1)*13) -> - | N13: =OFFSET('Precios finales '!BA84,0,($O$1-1)*13) -> - | O13: =OFFSET('Precios finales '!BB84,0,($O$1-1)*13) -> 157.6797
B14: Precio a bajar (€/MWh) | C14: =OFFSET('Precios finales '!AP86,0,($O$1-1)*13) -> 56.50591084 | D14: =OFFSET('Precios finales '!AQ86,0,($O$1-1)*13) -> 39.27895246 | E14: =OFFSET('Precios finales '!AR86,0,($O$1-1)*13) -> - | F14: =OFFSET('Precios finales '!AS86,0,($O$1-1)*13) -> - | G14: =OFFSET('Precios finales '!AT86,0,($O$1-1)*13) -> - | H14: =OFFSET('Precios finales '!AU86,0,($O$1-1)*13) -> - | I14: =OFFSET('Precios finales '!AV86,0,($O$1-1)*13) -> - | J14: =OFFSET('Precios finales '!AW86,0,($O$1-1)*13) -> - | K14: =OFFSET('Precios finales '!AX86,0,($O$1-1)*13) -> - | L14: =OFFSET('Precios finales '!AY86,0,($O$1-1)*13) -> - | M14: =OFFSET('Precios finales '!AZ86,0,($O$1-1)*13) -> - | N14: =OFFSET('Precios finales '!BA86,0,($O$1-1)*13) -> - | O14: =OFFSET('Precios finales '!BB86,0,($O$1-1)*13) -> 44.42419411

Sheet Gestión de desvíos anual
O1: 1
I4: Concepto
I5: Horizonte temporal
I6: Periodo
C8: =OFFSET('Precios finales '!F47,0,($O$1-1)*10) -> 2010 | D8: =OFFSET('Precios finales '!G21,0,($O$1-1)*10) -> 2011 | E8: =OFFSET('Precios finales '!H21,0,($O$1-1)*10) -> 2012 | F8: =OFFSET('Precios finales '!I21,0,($O$1-1)*10) -> 2013 | G8: =OFFSET('Precios finales '!J21,0,($O$1-1)*10) -> 2014 | H8: =OFFSET('Precios finales '!K21,0,($O$1-1)*10) -> 2015 | I8: =OFFSET('Precios finales '!L21,0,($O$1-1)*10) -> 2016 | J8: =OFFSET('Precios finales '!M21,0,($O$1-1)*10) -> 2017 | K8: =OFFSET('Precios finales '!N21,0,($O$1-1)*10) -> 2018 | L8: =OFFSET('Precios finales '!O21,0,($O$1-1)*10) -> 2019
C9: =OFFSET('Precios finales '!C22,0,($O$1-1)*10) -> 0
B10: Energía a subir (GWh) | C10: =OFFSET('Precios finales '!F90,0,($O$1-1)*10) -> 2198.4272 | D10: =OFFSET('Precios finales '!G90,0,($O$1-1)*10) -> 1774.5753 | E10: =OFFSET('Precios finales '!H90,0,($O$1-1)*10) -> 2658.2959 | F10: =OFFSET('Precios finales '!I90,0,($O$1-1)*10) -> 2346.6759 | G10: =OFFSET('Precios finales '!J90,0,($O$1-1)*10) -> 1865.428 | H10: =OFFSET('Precios finales '!K90,0,($O$1-1)*10) -> 2214.2889 | I10: =OFFSET('Precios finales '!L90,0,($O$1-1)*10) -> 1183.2825 | J10: =OFFSET('Precios finales '!M90,0,($O$1-1)*10) -> 183.3685 | K10: =OFFSET('Precios finales '!N90,0,($O$1-1)*10) -> - | L10: =OFFSET('Precios finales '!O90,0,($O$1-1)*10) -> -
B11: Precio a subir (€/MWh) | C11: =OFFSET('Precios finales '!F92,0,($O$1-1)*10) -> 51.00571597 | D11: =OFFSET('Precios finales '!G92,0,($O$1-1)*10) -> 54.29540261 | E11: =OFFSET('Precios finales '!H92,0,($O$1-1)*10) -> 60.24289665 | F11: =OFFSET('Precios finales '!I92,0,($O$1-1)*10) -> 60.09732506 | G11: =OFFSET('Precios finales '!J92,0,($O$1-1)*10) -> 54.94588913 | H11: =OFFSET('Precios finales '!K92,0,($O$1-1)*10) -> 62.31538071 | I11: =OFFSET('Precios finales '!L92,0,($O$1-1)*10) -> 47.76945947 | J11: =OFFSET('Precios finales '!M92,0,($O$1-1)*10) -> 83.29207241 | K11: =OFFSET('Precios finales '!N92,0,($O$1-1)*10) -> - | L11: =OFFSET('Precios finales '!O92,0,($O$1-1)*10) -> -
B13: Energía a bajar (GWh) | C13: =OFFSET('Precios finales '!F91,0,($O$1-1)*10) -> 2674.5384 | D13: =OFFSET('Precios finales '!G91,0,($O$1-1)*10) -> 2238.4268 | E13: =OFFSET('Precios finales '!H91,0,($O$1-1)*10) -> 1231.8156 | F13: =OFFSET('Precios finales '!I91,0,($O$1-1)*10) -> 904.9999 | G13: =OFFSET('Precios finales '!J91,0,($O$1-1)*10) -> 571.4409 | H13: =OFFSET('Precios finales '!K91,0,($O$1-1)*10) -> 548.6064 | I13: =OFFSET('Precios finales '!L91,0,($O$1-1)*10) -> 465.095 | J13: =OFFSET('Precios finales '!M91,0,($O$1-1)*10) -> 157.6797 | K13: =OFFSET('Precios finales '!N91,0,($O$1-1)*10) -> - | L13: =OFFSET('Precios finales '!O91,0,($O$1-1)*10) -> -
B14: Precio a bajar (€/MWh) | C14: =OFFSET('Precios finales '!F93,0,($O$1-1)*10) -> 20.6995867 | D14: =OFFSET('Precios finales '!G93,0,($O$1-1)*10) -> 29.83335407 | E14: =OFFSET('Precios finales '!H93,0,($O$1-1)*10) -> 27.38838562 | F14: =OFFSET('Precios finales '!I93,0,($O$1-1)*10) -> 22.54954922 | G14: =OFFSET('Precios finales '!J93,0,($O$1-1)*10) -> 12.23210645 | H14: =OFFSET('Precios finales '!K93,0,($O$1-1)*10) -> 33.48074966 | I14: =OFFSET('Precios finales '!L93,0,($O$1-1)*10) -> 26.32731902 | J14: =OFFSET('Precios finales '!M93,0,($O$1-1)*10) -> 44.42419411 | K14: =OFFSET('Precios finales '!N93,0,($O$1-1)*10) -> - | L14: =OFFSET('Precios finales '!O93,0,($O$1-1)*10) -> -

Sheet Restricciones TReal mensual
O1: 8
L4: Concepto
L5: Horizonte temporal
L6: Periodo
C8: Ene. | D8: Feb. | E8: Mar. | F8: Abr. | G8: May. | H8: Jun. | I8: Jul. | J8: Ago. | K8: Sep. | L8: Oct. | M8: Nov. | N8: Dic. | O8: =OFFSET(Año!B2,($O$1-1),0) -> 2017
B10: Energía a subir (GWh) | C10: =OFFSET('Precios finales '!AP97,0,($O$1-1)*13) -> 34.5139 | D10: =OFFSET('Precios finales '!AQ97,0,($O$1-1)*13) -> 22.3091 | E10: =OFFSET('Precios finales '!AR97,0,($O$1-1)*13) -> - | F10: =OFFSET('Precios finales '!AS97,0,($O$1-1)*13) -> - | G10: =OFFSET('Precios finales '!AT97,0,($O$1-1)*13) -> - | H10: =OFFSET('Precios finales '!AU97,0,($O$1-1)*13) -> - | I10: =OFFSET('Precios finales '!AV97,0,($O$1-1)*13) -> - | J10: =OFFSET('Precios finales '!AW97,0,($O$1-1)*13) -> - | K10: =OFFSET('Precios finales '!AX97,0,($O$1-1)*13) -> - | L10: =OFFSET('Precios finales '!AY97,0,($O$1-1)*13) -> - | M10: =OFFSET('Precios finales '!AZ97,0,($O$1-1)*13) -> - | N10: =OFFSET('Precios finales '!BA97,0,($O$1-1)*13) -> - | O10: =OFFSET('Precios finales '!BB97,0,($O$1-1)*13) -> 56.823
B11: Precio a subir (€/MWh) | C11: =OFFSET('Precios finales '!AP99,0,($O$1-1)*13) -> 162.0228412 | D11: =OFFSET('Precios finales '!AQ99,0,($O$1-1)*13) -> 100.8488461 | E11: =OFFSET('Precios finales '!AR99,0,($O$1-1)*13) -> - | F11: =OFFSET('Precios finales '!AS99,0,($O$1-1)*13) -> - | G11: =OFFSET('Precios finales '!AT99,0,($O$1-1)*13) -> - | H11: =OFFSET('Precios finales '!AU99,0,($O$1-1)*13) -> - | I11: =OFFSET('Precios finales '!AV99,0,($O$1-1)*13) -> - | J11: =OFFSET('Precios finales '!AW99,0,($O$1-1)*13) -> - | K11: =OFFSET('Precios finales '!AX99,0,($O$1-1)*13) -> - | L11: =OFFSET('Precios finales '!AY99,0,($O$1-1)*13) -> - | M11: =OFFSET('Precios finales '!AZ99,0,($O$1-1)*13) -> - | N11: =OFFSET('Precios finales '!BA99,0,($O$1-1)*13) -> - | O11: =OFFSET('Precios finales '!BB99,0,($O$1-1)*13) -> 137.4818026
B13: Energía a bajar (GWh) | C13: =OFFSET('Precios finales '!AP98,0,($O$1-1)*13) -> 55.794 | D13: =OFFSET('Precios finales '!AQ98,0,($O$1-1)*13) -> 96.1476 | E13: =OFFSET('Precios finales '!AR98,0,($O$1-1)*13) -> - | F13: =OFFSET('Precios finales '!AS98,0,($O$1-1)*13) -> - | G13: =OFFSET('Precios finales '!AT98,0,($O$1-1)*13) -> - | H13: =OFFSET('Precios finales '!AU98,0,($O$1-1)*13) -> - | I13: =OFFSET('Precios finales '!AV98,0,($O$1-1)*13) -> - | J13: =OFFSET('Precios finales '!AW98,0,($O$1-1)*13) -> - | K13: =OFFSET('Precios finales '!AX98,0,($O$1-1)*13) -> - | L13: =OFFSET('Precios finales '!AY98,0,($O$1-1)*13) -> - | M13: =OFFSET('Precios finales '!AZ98,0,($O$1-1)*13) -> - | N13: =OFFSET('Precios finales '!BA98,0,($O$1-1)*13) -> - | O13: =OFFSET('Precios finales '!BB98,0,($O$1-1)*13) -> 151.9416
B14: Precio a bajar (€/MWh) | C14: =OFFSET('Precios finales '!AP100,0,($O$1-1)*13) -> 29.11605268 | D14: =OFFSET('Precios finales '!AQ100,0,($O$1-1)*13) -> 10.40375194 | E14: =OFFSET('Precios finales '!AR100,0,($O$1-1)*13) -> - | F14: =OFFSET('Precios finales '!AS100,0,($O$1-1)*13) -> - | G14: =OFFSET('Precios finales '!AT100,0,($O$1-1)*13) -> - | H14: =OFFSET('Precios finales '!AU100,0,($O$1-1)*13) -> - | I14: =OFFSET('Precios finales '!AV100,0,($O$1-1)*13) -> - | J14: =OFFSET('Precios finales '!AW100,0,($O$1-1)*13) -> - | K14: =OFFSET('Precios finales '!AX100,0,($O$1-1)*13) -> - | L14: =OFFSET('Precios finales '!AY100,0,($O$1-1)*13) -> - | M14: =OFFSET('Precios finales '!AZ100,0,($O$1-1)*13) -> - | N14: =OFFSET('Precios finales '!BA100,0,($O$1-1)*13) -> - | O14: =OFFSET('Precios finales '!BB100,0,($O$1-1)*13) -> 18.88104349

Sheet Restricciones TReal anual
O1: 1
I4: Concepto
I5: Horizonte temporal
I6: Periodo
C8: =OFFSET('Precios finales '!F47,0,($O$1-1)*10) -> 2010 | D8: =OFFSET('Precios finales '!G21,0,($O$1-1)*10) -> 2011 | E8: =OFFSET('Precios finales '!H21,0,($O$1-1)*10) -> 2012 | F8: =OFFSET('Precios finales '!I21,0,($O$1-1)*10) -> 2013 | G8: =OFFSET('Precios finales '!J21,0,($O$1-1)*10) -> 2014 | H8: =OFFSET('Precios finales '!K21,0,($O$1-1)*10) -> 2015 | I8: =OFFSET('Precios finales '!L21,0,($O$1-1)*10) -> 2016 | J8: =OFFSET('Precios finales '!M21,0,($O$1-1)*10) -> 2017 | K8: =OFFSET('Precios finales '!N21,0,($O$1-1)*10) -> 2018 | L8: =OFFSET('Precios finales '!O21,0,($O$1-1)*10) -> 2019
C9: =OFFSET('Precios finales '!C22,0,($O$1-1)*10) -> 0
B10: Energía a subir (GWh) | C10: =OFFSET('Precios finales '!F104,0,($O$1-1)*10) -> 887.0243 | D10: =OFFSET('Precios finales '!G104,0,($O$1-1)*10) -> 657.3699 | E10: =OFFSET('Precios finales '!H104,0,($O$1-1)*10) -> 635.1718 | F10: =OFFSET('Precios finales '!I104,0,($O$1-1)*10) -> 558.3321 | G10: =OFFSET('Precios finales '!J104,0,($O$1-1)*10) -> 555.6357 | H10: =OFFSET('Precios finales '!K104,0,($O$1-1)*10) -> 518.8256 | I10: =OFFSET('Precios finales '!L104,0,($O$1-1)*10) -> 390.4507 | J10: =OFFSET('Precios finales '!M104,0,($O$1-1)*10) -> 56.823 | K10: =OFFSET('Precios finales '!N104,0,($O$1-1)*10) -> - | L10: =OFFSET('Precios finales '!O104,0,($O$1-1)*10) -> -
B11: Precio a subir (€/MWh) | C11: =OFFSET('Precios finales '!F106,0,($O$1-1)*10) -> 101.3869711 | D11: =OFFSET('Precios finales '!G106,0,($O$1-1)*10) -> 128.8540485 | E11: =OFFSET('Precios finales '!H106,0,($O$1-1)*10) -> 225.2974592 | F11: =OFFSET('Precios finales '!I106,0,($O$1-1)*10) -> 228.5493252 | G11: =OFFSET('Precios finales '!J106,0,($O$1-1)*10) -> 187.9939557 | H11: =OFFSET('Precios finales '!K106,0,($O$1-1)*10) -> 104.0872974 | I11: =OFFSET('Precios finales '!L106,0,($O$1-1)*10) -> 94.13199791 | J11: =OFFSET('Precios finales '!M106,0,($O$1-1)*10) -> 137.4818026 | K11: =OFFSET('Precios finales '!N106,0,($O$1-1)*10) -> - | L11: =OFFSET('Precios finales '!O106,0,($O$1-1)*10) -> -
B13: Energía a bajar (GWh) | C13: =OFFSET('Precios finales '!F105,0,($O$1-1)*10) -> 900.8324 | D13: =OFFSET('Precios finales '!G105,0,($O$1-1)*10) -> 509.3206 | E13: =OFFSET('Precios finales '!H105,0,($O$1-1)*10) -> 483.8271 | F13: =OFFSET('Precios finales '!I105,0,($O$1-1)*10) -> 1701.4657 | G13: =OFFSET('Precios finales '!J105,0,($O$1-1)*10) -> 1274.0256 | H13: =OFFSET('Precios finales '!K105,0,($O$1-1)*10) -> 1151.572 | I13: =OFFSET('Precios finales '!L105,0,($O$1-1)*10) -> 645.1732 | J13: =OFFSET('Precios finales '!M105,0,($O$1-1)*10) -> 151.9416 | K13: =OFFSET('Precios finales '!N105,0,($O$1-1)*10) -> - | L13: =OFFSET('Precios finales '!O105,0,($O$1-1)*10) -> -
B14: Precio a bajar (€/MWh) | C14: =OFFSET('Precios finales '!F107,0,($O$1-1)*10) -> 9.257856628 | D14: =OFFSET('Precios finales '!G107,0,($O$1-1)*10) -> 17.6872484 | E14: =OFFSET('Precios finales '!H107,0,($O$1-1)*10) -> 17.55992935 | F14: =OFFSET('Precios finales '!I107,0,($O$1-1)*10) -> 8.122794834 | G14: =OFFSET('Precios finales '!J107,0,($O$1-1)*10) -> 11.30055255 | H14: =OFFSET('Precios finales '!K107,0,($O$1-1)*10) -> 19.39059235 | I14: =OFFSET('Precios finales '!L107,0,($O$1-1)*10) -> 16.1514693 | J14: =OFFSET('Precios finales '!M107,0,($O$1-1)*10) -> 18.88104349 | K14: =OFFSET('Precios finales '!N107,0,($O$1-1)*10) -> - | L14: =OFFSET('Precios finales '!O107,0,($O$1-1)*10) -> -

Sheet Reserva adic subir mensual
O1: 8
L4: Concepto
L5: Horizonte temporal
L6: Periodo
C8: Ene. | D8: Feb. | E8: Mar. | F8: Abr. | G8: May. | H8: Jun. | I8: Jul. | J8: Ago. | K8: Sep. | L8: Oct. | M8: Nov. | N8: Dic. | O8: =OFFSET(Año!B2,($O$1-1),0) -> 2017
B10: Potencia a subir (GW) | C10: =OFFSET('Precios finales '!AP165,0,($O$1-1)*13) -> 184.5529 | D10: =OFFSET('Precios finales '!AQ165,0,($O$1-1)*13) -> 12.0976 | E10: =OFFSET('Precios finales '!AR165,0,($O$1-1)*13) -> - | F10: =OFFSET('Precios finales '!AS165,0,($O$1-1)*13) -> - | G10: =OFFSET('Precios finales '!AT165,0,($O$1-1)*13) -> - | H10: =OFFSET('Precios finales '!AU165,0,($O$1-1)*13) -> - | I10: =OFFSET('Precios finales '!AV165,0,($O$1-1)*13) -> - | J10: =OFFSET('Precios finales '!AW165,0,($O$1-1)*13) -> - | K10: =OFFSET('Precios finales '!AX165,0,($O$1-1)*13) -> - | L10: =OFFSET('Precios finales '!AY165,0,($O$1-1)*13) -> - | M10: =OFFSET('Precios finales '!AZ165,0,($O$1-1)*13) -> - | N10: =OFFSET('Precios finales '!BA165,0,($O$1-1)*13) -> - | O10: =OFFSET('Precios finales '!BB165,0,($O$1-1)*13) -> 196.6505
B11: Precio a subir (€/MW) | C11: =OFFSET('Precios finales '!AP166,0,($O$1-1)*13) -> 35.27002849 | D11: =OFFSET('Precios finales '!AQ166,0,($O$1-1)*13) -> 27.78792653 | E11: =OFFSET('Precios finales '!AR166,0,($O$1-1)*13) -> - | F11: =OFFSET('Precios finales '!AS166,0,($O$1-1)*13) -> - | G11: =OFFSET('Precios finales '!AT166,0,($O$1-1)*13) -> - | H11: =OFFSET('Precios finales '!AU166,0,($O$1-1)*13) -> - | I11: =OFFSET('Precios finales '!AV166,0,($O$1-1)*13) -> - | J11: =OFFSET('Precios finales '!AW166,0,($O$1-1)*13) -> - | K11: =OFFSET('Precios finales '!AX166,0,($O$1-1)*13) -> - | L11: =OFFSET('Precios finales '!AY166,0,($O$1-1)*13) -> - | M11: =OFFSET('Precios finales '!AZ166,0,($O$1-1)*13) -> - | N11: =OFFSET('Precios finales '!BA166,0,($O$1-1)*13) -> - | O11: =OFFSET('Precios finales '!BB166,0,($O$1-1)*13) -> 34.80974246

Sheet Reserva adic subir anual
O1: 1
I4: Concepto
I5: Horizonte temporal
I6: Periodo
C8: =OFFSET('Precios finales '!F169,0,($O$1-1)) -> 2010 | D8: =OFFSET('Precios finales '!G169,0,($O$1-1)*10) -> 2011 | E8: =OFFSET('Precios finales '!H169,0,($O$1-1)*10) -> 2012 | F8: =OFFSET('Precios finales '!I169,0,($O$1-1)*10) -> 2013 | G8: =OFFSET('Precios finales '!J169,0,($O$1-1)*10) -> 2014 | H8: =OFFSET('Precios finales '!K169,0,($O$1-1)*10) -> 2015 | I8: =OFFSET('Precios finales '!L169,0,($O$1-1)*10) -> 2016 | J8: =OFFSET('Precios finales '!M169,0,($O$1-1)*10) -> 2017 | K8: =OFFSET('Precios finales '!N169,0,($O$1-1)*10) -> 2018 | L8: =OFFSET('Precios finales '!O169,0,($O$1-1)*10) -> 2019
B10: Potencia a subir (GW) | C10: =OFFSET('Precios finales '!F170,0,($O$1-1)*10) -> - | D10: =OFFSET('Precios finales '!G170,0,($O$1-1)*10) -> - | E10: =OFFSET('Precios finales '!H170,0,($O$1-1)*10) -> 1635.6699 | F10: =OFFSET('Precios finales '!I170,0,($O$1-1)*10) -> 3009.9104 | G10: =OFFSET('Precios finales '!J170,0,($O$1-1)*10) -> 4279.1248 | H10: =OFFSET('Precios finales '!K170,0,($O$1-1)*10) -> 2108.6381 | I10: =OFFSET('Precios finales '!L170,0,($O$1-1)*10) -> 1996.3404 | J10: =OFFSET('Precios finales '!M170,0,($O$1-1)*10) -> 196.6505 | K10: =OFFSET('Precios finales '!N170,0,($O$1-1)*10) -> - | L10: =OFFSET('Precios finales '!O170,0,($O$1-1)*10) -> -
B11: Precio a subir (€/MW) | C11: =OFFSET('Precios finales '!F171,0,($O$1-1)*10) -> - | D11: =OFFSET('Precios finales '!G171,0,($O$1-1)*10) -> - | E11: =OFFSET('Precios finales '!H171,0,($O$1-1)*10) -> 39.6792245 | F11: =OFFSET('Precios finales '!I171,0,($O$1-1)*10) -> 36.93568735 | G11: =OFFSET('Precios finales '!J171,0,($O$1-1)*10) -> 34.10692776 | H11: =OFFSET('Precios finales '!K171,0,($O$1-1)*10) -> 23.73115524 | I11: =OFFSET('Precios finales '!L171,0,($O$1-1)*10) -> 19.98947758 | J11: =OFFSET('Precios finales '!M171,0,($O$1-1)*10) -> 34.80974246 | K11: =OFFSET('Precios finales '!N171,0,($O$1-1)*10) -> - | L11: =OFFSET('Precios finales '!O171,0,($O$1-1)*10) -> -

Sheet Banda mensual
O1: 8
L4: Concepto
L5: Horizonte temporal
L6: Periodo
C8: Ene. | D8: Feb. | E8: Mar. | F8: Abr. | G8: May. | H8: Jun. | I8: Jul. | J8: Ago. | K8: Sep. | L8: Oct. | M8: Nov. | N8: Dic. | O8: =OFFSET(Año!B2,($O$1-1),0) -> 2017
B10: Potencia a subir (GW) | C10: =OFFSET('Precios finales '!AP175,0,($O$1-1)*13) -> 712.5201613 | D10: =OFFSET('Precios finales '!AQ175,0,($O$1-1)*13) -> 690.0669643 | E10: =OFFSET('Precios finales '!AR175,0,($O$1-1)*13) -> - | F10: =OFFSET('Precios finales '!AS175,0,($O$1-1)*13) -> - | G10: =OFFSET('Precios finales '!AT175,0,($O$1-1)*13) -> - | H10: =OFFSET('Precios finales '!AU175,0,($O$1-1)*13) -> - | I10: =OFFSET('Precios finales '!AV175,0,($O$1-1)*13) -> - | J10: =OFFSET('Precios finales '!AW175,0,($O$1-1)*13) -> - | K10: =OFFSET('Precios finales '!AX175,0,($O$1-1)*13) -> - | L10: =OFFSET('Precios finales '!AY175,0,($O$1-1)*13) -> - | M10: =OFFSET('Precios finales '!AZ175,0,($O$1-1)*13) -> - | N10: =OFFSET('Precios finales '!BA175,0,($O$1-1)*13) -> - | O10: =OFFSET('Precios finales '!BB175,0,($O$1-1)*13) -> 701.8644068
B11: Potencia a bajar (GW) | C11: =OFFSET('Precios finales '!AP176,0,($O$1-1)*13) -> 520.0322581 | D11: =OFFSET('Precios finales '!AQ176,0,($O$1-1)*13) -> 516.8973214 | E11: =OFFSET('Precios finales '!AR176,0,($O$1-1)*13) -> - | F11: =OFFSET('Precios finales '!AS176,0,($O$1-1)*13) -> - | G11: =OFFSET('Precios finales '!AT176,0,($O$1-1)*13) -> - | H11: =OFFSET('Precios finales '!AU176,0,($O$1-1)*13) -> - | I11: =OFFSET('Precios finales '!AV176,0,($O$1-1)*13) -> - | J11: =OFFSET('Precios finales '!AW176,0,($O$1-1)*13) -> - | K11: =OFFSET('Precios finales '!AX176,0,($O$1-1)*13) -> - | L11: =OFFSET('Precios finales '!AY176,0,($O$1-1)*13) -> - | M11: =OFFSET('Precios finales '!AZ176,0,($O$1-1)*13) -> - | N11: =OFFSET('Precios finales '!BA176,0,($O$1-1)*13) -> - | O11: =OFFSET('Precios finales '!BB176,0,($O$1-1)*13) -> 518.5444915
B12: Precio (€/MW) | C12: =OFFSET('Precios finales '!AP177,0,($O$1-1)*13) -> 19.84042446 | D12: =OFFSET('Precios finales '!AQ177,0,($O$1-1)*13) -> - | E12: =OFFSET('Precios finales '!AR177,0,($O$1-1)*13) -> - | F12: =OFFSET('Precios finales '!AS177,0,($O$1-1)*13) -> - | G12: =OFFSET('Precios finales '!AT177,0,($O$1-1)*13) -> - | H12: =OFFSET('Precios finales '!AU177,0,($O$1-1)*13) -> - | I12: =OFFSET('Precios finales '!AV177,0,($O$1-1)*13) -> - | J12: =OFFSET('Precios finales '!AW177,0,($O$1-1)*13) -> - | K12: =OFFSET('Precios finales '!AX177,0,($O$1-1)*13) -> - | L12: =OFFSET('Precios finales '!AY177,0,($O$1-1)*13) -> - | M12: =OFFSET('Precios finales '!AZ177,0,($O$1-1)*13) -> - | N12: =OFFSET('Precios finales '!BA177,0,($O$1-1)*13) -> - | O12: =OFFSET('Precios finales '!BB177,0,($O$1-1)*13) -> 17.62727956

Sheet Banda anual
O1: 1
I4: Concepto
I5: Horizonte temporal
I6: Periodo
C8: =OFFSET('Precios finales '!F169,0,($O$1-1)) -> 2010 | D8: =OFFSET('Precios finales '!G169,0,($O$1-1)*10) -> 2011 | E8: =OFFSET('Precios finales '!H169,0,($O$1-1)*10) -> 2012 | F8: =OFFSET('Precios finales '!I169,0,($O$1-1)*10) -> 2013 | G8: =OFFSET('Precios finales '!J169,0,($O$1-1)*10) -> 2014 | H8: =OFFSET('Precios finales '!K169,0,($O$1-1)*10) -> 2015 | I8: =OFFSET('Precios finales '!L169,0,($O$1-1)*10) -> 2016 | J8: =OFFSET('Precios finales '!M169,0,($O$1-1)*10) -> 2017 | K8: =OFFSET('Precios finales '!N169,0,($O$1-1)*10) -> 2018 | L8: =OFFSET('Precios finales '!O169,0,($O$1-1)*10) -> 2019
B10: Potencia a subir (GW) | C10: =OFFSET('Precios finales '!F181,0,($O$1-1)*10) -> 727.1406393 | D10: =OFFSET('Precios finales '!G181,0,($O$1-1)*10) -> 716.1834475 | E10: =OFFSET('Precios finales '!H181,0,($O$1-1)*10) -> 708.8869536 | F10: =OFFSET('Precios finales '!I181,0,($O$1-1)*10) -> 691.3586758 | G10: =OFFSET('Precios finales '!J181,0,($O$1-1)*10) -> 676.7736301 | H10: =OFFSET('Precios finales '!K181,0,($O$1-1)*10) -> 685.213242 | I10: =OFFSET('Precios finales '!L181,0,($O$1-1)*10) -> 681.8841075 | J10: =OFFSET('Precios finales '!M181,0,($O$1-1)*10) -> 701.8644068 | K10: =OFFSET('Precios finales '!N181,0,($O$1-1)*10) -> - | L10: =OFFSET('Precios finales '!O181,0,($O$1-1)*10) -> -
B11: Potencia a bajar (GW) | C11: =OFFSET('Precios finales '!F182,0,($O$1-1)*10) -> 531.097032 | D11: =OFFSET('Precios finales '!G182,0,($O$1-1)*10) -> 526.3908676 | E11: =OFFSET('Precios finales '!H182,0,($O$1-1)*10) -> 522.3331056 | F11: =OFFSET('Precios finales '!I182,0,($O$1-1)*10) -> 511.8342466 | G11: =OFFSET('Precios finales '!J182,0,($O$1-1)*10) -> 501.9864155 | H11: =OFFSET('Precios finales '!K182,0,($O$1-1)*10) -> 511.1635845 | I11: =OFFSET('Precios finales '!L182,0,($O$1-1)*10) -> 508.6900046 | J11: =OFFSET('Precios finales '!M182,0,($O$1-1)*10) -> 518.5444915 | K11: =OFFSET('Precios finales '!N182,0,($O$1-1)*10) -> - | L11: =OFFSET('Precios finales '!O182,0,($O$1-1)*10) -> -
B12: Precio (€/MW) | C12: =OFFSET('Precios finales '!F183,0,($O$1-1)*10) -> 14.71631043 | D12: =OFFSET('Precios finales '!G183,0,($O$1-1)*10) -> 15.8733909 | E12: =OFFSET('Precios finales '!H183,0,($O$1-1)*10) -> 28.05767823 | F12: =OFFSET('Precios finales '!I183,0,($O$1-1)*10) -> 29.55221243 | G12: =OFFSET('Precios finales '!J183,0,($O$1-1)*10) -> 23.27096382 | H12: =OFFSET('Precios finales '!K183,0,($O$1-1)*10) -> 19.56033328 | I12: =OFFSET('Precios finales '!L183,0,($O$1-1)*10) -> 15.54567303 | J12: =OFFSET('Precios finales '!M183,0,($O$1-1)*10) -> 17.62727956 | K12: =OFFSET('Precios finales '!N183,0,($O$1-1)*10) -> - | L12: =OFFSET('Precios finales '!O183,0,($O$1-1)*10) -> -

Sheet BALIT mensual
O1: 8
L4: Concepto
L5: Horizonte temporal
L6: Periodo
C8: Ene. | D8: Feb. | E8: Mar. | F8: Abr. | G8: May. | H8: Jun. | I8: Jul. | J8: Ago. | K8: Sep. | L8: Oct. | M8: Nov. | N8: Dic. | O8: =OFFSET(Año!B2,($O$1-1),0) -> 2017
B10: Energía y precios ofertados desde el sistema eléctrico español y activado por operadores externos
B11: Ofertada por el sistema eléctrico español
B12: Capacidad ofertada importación (GWh) | C12: =OFFSET('Precios finales '!AP189,0,($O$1-1)*13) -> 318.6 | D12: =OFFSET('Precios finales '!AQ189,0,($O$1-1)*13) -> 288.05 | E12: =OFFSET('Precios finales '!AR189,0,($O$1-1)*13) -> - | F12: =OFFSET('Precios finales '!AS189,0,($O$1-1)*13) -> - | G12: =OFFSET('Precios finales '!AT189,0,($O$1-1)*13) -> - | H12: =OFFSET('Precios finales '!AU189,0,($O$1-1)*13) -> - | I12: =OFFSET('Precios finales '!AV189,0,($O$1-1)*13) -> - | J12: =OFFSET('Precios finales '!AW189,0,($O$1-1)*13) -> - | K12: =OFFSET('Precios finales '!AX189,0,($O$1-1)*13) -> - | L12: =OFFSET('Precios finales '!AY189,0,($O$1-1)*13) -> - | M12: =OFFSET('Precios finales '!AZ189,0,($O$1-1)*13) -> - | N12: =OFFSET('Precios finales '!BA189,0,($O$1-1)*13) -> - | O12: =OFFSET('Precios finales '!BB189,0,($O$1-1)*13) -> 606.65
B13: Precio ofertado importación (€/MWh) | C13: =OFFSET('Precios finales '!AP190,0,($O$1-1)*13) -> 27.13340709 | D13: =OFFSET('Precios finales '!AQ190,0,($O$1-1)*13) -> 7.450815831 | E13: =OFFSET('Precios finales '!AR190,0,($O$1-1)*13) -> - | F13: =OFFSET('Precios finales '!AS190,0,($O$1-1)*13) -> - | G13: =OFFSET('Precios finales '!AT190,0,($O$1-1)*13) -> - | H13: =OFFSET('Precios finales '!AU190,0,($O$1-1)*13) -> - | I13: =OFFSET('Precios finales '!AV190,0,($O$1-1)*13) -> - | J13: =OFFSET('Precios finales '!AW190,0,($O$1-1)*13) -> - | K13: =OFFSET('Precios finales '!AX190,0,($O$1-1)*13) -> - | L13: =OFFSET('Precios finales '!AY190,0,($O$1-1)*13) -> - | M13: =OFFSET('Precios finales '!AZ190,0,($O$1-1)*13) -> - | N13: =OFFSET('Precios finales '!BA190,0,($O$1-1)*13) -> - | O13: =OFFSET('Precios finales '!BB190,0,($O$1-1)*13) -> 17.78770461
B14: Capacidad ofertada exportación (GWh) | C14: =OFFSET('Precios finales '!AP191,0,($O$1-1)*13) -> 306.6 | D14: =OFFSET('Precios finales '!AQ191,0,($O$1-1)*13) -> 290.7 | E14: =OFFSET('Precios finales '!AR191,0,($O$1-1)*13) -> - | F14: =OFFSET('Precios finales '!AS191,0,($O$1-1)*13) -> - | G14: =OFFSET('Precios finales '!AT191,0,($O$1-1)*13) -> - | H14: =OFFSET('Precios finales '!AU191,0,($O$1-1)*13) -> - | I14: =OFFSET('Precios finales '!AV191,0,($O$1-1)*13) -> - | J14: =OFFSET('Precios finales '!AW191,0,($O$1-1)*13) -> - | K14: =OFFSET('Precios finales '!AX191,0,($O$1-1)*13) -> - | L14: =OFFSET('Precios finales '!AY191,0,($O$1-1)*13) -> - | M14: =OFFSET('Precios finales '!AZ191,0,($O$1-1)*13) -> - | N14: =OFFSET('Precios finales '!BA191,0,($O$1-1)*13) -> - | O14: =OFFSET('Precios finales '!BB191,0,($O$1-1)*13) -> 597.3
B15: Precio ofertado exportación (€/MWh) | C15: =OFFSET('Precios finales '!AP192,0,($O$1-1)*13) -> 102.3684866 | D15: =OFFSET('Precios finales '!AQ192,0,($O$1-1)*13) -> 81.47418645 | E15: =OFFSET('Precios finales '!AR192,0,($O$1-1)*13) -> - | F15: =OFFSET('Precios finales '!AS192,0,($O$1-1)*13) -> - | G15: =OFFSET('Precios finales '!AT192,0,($O$1-1)*13) -> - | H15: =OFFSET('Precios finales '!AU192,0,($O$1-1)*13) -> - | I15: =OFFSET('Precios finales '!AV192,0,($O$1-1)*13) -> - | J15: =OFFSET('Precios finales '!AW192,0,($O$1-1)*13) -> - | K15: =OFFSET('Precios finales '!AX192,0,($O$1-1)*13) -> - | L15: =OFFSET('Precios finales '!AY192,0,($O$1-1)*13) -> - | M15: =OFFSET('Precios finales '!AZ192,0,($O$1-1)*13) -> - | N15: =OFFSET('Precios finales '!BA192,0,($O$1-1)*13) -> - | O15: =OFFSET('Precios finales '!BB192,0,($O$1-1)*13) -> 92.19943747
B16: Activados por operadores externos (RTE, REN)
B17: Activado Francia importación (GWh) | C17: =OFFSET('Precios finales '!AP193,0,($O$1-1)*13) -> 1.2 | D17: =OFFSET('Precios finales '!AQ193,0,($O$1-1)*13) -> 4.45 | E17: =OFFSET('Precios finales '!AR193,0,($O$1-1)*13) -> - | F17: =OFFSET('Precios finales '!AS193,0,($O$1-1)*13) -> - | G17: =OFFSET('Precios finales '!AT193,0,($O$1-1)*13) -> - | H17: =OFFSET('Precios finales '!AU193,0,($O$1-1)*13) -> - | I17: =OFFSET('Precios finales '!AV193,0,($O$1-1)*13) -> - | J17: =OFFSET('Precios finales '!AW193,0,($O$1-1)*13) -> - | K17: =OFFSET('Precios finales '!AX193,0,($O$1-1)*13) -> - | L17: =OFFSET('Precios finales '!AY193,0,($O$1-1)*13) -> - | M17: =OFFSET('Precios finales '!AZ193,0,($O$1-1)*13) -> - | N17: =OFFSET('Precios finales '!BA193,0,($O$1-1)*13) -> - | O17: =OFFSET('Precios finales '!BB193,0,($O$1-1)*13) -> 5.65
B18: Precio Francia importación (€/MWh) | C18: =OFFSET('Precios finales '!AP194,0,($O$1-1)*13) -> 67.19833333 | D18: =OFFSET('Precios finales '!AQ194,0,($O$1-1)*13) -> 30.74932584 | E18: =OFFSET('Precios finales '!AR194,0,($O$1-1)*13) -> - | F18: =OFFSET('Precios finales '!AS194,0,($O$1-1)*13) -> - | G18: =OFFSET('Precios finales '!AT194,0,($O$1-1)*13) -> - | H18: =OFFSET('Precios finales '!AU194,0,($O$1-1)*13) -> - | I18: =OFFSET('Precios finales '!AV194,0,($O$1-1)*13) -> - | J18: =OFFSET('Precios finales '!AW194,0,($O$1-1)*13) -> - | K18: =OFFSET('Precios finales '!AX194,0,($O$1-1)*13) -> - | L18: =OFFSET('Precios finales '!AY194,0,($O$1-1)*13) -> - | M18: =OFFSET('Precios finales '!AZ194,0,($O$1-1)*13) -> - | N18: =OFFSET('Precios finales '!BA194,0,($O$1-1)*13) -> - | O18: =OFFSET('Precios finales '!BB194,0,($O$1-1)*13) -> 38.49070796
B19: Activado Portugal importación (GWh) | C19: =OFFSET('Precios finales '!AP197,0,($O$1-1)*13) -> 0.45 | D19: =OFFSET('Precios finales '!AQ197,0,($O$1-1)*13) -> 1.7 | E19: =OFFSET('Precios finales '!AR197,0,($O$1-1)*13) -> - | F19: =OFFSET('Precios finales '!AS197,0,($O$1-1)*13) -> - | G19: =OFFSET('Precios finales '!AT197,0,($O$1-1)*13) -> - | H19: =OFFSET('Precios finales '!AU197,0,($O$1-1)*13) -> - | I19: =OFFSET('Precios finales '!AV197,0,($O$1-1)*13) -> - | J19: =OFFSET('Precios finales '!AW197,0,($O$1-1)*13) -> - | K19: =OFFSET('Precios finales '!AX197,0,($O$1-1)*13) -> - | L19: =OFFSET('Precios finales '!AY197,0,($O$1-1)*13) -> - | M19: =OFFSET('Precios finales '!AZ197,0,($O$1-1)*13) -> - | N19: =OFFSET('Precios finales '!BA197,0,($O$1-1)*13) -> - | O19: =OFFSET('Precios finales '!BB197,0,($O$1-1)*13) -> 2.15
B20: Precio Portugal importación (€/MWh) | C20: =OFFSET('Precios finales '!AP198,0,($O$1-1)*13) -> 47.46888889 | D20: =OFFSET('Precios finales '!AQ198,0,($O$1-1)*13) -> 26.08676471 | E20: =OFFSET('Precios finales '!AR198,0,($O$1-1)*13) -> - | F20: =OFFSET('Precios finales '!AS198,0,($O$1-1)*13) -> - | G20: =OFFSET('Precios finales '!AT198,0,($O$1-1)*13) -> - | H20: =OFFSET('Precios finales '!AU198,0,($O$1-1)*13) -> - | I20: =OFFSET('Precios finales '!AV198,0,($O$1-1)*13) -> - | J20: =OFFSET('Precios finales '!AW198,0,($O$1-1)*13) -> - | K20: =OFFSET('Precios finales '!AX198,0,($O$1-1)*13) -> - | L20: =OFFSET('Precios finales '!AY198,0,($O$1-1)*13) -> - | M20: =OFFSET('Precios finales '!AZ198,0,($O$1-1)*13) -> - | N20: =OFFSET('Precios finales '!BA198,0,($O$1-1)*13) -> - | O20: =OFFSET('Precios finales '!BB198,0,($O$1-1)*13) -> 30.56209302
B21: Activado Francia exportación (GWh) | C21: =OFFSET('Precios finales '!AP195,0,($O$1-1)*13) -> 16.3 | D21: =OFFSET('Precios finales '!AQ195,0,($O$1-1)*13) -> 9.1 | E21: =OFFSET('Precios finales '!AR195,0,($O$1-1)*13) -> - | F21: =OFFSET('Precios finales '!AS195,0,($O$1-1)*13) -> - | G21: =OFFSET('Precios finales '!AT195,0,($O$1-1)*13) -> - | H21: =OFFSET('Precios finales '!AU195,0,($O$1-1)*13) -> - | I21: =OFFSET('Precios finales '!AV195,0,($O$1-1)*13) -> - | J21: =OFFSET('Precios finales '!AW195,0,($O$1-1)*13) -> - | K21: =OFFSET('Precios finales '!AX195,0,($O$1-1)*13) -> - | L21: =OFFSET('Precios finales '!AY195,0,($O$1-1)*13) -> - | M21: =OFFSET('Precios finales '!AZ195,0,($O$1-1)*13) -> - | N21: =OFFSET('Precios finales '!BA195,0,($O$1-1)*13) -> - | O21: =OFFSET('Precios finales '!BB195,0,($O$1-1)*13) -> 25.4
B22: Precio Francia exportación (€/MWh) | C22: =OFFSET('Precios finales '!AP196,0,($O$1-1)*13) -> 98.61180982 | D22: =OFFSET('Precios finales '!AQ196,0,($O$1-1)*13) -> 71.33071429 | E22: =OFFSET('Precios finales '!AR196,0,($O$1-1)*13) -> - | F22: =OFFSET('Precios finales '!AS196,0,($O$1-1)*13) -> - | G22: =OFFSET('Precios finales '!AT196,0,($O$1-1)*13) -> - | H22: =OFFSET('Precios finales '!AU196,0,($O$1-1)*13) -> - | I22: =OFFSET('Precios finales '!AV196,0,($O$1-1)*13) -> - | J22: =OFFSET('Precios finales '!AW196,0,($O$1-1)*13) -> - | K22: =OFFSET('Precios finales '!AX196,0,($O$1-1)*13) -> - | L22: =OFFSET('Precios finales '!AY196,0,($O$1-1)*13) -> - | M22: =OFFSET('Precios finales '!AZ196,0,($O$1-1)*13) -> - | N22: =OFFSET('Precios finales '!BA196,0,($O$1-1)*13) -> - | O22: =OFFSET('Precios finales '!BB196,0,($O$1-1)*13) -> 88.83787402
B23: Activado Portugal exportación (GWh) | C23: =OFFSET('Precios finales '!AP199,0,($O$1-1)*13) -> 17.7 | D23: =OFFSET('Precios finales '!AQ199,0,($O$1-1)*13) -> 7.1 | E23: =OFFSET('Precios finales '!AR199,0,($O$1-1)*13) -> - | F23: =OFFSET('Precios finales '!AS199,0,($O$1-1)*13) -> - | G23: =OFFSET('Precios finales '!AT199,0,($O$1-1)*13) -> - | H23: =OFFSET('Precios finales '!AU199,0,($O$1-1)*13) -> - | I23: =OFFSET('Precios finales '!AV199,0,($O$1-1)*13) -> - | J23: =OFFSET('Precios finales '!AW199,0,($O$1-1)*13) -> - | K23: =OFFSET('Precios finales '!AX199,0,($O$1-1)*13) -> - | L23: =OFFSET('Precios finales '!AY199,0,($O$1-1)*13) -> - | M23: =OFFSET('Precios finales '!AZ199,0,($O$1-1)*13) -> - | N23: =OFFSET('Precios finales '!BA199,0,($O$1-1)*13) -> - | O23: =OFFSET('Precios finales '!BB199,0,($O$1-1)*13) -> 24.8
B24: Precio Portugal exportación (€/MWh) | C24: =OFFSET('Precios finales '!AP200,0,($O$1-1)*13) -> 97.72480226 | D24: =OFFSET('Precios finales '!AQ200,0,($O$1-1)*13) -> 85.65232394 | E24: =OFFSET('Precios finales '!AR200,0,($O$1-1)*13) -> - | F24: =OFFSET('Precios finales '!AS200,0,($O$1-1)*13) -> - | G24: =OFFSET('Precios finales '!AT200,0,($O$1-1)*13) -> - | H24: =OFFSET('Precios finales '!AU200,0,($O$1-1)*13) -> - | I24: =OFFSET('Precios finales '!AV200,0,($O$1-1)*13) -> - | J24: =OFFSET('Precios finales '!AW200,0,($O$1-1)*13) -> - | K24: =OFFSET('Precios finales '!AX200,0,($O$1-1)*13) -> - | L24: =OFFSET('Precios finales '!AY200,0,($O$1-1)*13) -> - | M24: =OFFSET('Precios finales '!AZ200,0,($O$1-1)*13) -> - | N24: =OFFSET('Precios finales '!BA200,0,($O$1-1)*13) -> - | O24: =OFFSET('Precios finales '!BB200,0,($O$1-1)*13) -> 94.26856855
B26: Energía y precios ofertados por Francia (RTE) y activado por REE
B27: Capacidad ofertada importación (GWh) | C27: =OFFSET('Precios finales '!AP203,0,($O$1-1)*13) -> 224.95 | D27: =OFFSET('Precios finales '!AQ203,0,($O$1-1)*13) -> 248.65 | E27: =OFFSET('Precios finales '!AR203,0,($O$1-1)*13) -> - | F27: =OFFSET('Precios finales '!AS203,0,($O$1-1)*13) -> - | G27: =OFFSET('Precios finales '!AT203,0,($O$1-1)*13) -> - | H27: =OFFSET('Precios finales '!AU203,0,($O$1-1)*13) -> - | I27: =OFFSET('Precios finales '!AV203,0,($O$1-1)*13) -> - | J27: =OFFSET('Precios finales '!AW203,0,($O$1-1)*13) -> - | K27: =OFFSET('Precios finales '!AX203,0,($O$1-1)*13) -> - | L27: =OFFSET('Precios finales '!AY203,0,($O$1-1)*13) -> - | M27: =OFFSET('Precios finales '!AZ203,0,($O$1-1)*13) -> - | N27: =OFFSET('Precios finales '!BA203,0,($O$1-1)*13) -> - | O27: =OFFSET('Precios finales '!BB203,0,($O$1-1)*13) -> 473.6
B28: Precio ofertado importación (€/MWh) | C28: =OFFSET('Precios finales '!AP204,0,($O$1-1)*13) -> 109.0963414 | D28: =OFFSET('Precios finales '!AQ204,0,($O$1-1)*13) -> 78.63128494 | E28: =OFFSET('Precios finales '!AR204,0,($O$1-1)*13) -> - | F28: =OFFSET('Precios finales '!AS204,0,($O$1-1)*13) -> - | G28: =OFFSET('Precios finales '!AT204,0,($O$1-1)*13) -> - | H28: =OFFSET('Precios finales '!AU204,0,($O$1-1)*13) -> - | I28: =OFFSET('Precios finales '!AV204,0,($O$1-1)*13) -> - | J28: =OFFSET('Precios finales '!AW204,0,($O$1-1)*13) -> - | K28: =OFFSET('Precios finales '!AX204,0,($O$1-1)*13) -> - | L28: =OFFSET('Precios finales '!AY204,0,($O$1-1)*13) -> - | M28: =OFFSET('Precios finales '!AZ204,0,($O$1-1)*13) -> - | N28: =OFFSET('Precios finales '!BA204,0,($O$1-1)*13) -> - | O28: =OFFSET('Precios finales '!BB204,0,($O$1-1)*13) -> 93.1015435
B29: Capacidad ofertada exportación (GWh) | C29: =OFFSET('Precios finales '!AP205,0,($O$1-1)*13) -> 255.7 | D29: =OFFSET('Precios finales '!AQ205,0,($O$1-1)*13) -> 207.15 | E29: =OFFSET('Precios finales '!AR205,0,($O$1-1)*13) -> - | F29: =OFFSET('Precios finales '!AS205,0,($O$1-1)*13) -> - | G29: =OFFSET('Precios finales '!AT205,0,($O$1-1)*13) -> - | H29: =OFFSET('Precios finales '!AU205,0,($O$1-1)*13) -> - | I29: =OFFSET('Precios finales '!AV205,0,($O$1-1)*13) -> - | J29: =OFFSET('Precios finales '!AW205,0,($O$1-1)*13) -> - | K29: =OFFSET('Precios finales '!AX205,0,($O$1-1)*13) -> - | L29: =OFFSET('Precios finales '!AY205,0,($O$1-1)*13) -> - | M29: =OFFSET('Precios finales '!AZ205,0,($O$1-1)*13) -> - | N29: =OFFSET('Precios finales '!BA205,0,($O$1-1)*13) -> - | O29: =OFFSET('Precios finales '!BB205,0,($O$1-1)*13) -> 462.85
B30: Precio ofertado exportación (€/MWh) | C30: =OFFSET('Precios finales '!AP206,0,($O$1-1)*13) -> 58.57129253 | D30: =OFFSET('Precios finales '!AQ206,0,($O$1-1)*13) -> 41.24446536 | E30: =OFFSET('Precios finales '!AR206,0,($O$1-1)*13) -> - | F30: =OFFSET('Precios finales '!AS206,0,($O$1-1)*13) -> - | G30: =OFFSET('Precios finales '!AT206,0,($O$1-1)*13) -> - | H30: =OFFSET('Precios finales '!AU206,0,($O$1-1)*13) -> - | I30: =OFFSET('Precios finales '!AV206,0,($O$1-1)*13) -> - | J30: =OFFSET('Precios finales '!AW206,0,($O$1-1)*13) -> - | K30: =OFFSET('Precios finales '!AX206,0,($O$1-1)*13) -> - | L30: =OFFSET('Precios finales '!AY206,0,($O$1-1)*13) -> - | M30: =OFFSET('Precios finales '!AZ206,0,($O$1-1)*13) -> - | N30: =OFFSET('Precios finales '!BA206,0,($O$1-1)*13) -> - | O30: =OFFSET('Precios finales '!BB206,0,($O$1-1)*13) -> 50.81661553
B31: Activados por REE
B32: Activado importación (GWh) | C32: =OFFSET('Precios finales '!AP207,0,($O$1-1)*13) -> 4.05 | D32: =OFFSET('Precios finales '!AQ207,0,($O$1-1)*13) -> 3.9 | E32: =OFFSET('Precios finales '!AR207,0,($O$1-1)*13) -> - | F32: =OFFSET('Precios finales '!AS207,0,($O$1-1)*13) -> - | G32: =OFFSET('Precios finales '!AT207,0,($O$1-1)*13) -> - | H32: =OFFSET('Precios finales '!AU207,0,($O$1-1)*13) -> - | I32: =OFFSET('Precios finales '!AV207,0,($O$1-1)*13) -> - | J32: =OFFSET('Precios finales '!AW207,0,($O$1-1)*13) -> - | K32: =OFFSET('Precios finales '!AX207,0,($O$1-1)*13) -> - | L32: =OFFSET('Precios finales '!AY207,0,($O$1-1)*13) -> - | M32: =OFFSET('Precios finales '!AZ207,0,($O$1-1)*13) -> - | N32: =OFFSET('Precios finales '!BA207,0,($O$1-1)*13) -> - | O32: =OFFSET('Precios finales '!BB207,0,($O$1-1)*13) -> 7.95
B33: Precio importación (€/MWh) | C33: =OFFSET('Precios finales '!AP208,0,($O$1-1)*13) -> 87.21975309 | D33: =OFFSET('Precios finales '!AQ208,0,($O$1-1)*13) -> 66.7024359 | E33: =OFFSET('Precios finales '!AR208,0,($O$1-1)*13) -> - | F33: =OFFSET('Precios finales '!AS208,0,($O$1-1)*13) -> - | G33: =OFFSET('Precios finales '!AT208,0,($O$1-1)*13) -> - | H33: =OFFSET('Precios finales '!AU208,0,($O$1-1)*13) -> - | I33: =OFFSET('Precios finales '!AV208,0,($O$1-1)*13) -> - | J33: =OFFSET('Precios finales '!AW208,0,($O$1-1)*13) -> - | K33: =OFFSET('Precios finales '!AX208,0,($O$1-1)*13) -> - | L33: =OFFSET('Precios finales '!AY208,0,($O$1-1)*13) -> - | M33: =OFFSET('Precios finales '!AZ208,0,($O$1-1)*13) -> - | N33: =OFFSET('Precios finales '!BA208,0,($O$1-1)*13) -> - | O33: =OFFSET('Precios finales '!BB208,0,($O$1-1)*13) -> 77.15465409
B34: Activado exportación (GWh) | C34: =OFFSET('Precios finales '!AP209,0,($O$1-1)*13) -> 9.3 | D34: =OFFSET('Precios finales '!AQ209,0,($O$1-1)*13) -> 28.6 | E34: =OFFSET('Precios finales '!AR209,0,($O$1-1)*13) -> - | F34: =OFFSET('Precios finales '!AS209,0,($O$1-1)*13) -> - | G34: =OFFSET('Precios finales '!AT209,0,($O$1-1)*13) -> - | H34: =OFFSET('Precios finales '!AU209,0,($O$1-1)*13) -> - | I34: =OFFSET('Precios finales '!AV209,0,($O$1-1)*13) -> - | J34: =OFFSET('Precios finales '!AW209,0,($O$1-1)*13) -> - | K34: =OFFSET('Precios finales '!AX209,0,($O$1-1)*13) -> - | L34: =OFFSET('Precios finales '!AY209,0,($O$1-1)*13) -> - | M34: =OFFSET('Precios finales '!AZ209,0,($O$1-1)*13) -> - | N34: =OFFSET('Precios finales '!BA209,0,($O$1-1)*13) -> - | O34: =OFFSET('Precios finales '!BB209,0,($O$1-1)*13) -> 37.9
B35: Precio exportación (€/MWh) | C35: =OFFSET('Precios finales '!AP210,0,($O$1-1)*13) -> 52.25704301 | D35: =OFFSET('Precios finales '!AQ210,0,($O$1-1)*13) -> 40.0038986 | E35: =OFFSET('Precios finales '!AR210,0,($O$1-1)*13) -> - | F35: =OFFSET('Precios finales '!AS210,0,($O$1-1)*13) -> - | G35: =OFFSET('Precios finales '!AT210,0,($O$1-1)*13) -> - | H35: =OFFSET('Precios finales '!AU210,0,($O$1-1)*13) -> - | I35: =OFFSET('Precios finales '!AV210,0,($O$1-1)*13) -> - | J35: =OFFSET('Precios finales '!AW210,0,($O$1-1)*13) -> - | K35: =OFFSET('Precios finales '!AX210,0,($O$1-1)*13) -> - | L35: =OFFSET('Precios finales '!AY210,0,($O$1-1)*13) -> - | M35: =OFFSET('Precios finales '!AZ210,0,($O$1-1)*13) -> - | N35: =OFFSET('Precios finales '!BA210,0,($O$1-1)*13) -> - | O35: =OFFSET('Precios finales '!BB210,0,($O$1-1)*13) -> 43.01060686
B37: Energía y precios ofertados por Portugal (REN) y activado por REE
B38: Capacidad ofertada importación (GWh) | C38: =OFFSET('Precios finales '!AP213,0,($O$1-1)*13) -> 179.45 | D38: =OFFSET('Precios finales '!AQ213,0,($O$1-1)*13) -> 195.75 | E38: =OFFSET('Precios finales '!AR213,0,($O$1-1)*13) -> - | F38: =OFFSET('Precios finales '!AS213,0,($O$1-1)*13) -> - | G38: =OFFSET('Precios finales '!AT213,0,($O$1-1)*13) -> - | H38: =OFFSET('Precios finales '!AU213,0,($O$1-1)*13) -> - | I38: =OFFSET('Precios finales '!AV213,0,($O$1-1)*13) -> - | J38: =OFFSET('Precios finales '!AW213,0,($O$1-1)*13) -> - | K38: =OFFSET('Precios finales '!AX213,0,($O$1-1)*13) -> - | L38: =OFFSET('Precios finales '!AY213,0,($O$1-1)*13) -> - | M38: =OFFSET('Precios finales '!AZ213,0,($O$1-1)*13) -> - | N38: =OFFSET('Precios finales '!BA213,0,($O$1-1)*13) -> - | O38: =OFFSET('Precios finales '!BB213,0,($O$1-1)*13) -> 375.2
B39: Precio ofertado importación (€/MWh) | C39: =OFFSET('Precios finales '!AP214,0,($O$1-1)*13) -> 129.3530705 | D39: =OFFSET('Precios finales '!AQ214,0,($O$1-1)*13) -> 104.3790779 | E39: =OFFSET('Precios finales '!AR214,0,($O$1-1)*13) -> - | F39: =OFFSET('Precios finales '!AS214,0,($O$1-1)*13) -> - | G39: =OFFSET('Precios finales '!AT214,0,($O$1-1)*13) -> - | H39: =OFFSET('Precios finales '!AU214,0,($O$1-1)*13) -> - | I39: =OFFSET('Precios finales '!AV214,0,($O$1-1)*13) -> - | J39: =OFFSET('Precios finales '!AW214,0,($O$1-1)*13) -> - | K39: =OFFSET('Precios finales '!AX214,0,($O$1-1)*13) -> - | L39: =OFFSET('Precios finales '!AY214,0,($O$1-1)*13) -> - | M39: =OFFSET('Precios finales '!AZ214,0,($O$1-1)*13) -> - | N39: =OFFSET('Precios finales '!BA214,0,($O$1-1)*13) -> - | O39: =OFFSET('Precios finales '!BB214,0,($O$1-1)*13) -> 116.3235954
B40: Capacidad ofertada exportación (GWh) | C40: =OFFSET('Precios finales '!AP215,0,($O$1-1)*13) -> 314.05 | D40: =OFFSET('Precios finales '!AQ215,0,($O$1-1)*13) -> 265.7 | E40: =OFFSET('Precios finales '!AR215,0,($O$1-1)*13) -> - | F40: =OFFSET('Precios finales '!AS215,0,($O$1-1)*13) -> - | G40: =OFFSET('Precios finales '!AT215,0,($O$1-1)*13) -> - | H40: =OFFSET('Precios finales '!AU215,0,($O$1-1)*13) -> - | I40: =OFFSET('Precios finales '!AV215,0,($O$1-1)*13) -> - | J40: =OFFSET('Precios finales '!AW215,0,($O$1-1)*13) -> - | K40: =OFFSET('Precios finales '!AX215,0,($O$1-1)*13) -> - | L40: =OFFSET('Precios finales '!AY215,0,($O$1-1)*13) -> - | M40: =OFFSET('Precios finales '!AZ215,0,($O$1-1)*13) -> - | N40: =OFFSET('Precios finales '!BA215,0,($O$1-1)*13) -> - | O40: =OFFSET('Precios finales '!BB215,0,($O$1-1)*13) -> 579.75
B41: Precio ofertado exportación (€/MWh) | C41: =OFFSET('Precios finales '!AP216,0,($O$1-1)*13) -> 42.41919917 | D41: =OFFSET('Precios finales '!AQ216,0,($O$1-1)*13) -> 27.47267783 | E41: =OFFSET('Precios finales '!AR216,0,($O$1-1)*13) -> - | F41: =OFFSET('Precios finales '!AS216,0,($O$1-1)*13) -> - | G41: =OFFSET('Precios finales '!AT216,0,($O$1-1)*13) -> - | H41: =OFFSET('Precios finales '!AU216,0,($O$1-1)*13) -> - | I41: =OFFSET('Precios finales '!AV216,0,($O$1-1)*13) -> - | J41: =OFFSET('Precios finales '!AW216,0,($O$1-1)*13) -> - | K41: =OFFSET('Precios finales '!AX216,0,($O$1-1)*13) -> - | L41: =OFFSET('Precios finales '!AY216,0,($O$1-1)*13) -> - | M41: =OFFSET('Precios finales '!AZ216,0,($O$1-1)*13) -> - | N41: =OFFSET('Precios finales '!BA216,0,($O$1-1)*13) -> - | O41: =OFFSET('Precios finales '!BB216,0,($O$1-1)*13) -> 35.56919362
B42: Activados por REE
B43: Activado importación (GWh) | C43: =OFFSET('Precios finales '!AP217,0,($O$1-1)*13) -> 1.3 | D43: =OFFSET('Precios finales '!AQ217,0,($O$1-1)*13) -> 1.3 | E43: =OFFSET('Precios finales '!AR217,0,($O$1-1)*13) -> - | F43: =OFFSET('Precios finales '!AS217,0,($O$1-1)*13) -> - | G43: =OFFSET('Precios finales '!AT217,0,($O$1-1)*13) -> - | H43: =OFFSET('Precios finales '!AU217,0,($O$1-1)*13) -> - | I43: =OFFSET('Precios finales '!AV217,0,($O$1-1)*13) -> - | J43: =OFFSET('Precios finales '!AW217,0,($O$1-1)*13) -> - | K43: =OFFSET('Precios finales '!AX217,0,($O$1-1)*13) -> - | L43: =OFFSET('Precios finales '!AY217,0,($O$1-1)*13) -> - | M43: =OFFSET('Precios finales '!AZ217,0,($O$1-1)*13) -> - | N43: =OFFSET('Precios finales '!BA217,0,($O$1-1)*13) -> - | O43: =OFFSET('Precios finales '!BB217,0,($O$1-1)*13) -> 2.6
B44: Precio importación (€/MWh) | C44: =OFFSET('Precios finales '!AP218,0,($O$1-1)*13) -> 75.15692308 | D44: =OFFSET('Precios finales '!AQ218,0,($O$1-1)*13) -> 51.56230769 | E44: =OFFSET('Precios finales '!AR218,0,($O$1-1)*13) -> - | F44: =OFFSET('Precios finales '!AS218,0,($O$1-1)*13) -> - | G44: =OFFSET('Precios finales '!AT218,0,($O$1-1)*13) -> - | H44: =OFFSET('Precios finales '!AU218,0,($O$1-1)*13) -> - | I44: =OFFSET('Precios finales '!AV218,0,($O$1-1)*13) -> - | J44: =OFFSET('Precios finales '!AW218,0,($O$1-1)*13) -> - | K44: =OFFSET('Precios finales '!AX218,0,($O$1-1)*13) -> - | L44: =OFFSET('Precios finales '!AY218,0,($O$1-1)*13) -> - | M44: =OFFSET('Precios finales '!AZ218,0,($O$1-1)*13) -> - | N44: =OFFSET('Precios finales '!BA218,0,($O$1-1)*13) -> - | O44: =OFFSET('Precios finales '!BB218,0,($O$1-1)*13) -> 63.35961538
B45: Activado exportación (GWh) | C45: =OFFSET('Precios finales '!AP219,0,($O$1-1)*13) -> 9 | D45: =OFFSET('Precios finales '!AQ219,0,($O$1-1)*13) -> 10.95 | E45: =OFFSET('Precios finales '!AR219,0,($O$1-1)*13) -> - | F45: =OFFSET('Precios finales '!AS219,0,($O$1-1)*13) -> - | G45: =OFFSET('Precios finales '!AT219,0,($O$1-1)*13) -> - | H45: =OFFSET('Precios finales '!AU219,0,($O$1-1)*13) -> - | I45: =OFFSET('Precios finales '!AV219,0,($O$1-1)*13) -> - | J45: =OFFSET('Precios finales '!AW219,0,($O$1-1)*13) -> - | K45: =OFFSET('Precios finales '!AX219,0,($O$1-1)*13) -> - | L45: =OFFSET('Precios finales '!AY219,0,($O$1-1)*13) -> - | M45: =OFFSET('Precios finales '!AZ219,0,($O$1-1)*13) -> - | N45: =OFFSET('Precios finales '!BA219,0,($O$1-1)*13) -> - | O45: =OFFSET('Precios finales '!BB219,0,($O$1-1)*13) -> 19.95
B46: Precio exportación (€/MWh) | C46: =OFFSET('Precios finales '!AP220,0,($O$1-1)*13) -> 53.43472222 | D46: =OFFSET('Precios finales '!AQ220,0,($O$1-1)*13) -> 41.40885845 | E46: =OFFSET('Precios finales '!AR220,0,($O$1-1)*13) -> - | F46: =OFFSET('Precios finales '!AS220,0,($O$1-1)*13) -> - | G46: =OFFSET('Precios finales '!AT220,0,($O$1-1)*13) -> - | H46: =OFFSET('Precios finales '!AU220,0,($O$1-1)*13) -> - | I46: =OFFSET('Precios finales '!AV220,0,($O$1-1)*13) -> - | J46: =OFFSET('Precios finales '!AW220,0,($O$1-1)*13) -> - | K46: =OFFSET('Precios finales '!AX220,0,($O$1-1)*13) -> - | L46: =OFFSET('Precios finales '!AY220,0,($O$1-1)*13) -> - | M46: =OFFSET('Precios finales '!AZ220,0,($O$1-1)*13) -> - | N46: =OFFSET('Precios finales '!BA220,0,($O$1-1)*13) -> - | O46: =OFFSET('Precios finales '!BB220,0,($O$1-1)*13) -> 46.83406015

Sheet BALIT anual
O1: 1
I4: Concepto
I5: Horizonte temporal
I6: Periodo
C8: =OFFSET('Precios finales '!F21,0,($O$1-1)*10) -> 2010 | D8: =OFFSET('Precios finales '!G21,0,($O$1-1)*10) -> 2011 | E8: =OFFSET('Precios finales '!H21,0,($O$1-1)*10) -> 2012 | F8: =OFFSET('Precios finales '!I21,0,($O$1-1)*10) -> 2013 | G8: =OFFSET('Precios finales '!J21,0,($O$1-1)*10) -> 2014 | H8: =OFFSET('Precios finales '!K21,0,($O$1-1)*10) -> 2015 | I8: =OFFSET('Precios finales '!L21,0,($O$1-1)*10) -> 2016 | J8: =OFFSET('Precios finales '!M21,0,($O$1-1)*10) -> 2017 | K8: =OFFSET('Precios finales '!N21,0,($O$1-1)*10) -> 2018 | L8: =OFFSET('Precios finales '!O21,0,($O$1-1)*10) -> 2019
C9: =OFFSET('Precios finales '!C22,0,($O$1-1)*10) -> 0 | D9: =OFFSET('Precios finales '!D22,0,($O$1-1)*10) -> 0 | E9: =OFFSET('Precios finales '!E22,0,($O$1-1)*10) -> 0 | F9: =OFFSET('Precios finales '!F22,0,($O$1-1)*10) -> 38.44 | G9: =OFFSET('Precios finales '!G22,0,($O$1-1)*10) -> 50.91 | H9: =OFFSET('Precios finales '!H22,0,($O$1-1)*10) -> 48.84 | I9: =OFFSET('Precios finales '!I22,0,($O$1-1)*10) -> 46.17 | J9: =OFFSET('Precios finales '!J22,0,($O$1-1)*10) -> 43.42 | K9: =OFFSET('Precios finales '!K22,0,($O$1-1)*10) -> 51.67 | L9: =OFFSET('Precios finales '!L22,0,($O$1-1)*10) -> 40.62
B10: Energía y precios ofertados desde el sistema eléctrico español y activado por operadores externos
B11: Ofertada por el sistema eléctrico español
B12: Capacidad ofertada importación (GWh) | C12: =OFFSET('Precios finales '!F224,0,($O$1-1)*10) -> - | D12: =OFFSET('Precios finales '!G224,0,($O$1-1)*10) -> - | E12: =OFFSET('Precios finales '!H224,0,($O$1-1)*10) -> - | F12: =OFFSET('Precios finales '!I224,0,($O$1-1)*10) -> - | G12: =OFFSET('Precios finales '!J224,0,($O$1-1)*10) -> 1657.75 | H12: =OFFSET('Precios finales '!K224,0,($O$1-1)*10) -> 2941.1 | I12: =OFFSET('Precios finales '!L224,0,($O$1-1)*10) -> 2879.85 | J12: =OFFSET('Precios finales '!M224,0,($O$1-1)*10) -> 606.65 | K12: =OFFSET('Precios finales '!N224,0,($O$1-1)*10) -> - | L12: =OFFSET('Precios finales '!O224,0,($O$1-1)*10) -> -
B13: Precio ofertado importación (€/MWh) | C13: =OFFSET('Precios finales '!F225,0,($O$1-1)*10) -> - | D13: =OFFSET('Precios finales '!G225,0,($O$1-1)*10) -> - | E13: =OFFSET('Precios finales '!H225,0,($O$1-1)*10) -> - | F13: =OFFSET('Precios finales '!I225,0,($O$1-1)*10) -> - | G13: =OFFSET('Precios finales '!J225,0,($O$1-1)*10) -> 4.090820088 | H13: =OFFSET('Precios finales '!K225,0,($O$1-1)*10) -> 11.00504794 | I13: =OFFSET('Precios finales '!L225,0,($O$1-1)*10) -> 11.02841346 | J13: =OFFSET('Precios finales '!M225,0,($O$1-1)*10) -> 17.78770461 | K13: =OFFSET('Precios finales '!N225,0,($O$1-1)*10) -> - | L13: =OFFSET('Precios finales '!O225,0,($O$1-1)*10) -> -
B14: Capacidad ofertada exportación (GWh) | C14: =OFFSET('Precios finales '!F226,0,($O$1-1)*10) -> - | D14: =OFFSET('Precios finales '!G226,0,($O$1-1)*10) -> - | E14: =OFFSET('Precios finales '!H226,0,($O$1-1)*10) -> - | F14: =OFFSET('Precios finales '!I226,0,($O$1-1)*10) -> - | G14: =OFFSET('Precios finales '!J226,0,($O$1-1)*10) -> 2024.3 | H14: =OFFSET('Precios finales '!K226,0,($O$1-1)*10) -> 3670.35 | I14: =OFFSET('Precios finales '!L226,0,($O$1-1)*10) -> 3764.05 | J14: =OFFSET('Precios finales '!M226,0,($O$1-1)*10) -> 597.3 | K14: =OFFSET('Precios finales '!N226,0,($O$1-1)*10) -> - | L14: =OFFSET('Precios finales '!O226,0,($O$1-1)*10) -> -
B15: Precio ofertado exportación (€/MWh) | C15: =OFFSET('Precios finales '!F227,0,($O$1-1)*10) -> - | D15: =OFFSET('Precios finales '!G227,0,($O$1-1)*10) -> - | E15: =OFFSET('Precios finales '!H227,0,($O$1-1)*10) -> - | F15: =OFFSET('Precios finales '!I227,0,($O$1-1)*10) -> - | G15: =OFFSET('Precios finales '!J227,0,($O$1-1)*10) -> 81.96760806 | H15: =OFFSET('Precios finales '!K227,0,($O$1-1)*10) -> 82.68534813 | I15: =OFFSET('Precios finales '!L227,0,($O$1-1)*10) -> 64.80871986 | J15: =OFFSET('Precios finales '!M227,0,($O$1-1)*10) -> 92.19943747 | K15: =OFFSET('Precios finales '!N227,0,($O$1-1)*10) -> - | L15: =OFFSET('Precios finales '!O227,0,($O$1-1)*10) -> -
B16: Activados por operadores externos (RTE, REN)
B17: Activado Francia importación (GWh) | C17: =OFFSET('Precios finales '!F228,0,($O$1-1)*10) -> - | D17: =OFFSET('Precios finales '!G228,0,($O$1-1)*10) -> - | E17: =OFFSET('Precios finales '!H228,0,($O$1-1)*10) -> - | F17: =OFFSET('Precios finales '!I228,0,($O$1-1)*10) -> - | G17: =OFFSET('Precios finales '!J228,0,($O$1-1)*10) -> 0.2 | H17: =OFFSET('Precios finales '!K228,0,($O$1-1)*10) -> - | I17: =OFFSET('Precios finales '!L228,0,($O$1-1)*10) -> 14.75 | J17: =OFFSET('Precios finales '!M228,0,($O$1-1)*10) -> 5.65 | K17: =OFFSET('Precios finales '!N228,0,($O$1-1)*10) -> - | L17: =OFFSET('Precios finales '!O228,0,($O$1-1)*10) -> -
B18: Precio Francia importación (€/MWh) | C18: =OFFSET('Precios finales '!F229,0,($O$1-1)*10) -> - | D18: =OFFSET('Precios finales '!G229,0,($O$1-1)*10) -> - | E18: =OFFSET('Precios finales '!H229,0,($O$1-1)*10) -> - | F18: =OFFSET('Precios finales '!I229,0,($O$1-1)*10) -> - | G18: =OFFSET('Precios finales '!J229,0,($O$1-1)*10) -> 21.6375 | H18: =OFFSET('Precios finales '!K229,0,($O$1-1)*10) -> - | I18: =OFFSET('Precios finales '!L229,0,($O$1-1)*10) -> 40.8059661 | J18: =OFFSET('Precios finales '!M229,0,($O$1-1)*10) -> 38.49070796 | K18: =OFFSET('Precios finales '!N229,0,($O$1-1)*10) -> - | L18: =OFFSET('Precios finales '!O229,0,($O$1-1)*10) -> -
B19: Activado Portugal importación (GWh) | C19: =OFFSET('Precios finales '!F232,0,($O$1-1)*10) -> - | D19: =OFFSET('Precios finales '!G232,0,($O$1-1)*10) -> - | E19: =OFFSET('Precios finales '!H232,0,($O$1-1)*10) -> - | F19: =OFFSET('Precios finales '!I232,0,($O$1-1)*10) -> - | G19: =OFFSET('Precios finales '!J232,0,($O$1-1)*10) -> 0.25 | H19: =OFFSET('Precios finales '!K232,0,($O$1-1)*10) -> 6 | I19: =OFFSET('Precios finales '!L232,0,($O$1-1)*10) -> 8.7 | J19: =OFFSET('Precios finales '!M232,0,($O$1-1)*10) -> 2.15 | K19: =OFFSET('Precios finales '!N232,0,($O$1-1)*10) -> - | L19: =OFFSET('Precios finales '!O232,0,($O$1-1)*10) -> -
B20: Precio Portugal importación (€/MWh) | C20: =OFFSET('Precios finales '!F233,0,($O$1-1)*10) -> - | D20: =OFFSET('Precios finales '!G233,0,($O$1-1)*10) -> - | E20: =OFFSET('Precios finales '!H233,0,($O$1-1)*10) -> - | F20: =OFFSET('Precios finales '!I233,0,($O$1-1)*10) -> - | G20: =OFFSET('Precios finales '!J233,0,($O$1-1)*10) -> 42.778 | H20: =OFFSET('Precios finales '!K233,0,($O$1-1)*10) -> 41.51891667 | I20: =OFFSET('Precios finales '!L233,0,($O$1-1)*10) -> 40.38086207 | J20: =OFFSET('Precios finales '!M233,0,($O$1-1)*10) -> 30.56209302 | K20: =OFFSET('Precios finales '!N233,0,($O$1-1)*10) -> - | L20: =OFFSET('Precios finales '!O233,0,($O$1-1)*10) -> -
B21: Activado Francia exportación (GWh) | C21: =OFFSET('Precios finales '!F230,0,($O$1-1)*10) -> - | D21: =OFFSET('Precios finales '!G230,0,($O$1-1)*10) -> - | E21: =OFFSET('Precios finales '!H230,0,($O$1-1)*10) -> - | F21: =OFFSET('Precios finales '!I230,0,($O$1-1)*10) -> - | G21: =OFFSET('Precios finales '!J230,0,($O$1-1)*10) -> 10.5 | H21: =OFFSET('Precios finales '!K230,0,($O$1-1)*10) -> 84.2 | I21: =OFFSET('Precios finales '!L230,0,($O$1-1)*10) -> 139.45 | J21: =OFFSET('Precios finales '!M230,0,($O$1-1)*10) -> 25.4 | K21: =OFFSET('Precios finales '!N230,0,($O$1-1)*10) -> - | L21: =OFFSET('Precios finales '!O230,0,($O$1-1)*10) -> -
B22: Precio Francia exportación (€/MWh) | C22: =OFFSET('Precios finales '!F231,0,($O$1-1)*10) -> - | D22: =OFFSET('Precios finales '!G231,0,($O$1-1)*10) -> - | E22: =OFFSET('Precios finales '!H231,0,($O$1-1)*10) -> - | F22: =OFFSET('Precios finales '!I231,0,($O$1-1)*10) -> - | G22: =OFFSET('Precios finales '!J231,0,($O$1-1)*10) -> 79.30485714 | H22: =OFFSET('Precios finales '!K231,0,($O$1-1)*10) -> 77.87075416 | I22: =OFFSET('Precios finales '!L231,0,($O$1-1)*10) -> 58.63188598 | J22: =OFFSET('Precios finales '!M231,0,($O$1-1)*10) -> 88.83787402 | K22: =OFFSET('Precios finales '!N231,0,($O$1-1)*10) -> - | L22: =OFFSET('Precios finales '!O231,0,($O$1-1)*10) -> -
B23: Activado Portugal exportación (GWh) | C23: =OFFSET('Precios finales '!F234,0,($O$1-1)*10) -> - | D23: =OFFSET('Precios finales '!G234,0,($O$1-1)*10) -> - | E23: =OFFSET('Precios finales '!H234,0,($O$1-1)*10) -> - | F23: =OFFSET('Precios finales '!I234,0,($O$1-1)*10) -> - | G23: =OFFSET('Precios finales '!J234,0,($O$1-1)*10) -> 42.2 | H23: =OFFSET('Precios finales '!K234,0,($O$1-1)*10) -> 61.7 | I23: =OFFSET('Precios finales '!L234,0,($O$1-1)*10) -> 99.3 | J23: =OFFSET('Precios finales '!M234,0,($O$1-1)*10) -> 24.8 | K23: =OFFSET('Precios finales '!N234,0,($O$1-1)*10) -> - | L23: =OFFSET('Precios finales '!O234,0,($O$1-1)*10) -> -
B24: Precio Portugal exportación (€/MWh) | C24: =OFFSET('Precios finales '!F235,0,($O$1-1)*10) -> - | D24: =OFFSET('Precios finales '!G235,0,($O$1-1)*10) -> - | E24: =OFFSET('Precios finales '!H235,0,($O$1-1)*10) -> - | F24: =OFFSET('Precios finales '!I235,0,($O$1-1)*10) -> - | G24: =OFFSET('Precios finales '!J235,0,($O$1-1)*10) -> 72.58590047 | H24: =OFFSET('Precios finales '!K235,0,($O$1-1)*10) -> 71.62548622 | I24: =OFFSET('Precios finales '!L235,0,($O$1-1)*10) -> 56.51252266 | J24: =OFFSET('Precios finales '!M235,0,($O$1-1)*10) -> 94.26856855 | K24: =OFFSET('Precios finales '!N235,0,($O$1-1)*10) -> - | L24: =OFFSET('Precios finales '!O235,0,($O$1-1)*10) -> -
B26: Energía y precios ofertados por Francia (RTE) y activado por REE
B27: Capacidad ofertada importación (GWh) | C27: =OFFSET('Precios finales '!F238,0,($O$1-1)*10) -> - | D27: =OFFSET('Precios finales '!G238,0,($O$1-1)*10) -> - | E27: =OFFSET('Precios finales '!H238,0,($O$1-1)*10) -> - | F27: =OFFSET('Precios finales '!I238,0,($O$1-1)*10) -> - | G27: =OFFSET('Precios finales '!J238,0,($O$1-1)*10) -> 1981.85 | H27: =OFFSET('Precios finales '!K238,0,($O$1-1)*10) -> 2946.85 | I27: =OFFSET('Precios finales '!L238,0,($O$1-1)*10) -> 2510.45 | J27: =OFFSET('Precios finales '!M238,0,($O$1-1)*10) -> 473.6 | K27: =OFFSET('Precios finales '!N238,0,($O$1-1)*10) -> - | L27: =OFFSET('Precios finales '!O238,0,($O$1-1)*10) -> -
B28: Precio ofertado importación (€/MWh) | C28: =OFFSET('Precios finales '!F239,0,($O$1-1)*10) -> - | D28: =OFFSET('Precios finales '!G239,0,($O$1-1)*10) -> - | E28: =OFFSET('Precios finales '!H239,0,($O$1-1)*10) -> - | F28: =OFFSET('Precios finales '!I239,0,($O$1-1)*10) -> - | G28: =OFFSET('Precios finales '!J239,0,($O$1-1)*10) -> 85.64929334 | H28: =OFFSET('Precios finales '!K239,0,($O$1-1)*10) -> 96.71958108 | I28: =OFFSET('Precios finales '!L239,0,($O$1-1)*10) -> 135.4259023 | J28: =OFFSET('Precios finales '!M239,0,($O$1-1)*10) -> 93.1015435 | K28: =OFFSET('Precios finales '!N239,0,($O$1-1)*10) -> - | L28: =OFFSET('Precios finales '!O239,0,($O$1-1)*10) -> -
B29: Capacidad ofertada exportación (GWh) | C29: =OFFSET('Precios finales '!F240,0,($O$1-1)*10) -> - | D29: =OFFSET('Precios finales '!G240,0,($O$1-1)*10) -> - | E29: =OFFSET('Precios finales '!H240,0,($O$1-1)*10) -> - | F29: =OFFSET('Precios finales '!I240,0,($O$1-1)*10) -> - | G29: =OFFSET('Precios finales '!J240,0,($O$1-1)*10) -> 1669.65 | H29: =OFFSET('Precios finales '!K240,0,($O$1-1)*10) -> 2658.2 | I29: =OFFSET('Precios finales '!L240,0,($O$1-1)*10) -> 1890.55 | J29: =OFFSET('Precios finales '!M240,0,($O$1-1)*10) -> 462.85 | K29: =OFFSET('Precios finales '!N240,0,($O$1-1)*10) -> - | L29: =OFFSET('Precios finales '!O240,0,($O$1-1)*10) -> -
B30: Precio ofertado exportación (€/MWh) | C30: =OFFSET('Precios finales '!F241,0,($O$1-1)*10) -> - | D30: =OFFSET('Precios finales '!G241,0,($O$1-1)*10) -> - | E30: =OFFSET('Precios finales '!H241,0,($O$1-1)*10) -> - | F30: =OFFSET('Precios finales '!I241,0,($O$1-1)*10) -> - | G30: =OFFSET('Precios finales '!J241,0,($O$1-1)*10) -> 26.90931932 | H30: =OFFSET('Precios finales '!K241,0,($O$1-1)*10) -> 30.48865454 | I30: =OFFSET('Precios finales '!L241,0,($O$1-1)*10) -> 29.55691333 | J30: =OFFSET('Precios finales '!M241,0,($O$1-1)*10) -> 50.81661553 | K30: =OFFSET('Precios finales '!N241,0,($O$1-1)*10) -> - | L30: =OFFSET('Precios finales '!O241,0,($O$1-1)*10) -> -
B31: Activados por REE
B32: Activado importación (GWh) | C32: =OFFSET('Precios finales '!F242,0,($O$1-1)*10) -> - | D32: =OFFSET('Precios finales '!G242,0,($O$1-1)*10) -> - | E32: =OFFSET('Precios finales '!H242,0,($O$1-1)*10) -> - | F32: =OFFSET('Precios finales '!I242,0,($O$1-1)*10) -> - | G32: =OFFSET('Precios finales '!J242,0,($O$1-1)*10) -> 2.7 | H32: =OFFSET('Precios finales '!K242,0,($O$1-1)*10) -> 15.65 | I32: =OFFSET('Precios finales '!L242,0,($O$1-1)*10) -> 6.05 | J32: =OFFSET('Precios finales '!M242,0,($O$1-1)*10) -> 7.95 | K32: =OFFSET('Precios finales '!N242,0,($O$1-1)*10) -> - | L32: =OFFSET('Precios finales '!O242,0,($O$1-1)*10) -> -
B33: Precio importación (€/MWh) | C33: =OFFSET('Precios finales '!F243,0,($O$1-1)*10) -> - | D33: =OFFSET('Precios finales '!G243,0,($O$1-1)*10) -> - | E33: =OFFSET('Precios finales '!H243,0,($O$1-1)*10) -> - | F33: =OFFSET('Precios finales '!I243,0,($O$1-1)*10) -> - | G33: =OFFSET('Precios finales '!J243,0,($O$1-1)*10) -> 45.15796296 | H33: =OFFSET('Precios finales '!K243,0,($O$1-1)*10) -> 54.79351438 | I33: =OFFSET('Precios finales '!L243,0,($O$1-1)*10) -> 73.92603306 | J33: =OFFSET('Precios finales '!M243,0,($O$1-1)*10) -> 77.15465409 | K33: =OFFSET('Precios finales '!N243,0,($O$1-1)*10) -> - | L33: =OFFSET('Precios finales '!O243,0,($O$1-1)*10) -> -
B34: Activado exportación (GWh) | C34: =OFFSET('Precios finales '!F244,0,($O$1-1)*10) -> - | D34: =OFFSET('Precios finales '!G244,0,($O$1-1)*10) -> - | E34: =OFFSET('Precios finales '!H244,0,($O$1-1)*10) -> - | F34: =OFFSET('Precios finales '!I244,0,($O$1-1)*10) -> - | G34: =OFFSET('Precios finales '!J244,0,($O$1-1)*10) -> 6.5 | H34: =OFFSET('Precios finales '!K244,0,($O$1-1)*10) -> 43.95 | I34: =OFFSET('Precios finales '!L244,0,($O$1-1)*10) -> 79.65 | J34: =OFFSET('Precios finales '!M244,0,($O$1-1)*10) -> 37.9 | K34: =OFFSET('Precios finales '!N244,0,($O$1-1)*10) -> - | L34: =OFFSET('Precios finales '!O244,0,($O$1-1)*10) -> -
B35: Precio exportación (€/MWh) | C35: =OFFSET('Precios finales '!F245,0,($O$1-1)*10) -> - | D35: =OFFSET('Precios finales '!G245,0,($O$1-1)*10) -> - | E35: =OFFSET('Precios finales '!H245,0,($O$1-1)*10) -> - | F35: =OFFSET('Precios finales '!I245,0,($O$1-1)*10) -> - | G35: =OFFSET('Precios finales '!J245,0,($O$1-1)*10) -> 26.92707692 | H35: =OFFSET('Precios finales '!K245,0,($O$1-1)*10) -> 36.13797497 | I35: =OFFSET('Precios finales '!L245,0,($O$1-1)*10) -> 29.21696798 | J35: =OFFSET('Precios finales '!M245,0,($O$1-1)*10) -> 43.01060686 | K35: =OFFSET('Precios finales '!N245,0,($O$1-1)*10) -> - | L35: =OFFSET('Precios finales '!O245,0,($O$1-1)*10) -> -
B37: Energía y precios ofertados por Portugal (REN) y activado por REE
B38: Capacidad ofertada importación (GWh) | C38: =OFFSET('Precios finales '!F248,0,($O$1-1)*10) -> - | D38: =OFFSET('Precios finales '!G248,0,($O$1-1)*10) -> - | E38: =OFFSET('Precios finales '!H248,0,($O$1-1)*10) -> - | F38: =OFFSET('Precios finales '!I248,0,($O$1-1)*10) -> - | G38: =OFFSET('Precios finales '!J248,0,($O$1-1)*10) -> 1541.6 | H38: =OFFSET('Precios finales '!K248,0,($O$1-1)*10) -> 3536.7 | I38: =OFFSET('Precios finales '!L248,0,($O$1-1)*10) -> 2671.15 | J38: =OFFSET('Precios finales '!M248,0,($O$1-1)*10) -> 375.2 | K38: =OFFSET('Precios finales '!N248,0,($O$1-1)*10) -> - | L38: =OFFSET('Precios finales '!O248,0,($O$1-1)*10) -> -
B39: Precio ofertado importación (€/MWh) | C39: =OFFSET('Precios finales '!F249,0,($O$1-1)*10) -> - | D39: =OFFSET('Precios finales '!G249,0,($O$1-1)*10) -> - | E39: =OFFSET('Precios finales '!H249,0,($O$1-1)*10) -> - | F39: =OFFSET('Precios finales '!I249,0,($O$1-1)*10) -> - | G39: =OFFSET('Precios finales '!J249,0,($O$1-1)*10) -> 106.7179158 | H39: =OFFSET('Precios finales '!K249,0,($O$1-1)*10) -> 91.13620395 | I39: =OFFSET('Precios finales '!L249,0,($O$1-1)*10) -> 85.73337008 | J39: =OFFSET('Precios finales '!M249,0,($O$1-1)*10) -> 116.3235954 | K39: =OFFSET('Precios finales '!N249,0,($O$1-1)*10) -> - | L39: =OFFSET('Precios finales '!O249,0,($O$1-1)*10) -> -
B40: Capacidad ofertada exportación (GWh) | C40: =OFFSET('Precios finales '!F250,0,($O$1-1)*10) -> - | D40: =OFFSET('Precios finales '!G250,0,($O$1-1)*10) -> - | E40: =OFFSET('Precios finales '!H250,0,($O$1-1)*10) -> - | F40: =OFFSET('Precios finales '!I250,0,($O$1-1)*10) -> - | G40: =OFFSET('Precios finales '!J250,0,($O$1-1)*10) -> 1684.65 | H40: =OFFSET('Precios finales '!K250,0,($O$1-1)*10) -> 3654.25 | I40: =OFFSET('Precios finales '!L250,0,($O$1-1)*10) -> 3498.1 | J40: =OFFSET('Precios finales '!M250,0,($O$1-1)*10) -> 579.75 | K40: =OFFSET('Precios finales '!N250,0,($O$1-1)*10) -> - | L40: =OFFSET('Precios finales '!O250,0,($O$1-1)*10) -> -
B41: Precio ofertado exportación (€/MWh) | C41: =OFFSET('Precios finales '!F251,0,($O$1-1)*10) -> - | D41: =OFFSET('Precios finales '!G251,0,($O$1-1)*10) -> - | E41: =OFFSET('Precios finales '!H251,0,($O$1-1)*10) -> - | F41: =OFFSET('Precios finales '!I251,0,($O$1-1)*10) -> - | G41: =OFFSET('Precios finales '!J251,0,($O$1-1)*10) -> 17.32526756 | H41: =OFFSET('Precios finales '!K251,0,($O$1-1)*10) -> 19.89837792 | I41: =OFFSET('Precios finales '!L251,0,($O$1-1)*10) -> 15.53919199 | J41: =OFFSET('Precios finales '!M251,0,($O$1-1)*10) -> 35.56919362 | K41: =OFFSET('Precios finales '!N251,0,($O$1-1)*10) -> - | L41: =OFFSET('Precios finales '!O251,0,($O$1-1)*10) -> -
B42: Activados por REE
B43: Activado importación (GWh) | C43: =OFFSET('Precios finales '!F252,0,($O$1-1)*10) -> - | D43: =OFFSET('Precios finales '!G252,0,($O$1-1)*10) -> - | E43: =OFFSET('Precios finales '!H252,0,($O$1-1)*10) -> - | F43: =OFFSET('Precios finales '!I252,0,($O$1-1)*10) -> - | G43: =OFFSET('Precios finales '!J252,0,($O$1-1)*10) -> 4.6 | H43: =OFFSET('Precios finales '!K252,0,($O$1-1)*10) -> 31.35 | I43: =OFFSET('Precios finales '!L252,0,($O$1-1)*10) -> 28.7 | J43: =OFFSET('Precios finales '!M252,0,($O$1-1)*10) -> 2.6 | K43: =OFFSET('Precios finales '!N252,0,($O$1-1)*10) -> - | L43: =OFFSET('Precios finales '!O252,0,($O$1-1)*10) -> -
B44: Precio importación (€/MWh) | C44: =OFFSET('Precios finales '!F253,0,($O$1-1)*10) -> - | D44: =OFFSET('Precios finales '!G253,0,($O$1-1)*10) -> - | E44: =OFFSET('Precios finales '!H253,0,($O$1-1)*10) -> - | F44: =OFFSET('Precios finales '!I253,0,($O$1-1)*10) -> - | G44: =OFFSET('Precios finales '!J253,0,($O$1-1)*10) -> 64.2273913 | H44: =OFFSET('Precios finales '!K253,0,($O$1-1)*10) -> 61.78365231 | I44: =OFFSET('Precios finales '!L253,0,($O$1-1)*10) -> 46.8858885 | J44: =OFFSET('Precios finales '!M253,0,($O$1-1)*10) -> 63.35961538 | K44: =OFFSET('Precios finales '!N253,0,($O$1-1)*10) -> - | L44: =OFFSET('Precios finales '!O253,0,($O$1-1)*10) -> -
B45: Activado exportación (GWh) | C45: =OFFSET('Precios finales '!F254,0,($O$1-1)*10) -> - | D45: =OFFSET('Precios finales '!G254,0,($O$1-1)*10) -> - | E45: =OFFSET('Precios finales '!H254,0,($O$1-1)*10) -> - | F45: =OFFSET('Precios finales '!I254,0,($O$1-1)*10) -> - | G45: =OFFSET('Precios finales '!J254,0,($O$1-1)*10) -> 6 | H45: =OFFSET('Precios finales '!K254,0,($O$1-1)*10) -> 47.9 | I45: =OFFSET('Precios finales '!L254,0,($O$1-1)*10) -> 77.75 | J45: =OFFSET('Precios finales '!M254,0,($O$1-1)*10) -> 19.95 | K45: =OFFSET('Precios finales '!N254,0,($O$1-1)*10) -> - | L45: =OFFSET('Precios finales '!O254,0,($O$1-1)*10) -> -
B46: Precio exportación (€/MWh) | C46: =OFFSET('Precios finales '!F255,0,($O$1-1)*10) -> - | D46: =OFFSET('Precios finales '!G255,0,($O$1-1)*10) -> - | E46: =OFFSET('Precios finales '!H255,0,($O$1-1)*10) -> - | F46: =OFFSET('Precios finales '!I255,0,($O$1-1)*10) -> - | G46: =OFFSET('Precios finales '!J255,0,($O$1-1)*10) -> 20.99633333 | H46: =OFFSET('Precios finales '!K255,0,($O$1-1)*10) -> 19.89741127 | I46: =OFFSET('Precios finales '!L255,0,($O$1-1)*10) -> 16.87755627 | J46: =OFFSET('Precios finales '!M255,0,($O$1-1)*10) -> 46.83406015 | K46: =OFFSET('Precios finales '!N255,0,($O$1-1)*10) -> - | L46: =OFFSET('Precios finales '!O255,0,($O$1-1)*10) -> -

Sheet Precios finales (hidden)
B2: Componentes del precio final mensual | C2: 2007-01-01 | D2: 2007-02-01 | E2: 2007-03-01 | F2: 2007-04-01 | G2: 2007-05-01 | H2: 2007-06-01 | I2: 2007-07-01 | J2: 2007-08-01 | K2: 2007-09-01 | L2: 2007-10-01 | M2: 2007-11-01 | N2: 2007-12-01 | O2: 2007 | P2: 2008-01-01 | Q2: 2008-02-01 | R2: 2008-03-01 | S2: 2008-04-01 | T2: 2008-05-01 | U2: 2008-06-01 | V2: 2008-07-01 | W2: 2008-08-01 | X2: 2008-09-01 | Y2: 2008-10-01 | Z2: 2008-11-01 | AA2: 2008-12-01 | AB2: 2008 | AC2: 2009-01-01 | AD2: 2009-02-01 | AE2: 2009-03-01 | AF2: 2009-04-01 | AG2: 2009-05-01 | AH2: 2009-06-01 | AI2: 2009-07-01 | AJ2: 2009-08-01 | AK2: 2009-09-01 | AL2: 2009-10-01 | AM2: 2009-11-01 | AN2: 2009-12-01 | AO2: 2009 | AP2: 2010-01-31 | AQ2: 2010-02-28 | AR2: 2010-03-31 | AS2: 2010-04-30 | AT2: 2010-05-31 | AU2: 2010-06-30 | AV2: 2010-07-31 | AW2: 2010-08-31 | AX2: 2010-09-30 | AY2: 2010-10-31 | AZ2: 2010-11-30 | BA2: 2010-12-31 | BB2: 2010 | BC2: 2011-01-31 | BD2: 2011-02-28 | BE2: 2011-03-31 | BF2: 2011-04-30 | BG2: 2011-05-31 | BH2: 2011-06-30 | BI2: 2011-07-31 | BJ2: 2011-08-31 | BK2: 2011-09-30 | BL2: 2011-10-31 | BM2: 2011-11-30 | BN2: 2011-12-31 | BO2: 2011 | BP2: 2012-01-31 | BQ2: 2012-02-29 | BR2: 2012-03-31 | BS2: 2012-04-30 | BT2: 2012-05-31 | BU2: 2012-06-30 | BV2: 2012-07-31 | BW2: 2012-08-31 | BX2: 2012-09-30 | BY2: 2012-10-31 | BZ2: 2012-11-30 | CA2: 2012-12-31 | CB2: 2012 | CC2: 2013-01-31 | CD2: 2013-02-28 | CE2: 2013-03-31 | CF2: 2013-04-30 | CG2: 2013-05-31 | CH2: 2013-06-30 | CI2: 2013-07-31 | CJ2: 2013-08-31 | CK2: 2013-09-30 | CL2: 2013-10-31 | CM2: 2013-11-30 | CN2: 2013-12-31 | CO2: 2013 | CP2: 2014-01-31 | CQ2: 2014-02-28 | CR2: 2014-03-31 | CS2: 2014-04-30 | CT2: 2014-05-31 | CU2: 2014-06-30 | CV2: 2014-07-31 | CW2: 2014-08-31 | CX2: 2014-09-30 | CY2: 2014-10-31 | CZ2: 2014-11-30 | DA2: 2014-12-31 | DB2: 2014 | DC2: 2015-01-31 | DD2: 2015-02-28 | DE2: 2015-03-31 | DF2: 2015-04-30 | DG2: 2015-05-31 | DH2: 2015-06-30 | DI2: 2015-07-31 | DJ2: 2015-08-31 | DK2: 2015-09-30 | DL2: 2015-10-31 | DM2: 2015-11-30 | DN2: 2015-12-31 | DO2: 2015 | DP2: 2016-01-31 | DQ2: 2016-02-29 | DR2: 2016-03-31 | DS2: 2016-04-30 | DT2: 2016-05-31 | DU2: 2016-06-30 | DV2: 2016-07-31 | DW2: 2016-08-31 | DX2: 2016-09-30 | DY2: 2016-10-31 | DZ2: 2016-11-30 | EA2: 2016-12-31 | EB2: 2016 | EC2: 2017-01-31 | ED2: 2017-02-28 | EE2: 2017-03-31 | EF2: 2017-04-30 | EG2: 2017-05-31 | EH2: 2017-06-30 | EI2: 2017-07-31 | EJ2: 2017-08-31 | EK2: 2017-09-30 | EL2: 2017-10-31 | EM2: 2017-11-30 | EN2: 2017-12-31 | EO2: 2017 | FB2: 2018 | FO2: 2019
B3: Mercado diario e Intradiario | AC3: 51.64 | AD3: 42.01 | AE3: 38.97 | AF3: 37.8 | AG3: 37.51 | AH3: 37.45 | AI3: 35.2 | AJ3: 35.41 | AK3: 36.75 | AL3: 36.5 | AM3: 34.04 | AN3: 32.82 | AO3: 36.92 | AP3: 32.11 | AQ3: 29.64 | AR3: 21.09 | AS3: 28.92 | AT3: 38.16 | AU3: 41.03 | AV3: 43.59 | AW3: 43.95 | AX3: 47.62 | AY3: 43.72 | AZ3: 42.85 | BA3: 48.81 | BB3: =F22 -> 38.44 | BC3: 43.15 | BD3: 48.98 | BE3: 47.58 | BF3: 46.2 | BG3: 49.54 | BH3: 50.58 | BI3: 51.42 | BJ3: 54.1 | BK3: 59.5 | BL3: 58.77 | BM3: 50.11 | BN3: 51.58 | BO3: =G22 -> 50.91 | BP3: 53.09 | BQ3: 55.3 | BR3: 49.01 | BS3: 42.16 | BT3: 44.55 | BU3: 54.18 | BV3: 51.03 | BW3: 50.11 | BX3: 48.78 | BY3: 46.95 | BZ3: 43.98 | CA3: 44.96 | CB3: =H22 -> 48.84 | CC3: 53.2 | CD3: 46.82 | CE3: 28.3 | CF3: 19.31 | CG3: 44.05 | CH3: 42 | CI3: 52.27 | CJ3: 48.99 | CK3: 51.66 | CL3: 52.62 | CM3: 43.44 | CN3: 68.55 | CO3: =I22 -> 46.17 | CP3: 36.31 | CQ3: 18.65 | CR3: 27.83 | CS3: 27.2 | CT3: 43.18 | CU3: 51.89 | CV3: 49.05 | CW3: 50.69 | CX3: 59.93 | CY3: 56.82 | CZ3: 48.67 | DA3: 49.42 | DB3: =J22 -> 43.42 | DC3: 53.53 | DD3: 44.61 | DE3: 44.23 | DF3: 46.62 | DG3: 45.92 | DH3: 55.53 | DI3: 60.53 | DJ3: 56.71 | DK3: 52.6 | DL3: 50.82 | DM3: 52.68 | DN3: 54.38 | DO3: =K22 -> 51.67 | DP3: 38.47 | DQ3: 28.77 | DR3: 28.65 | DS3: 24.86 | DT3: 26.74 | DU3: 39.3 | DV3: 41.06 | DW3: 41.62 | DX3: 44.17 | DY3: 53.78 | DZ3: 57.41 | EA3: 61.87 | EB3: =L22 -> 40.62 | EC3: 73.59 | ED3: 53.05 | EE3: - | EF3: - | EG3: - | EH3: - | EI3: - | EJ3: - | EK3: - | EL3: - | EM3: - | EN3: - | EO3: =M22 -> 64.07 | EP3: - | EQ3: - | ER3: - | ES3: - | ET3: - | EU3: - | EV3: - | EW3: - | EX3: - | EY3: - | EZ3: - | FA3: - | FB3: - | FC3: - | FD3: - | FE3: - | FF3: - | FG3: - | FH3: - | FI3: - | FJ3: - | FK3: - | FL3: - | FM3: - | FN3: - | FO3: -
B4: Servicio de interrumpibilidad | C4: - | D4: - | E4: - | F4: - | G4: - | H4: - | I4: - | J4: - | K4: - | L4: - | M4: - | N4: - | O4: - | P4: - | Q4: - | R4: - | S4: - | T4: - | U4: - | V4: - | W4: - | X4: - | Y4: - | Z4: - | AA4: - | AB4: - | AC4: - | AD4: - | AE4: - | AF4: - | AG4: - | AH4: - | AI4: - | AJ4: - | AK4: - | AL4: - | AM4: - | AN4: - | AO4: - | AP4: - | AQ4: - | AR4: - | AS4: - | AT4: - | AU4: - | AV4: - | AW4: - | AX4: - | AY4: - | AZ4: - | BA4: - | BB4: - | BC4: - | BD4: - | BE4: - | BF4: - | BG4: - | BH4: - | BI4: - | BJ4: - | BK4: - | BL4: - | BM4: - | BN4: - | BO4: - | BP4: - | BQ4: - | BR4: - | BS4: - | BT4: - | BU4: - | BV4: - | BW4: - | BX4: - | BY4: - | BZ4: - | CA4: - | CB4: - | CC4: - | CD4: - | CE4: - | CF4: - | CG4: - | CH4: - | CI4: - | CJ4: - | CK4: - | CL4: - | CM4: - | CN4: - | CO4: - | CP4: - | CQ4: - | CR4: - | CS4: - | CT4: - | CU4: - | CV4: - | CW4: - | CX4: - | CY4: - | CZ4: - | DA4: - | DB4: - | DC4: 1.69 | DD4: 1.85 | DE4: 1.83 | DF4: 2.08 | DG4: 1.97 | DH4: 1.92 | DI4: 1.65 | DJ4: 1.87 | DK4: 2.01 | DL4: 1.99 | DM4: 1.97 | DN4: 1.89 | DO4: 1.89 | DP4: 1.87 | DQ4: 1.93 | DR4: 1.87 | DS4: 2.02 | DT4: 2.03 | DU4: 2 | DV4: 1.82 | DW4: 1.89 | DX4: 1.94 | DY4: 2.04 | DZ4: 1.99 | EA4: 1.93 | EB4: 1.94 | EC4: 1.9 | ED4: 2.19 | EE4: - | EF4: - | EG4: - | EH4: - | EI4: - | EJ4: - | EK4: - | EL4: - | EM4: - | EN4: - | EO4: 2.03 | EP4: - | EQ4: - | ER4: - | ES4: - | ET4: - | EU4: - | EV4: - | EW4: - | EX4: - | EY4: - | EZ4: - | FA4: - | FB4: - | FC4: - | FD4: - | FE4: - | FF4: - | FG4: - | FH4: - | FI4: - | FJ4: - | FK4: - | FL4: - | FM4: - | FN4: - | FO4: -
B5: Pagos por capacidad | AO5: 3.28 | AP5: 4.11 | AQ5: 4.15 | AR5: 3.43 | AS5: 3.32 | AT5: 3.23 | AU5: 3.75 | AV5: 4.27 | AW5: 2.99 | AX5: 3.41 | AY5: 3.26 | AZ5: 3.34 | BA5: 4.1 | BB5: 3.63 | BC5: 7.03 | BD5: 6.99 | BE5: 5.76 | BF5: 5.5 | BG5: 5.44 | BH5: 6.42 | BI5: 7.09 | BJ5: 4.98 | BK5: 5.67 | BL5: 5.5 | BM5: 5.65 | BN5: 6.95 | BO5: 6.1 | BP5: 7.08 | BQ5: 7.08 | BR5: 5.64 | BS5: 5.59 | BT5: 5.42 | BU5: 6.31 | BV5: 7.2 | BW5: 4.99 | BX5: 5.55 | BY5: 5.59 | BZ5: 5.61 | CA5: 6.83 | CB5: 6.1 | CC5: 7.09 | CD5: 6.95 | CE5: 5.71 | CF5: 5.46 | CG5: 5.36 | CH5: 6.13 | CI5: 7.29 | CJ5: 4.87 | CK5: 5.48 | CL5: 5.39 | CM5: 5.59 | CN5: 6.89 | CO5: 6.04 | CP5: 7 | CQ5: 6.89 | CR5: 5.46 | CS5: 5.29 | CT5: 5.14 | CU5: 6.14 | CV5: 7.17 | CW5: 4.76 | CX5: 5.47 | CY5: 5.3 | CZ5: 5.45 | DA5: 6.87 | DB5: 5.93 | DC5: 6.94 | DD5: 6.92 | DE5: 5.48 | DF5: 5.26 | DG5: 5.06 | DH5: 6.19 | DI5: 7.23 | DJ5: 2.84 | DK5: 3.2 | DL5: 3.11 | DM5: 3.26 | DN5: 4.07 | DO5: 5.02 | DP5: 3.16 | DQ5: 3.22 | DR5: 2.63 | DS5: 2.48 | DT5: 2.43 | DU5: 2.89 | DV5: 3.26 | DW5: 2.2 | DX5: 2.52 | DY5: 2.37 | DZ5: 2.59 | EA5: 3.22 | EB5: 2.75 | EC5: 3.31 | ED5: 3.26 | EE5: - | EF5: - | EG5: - | EH5: - | EI5: - | EJ5: - | EK5: - | EL5: - | EM5: - | EN5: - | EO5: 3.29 | EP5: - | EQ5: - | ER5: - | ES5: - | ET5: - | EU5: - | EV5: - | EW5: - | EX5: - | EY5: - | EZ5: - | FA5: - | FB5: - | FC5: - | FD5: - | FE5: - | FF5: - | FG5: - | FH5: - | FI5: - | FJ5: - | FK5: - | FL5: - | FM5: - | FN5: - | FO5: -
B6: Servicios ajustes del sistema | AO6: 2.71 | AP6: 5.5 | AQ6: 4.26 | AR6: 5.99 | AS6: 2.86 | AT6: 2.4 | AU6: 2.1 | AV6: 3.01 | AW6: 3.46 | AX6: 2.95 | AY6: 4.02 | AZ6: 4.34 | BA6: 3.84 | BB6: 3.76 | BC6: 3.56 | BD6: 2.24 | BE6: 2.71 | BF6: 2.29 | BG6: 1.71 | BH6: 1.82 | BI6: 2.29 | BJ6: 2.98 | BK6: 3.28 | BL6: 4.67 | BM6: 5.88 | BN6: 5.09 | BO6: 3.21 | BP6: 3.68 | BQ6: 3.84 | BR6: 4.58 | BS6: 5.66 | BT6: 3.74 | BU6: 3.23 | BV6: 3.06 | BW6: 3.74 | BX6: 3.99 | BY6: 7.22 | BZ6: 7.47 | CA6: 6 | CB6: 4.63 | CC6: 5.21 | CD6: 5.29 | CE6: 7.57 | CF6: 7.53 | CG6: 5.21 | CH6: 5.22 | CI6: 2.87 | CJ6: 3.8 | CK6: 4.18 | CL6: 7.07 | CM6: 7.1 | CN6: 6.23 | CO6: 5.58 | CP6: 7.2 | CQ6: 7.79 | CR6: 7.03 | CS6: 8 | CT6: 4.88 | CU6: 3.59 | CV6: 3.3 | CW6: 4.15 | CX6: 4.8 | CY6: 6.19 | CZ6: 6.08 | DA6: 5.5 | DB6: 5.7 | DC6: 4.92 | DD6: 5.37 | DE6: 5.19 | DF6: 5.56 | DG6: 5.11 | DH6: 3.37 | DI6: 3.12 | DJ6: 3.74 | DK6: 3.25 | DL6: 4.38 | DM6: 4.15 | DN6: 3.24 | DO6: 4.26 | DP6: 3.92 | DQ6: 4.2 | DR6: 4.54 | DS6: 4.07 | DT6: 4.37 | DU6: 2.51 | DV6: 2.03 | DW6: 2.41 | DX6: 2.46 | DY6: 3 | DZ6: 1.92 | EA6: 2.04 | EB6: 3.1 | EC6: 2.9 | ED6: 2.84 | EE6: - | EF6: - | EG6: - | EH6: - | EI6: - | EJ6: - | EK6: - | EL6: - | EM6: - | EN6: - | EO6: 2.88 | EP6: - | EQ6: - | ER6: - | ES6: - | ET6: - | EU6: - | EV6: - | EW6: - | EX6: - | EY6: - | EZ6: - | FA6: - | FB6: - | FC6: - | FD6: - | FE6: - | FF6: - | FG6: - | FH6: - | FI6: - | FJ6: - | FK6: - | FL6: - | FM6: - | FN6: - | FO6: -
B7: Restricciones técnicasPBF | AO7: 1.57 | AP7: 3.11 | AQ7: 2.45 | AR7: 3.99 | AS7: 1.89 | AT7: 1.45 | AU7: 1.18 | AV7: 2.32 | AW7: 2.67 | AX7: 1.82 | AY7: 2.11 | AZ7: 2.38 | BA7: 1.89 | BB7: 2.29 | BC7: 2.02 | BD7: 1.19 | BE7: 1.48 | BF7: 1.18 | BG7: 0.68 | BH7: 0.85 | BI7: 1.42 | BJ7: 1.87 | BK7: 1.94 | BL7: 2.43 | BM7: 3.75 | BN7: 3.42 | BO7: 1.85 | BP7: 2.13 | BQ7: 1.97 | BR7: 2.44 | BS7: 2.85 | BT7: 2.07 | BU7: 1.55 | BV7: 1.73 | BW7: 1.68 | BX7: 1.34 | BY7: 2.21 | BZ7: 2.76 | CA7: 2.67 | CB7: 2.11 | CC7: 2.27 | CD7: 2.42 | CE7: 3.88 | CF7: 4.16 | CG7: 3.3 | CH7: 3.19 | CI7: 1.29 | CJ7: 1.92 | CK7: 2.25 | CL7: 3.3 | CM7: 3.38 | CN7: 2.81 | CO7: 2.83 | CP7: 4.11 | CQ7: 3.75 | CR7: 4.2 | CS7: 4.99 | CT7: 3.52 | CU7: 2.36 | CV7: 2.14 | CW7: 2.87 | CX7: 2.64 | CY7: 3.52 | CZ7: 3.48 | DA7: 3.2 | DB7: 3.39 | DC7: 2.77 | DD7: 2.84 | DE7: 3.27 | DF7: 3.87 | DG7: 3.62 | DH7: 2.19 | DI7: 2.24 | DJ7: 2.56 | DK7: 2.08 | DL7: 3.16 | DM7: 2.94 | DN7: 2.15 | DO7: 2.79 | DP7: 2.56 | DQ7: 2.65 | DR7: 2.88 | DS7: 2.59 | DT7: 2.99 | DU7: 1.84 | DV7: 1.55 | DW7: 1.85 | DX7: 1.91 | DY7: 2.04 | DZ7: 0.89 | EA7: 1.13 | EB7: 2.07 | EC7: 1.48 | ED7: 1.82 | EE7: - | EF7: - | EG7: - | EH7: - | EI7: - | EJ7: - | EK7: - | EL7: - | EM7: - | EN7: - | EO7: 1.64 | EP7: - | EQ7: - | ER7: - | ES7: - | ET7: - | EU7: - | EV7: - | EW7: - | EX7: - | EY7: - | EZ7: - | FA7: - | FB7: - | FC7: - | FD7: - | FE7: - | FF7: - | FG7: - | FH7: - | FI7: - | FJ7: - | FK7: - | FL7: - | FM7: - | FN7: - | FO7: -
B8: Banda de regulación secundaria | AO8: 0.53 | AP8: 1.03 | AQ8: 0.98 | AR8: 1 | AS8: 0.45 | AT8: 0.52 | AU8: 0.43 | AV8: 0.34 | AW8: 0.43 | AX8: 0.49 | AY8: 0.81 | AZ8: 0.84 | BA8: 0.97 | BB8: 0.7 | BC8: 0.74 | BD8: 0.45 | BE8: 0.44 | BF8: 0.49 | BG8: 0.55 | BH8: 0.59 | BI8: 0.61 | BJ8: 0.77 | BK8: 0.91 | BL8: 1.28 | BM8: 1.4 | BN8: 0.93 | BO8: 0.76 | BP8: 0.92 | BQ8: 1.17 | BR8: 1.4 | BS8: 2.01 | BT8: 1.11 | BU8: 1.05 | BV8: 0.99 | BW8: 1.39 | BX8: 1.62 | BY8: 1.84 | BZ8: 1.67 | CA8: 1.35 | CB8: 1.37 | CC8: 1.55 | CD8: 1.56 | CE8: 1.81 | CF8: 1.48 | CG8: 1.08 | CH8: 1.51 | CI8: 1.24 | CJ8: 1.28 | CK8: 1.21 | CL8: 1.52 | CM8: 1.3 | CN8: 1.87 | CO8: 1.45 | CP8: 1.44 | CQ8: 1.42 | CR8: 0.87 | CS8: 0.93 | CT8: 0.81 | CU8: 1.02 | CV8: 0.93 | CW8: 1 | CX8: 1.25 | CY8: 1.54 | CZ8: 1.38 | DA8: 0.92 | DB8: 1.13 | DC8: 0.99 | DD8: 1.11 | DE8: 0.98 | DF8: 1.2 | DG8: 1.08 | DH8: 0.87 | DI8: 0.62 | DJ8: 0.84 | DK8: 0.89 | DL8: 0.81 | DM8: 0.7 | DN8: 0.89 | DO8: 0.91 | DP8: 0.95 | DQ8: 1.13 | DR8: 1.01 | DS8: 0.9 | DT8: 0.93 | DU8: 0.52 | DV8: 0.47 | DW8: 0.48 | DX8: 0.39 | DY8: 0.51 | DZ8: 0.68 | EA8: 0.63 | EB8: 0.71 | EC8: 0.87 | ED8: 0.65 | EE8: - | EF8: - | EG8: - | EH8: - | EI8: - | EJ8: - | EK8: - | EL8: - | EM8: - | EN8: - | EO8: 0.77 | EP8: - | EQ8: - | ER8: - | ES8: - | ET8: - | EU8: - | EV8: - | EW8: - | EX8: - | EY8: - | EZ8: - | FA8: - | FB8: - | FC8: - | FD8: - | FE8: - | FF8: - | FG8: - | FH8: - | FI8: - | FJ8: - | FK8: - | FL8: - | FM8: - | FN8: - | FO8: -
B9: Reserva de potencia adicional a subir | C9: - | D9: - | E9: - | F9: - | G9: - | H9: - | I9: - | J9: - | K9: - | L9: - | M9: - | N9: - | O9: - | P9: - | Q9: - | R9: - | S9: - | T9: - | U9: - | V9: - | W9: - | X9: - | Y9: - | Z9: - | AA9: - | AB9: - | AC9: - | AD9: - | AE9: - | AF9: - | AG9: - | AH9: - | AI9: - | AJ9: - | AK9: - | AL9: - | AM9: - | AN9: - | AO9: - | AP9: - | AQ9: - | AR9: - | AS9: - | AT9: - | AU9: - | AV9: - | AW9: - | AX9: - | AY9: - | AZ9: - | BA9: - | BB9: 0 | BC9: - | BD9: - | BE9: - | BF9: - | BG9: - | BH9: - | BI9: - | BJ9: - | BK9: - | BL9: - | BM9: - | BN9: - | BO9: 0 | BP9: - | BQ9: - | BR9: - | BS9: - | BT9: - | BU9: - | BV9: - | BW9: 0.01 | BX9: 0.04 | BY9: 0.82 | BZ9: 1.56 | CA9: 0.71 | CB9: 0.25 | CC9: 0.39 | CD9: 0.42 | CE9: 0.84 | CF9: 0.76 | CG9: 0.19 | CH9: 0 | CI9: 0 | CJ9: 0.05 | CK9: 0.21 | CL9: 0.94 | CM9: 1.22 | CN9: 0.34 | CO9: 0.44 | CP9: 0.96 | CQ9: 1.62 | CR9: 0.95 | CS9: 0.64 | CT9: 0.07 | CU9: 0.01 | CV9: 0 | CW9: 0.01 | CX9: 0.49 | CY9: 0.71 | CZ9: 0.8 | DA9: 0.87 | DB9: 0.59 | DC9: 0.43 | DD9: 0.77 | DE9: 0.46 | DF9: 0.05 | DG9: 0.08 | DH9: 0 | DI9: 0 | DJ9: 0.03 | DK9: 0.05 | DL9: 0.15 | DM9: 0.21 | DN9: 0.07 | DO9: 0.19 | DP9: 0.16 | DQ9: 0.25 | DR9: 0.37 | DS9: 0.29 | DT9: 0.3 | DU9: 0 | DV9: 0 | DW9: 0 | DX9: 0.02 | DY9: 0.25 | DZ9: 0.15 | EA9: 0.08 | EB9: 0.15 | EC9: 0.27 | ED9: 0.02 | EE9: - | EF9: - | EG9: - | EH9: - | EI9: - | EJ9: - | EK9: - | EL9: - | EM9: - | EN9: - | EO9: 0.15 | EP9: - | EQ9: - | ER9: - | ES9: - | ET9: - | EU9: - | EV9: - | EW9: - | EX9: - | EY9: - | EZ9: - | FA9: - | FB9: - | FC9: - | FD9: - | FE9: - | FF9: - | FG9: - | FH9: - | FI9: - | FJ9: - | FK9: - | FL9: - | FM9: - | FN9: - | FO9: -
B10: Restricciones técnicas en tiempo real | AO10: 0.32 | AP10: 0.36 | AQ10: 0.21 | AR10: 0.4 | AS10: 0.17 | AT10: 0.18 | AU10: 0.09 | AV10: 0.21 | AW10: 0.16 | AX10: 0.23 | AY10: 0.5 | AZ10: 0.29 | BA10: 0.29 | BB10: 0.26 | BC10: 0.3 | BD10: 0.1 | BE10: 0.29 | BF10: 0.17 | BG10: 0.28 | BH10: 0.18 | BI10: 0.06 | BJ10: 0.15 | BK10: 0.11 | BL10: 0.4 | BM10: 0.47 | BN10: 0.34 | BO10: 0.24 | BP10: 0.18 | BQ10: 0.19 | BR10: 0.28 | BS10: 0.36 | BT10: 0.29 | BU10: 0.29 | BV10: 0.16 | BW10: 0.31 | BX10: 0.41 | BY10: 1.81 | BZ10: 1.03 | CA10: 0.62 | CB10: 0.48 | CC10: 0.4 | CD10: 0.41 | CE10: 0.64 | CF10: 0.77 | CG10: 0.43 | CH10: 0.24 | CI10: 0.1 | CJ10: 0.32 | CK10: 0.29 | CL10: 0.84 | CM10: 0.72 | CN10: 0.4 | CO10: 0.46 | CP10: 0.29 | CQ10: 0.69 | CR10: 0.58 | CS10: 1.17 | CT10: 0.26 | CU10: 0.15 | CV10: 0.16 | CW10: 0.19 | CX10: 0.3 | CY10: 0.3 | CZ10: 0.27 | DA10: 0.17 | DB10: 0.37 | DC10: 0.18 | DD10: 0.25 | DE10: 0.25 | DF10: 0.27 | DG10: 0.24 | DH10: 0.13 | DI10: 0.14 | DJ10: 0.13 | DK10: 0.13 | DL10: 0.18 | DM10: 0.21 | DN10: 0.08 | DO10: 0.18 | DP10: 0.12 | DQ10: 0.13 | DR10: 0.16 | DS10: 0.18 | DT10: 0.13 | DU10: 0.1 | DV10: 0.03 | DW10: 0.07 | DX10: 0.09 | DY10: 0.21 | DZ10: 0.15 | EA10: 0.13 | EB10: 0.12 | EC10: 0.17 | ED10: 0.23 | EE10: - | EF10: - | EG10: - | EH10: - | EI10: - | EJ10: - | EK10: - | EL10: - | EM10: - | EN10: - | EO10: 0.2 | EP10: - | EQ10: - | ER10: - | ES10: - | ET10: - | EU10: - | EV10: - | EW10: - | EX10: - | EY10: - | EZ10: - | FA10: - | FB10: - | FC10: - | FD10: - | FE10: - | FF10: - | FG10: - | FH10: - | FI10: - | FJ10: - | FK10: - | FL10: - | FM10: - | FN10: - | FO10: -
B11: Restricciones intradiario | AO11: 0 | AP11: 0 | AQ11: 0 | AR11: 0 | AS11: 0 | AT11: 0 | AU11: 0 | AV11: 0 | AW11: 0 | AX11: 0 | AY11: 0 | AZ11: 0 | BA11: 0 | BB11: 0 | BC11: 0 | BD11: 0 | BE11: 0 | BF11: 0 | BG11: 0 | BH11: 0 | BI11: 0 | BJ11: 0 | BK11: 0 | BL11: 0 | BM11: 0 | BN11: 0 | BO11: 0 | BP11: 0 | BQ11: 0 | BR11: 0 | BS11: 0 | BT11: 0 | BU11: 0 | BV11: 0 | BW11: 0 | BX11: 0 | BY11: 0 | BZ11: 0 | CA11: 0 | CB11: 0 | CC11: 0 | CD11: 0 | CE11: 0 | CF11: 0 | CG11: 0 | CH11: 0 | CI11: 0 | CJ11: 0 | CK11: 0 | CL11: 0 | CM11: 0 | CN11: 0 | CO11: 0 | CP11: 0 | CQ11: 0 | CR11: 0 | CS11: 0 | CT11: 0 | CU11: 0 | CV11: 0 | CW11: 0 | CX11: 0 | CY11: 0 | CZ11: 0 | DA11: 0 | DB11: 0 | DC11: 0 | DD11: 0 | DE11: 0 | DF11: 0 | DG11: 0 | DH11: 0 | DI11: 0 | DJ11: 0 | DK11: 0 | DL11: 0 | DM11: 0 | DN11: 0 | DO11: 0 | DP11: 0 | DQ11: 0 | DR11: 0 | DS11: 0 | DT11: 0 | DU11: 0 | DV11: 0 | DW11: 0 | DX11: 0 | DY11: 0 | DZ11: 0 | EA11: 0 | EB11: 0 | EC11: 0 | ED11: 0 | EE11: - | EF11: - | EG11: - | EH11: - | EI11: - | EJ11: - | EK11: - | EL11: - | EM11: - | EN11: - | EO11: 0 | EP11: - | EQ11: - | ER11: - | ES11: - | ET11: - | EU11: - | EV11: - | EW11: - | EX11: - | EY11: - | EZ11: - | FA11: - | FB11: - | FC11: - | FD11: - | FE11: - | FF11: - | FG11: - | FH11: - | FI11: - | FJ11: - | FK11: - | FL11: - | FM11: - | FN11: - | FO11: -
B12: Incumplimiento energía balance | AO12: - | AP12: - | AQ12: - | AR12: - | AS12: - | AT12: - | AU12: - | AV12: - | AW12: - | AX12: - | AY12: - | AZ12: - | BA12: - | BB12: - | BC12: - | BD12: - | BE12: - | BF12: - | BG12: - | BH12: - | BI12: - | BJ12: - | BK12: - | BL12: - | BM12: - | BN12: - | BO12: - | BP12: - | BQ12: - | BR12: - | BS12: - | BT12: - | BU12: - | BV12: - | BW12: - | BX12: - | BY12: - | BZ12: - | CA12: - | CB12: - | CC12: - | CD12: - | CE12: - | CF12: - | CG12: - | CH12: - | CI12: - | CJ12: - | CK12: - | CL12: - | CM12: - | CN12: - | CO12: - | CP12: - | CQ12: - | CR12: - | CS12: - | CT12: - | CU12: - | CV12: - | CW12: - | CX12: - | CY12: - | CZ12: - | DA12: - | DB12: - | DC12: 0 | DD12: 0 | DE12: 0 | DF12: 0 | DG12: 0 | DH12: 0 | DI12: 0 | DJ12: 0 | DK12: 0 | DL12: 0 | DM12: 0 | DN12: 0 | DO12: - | DP12: 0 | DQ12: -0.01 | DR12: -0.01 | DS12: -0.01 | DT12: -0.02 | DU12: -0.02 | DV12: -0.02 | DW12: -0.02 | DX12: -0.03 | DY12: -0.03 | DZ12: -0.05 | EA12: -0.04 | EB12: -0.02 | EC12: -0.05 | ED12: -0.03 | EE12: - | EF12: - | EG12: - | EH12: - | EI12: - | EJ12: - | EK12: - | EL12: - | EM12: - | EN12: - | EO12: -0.04 | EP12: - | EQ12: - | ER12: - | ES12: - | ET12: - | EU12: - | EV12: - | EW12: - | EX12: - | EY12: - | EZ12: - | FA12: - | FB12: - | FC12: - | FD12: - | FE12: - | FF12: - | FG12: - | FH12: - | FI12: - | FJ12: - | FK12: - | FL12: -
B13: Desvíos (2) | AO13: 0.34 | AP13: 0.68 | AQ13: 0.36 | AR13: 0.41 | AS13: 0.27 | AT13: 0.23 | AU13: 0.4 | AV13: 0.2 | AW13: 0.28 | AX13: 0.42 | AY13: 0.39 | AZ13: 0.37 | BA13: 0.52 | BB13: =F32 -> 0.38 | BC13: 0.33 | BD13: 0.43 | BE13: 0.47 | BF13: 0.38 | BG13: 0.19 | BH13: 0.2 | BI13: 0.29 | BJ13: 0.22 | BK13: 0.32 | BL13: 0.4 | BM13: 0.27 | BN13: 0.39 | BO13: =G32 -> 0.33 | BP13: 0.32 | BQ13: 0.28 | BR13: 0.32 | BS13: 0.34 | BT13: 0.24 | BU13: 0.24 | BV13: 0.22 | BW13: 0.28 | BX13: 0.47 | BY13: 0.27 | BZ13: 0.17 | CA13: 0.31 | CB13: =H32 -> 0.28 | CC13: 0.57 | CD13: 0.48 | CE13: 0.31 | CF13: 0.23 | CG13: 0.25 | CH13: 0.22 | CI13: 0.3 | CJ13: 0.19 | CK13: 0.17 | CL13: 0.32 | CM13: 0.25 | CN13: 0.3 | CO13: =I32 -> 0.3 | CP13: 0.5 | CQ13: 0.23 | CR13: 0.42 | CS13: 0.26 | CT13: 0.21 | CU13: 0.22 | CV13: 0.17 | CW13: 0.21 | CX13: 0.19 | CY13: 0.24 | CZ13: 0.23 | DA13: 0.2 | DB13: =J32 -> 0.26 | DC13: 0.24 | DD13: 0.22 | DE13: 0.23 | DF13: 0.32 | DG13: 0.25 | DH13: 0.3 | DI13: 0.25 | DJ13: 0.35 | DK13: 0.3 | DL13: 0.21 | DM13: 0.28 | DN13: 0.28 | DO13: =K32 -> 0.27 | DP13: 0.33 | DQ13: 0.25 | DR13: 0.28 | DS13: 0.25 | DT13: 0.15 | DU13: 0.17 | DV13: 0.11 | DW13: 0.15 | DX13: 0.19 | DY13: 0.13 | DZ13: 0.17 | EA13: 0.19 | EB13: =L32 -> 0.2 | EC13: 0.27 | ED13: 0.31 | EE13: - | EF13: - | EG13: - | EH13: - | EI13: - | EJ13: - | EK13: - | EL13: - | EM13: - | EN13: - | EO13: 0.29 | EP13: - | EQ13: - | ER13: - | ES13: - | ET13: - | EU13: - | EV13: - | EW13: - | EX13: - | EY13: - | EZ13: - | FA13: - | FB13: - | FC13: - | FD13: - | FE13: - | FF13: - | FG13: - | FH13: - | FI13: - | FJ13: - | FK13: - | FL13: - | FM13: - | FN13: - | FO13: -
B14: Excedente desvíos | AO14: -0.05 | AP14: 0.32 | AQ14: 0.26 | AR14: 0.19 | AS14: 0.08 | AT14: 0.02 | AU14: 0 | AV14: -0.06 | AW14: -0.08 | AX14: -0.01 | AY14: 0.21 | AZ14: 0.46 | BA14: 0.17 | BB14: 0.13 | BC14: 0.17 | BD14: 0.07 | BE14: 0.03 | BF14: 0.07 | BG14: 0.01 | BH14: 0 | BI14: -0.09 | BJ14: -0.03 | BK14: 0 | BL14: 0.16 | BM14: -0.01 | BN14: 0.01 | BO14: 0.03 | BP14: 0.13 | BQ14: 0.23 | BR14: 0.14 | BS14: 0.1 | BT14: 0 | BU14: 0.1 | BV14: -0.04 | BW14: 0.07 | BX14: 0.11 | BY14: 0.27 | BZ14: 0.28 | CA14: 0.34 | CB14: 0.14 | CC14: 0.03 | CD14: 0 | CE14: 0.09 | CF14: 0.13 | CG14: -0.04 | CH14: 0.06 | CI14: -0.06 | CJ14: 0.04 | CK14: 0.05 | CL14: 0.15 | CM14: 0.23 | CN14: 0.51 | CO14: 0.1 | CP14: -0.1 | CQ14: 0.08 | CR14: 0.01 | CS14: 0.01 | CT14: 0.01 | CU14: -0.13 | CV14: -0.04 | CW14: -0.07 | CX14: -0.02 | CY14: -0.06 | CZ14: -0.01 | DA14: 0.22 | DB14: -0.01 | DC14: 0.38 | DD14: 0.26 | DE14: 0.07 | DF14: -0.08 | DG14: -0.09 | DH14: -0.07 | DI14: -0.08 | DJ14: -0.11 | DK14: -0.15 | DL14: -0.07 | DM14: -0.13 | DN14: -0.18 | DO14: -0.02 | DP14: -0.13 | DQ14: -0.11 | DR14: -0.08 | DS14: -0.07 | DT14: -0.04 | DU14: -0.05 | DV14: -0.06 | DW14: -0.07 | DX14: -0.06 | DY14: -0.06 | DZ14: -0.01 | EA14: -0.03 | EB14: -0.07 | EC14: -0.04 | ED14: -0.09 | EE14: - | EF14: - | EG14: - | EH14: - | EI14: - | EJ14: - | EK14: - | EL14: - | EM14: - | EN14: - | EO14: -0.06 | EP14: - | EQ14: - | ER14: - | ES14: - | ET14: - | EU14: - | EV14: - | EW14: - | EX14: - | EY14: - | EZ14: - | FA14: - | FB14: - | FC14: - | FD14: - | FE14: - | FF14: - | FG14: - | FH14: - | FI14: - | FJ14: - | FK14: - | FL14: - | FM14: - | FN14: - | FO14: -
B15: Control del factor de potencia | C15: - | D15: - | E15: - | F15: - | G15: - | H15: - | I15: - | J15: - | K15: - | L15: - | M15: - | N15: - | O15: - | P15: - | Q15: - | R15: - | S15: - | T15: - | U15: - | V15: - | W15: - | X15: - | Y15: - | Z15: - | AA15: - | AB15: - | AC15: - | AD15: - | AE15: - | AF15: - | AG15: - | AH15: - | AI15: - | AJ15: - | AK15: - | AL15: - | AM15: - | AN15: - | AO15: - | AP15: - | AQ15: - | AR15: - | AS15: - | AT15: - | AU15: - | AV15: - | AW15: - | AX15: - | AY15: - | AZ15: - | BA15: - | BB15: 0 | BC15: - | BD15: - | BE15: - | BF15: - | BG15: - | BH15: - | BI15: - | BJ15: - | BK15: - | BL15: - | BM15: - | BN15: - | BO15: 0 | BP15: - | BQ15: - | BR15: - | BS15: - | BT15: - | BU15: - | BV15: - | BW15: - | BX15: - | BY15: - | BZ15: - | CA15: - | CB15: 0 | CC15: - | CD15: - | CE15: - | CF15: - | CG15: - | CH15: - | CI15: - | CJ15: - | CK15: - | CL15: - | CM15: - | CN15: - | CO15: 0 | CP15: 0 | CQ15: 0 | CR15: 0 | CS15: 0 | CT15: 0 | CU15: -0.04 | CV15: -0.06 | CW15: -0.06 | CX15: -0.05 | CY15: -0.06 | CZ15: -0.07 | DA15: -0.08 | DB15: -0.03 | DC15: -0.07 | DD15: -0.08 | DE15: -0.07 | DF15: -0.07 | DG15: -0.07 | DH15: -0.05 | DI15: -0.05 | DJ15: -0.06 | DK15: -0.05 | DL15: -0.06 | DM15: -0.06 | DN15: -0.05 | DO15: -0.06 | DP15: -0.07 | DQ15: -0.09 | DR15: -0.07 | DS15: -0.06 | DT15: -0.07 | DU15: -0.05 | DV15: -0.05 | DW15: -0.05 | DX15: -0.05 | DY15: -0.05 | DZ15: -0.06 | EA15: -0.05 | EB15: -0.06 | EC15: -0.07 | ED15: -0.07 | EE15: - | EF15: - | EG15: - | EH15: - | EI15: - | EJ15: - | EK15: - | EL15: - | EM15: - | EN15: - | EO15: -0.07 | EP15: - | EQ15: - | ER15: - | ES15: - | ET15: - | EU15: - | EV15: - | EW15: - | EX15: - | EY15: - | EZ15: - | FA15: - | FB15: - | FC15: - | FD15: - | FE15: - | FF15: - | FG15: - | FH15: - | FI15: - | FJ15: - | FK15: - | FL15: - | FM15: - | FN15: - | FO15: -
B16: Precio total | AO16: 42.91 | AP16: 41.72 | AQ16: 38.05 | AR16: 30.51 | AS16: 35.1 | AT16: 43.79 | AU16: 46.88 | AV16: 50.87 | AW16: 50.4 | AX16: 53.98 | AY16: 51 | AZ16: 50.53 | BA16: 56.75 | BB16: =F35 -> 45.83 | BC16: 53.74 | BD16: 58.21 | BE16: 56.05 | BF16: 53.99 | BG16: 56.69 | BH16: 58.82 | BI16: 60.8 | BJ16: 62.06 | BK16: 68.45 | BL16: 68.94 | BM16: 61.64 | BN16: 63.62 | BO16: =G35 -> 60.22 | BP16: 63.85 | BQ16: 66.22 | BR16: 59.23 | BS16: 53.41 | BT16: 53.71 | BU16: 63.72 | BV16: 61.29 | BW16: 58.84 | BX16: 58.32 | BY16: 59.76 | BZ16: 57.06 | CA16: 57.79 | CB16: =H35 -> 59.57 | CC16: 65.5 | CD16: 59.06 | CE16: 41.58 | CF16: 32.3 | CG16: 54.62 | CH16: 53.35 | CI16: 62.43 | CJ16: 57.66 | CK16: 61.32 | CL16: 65.08 | CM16: 56.13 | CN16: 81.67 | CO16: =I35 -> 57.79 | CP16: 50.51 | CQ16: 33.33 | CR16: 40.32 | CS16: 40.49 | CT16: 53.2 | CU16: 61.62 | CV16: 59.52 | CW16: 59.6 | CX16: 70.2 | CY16: 68.31 | CZ16: 60.2 | DA16: 61.79 | DB16: =J35 -> 55.05 | DC16: 67.08 | DD16: 58.75 | DE16: 56.73 | DF16: 59.52 | DG16: 58.06 | DH16: 67.01 | DI16: 72.53 | DJ16: 65.16 | DK16: 61.06 | DL16: 60.3 | DM16: 62.06 | DN16: 63.58 | DO16: =K35 -> 62.84 | DP16: 47.42 | DQ16: 38.12 | DR16: 37.69 | DS16: 33.43 | DT16: 35.57 | DU16: 46.7 | DV16: 48.17 | DW16: 48.12 | DX16: 51.09 | DY16: 61.19 | DZ16: 63.91 | EA16: 69.06 | EB16: =L35 -> 48.41 | EC16: 81.7 | ED16: 61.34 | EE16: - | EF16: - | EG16: - | EH16: - | EI16: - | EJ16: - | EK16: - | EL16: - | EM16: - | EN16: - | EO16: =M35 -> 72.27 | EP16: - | EQ16: - | ER16: - | ES16: - | ET16: - | EU16: - | EV16: - | EW16: - | EX16: - | EY16: - | EZ16: - | FA16: - | FB16: - | FC16: - | FD16: - | FE16: - | FF16: - | FG16: - | FH16: - | FI16: - | FJ16: - | FK16: - | FL16: - | FM16: - | FN16: - | FO16: -
B17: Energía cierre (MWh) | AO17: 190936859.3 | AP17: 23120305.52 | AQ17: 21792143.45 | AR17: 22462779.88 | AS17: 20152012.52 | AT17: 20801525.78 | AU17: 20496681.57 | AV17: 23264751.56 | AW17: 21083187.39 | AX17: 21414655.74 | AY17: 21046223.69 | AZ17: 21491033.61 | BA17: 22451716.02 | BB17: 259577016.7 | BC17: 23136773.23 | BD17: 21112023.28 | BE17: 22403226.68 | BF17: 19485644.12 | BG17: 20326769.34 | BH17: 20627058.75 | BI17: 21799932.61 | BJ17: 20989791.45 | BK17: 21072961.5 | BL17: 20936432.74 | BM17: 20047927.95 | BN17: 21111600.64 | BO17: 253050142.3 | BP17: 22373955.53 | BQ17: 22249744.62 | BR17: 21165521.67 | BS17: 19329087.86 | BT17: 20080113.27 | BU17: 20561522.77 | BV17: 21545639.52 | BW17: 20705321.54 | BX17: 19989474.13 | BY17: 20182608.7 | BZ17: 19090959.76 | CA17: 20369628.08 | CB17: 247643577.5 | CC17: 22057320.88 | CD17: 19810467.17 | CE17: 20603106.78 | CF17: 18943445.8 | CG17: 19141523.52 | CH17: 19066235.42 | CI17: 21395778.11 | CJ17: 20118985.64 | CK17: 19517032.24 | CL17: 19552300.44 | CM17: 19791864.99 | CN17: 20662852.65 | CO17: 240660913.7 | CP17: 21154193.43 | CQ17: 19470389.18 | CR17: 20268048.31 | CS17: 18269238.76 | CT17: 19216055.63 | CU17: 19338579.06 | CV17: 21057212.88 | CW17: 20063502.26 | CX17: 20064540.79 | CY17: 19727921.24 | CZ17: 19641259.99 | DA17: 20714191.43 | DB17: 238985133 | DC17: 22530623.82 | DD17: 20656460.23 | DE17: 21074295.91 | DF17: 18803992.91 | DG17: 19799298.89 | DH17: 20304616.7 | DI17: 23424579.22 | DJ17: 20823877.83 | DK17: 19510557.68 | DL17: 19707647.87 | DM17: 19830873.14 | DN17: 20805948.8 | DO17: 247272773 | DP17: 21454209.32 | DQ17: 20776593.36 | DR17: 21402936.89 | DS17: 19869083.24 | DT17: 19666148.05 | DU17: 20177555.26 | DV17: 22159669.86 | DW17: 21363493.56 | DX17: 20744364.34 | DY17: 19754261.69 | DZ17: 20531079.98 | EA17: 21242103.77 | EB17: 249141499.3 | EC17: 23014493.33 | ED17: 19924788.99 | EE17: - | EF17: - | EG17: - | EH17: - | EI17: - | EJ17: - | EK17: - | EL17: - | EM17: - | EN17: - | EO17: 42939282.32 | EP17: - | EQ17: - | ER17: - | ES17: - | ET17: - | EU17: - | EV17: - | EW17: - | EX17: - | EY17: - | EZ17: - | FA17: - | FB17: - | FC17: - | FD17: - | FE17: - | FF17: - | FG17: - | FH17: - | FI17: - | FJ17: - | FK17: - | FL17: - | FM17: - | FN17: - | FO17: -
B21: Componentes del precio final anual | C21: 2007 | D21: 2008 | E21: 2009 | F21: 2010 | G21: 2011 | H21: 2012 | I21: 2013 | J21: 2014 | K21: 2015 | L21: 2016 | M21: 2017 | N21: 2018 | O21: 2019
B22: Mercado diario e Intradiario | F22: 38.44 | G22: 50.91 | H22: 48.84 | I22: 46.17 | J22: 43.42 | K22: 51.67 | L22: 40.62 | M22: 64.07 | N22: - | O22: -
B23: Servicio de interrumpibilidad | F23: - | G23: - | H23: - | I23: - | J23: - | K23: 1.89 | L23: 1.94 | M23: 2.03 | N23: - | O23: -
B24: Pagos por capacidad | F24: 3.63 | G24: 6.1 | H24: 6.1 | I24: 6.04 | J24: 5.93 | K24: 5.02 | L24: 2.75 | M24: 3.29 | N24: - | O24: -
B25: Servicios ajustes del sistema | F25: 3.76 | G25: 3.21 | H25: 4.63 | I25: 5.58 | J25: 5.7 | K25: 4.26 | L25: 3.1 | M25: 2.88 | N25: - | O25: -
B26: Restricciones técnicasPBF | F26: 2.29 | G26: 1.85 | H26: 2.11 | I26: 2.83 | J26: 3.39 | K26: 2.79 | L26: 2.07 | M26: 1.64 | N26: - | O26: -
B27: Banda de regulación secundaria | F27: 0.7 | G27: 0.76 | H27: 1.37 | I27: 1.45 | J27: 1.13 | K27: 0.91 | L27: 0.71 | M27: 0.77 | N27: - | O27: -
B28: Reserva de potencia adicional a subir | F28: 0 | G28: 0 | H28: 0.25 | I28: 0.44 | J28: 0.59 | K28: 0.19 | L28: 0.15 | M28: 0.15 | N28: - | O28: -
B29: Restricciones técnicas en tiempo real | F29: 0.26 | G29: 0.24 | H29: 0.48 | I29: 0.46 | J29: 0.37 | K29: 0.18 | L29: 0.12 | M29: 0.2 | N29: - | O29: -
B30: Restricciones intradiario | F30: 0 | G30: 0 | H30: 0 | I30: 0 | J30: 0 | K30: 0 | L30: 0 | M30: 0 | N30: - | O30: -
B31: Incumplimiento energía balance | F31: - | G31: - | H31: - | I31: - | J31: - | K31: 0 | L31: -0.02 | M31: -0.04 | N31: - | O31: -
B32: Desvíos (2) | F32: 0.38 | G32: 0.33 | H32: 0.28 | I32: 0.3 | J32: 0.26 | K32: 0.27 | L32: 0.2 | M32: 0.29 | N32: - | O32: -
B33: Excedente desvíos | F33: 0.13 | G33: 0.03 | H33: 0.14 | I33: 0.1 | J33: -0.01 | K33: -0.02 | L33: -0.07 | M33: -0.06 | N33: - | O33: -
B34: Control del factor de potencia | F34: 0 | G34: 0 | H34: 0 | I34: 0 | J34: -0.03 | K34: -0.06 | L34: -0.06 | M34: -0.07 | N34: - | O34: -
B35: Precio total | F35: 45.83 | G35: 60.22 | H35: 59.57 | I35: 57.79 | J35: 55.05 | K35: 62.84 | L35: 48.41 | M35: 72.27 | N35: - | O35: -
B36: Energía cierre (MWh) | F36: 259577016.7 | G36: 253050142.3 | H36: 247643577.5 | I36: 240660913.7 | J36: 238985133 | K36: 247272773 | L36: 249141499.3 | M36: 42939282.32 | N36: - | O36: -
B40: Energía de restricciones al PBF de fase I y precios medios mensuales | C40: 2007-01-01 | D40: 2007-02-01 | E40: 2007-03-01 | F40: 2007-04-01 | G40: 2007-05-01 | H40: 2007-06-01 | I40: 2007-07-01 | J40: 2007-08-01 | K40: 2007-09-01 | L40: 2007-10-01 | M40: 2007-11-01 | N40: 2007-12-01 | O40: 2007 | P40: 2008-01-01 | Q40: 2008-02-01 | R40: 2008-03-01 | S40: 2008-04-01 | T40: 2008-05-01 | U40: 2008-06-01 | V40: 2008-07-01 | W40: 2008-08-01 | X40: 2008-09-01 | Y40: 2008-10-01 | Z40: 2008-11-01 | AA40: 2008-12-01 | AB40: 2008 | AC40: 2009-01-01 | AD40: 2009-02-01 | AE40: 2009-03-01 | AF40: 2009-04-01 | AG40: 2009-05-01 | AH40: 2009-06-01 | AI40: 2009-07-01 | AJ40: 2009-08-01 | AK40: 2009-09-01 | AL40: 2009-10-01 | AM40: 2009-11-01 | AN40: 2009-12-01 | AO40: 2009 | AP40: 2010-01-31 | AQ40: 2010-02-28 | AR40: 2010-03-31 | AS40: 2010-04-30 | AT40: 2010-05-31 | AU40: 2010-06-30 | AV40: 2010-07-31 | AW40: 2010-08-31 | AX40: 2010-09-30 | AY40: 2010-10-31 | AZ40: 2010-11-30 | BA40: 2010-12-31 | BB40: 2010 | BC40: 2011-01-31 | BD40: 2011-02-28 | BE40: 2011-03-31 | BF40: 2011-04-30 | BG40: 2011-05-31 | BH40: 2011-06-30 | BI40: 2011-07-31 | BJ40: 2011-08-31 | BK40: 2011-09-30 | BL40: 2011-10-31 | BM40: 2011-11-30 | BN40: 2011-12-31 | BO40: 2011 | BP40: 2012-01-31 | BQ40: 2012-02-29 | BR40: 2012-03-31 | BS40: 2012-04-30 | BT40: 2012-05-31 | BU40: 2012-06-30 | BV40: 2012-07-31 | BW40: 2012-08-31 | BX40: 2012-09-30 | BY40: 2012-10-31 | BZ40: 2012-11-30 | CA40: 2012-12-31 | CB40: 2012 | CC40: 2013-01-31 | CD40: 2013-02-28 | CE40: 2013-03-31 | CF40: 2013-04-30 | CG40: 2013-05-31 | CH40: 2013-06-30 | CI40: 2013-07-31 | CJ40: 2013-08-31 | CK40: 2013-09-30 | CL40: 2013-10-31 | CM40: 2013-11-30 | CN40: 2013-12-31 | CO40: 2013 | CP40: 2014-01-31 | CQ40: 2014-02-28 | CR40: 2014-03-31 | CS40: 2014-04-30 | CT40: 2014-05-31 | CU40: 2014-06-30 | CV40: 2014-07-31 | CW40: 2014-08-31 | CX40: 2014-09-30 | CY40: 2014-10-31 | CZ40: 2014-11-30 | DA40: 2014-12-31 | DB40: 2014 | DC40: 2015-01-31 | DD40: 2015-02-28 | DE40: 2015-03-31 | DF40: 2015-04-30 | DG40: 2015-05-31 | DH40: 2015-06-30 | DI40: 2015-07-31 | DJ40: 2015-08-31 | DK40: 2015-09-30 | DL40: 2015-10-31 | DM40: 2015-11-30 | DN40: 2015-12-31 | DO40: 2015 | DP40: 2016-01-31 | DQ40: 2016-02-29 | DR40: 2016-03-31 | DS40: 2016-04-30 | DT40: 2016-05-31 | DU40: 2016-06-30 | DV40: 2016-07-31 | DW40: 2016-08-31 | DX40: 2016-09-30 | DY40: 2016-10-31 | DZ40: 2016-11-30 | EA40: 2016-12-31 | EB40: 2016 | EC40: 2017-01-31 | ED40: 2017-02-28 | EE40: 2017-03-31 | EF40: 2017-04-30 | EG40: 2017-05-31 | EH40: 2017-06-30 | EI40: 2017-07-31 | EJ40: 2017-08-31 | EK40: 2017-09-30 | EL40: 2017-10-31 | EM40: 2017-11-30 | EN40: 2017-12-31 | EO40: 2017
B41: Energía gestionada a subir | AP41: 1246.3556 | AQ41: 1114.1255 | AR41: 1556.7549 | AS41: 912.1146 | AT41: 836.9094 | AU41: 595.3996 | AV41: 1034.7743 | AW41: 1045.1475 | AX41: 965.5187 | AY41: 1060.9296 | AZ41: 1114.044 | BA41: 1027.1989 | BB41: =F48 -> 12509.2726 | BC41: 1065.6909 | BD41: 715.6914 | BE41: 804.2683 | BF41: 609.6617 | BG41: 526.2795 | BH41: 560.7567 | BI41: 701.591 | BJ41: 939.7726 | BK41: 870.6166 | BL41: 1049.8657 | BM41: 1167.5563 | BN41: 985.8931 | BO41: =G48 -> 9997.6438 | BP41: 772.5054 | BQ41: 658.5591 | BR41: 733.8913 | BS41: 670.4243 | BT41: 526.6517 | BU41: 507.7034 | BV41: 565.8654 | BW41: 334.6298 | BX41: 190.0212 | BY41: 474.0741 | BZ41: 414.3008 | CA41: 313.4346 | CB41: =H48 -> 6162.0611 | CC41: 422.7793 | CD41: 578.4982 | CE41: 1034.7455 | CF41: 1006.4628 | CG41: 944.2459 | CH41: 762.761 | CI41: 202.0059 | CJ41: 199.3874 | CK41: 210.8465 | CL41: 563.0017 | CM41: 630.2775 | CN41: 684.7898 | CO41: =I48 -> 7239.8015 | CP41: 1022.415 | CQ41: 900.2014 | CR41: 1069.2001 | CS41: 1107.7966 | CT41: 908.4477 | CU41: 692.3854 | CV41: 709.7092 | CW41: 846.6535 | CX41: 523.5476 | CY41: 713.8999 | CZ41: 552.973 | DA41: 523.3842 | DB41: =J48 -> 9570.6136 | DC41: 501.5451 | DD41: 540.9194 | DE41: 674.4164 | DF41: 734.9675 | DG41: 655.0535 | DH41: 427.2595 | DI41: 431.9092 | DJ41: 383.5959 | DK41: 417.997 | DL41: 598.6447 | DM41: 467.8419 | DN41: 449.0012 | DO41: =K48 -> 6283.1513 | DP41: 591.2924 | DQ41: 863.6377 | DR41: 1251.4126 | DS41: 1168.0612 | DT41: 1321.8996 | DU41: 1124.9644 | DV41: 1093.5414 | DW41: 1174.5786 | DX41: 1084.4208 | DY41: 772.888 | DZ41: 653.7732 | EA41: 733.2161 | EB41: =L48 -> 11833.686 | EC41: 731.8852 | ED41: 864.4636 | EE41: - | EF41: - | EG41: - | EH41: - | EI41: - | EJ41: - | EK41: - | EL41: - | EM41: - | EN41: - | EO41: =M48 -> 1596.3488
B42: Energía gestionada a bajar | AP42: 12.3608 | AQ42: 3.7662 | AR42: 10.0455 | AS42: 31.8173 | AT42: 0.1733 | AU42: 17.8649 | AV42: 215.9127 | AW42: 36.1145 | AX42: 47.2595 | AY42: 62.1884 | AZ42: 9.1905 | BA42: - | BB42: =F49 -> 446.6936 | BC42: 0.2365 | BD42: - | BE42: 5.3513 | BF42: 0.2425 | BG42: 2.6549 | BH42: 13.7782 | BI42: 18.1326 | BJ42: 53.4919 | BK42: 3.6821 | BL42: 130.0666 | BM42: 0.175 | BN42: 0.614 | BO42: =G49 -> 228.4256 | BP42: 0.6017 | BQ42: 2.8 | BR42: 8.9879 | BS42: - | BT42: 7.3286 | BU42: 10.9447 | BV42: 14.3815 | BW42: 7.8339 | BX42: 5.1984 | BY42: 2.7624 | BZ42: 0.05 | CA42: - | CB42: =H49 -> 60.8891 | CC42: 4.8518 | CD42: 0.6488 | CE42: 1.6876 | CF42: 0.4573 | CG42: 1.4307 | CH42: 6.0181 | CI42: 27.6272 | CJ42: 56.8951 | CK42: 26.0924 | CL42: 23.3988 | CM42: 2.2016 | CN42: 42.0387 | CO42: =I49 -> 193.3481 | CP42: - | CQ42: - | CR42: 7.5732 | CS42: 0.3384 | CT42: 7.9404 | CU42: 19.5732 | CV42: 27.7712 | CW42: 13.5751 | CX42: 26.3157 | CY42: 5.9191 | CZ42: 0.7442 | DA42: 0.6098 | DB42: =J49 -> 110.357 | DC42: - | DD42: 30.7586 | DE42: 4.6139 | DF42: 6.3235 | DG42: 16.4235 | DH42: 2.9248 | DI42: 22.357 | DJ42: 43.9448 | DK42: 21.8325 | DL42: 7.6466 | DM42: 21.3505 | DN42: 0.0022 | DO42: =K49 -> 178.1587 | DP42: 0.7061 | DQ42: 5.7799 | DR42: 19.823 | DS42: 7.3641 | DT42: 21.6872 | DU42: 12.9667 | DV42: 27.9263 | DW42: 18.4174 | DX42: 9.5168 | DY42: 47.0904 | DZ42: 6.2158 | EA42: 3.4174 | EB42: =L49 -> 180.9111 | EC42: 3.1632 | ED42: 67.0397 | EE42: - | EF42: - | EG42: - | EH42: - | EI42: - | EJ42: - | EK42: - | EL42: - | EM42: - | EN42: - | EO42: =M49 -> 70.2029
B43: Precio medio a subir | AP43: 88.70438059 | AQ43: 73.17763088 | AR43: 67.15509081 | AS43: 65.28999804 | AT43: 69.03638734 | AU43: 80.66519101 | AV43: 95.2552807 | AW43: 94.6667213 | AX43: 86.04385307 | AY43: 81.41110153 | AZ43: 82.26266937 | BA43: 83.91533431 | BB43: 80.49792412 | BC43: 83.76194212 | BD43: 82.102451 | BE43: 84.87958766 | BF43: 80.82768006 | BG43: 73.04712526 | BH43: 80.15834092 | BI43: 92.58056409 | BJ43: 91.12818917 | BK43: 106.2768084 | BL43: 106.5406514 | BM43: 106.2821456 | BN43: 114.4341474 | BO43: 94.11184696 | BP43: 112.1730849 | BQ43: 123.0349828 | BR43: 115.261367 | BS43: 119.3759136 | BT43: 117.6533129 | BU43: 114.854098 | BV43: 115.8736381 | BW43: 153.4886878 | BX43: 184.2168051 | BY43: 136.2420445 | BZ43: 165.2352752 | CA43: 201.3536286 | CB43: 129.9352769 | CC43: 165.9370716 | CD43: 124.2752143 | CE43: 96.75431356 | CF43: 90.72455849 | CG43: 102.4246301 | CH43: 111.7444781 | CI43: 182.1860251 | CJ43: 244.8022605 | CK43: 256.8240031 | CL43: 156.7742409 | CM43: 142.7155208 | CN43: 128.5622856 | CO43: 127.399839 | CP43: 108.5817422 | CQ43: 91.06118831 | CR43: 98.67035595 | CS43: 98.70745029 | CT43: 111.0756742 | CU43: 111.3165979 | CV43: 106.0350535 | CW43: 113.1211894 | CX43: 160.5111724 | CY43: 146.698756 | CZ43: 166.6081903 | DA43: 167.9442046 | DB43: 117.6244868 | DC43: 173.9160495 | DD43: 146.4619733 | DE43: 141.6213282 | DF43: 138.5069914 | DG43: 152.003641 | DH43: 157.9134199 | DI43: 181.4337893 | DJ43: 191.2686808 | DK43: 147.5226539 | DL43: 152.2909562 | DM43: 171.154239 | DN43: 143.5994953 | DO43: 155.9838376 | DP43: 124.3329214 | DQ43: 88.60871528 | DR43: 73.16403067 | DS43: 65.40930464 | DT43: 67.42280418 | DU43: 69.29406339 | DV43: 71.02898458 | DW43: 74.00467409 | DX43: 79.845896 | DY43: 101.9931578 | DZ43: 80.50721294 | EA43: 89.31782247 | EB43: 78.86918955 | EC43: 114.1208055 | ED43: 92.0844512 | EE43: - | EF43: - | EG43: - | EH43: - | EI43: - | EJ43: - | EK43: - | EL43: - | EM43: - | EN43: - | EO43: 102.1879312
B44: Precio medio a bajar | AP44: 29.53406333 | AQ44: 24.66481828 | AR44: 9.170516456 | AS44: 23.38560246 | AT44: 32.79026512 | AU44: 38.8925533 | AV44: 42.79207628 | AW44: 40.36081791 | AX44: 45.17736523 | AY44: 38.93005857 | AZ44: 36.09026912 | BA44: 42.17596453 | BB44: 32.41921309 | BC44: 39.31049661 | BD44: 46.96523435 | BE44: 42.88521714 | BF44: 42.8936842 | BG44: 46.83793828 | BH44: 48.36268899 | BI44: 48.28918351 | BJ44: 49.01776482 | BK44: 58.75664068 | BL44: 57.18658903 | BM44: 40.96336497 | BN44: 40.64893661 | BO44: 46.71754011 | BP44: 50.03389526 | BQ44: 56.10432594 | BR44: 44.01781385 | BS44: 35.65029091 | BT44: 38.26107705 | BU44: 51.70026125 | BV44: 49.71153336 | BW44: 48.49237902 | BX44: 41.91854208 | BY44: 40.93282046 | BZ44: 36.84354001 | CA44: 26.07797301 | CB44: 44.36393489 | CC44: 47.38075685 | CD44: 41.05677995 | CE44: 18.70624486 | CF44: 11.68381101 | CG44: 35.46150388 | CH44: 31.36628051 | CI44: 48.19627741 | CJ44: 46.17682063 | CK44: 44.08277112 | CL44: 40.75538152 | CM44: 35.86530109 | CN44: 45.41317948 | CO44: 32.8802697 | CP44: 23.33824772 | CQ44: 9.805758189 | CR44: 18.82497195 | CS44: 16.04187019 | CT44: 36.26578317 | CU44: 44.76793575 | CV44: 42.20234425 | CW44: 44.42582534 | CX44: 58.92180511 | CY44: 48.52690887 | CZ44: 40.98337716 | DA44: 40.27048659 | DB44: 32.5372 | DC44: 21.38199138 | DD44: 24.04035519 | DE44: 20.63785241 | DF44: 23.84363874 | DG44: 22.39822085 | DH44: 19.65417088 | DI44: 14.886628 | DJ44: 18.13087275 | DK44: 18.790171 | DL44: 16.79571597 | DM44: 15.15914969 | DN44: 19.28202819 | DO44: 44.86863748 | DP44: 20.34964477 | DQ44: 25.36896691 | DR44: 22.01253712 | DS44: 18.95040315 | DT44: 18.6160687 | DU44: 11.49891933 | DV44: 11.05181203 | DW44: 10.70518546 | DX44: 8.696503186 | DY44: 10.66789423 | DZ44: 15.12751134 | EA44: 13.98842629 | EB44: 35.16908657 | EC44: 19.84042446 | ED44: 15.12506532 | EE44: - | EF44: - | EG44: - | EH44: - | EI44: - | EJ44: - | EK44: - | EL44: - | EM44: - | EN44: - | EO44: 57.88332883
B47: Energía de restricciones al PBF de fase I y precios medios anuales | C47: 2007 | D47: 2008 | E47: 2009 | F47: 2010 | G47: 2011 | H47: 2012 | I47: 2013 | J47: 2014 | K47: 2015 | L47: 2016 | M47: 2017 | N47: 2018 | O47: 2019
B48: Energía gestionada a subir | C48: 8098.8977 | D48: 6765.0793 | E48: 9474.8609 | F48: 12509.2726 | G48: 9997.6438 | H48: 6162.0611 | I48: 7239.8015 | J48: 9570.6136 | K48: 6283.1513 | L48: 11833.686 | M48: 1596.3488 | N48: - | O48: -
B49: Energía gestionada a bajar | C49: 2601.5491 | D49: 857.4941 | E49: 707.2473 | F49: 446.6936 | G49: 228.4256 | H49: 60.8891 | I49: 193.3481 | J49: 110.357 | K49: 178.1587 | L49: 180.9111 | M49: 70.2029 | N49: - | O49: -
B50: Precio medio a subir | C50: 74.55916799 | D50: 123.8568416 | E50: 78.23550559 | F50: 80.49792412 | G50: 94.11184696 | H50: 129.9352769 | I50: 127.399839 | J50: 117.6244868 | K50: 155.9838376 | L50: 78.86918955 | M50: 102.1879312 | N50: - | O50: -
B51: Precio medio a bajar | C51: 45.49650281 | D51: 72.91819853 | E51: 38.61288934 | F51: 32.41921309 | G51: 46.71754011 | H51: 44.36393489 | I51: 32.8802697 | J51: 32.5372 | K51: 44.86863748 | L51: 35.16908657 | M51: 57.88332883 | N51: - | O51: -
B54: Energía de regulación secundaria y precios medios mensuales | C54: 2007-01-01 | D54: 2007-02-01 | E54: 2007-03-01 | F54: 2007-04-01 | G54: 2007-05-01 | H54: 2007-06-01 | I54: 2007-07-01 | J54: 2007-08-01 | K54: 2007-09-01 | L54: 2007-10-01 | M54: 2007-11-01 | N54: 2007-12-01 | O54: 2007 | P54: 2008-01-01 | Q54: 2008-02-01 | R54: 2008-03-01 | S54: 2008-04-01 | T54: 2008-05-01 | U54: 2008-06-01 | V54: 2008-07-01 | W54: 2008-08-01 | X54: 2008-09-01 | Y54: 2008-10-01 | Z54: 2008-11-01 | AA54: 2008-12-01 | AB54: 2008 | AC54: 2009-01-01 | AD54: 2009-02-01 | AE54: 2009-03-01 | AF54: 2009-04-01 | AG54: 2009-05-01 | AH54: 2009-06-01 | AI54: 2009-07-01 | AJ54: 2009-08-01 | AK54: 2009-09-01 | AL54: 2009-10-01 | AM54: 2009-11-01 | AN54: 2009-12-01 | AO54: 2009 | AP54: 2010-01-31 | AQ54: 2010-02-28 | AR54: 2010-03-31 | AS54: 2010-04-30 | AT54: 2010-05-31 | AU54: 2010-06-30 | AV54: 2010-07-31 | AW54: 2010-08-31 | AX54: 2010-09-30 | AY54: 2010-10-31 | AZ54: 2010-11-30 | BA54: 2010-12-31 | BB54: 2010 | BC54: 2011-01-31 | BD54: 2011-02-28 | BE54: 2011-03-31 | BF54: 2011-04-30 | BG54: 2011-05-31 | BH54: 2011-06-30 | BI54: 2011-07-31 | BJ54: 2011-08-31 | BK54: 2011-09-30 | BL54: 2011-10-31 | BM54: 2011-11-30 | BN54: 2011-12-31 | BO54: 2011 | BP54: 2012-01-31 | BQ54: 2012-02-29 | BR54: 2012-03-31 | BS54: 2012-04-30 | BT54: 2012-05-31 | BU54: 2012-06-30 | BV54: 2012-07-31 | BW54: 2012-08-31 | BX54: 2012-09-30 | BY54: 2012-10-31 | BZ54: 2012-11-30 | CA54: 2012-12-31 | CB54: 2012 | CC54: 2013-01-31 | CD54: 2013-02-28 | CE54: 2013-03-31 | CF54: 2013-04-30 | CG54: 2013-05-31 | CH54: 2013-06-30 | CI54: 2013-07-31 | CJ54: 2013-08-31 | CK54: 2013-09-30 | CL54: 2013-10-31 | CM54: 2013-11-30 | CN54: 2013-12-31 | CO54: 2013 | CP54: 2014-01-31 | CQ54: 2014-02-28 | CR54: 2014-03-31 | CS54: 2014-04-30 | CT54: 2014-05-31 | CU54: 2014-06-30 | CV54: 2014-07-31 | CW54: 2014-08-31 | CX54: 2014-09-30 | CY54: 2014-10-31 | CZ54: 2014-11-30 | DA54: 2014-12-31 | DB54: 2014 | DC54: 2015-01-31 | DD54: 2015-02-28 | DE54: 2015-03-31 | DF54: 2015-04-30 | DG54: 2015-05-31 | DH54: 2015-06-30 | DI54: 2015-07-31 | DJ54: 2015-08-31 | DK54: 2015-09-30 | DL54: 2015-10-31 | DM54: 2015-11-30 | DN54: 2015-12-31 | DO54: 2015 | DP54: 2016-01-31 | DQ54: 2016-02-29 | DR54: 2016-03-31 | DS54: 2016-04-30 | DT54: 2016-05-31 | DU54: 2016-06-30 | DV54: 2016-07-31 | DW54: 2016-08-31 | DX54: 2016-09-30 | DY54: 2016-10-31 | DZ54: 2016-11-30 | EA54: 2016-12-31 | EB54: 2016 | EC54: =EC2 -> 2017-01-31 | ED54: 2017-02-28 | EE54: 2017-03-31 | EF54: 2017-04-30 | EG54: 2017-05-31 | EH54: 2017-06-30 | EI54: 2017-07-31 | EJ54: 2017-08-31 | EK54: 2017-09-30 | EL54: 2017-10-31 | EM54: 2017-11-30 | EN54: 2017-12-31 | EO54: 2017
B55: Energía gestionada a subir | AP55: 111.858454 | AQ55: 99.514529 | AR55: 140.082268 | AS55: 126.675298 | AT55: 98.163102 | AU55: 97.723265 | AV55: 82.81549 | AW55: 63.901694 | AX55: 68.299137 | AY55: 83.241492 | AZ55: 89.086753 | BA55: 103.729148 | BB55: =F62 -> 1165.09063 | BC55: 85.516715 | BD55: 75.794835 | BE55: 131.80452 | BF55: 115.394439 | BG55: 89.892108 | BH55: 91.209007 | BI55: 78.721741 | BJ55: 99.772314 | BK55: 92.656922 | BL55: 104.534155 | BM55: 122.793892 | BN55: 124.416893 | BO55: =G62 -> 1212.507541 | BP55: 95.829729 | BQ55: 104.23274 | BR55: 137.451841 | BS55: 150.499711 | BT55: 161.227113 | BU55: 102.838663 | BV55: 110.171751 | BW55: 88.11684 | BX55: 103.859213 | BY55: 128.616341 | BZ55: 143.905117 | CA55: 183.616021 | CB55: =H62 -> 1510.36508 | CC55: 171.797297 | CD55: 146.232013 | CE55: 176.833415 | CF55: 192.209758 | CG55: 170.306426 | CH55: 149.065025 | CI55: 124.773447 | CJ55: 125.844602 | CK55: 111.608235 | CL55: 133.014772 | CM55: 153.516442 | CN55: 150.426562 | CO55: =I62 -> 1805.627994 | CP55: 196.8298 | CQ55: 172.7872 | CR55: 178.5847 | CS55: 205.6702 | CT55: 173.4267 | CU55: 125.3752 | CV55: 106.9522 | CW55: 89.7441 | CX55: 78.6827 | CY55: 130.5561 | CZ55: 145.1723 | DA55: 142.2369 | DB55: =J62 -> 1746.015378 | DC55: 133.7914 | DD55: 135.2947 | DE55: 144.5723 | DF55: 138.8812 | DG55: 138.1009 | DH55: 95.6628 | DI55: 71.1966 | DJ55: 106.6875 | DK55: 88.6117 | DL55: 108.8086 | DM55: 100.2275 | DN55: 104.4678 | DO55: =K62 -> 1366.304665 | DP55: 161.8609 | DQ55: 141.6763 | DR55: 162.7447 | DS55: 158.011 | DT55: 182.3069 | DU55: 127.4445 | DV55: 94.8435 | DW55: 101.2487 | DX55: 95.4527 | DY55: 89.6595 | DZ55: 103.0812 | EA55: 111.6551 | EB55: =L62 -> 1529.977857 | EC55: 114.0994 | ED55: 123.0622 | EE55: - | EF55: - | EG55: - | EH55: - | EI55: - | EJ55: - | EK55: - | EL55: - | EM55: - | EN55: - | EO55: =M62 -> 237.162199
B56: Energía gestionada a bajar | AP56: 134.546976 | AQ56: 141.970603 | AR56: 140.098791 | AS56: 102.705868 | AT56: 135.314162 | AU56: 121.521492 | AV56: 150.075622 | AW56: 164.768756 | AX56: 170.058544 | AY56: 155.938918 | AZ56: 161.886162 | BA56: 144.94361 | BB56: =F63 -> 1723.829504 | BC56: 153.223893 | BD56: 150.996311 | BE56: 129.528206 | BF56: 100.377704 | BG56: 147.394674 | BH56: 128.570257 | BI56: 135.588178 | BJ56: 115.535485 | BK56: 125.95819 | BL56: 108.941399 | BM56: 104.671733 | BN56: 113.555614 | BO56: =G63 -> 1514.341644 | BP56: 124.638602 | BQ56: 125.344257 | BR56: 107.943651 | BS56: 82.488203 | BT56: 78.09535 | BU56: 104.375774 | BV56: 115.074921 | BW56: 130.543715 | BX56: 121.41987 | BY56: 118.735159 | BZ56: 87.96219 | CA56: 65.794982 | CB56: =H63 -> 1262.416674 | CC56: 94.28603 | CD56: 81.404216 | CE56: 98.453813 | CF56: 86.494075 | CG56: 76.51819 | CH56: 77.887855 | CI56: 87.973297 | CJ56: 92.756681 | CK56: 100.823924 | CL56: 101.598428 | CM56: 84.130255 | CN56: 87.995928 | CO56: =I63 -> 1070.322692 | CP56: 68.6774 | CQ56: 64.8063 | CR56: 73.3321 | CS56: 47.3893 | CT56: 71.7153 | CU56: 77.5647 | CV56: 88.2712 | CW56: 113.1287 | CX56: 124.612 | CY56: 100.2405 | CZ56: 80.9826 | DA56: 83.9211 | DB56: =J63 -> 994.640484 | DC56: 114.7587 | DD56: 97.158 | DE56: 82.3575 | DF56: 85.6222 | DG56: 83.4013 | DH56: 92.2485 | DI56: 120.2382 | DJ56: 107.0094 | DK56: 111.1308 | DL56: 98.4427 | DM56: 99.3269 | DN56: 101.3148 | DO56: =K63 -> 1193.016203 | DP56: 87.594 | DQ56: 72.1719 | DR56: 69.4784 | DS56: 69.2375 | DT56: 57.7356 | DU56: 73.0813 | DV56: 91.8609 | DW56: 86.7543 | DX56: 97.6004 | DY56: 116.4398 | DZ56: 105.778 | EA56: 84.5953 | EB56: =L63 -> 1012.33132 | EC56: 108.0405 | ED56: 65.0634 | EE56: - | EF56: - | EG56: - | EH56: - | EI56: - | EJ56: - | EK56: - | EL56: - | EM56: - | EN56: - | EO56: =M63 -> 173.09948
B57: Precio medio a subir | AP57: 46.11001007 | AQ57: 31.40960713 | AR57: 29.50546603 | AS57: 30.44193296 | AT57: 40.65948629 | AU57: 42.56768058 | AV57: 43.92931781 | AW57: 43.80298588 | AX57: 45.5853836 | AY57: 42.66861099 | AZ57: 48.41899693 | BA57: 50.01990125 | BB57: 40.36460357 | BC57: 42.86382878 | BD57: 49.68758808 | BE57: 48.07483385 | BF57: 47.43094942 | BG57: 51.46362281 | BH57: 52.68324125 | BI57: 51.69948718 | BJ57: 55.97885672 | BK57: 56.68989134 | BL57: 57.71339214 | BM57: 53.7380694 | BN57: 50.86687762 | BO57: 51.57979881 | BP57: 54.76367986 | BQ57: 56.23659927 | BR57: 51.08738151 | BS57: 50.07785836 | BT57: 47.75784219 | BU57: 54.2073115 | BV57: 47.5551977 | BW57: 53.32408913 | BX57: 50.38626896 | BY57: 46.64607929 | BZ57: 54.42856643 | CA57: 49.29092364 | CB57: 50.97878464 | CC57: 58.92673917 | CD57: 53.96301198 | CE57: 33.56233747 | CF57: 31.19797362 | CG57: 49.69381813 | CH57: 47.04082524 | CI57: 56.26631987 | CJ57: 52.07140081 | CK57: 53.19528501 | CL57: 52.43041795 | CM57: 50.47670145 | CN57: 77.19751821 | CO57: 50.54609862 | CP57: 44.49747301 | CQ57: 24.06040497 | CR57: 31.36796681 | CS57: 34.4880151 | CT57: 46.64721584 | CU57: 55.20510596 | CV57: 48.9493883 | CW57: 50.62292238 | CX57: 62.63506728 | CY57: 61.11904373 | CZ57: 55.9746062 | DA57: 54.53035035 | DB57: 45.35476849 | DC57: 56.70239945 | DD57: 51.16209083 | DE57: 48.94815342 | DF57: 51.84651972 | DG57: 52.53934342 | DH57: 58.78942572 | DI57: 62.89067679 | DJ57: 56.6488078 | DK57: 51.43974994 | DL57: 52.54893589 | DM57: 53.69190143 | DN57: 53.31819403 | DO57: 53.73162437 | DP57: 43.43576858 | DQ57: 38.56272284 | DR57: 35.37917521 | DS57: 33.68820441 | DT57: 34.95711342 | DU57: 42.79535866 | DV57: 42.77824145 | DW57: 42.11331759 | DX57: 44.89717567 | DY57: 52.98969944 | DZ57: 58.88923865 | EA57: 62.75484769 | EB57: 43.03100645 | EC57: 75.30717304 | ED57: 56.12176929 | EE57: - | EF57: - | EG57: - | EH57: - | EI57: - | EJ57: - | EK57: - | EL57: - | EM57: - | EN57: - | EO57: 65.3518566
B58: Precio medio a bajar | AP58: 20.72427172 | AQ58: 13.64199305 | AR58: 7.815724905 | AS58: 18.05876807 | AT58: 24.58289222 | AU58: 26.76619762 | AV58: 31.63109402 | AW58: 32.1508633 | AX58: 33.17476745 | AY58: 24.63385965 | AZ58: 28.39380527 | BA58: 28.79536669 | BB58: 24.68443616 | BC58: 26.64273541 | BD58: 34.87019421 | BE58: 27.24817975 | BF58: 26.0699916 | BG58: 32.92807588 | BH58: 34.82383939 | BI58: 34.36174259 | BJ58: 38.49508547 | BK58: 41.91566757 | BL58: 39.35228838 | BM58: 33.28074562 | BN58: 30.65669268 | BO58: 33.32316954 | BP58: 38.12270816 | BQ58: 38.186225 | BR58: 31.30910201 | BS58: 24.49291567 | BT58: 26.80633546 | BU58: 37.72471876 | BV58: 32.74935379 | BW58: 36.16472076 | BX58: 26.62854597 | BY58: 30.29631139 | BZ58: 32.95917882 | CA58: 34.87643739 | CB58: 32.8599998 | CC58: 35.44296138 | CD58: 30.15885013 | CE58: 12.8897797 | CF58: 10.30120329 | CG58: 24.80783706 | CH58: 23.97600807 | CI58: 35.68874371 | CJ58: 33.56987568 | CK58: 33.01326132 | CL58: 30.09534252 | CM58: 27.9561184 | CN58: 44.96014781 | CO58: 28.65536121 | CP58: 15.09206684 | CQ58: 5.158581623 | CR58: 8.634864203 | CS58: 10.26730077 | CT58: 31.09324879 | CU58: 38.80526117 | CV58: 32.00572259 | CW58: 35.83440462 | CX58: 48.72923288 | CY58: 44.7364201 | CZ58: 38.05652927 | DA58: 38.086857 | DB58: 31.61362137 | DC58: 40.26876261 | DD58: 27.74435991 | DE58: 26.42987306 | DF58: 32.17009772 | DG58: 30.4183652 | DH58: 43.359192 | DI58: 47.68397627 | DJ58: 42.5016314 | DK58: 39.49179709 | DL58: 38.21347176 | DM58: 42.56970951 | DN58: 44.00054128 | DO58: 38.47668718 | DP58: 24.57047326 | DQ58: 17.34381539 | DR58: 17.10596896 | DS58: 11.68484157 | DT58: 15.77383384 | DU58: 29.03167005 | DV58: 33.19747298 | DW58: 32.05549496 | DX58: 35.14823245 | DY58: 45.46440685 | DZ58: 50.75246466 | EA58: 52.39902956 | EB58: 32.39062527 | EC58: 65.80000178 | ED58: 39.8691004 | EE58: - | EF58: - | EG58: - | EH58: - | EI58: - | EJ58: - | EK58: - | EL58: - | EM58: - | EN58: - | EO58: 56.0540841
B61: Energía de regulación secundaria y precios medios anuales | C61: 2007 | D61: 2008 | E61: 2009 | F61: 2010 | G61: 2011 | H61: 2012 | I61: 2013 | J61: 2014 | K61: 2015 | L61: 2016 | M61: 2017 | N61: 2018 | O61: 2019
B62: Energía gestionada a subir | F62: 1165.09063 | G62: 1212.507541 | H62: 1510.36508 | I62: 1805.627994 | J62: 1746.015378 | K62: 1366.304665 | L62: 1529.977857 | M62: 237.162199 | N62: - | O62: -
B63: Energía gestionada a bajar | F63: 1723.829504 | G63: 1514.341644 | H63: 1262.416674 | I63: 1070.322692 | J63: 994.640484 | K63: 1193.016203 | L63: 1012.33132 | M63: 173.09948 | N63: - | O63: -
B64: Precio medio a subir | F64: 40.36460357 | G64: 51.57979881 | H64: 50.97878464 | I64: 50.54609862 | J64: 45.35476849 | K64: 53.73162437 | L64: 43.03100645 | M64: 65.3518566 | N64: - | O64: -
B65: Precio medio a bajar | F65: 24.68443616 | G65: 33.32316954 | H65: 32.8599998 | I65: 28.65536121 | J65: 31.61362137 | K65: 38.47668718 | L65: 32.39062527 | M65: 56.0540841 | N65: - | O65: -
B68: Energía de regulación terciaria y precios medios mensuales | C68: 2007-01-01 | D68: 2007-02-01 | E68: 2007-03-01 | F68: 2007-04-01 | G68: 2007-05-01 | H68: 2007-06-01 | I68: 2007-07-01 | J68: 2007-08-01 | K68: 2007-09-01 | L68: 2007-10-01 | M68: 2007-11-01 | N68: 2007-12-01 | O68: 2007 | P68: 2008-01-01 | Q68: 2008-02-01 | R68: 2008-03-01 | S68: 2008-04-01 | T68: 2008-05-01 | U68: 2008-06-01 | V68: 2008-07-01 | W68: 2008-08-01 | X68: 2008-09-01 | Y68: 2008-10-01 | Z68: 2008-11-01 | AA68: 2008-12-01 | AB68: 2008 | AC68: 2009-01-01 | AD68: 2009-02-01 | AE68: 2009-03-01 | AF68: 2009-04-01 | AG68: 2009-05-01 | AH68: 2009-06-01 | AI68: 2009-07-01 | AJ68: 2009-08-01 | AK68: 2009-09-01 | AL68: 2009-10-01 | AM68: 2009-11-01 | AN68: 2009-12-01 | AO68: 2009 | AP68: 2010-01-31 | AQ68: 2010-02-28 | AR68: 2010-03-31 | AS68: 2010-04-30 | AT68: 2010-05-31 | AU68: 2010-06-30 | AV68: 2010-07-31 | AW68: 2010-08-31 | AX68: 2010-09-30 | AY68: 2010-10-31 | AZ68: 2010-11-30 | BA68: 2010-12-31 | BB68: 2010 | BC68: 2011-01-31 | BD68: 2011-02-28 | BE68: 2011-03-31 | BF68: 2011-04-30 | BG68: 2011-05-31 | BH68: 2011-06-30 | BI68: 2011-07-31 | BJ68: 2011-08-31 | BK68: 2011-09-30 | BL68: 2011-10-31 | BM68: 2011-11-30 | BN68: 2011-12-31 | BO68: 2011 | BP68: 2012-01-31 | BQ68: 2012-02-29 | BR68: 2012-03-31 | BS68: 2012-04-30 | BT68: 2012-05-31 | BU68: 2012-06-30 | BV68: 2012-07-31 | BW68: 2012-08-31 | BX68: 2012-09-30 | BY68: 2012-10-31 | BZ68: 2012-11-30 | CA68: 2012-12-31 | CB68: 2012 | CC68: 2013-01-31 | CD68: 2013-02-28 | CE68: 2013-03-31 | CF68: 2013-04-30 | CG68: 2013-05-31 | CH68: 2013-06-30 | CI68: 2013-07-31 | CJ68: 2013-08-31 | CK68: 2013-09-30 | CL68: 2013-10-31 | CM68: 2013-11-30 | CN68: 2013-12-31 | CO68: 2013 | CP68: 2014-01-31 | CQ68: 2014-02-28 | CR68: 2014-03-31 | CS68: 2014-04-30 | CT68: 2014-05-31 | CU68: 2014-06-30 | CV68: 2014-07-31 | CW68: 2014-08-31 | CX68: 2014-09-30 | CY68: 2014-10-31 | CZ68: 2014-11-30 | DA68: 2014-12-31 | DB68: 2014 | DC68: 2015-01-31 | DD68: 2015-02-28 | DE68: 2015-03-31 | DF68: 2015-04-30 | DG68: 2015-05-31 | DH68: 2015-06-30 | DI68: 2015-07-31 | DJ68: 2015-08-31 | DK68: 2015-09-30 | DL68: 2015-10-31 | DM68: 2015-11-30 | DN68: 2015-12-31 | DO68: 2015 | DP68: 2016-01-31 | DQ68: 2016-02-29 | DR68: 2016-03-31 | DS68: 2016-04-30 | DT68: 2016-05-31 | DU68: 2016-06-30 | DV68: 2016-07-31 | DW68: 2016-08-31 | DX68: 2016-09-30 | DY68: 2016-10-31 | DZ68: 2016-11-30 | EA68: 2016-12-31 | EB68: 2016 | EC68: 2017-01-31 | ED68: 2017-02-28 | EE68: 2017-03-31 | EF68: 2017-04-30 | EG68: 2017-05-31 | EH68: 2017-06-30 | EI68: 2017-07-31 | EJ68: 2017-08-31 | EK68: 2017-09-30 | EL68: 2017-10-31 | EM68: 2017-11-30 | EN68: 2017-12-31 | EO68: 2017
B69: Energía gestionada a subir | AP69: 438.9729 | AQ69: 229.856 | AR69: 270.0987 | AS69: 129.6391 | AT69: 196.3184 | AU69: 139.5306 | AV69: 174.9237 | AW69: 231.0397 | AX69: 105.3176 | AY69: 101.8513 | AZ69: 360.7269 | BA69: 347.4697 | BB69: =F76 -> 2725.7446 | BC69: 263.3304 | BD69: 158.3059 | BE69: 227.2592 | BF69: 134.2591 | BG69: 293.5372 | BH69: 239.2959 | BI69: 156.8705 | BJ69: 301.056 | BK69: 164.5843 | BL69: 154.0874 | BM69: 279.803 | BN69: 321.4388 | BO69: =G76 -> 2693.8277 | BP69: 321.9637 | BQ69: 218.4861 | BR69: 206.0524 | BS69: 253.2746 | BT69: 223.5064 | BU69: 269.2574 | BV69: 203.0835 | BW69: 285.0872 | BX69: 131.2475 | BY69: 182.7602 | BZ69: 391.3443 | CA69: 305.5519 | CB69: =H76 -> 2991.6152 | CC69: 321.3479 | CD69: 357.9102 | CE69: 221.207 | CF69: 187.1326 | CG69: 252.4547 | CH69: 215.8065 | CI69: 298.5499 | CJ69: 307.2236 | CK69: 235.2833 | CL69: 274.0867 | CM69: 305.5878 | CN69: 353.716 | CO69: =I76 -> 3330.3062 | CP69: 251.7104 | CQ69: 180.2362 | CR69: 169.8579 | CS69: 215.7807 | CT69: 226.9061 | CU69: 271.7799 | CV69: 286.6646 | CW69: 296.2868 | CX69: 274.0463 | CY69: 228.0859 | CZ69: 307.2396 | DA69: 357.7933 | DB69: =J76 -> 3066.3833 | DC69: 388.3984 | DD69: 273.7279 | DE69: 216.9294 | DF69: 209.1475 | DG69: 236.1656 | DH69: 333.4924 | DI69: 342.74 | DJ69: 262.3873 | DK69: 164.4892 | DL69: 252.0727 | DM69: 234.1187 | DN69: 212.27 | DO69: =K76 -> 3125.9391 | DP69: 208.4952 | DQ69: 194.6998 | DR69: 220.7757 | DS69: 219.3501 | DT69: 223.8897 | DU69: 229.5702 | DV69: 225.1188 | DW69: 171.3991 | DX69: 185.258 | DY69: 208.3675 | DZ69: 266.9272 | EA69: 202.9035 | EB69: =L76 -> 2556.7548 | EC69: 289.6221 | ED69: 110.8397 | EE69: - | EF69: - | EG69: - | EH69: - | EI69: - | EJ69: - | EK69: - | EL69: - | EM69: - | EN69: - | EO69: =M76 -> 400.4618
B70: Energía gestionada a bajar | AP70: 238.8434 | AQ70: 292.6736 | AR70: 309.0188 | AS70: 248.7834 | AT70: 228.6602 | AU70: 246.7493 | AV70: 205.0861 | AW70: 175.5663 | AX70: 281.6858 | AY70: 388.6523 | AZ70: 153.5247 | BA70: 213.3963 | BB70: =F77 -> 2982.6402 | BC70: 206.0456 | BD70: 321.0029 | BE70: 399.6712 | BF70: 295.2901 | BG70: 127.7918 | BH70: 98.3467 | BI70: 235.7071 | BJ70: 116.5237 | BK70: 185.7216 | BL70: 252.5488 | BM70: 145.4596 | BN70: 207.3213 | BO70: =G77 -> 2804.8267 | BP70: 152.1158 | BQ70: 215.777 | BR70: 282.3968 | BS70: 248.5352 | BT70: 170.6696 | BU70: 159.9353 | BV70: 194.8232 | BW70: 113.161 | BX70: 300.1932 | BY70: 245.7866 | BZ70: 74.3538 | CA70: 172.4455 | CB70: =H77 -> 2330.193 | CC70: 220.8507 | CD70: 135.4076 | CE70: 208.6698 | CF70: 170.5397 | CG70: 153.6566 | CH70: 152.2126 | CI70: 129.5262 | CJ70: 93.7404 | CK70: 126.3302 | CL70: 192.603 | CM70: 103.0528 | CN70: 125.0324 | CO70: =I77 -> 1811.622 | CP70: 205.168 | CQ70: 198.4688 | CR70: 266.7104 | CS70: 198.6982 | CT70: 166.9489 | CU70: 94.2595 | CV70: 105.7402 | CW70: 72.0309 | CX70: 92.2257 | CY70: 162.754 | CZ70: 116.9655 | DA70: 85.2625 | DB70: =J77 -> 1765.2282 | DC70: 155.8221 | DD70: 157.6778 | DE70: 182.5211 | DF70: 165.6923 | DG70: 115.4867 | DH70: 57.1059 | DI70: 58.5253 | DJ70: 172.2849 | DK70: 179.5205 | DL70: 134.7604 | DM70: 126.9627 | DN70: 120.2115 | DO70: =K77 -> 1626.5712 | DP70: 159.9994 | DQ70: 143.5981 | DR70: 162.378 | DS70: 154.0937 | DT70: 130.5845 | DU70: 92.0868 | DV70: 80.4367 | DW70: 116.6096 | DX70: 129.5468 | DY70: 118.5087 | DZ70: 127.074 | EA70: 138.4241 | EB70: =L77 -> 1553.3404 | EC70: 145.4631 | ED70: 223.4613 | EE70: - | EF70: - | EG70: - | EH70: - | EI70: - | EJ70: - | EK70: - | EL70: - | EM70: - | EN70: - | EO70: =M77 -> 368.9244
B71: Precio medio a subir | AP71: 58.54632131 | AQ71: 40.1341553 | AR71: 41.77144644 | AS71: 34.95802069 | AT71: 47.68890746 | AU71: 45.16314328 | AV71: 47.37383676 | AW71: 49.31788922 | AX71: 48.37667797 | AY71: 51.89422383 | AZ71: 57.98405431 | BA71: 57.63068719 | BB71: 50.4106099 | BC71: 50.45485827 | BD71: 57.38238689 | BE71: 56.39515918 | BF71: 52.13047153 | BG71: 54.32608668 | BH71: 55.93916791 | BI71: 56.57109648 | BJ71: 61.48746449 | BK71: 63.72294891 | BL71: 69.9976808 | BM71: 63.36721758 | BN71: 56.79798375 | BO71: =G78 -> 57.97133776 | BP71: 64.77924167 | BQ71: 65.15275017 | BR71: 60.27431818 | BS71: 63.28866614 | BT71: 53.06506445 | BU71: 62.44882692 | BV71: 55.15785522 | BW71: 61.69881752 | BX71: 59.59484737 | BY71: 55.34095055 | BZ71: 58.07765459 | CA71: 55.68332133 | CB71: =H78 -> 59.72870424 | CC71: 70.83837523 | CD71: 62.8998643 | CE71: 53.13026383 | CF71: 46.02616818 | CG71: 54.02750608 | CH71: 51.64115636 | CI71: 61.16369612 | CJ71: 60.83009362 | CK71: 61.53600081 | CL71: 63.05516517 | CM71: 56.85422802 | CN71: 89.49575439 | CO71: =I78 -> 62.50653885 | CP71: 53.5799661 | CQ71: 38.30836673 | CR71: 40.62201752 | CS71: 39.10931682 | CT71: 55.60679017 | CU71: 65.34377892 | CV71: 58.38542778 | CW71: 58.60582766 | CX71: 71.58554215 | CY71: 74.436278 | CZ71: 63.60696749 | DA71: 62.11184323 | DB71: 58.23448099 | DC71: 67.45301255 | DD71: 65.18955382 | DE71: 58.27303076 | DF71: 60.38992792 | DG71: 59.62037812 | DH71: 65.20342946 | DI71: 69.22235047 | DJ71: 66.97698373 | DK71: 58.16012383 | DL71: 58.45651548 | DM71: 63.46417501 | DN71: 63.85652151 | DO71: 63.7100972 | DP71: 52.73409206 | DQ71: 42.75878188 | DR71: 42.13102366 | DS71: 38.96734864 | DT71: 38.08884098 | DU71: 46.2155839 | DV71: 46.91828732 | DW71: 46.12676653 | DX71: 49.10279221 | DY71: 59.51991347 | DZ71: 67.23748262 | EA71: 69.35303225 | EB71: =L78 -> 50.17798767 | EC71: 86.02206838 | ED71: 68.2725002 | EE71: - | EF71: - | EG71: - | EH71: - | EI71: - | EJ71: - | EK71: - | EL71: - | EM71: - | EN71: - | EO71: =M78 -> 81.10934808
B72: Precio medio a bajar | AP72: 15.71142937 | AQ72: 9.470872364 | AR72: 3.302943866 | AS72: 13.47544965 | AT72: 17.10348355 | AU72: 20.96643435 | AV72: 27.85744948 | AW72: 26.32268408 | AX72: 29.99352747 | AY72: 18.04000766 | AZ72: 18.12050452 | BA72: 22.33245614 | BB72: 17.87816248 | BC72: 14.68594423 | BD72: 27.41654153 | BE72: 19.04800323 | BF72: 19.60553032 | BG72: 23.82695885 | BH72: 29.99721099 | BI72: 28.08926218 | BJ72: 26.71387881 | BK72: 35.06400909 | BL72: 30.50206847 | BM72: 24.7285304 | BN72: 22.22487337 | BO72: =G79 -> 24.45667554 | BP72: 29.00005266 | BQ72: 29.59232981 | BR72: 22.06584979 | BS72: 13.594184 | BT72: 18.09693572 | BU72: 26.80875517 | BV72: 25.48244567 | BW72: 23.5914733 | BX72: 19.97369181 | BY72: 22.05453715 | BZ72: 22.73937835 | CA72: 18.18062356 | CB72: =H79 -> 22.16972604 | CC72: 22.07497495 | CD72: 23.06109997 | CE72: 6.440657153 | CF72: 5.35391167 | CG72: 14.17744887 | CH72: 13.48322688 | CI72: 24.86643328 | CJ72: 22.69598828 | CK72: 19.69801504 | CL72: 15.91244524 | CM72: 13.01860706 | CN72: 30.13275967 | CO72: =I79 -> 16.833822 | CP72: 8.974696736 | CQ72: 0.9679391367 | CR72: 3.885243433 | CS72: 2.351539219 | CT72: 13.57672318 | CU72: 24.01282067 | CV72: 17.28218558 | CW72: 18.68221083 | CX72: 22.91159709 | CY72: 22.89721654 | CZ72: 20.0745065 | DA72: 18.49685559 | DB72: 11.89922168 | DC72: 30.46721537 | DD72: 11.69181857 | DE72: 13.67351556 | DF72: 19.55881191 | DG72: 20.92540093 | DH72: 33.61470076 | DI72: 41.11536993 | DJ72: 29.17975609 | DK72: 33.23344749 | DL72: 27.01967032 | DM72: 27.66993211 | DN72: 25.63008057 | DO72: 24.77513785 | DP72: 11.17120114 | DQ72: 10.84432217 | DR72: 5.359166143 | DS72: 3.864113199 | DT72: 5.226565481 | DU72: 17.55723144 | DV72: 26.86901203 | DW72: 23.8974328 | DX72: 26.82999364 | DY72: 38.16860374 | DZ72: 34.90745621 | EA72: 40.30570609 | EB72: =L79 -> 19.35933732 | EC72: 51.36483424 | ED72: 28.5257611 | EE72: - | EF72: - | EG72: - | EH72: - | EI72: - | EJ72: - | EK72: - | EL72: - | EM72: - | EN72: - | EO72: =M79 -> 37.53097296
B75: Energía de regulación terciaria y precios medios anuales | C75: 2007 | D75: 2008 | E75: 2009 | F75: 2010 | G75: 2011 | H75: 2012 | I75: 2013 | J75: 2014 | K75: 2015 | L75: 2016 | M75: 2017 | N75: 2018 | O75: 2019
B76: Energía gestionada a subir | F76: 2725.7446 | G76: 2693.8277 | H76: 2991.6152 | I76: 3330.3062 | J76: 3066.3833 | K76: 3125.9391 | L76: 2556.7548 | M76: 400.4618 | N76: - | O76: -
B77: Energía gestionada a bajar | F77: 2982.6402 | G77: 2804.8267 | H77: 2330.193 | I77: 1811.622 | J77: 1765.2282 | K77: 1626.5712 | L77: 1553.3404 | M77: 368.9244 | N77: - | O77: -
B78: Precio medio a subir | F78: 50.4106099 | G78: 57.97133776 | H78: 59.72870424 | I78: 62.50653885 | J78: 58.23448099 | K78: 63.7100972 | L78: 50.17798767 | M78: 81.10934808 | N78: - | O78: -
B79: Precio medio a bajar | F79: 17.87816248 | G79: 24.45667554 | H79: 22.16972604 | I79: 16.833822 | J79: 11.89922168 | K79: 24.77513785 | L79: 19.35933732 | M79: 37.53097296 | N79: - | O79: -
B82: Energía de gestión de desvíos y precios medios mensuales | C82: 2007-01-01 | D82: 2007-02-01 | E82: 2007-03-01 | F82: 2007-04-01 | G82: 2007-05-01 | H82: 2007-06-01 | I82: 2007-07-01 | J82: 2007-08-01 | K82: 2007-09-01 | L82: 2007-10-01 | M82: 2007-11-01 | N82: 2007-12-01 | O82: 2007 | P82: 2008-01-01 | Q82: 2008-02-01 | R82: 2008-03-01 | S82: 2008-04-01 | T82: 2008-05-01 | U82: 2008-06-01 | V82: 2008-07-01 | W82: 2008-08-01 | X82: 2008-09-01 | Y82: 2008-10-01 | Z82: 2008-11-01 | AA82: 2008-12-01 | AB82: 2008 | AC82: 2009-01-01 | AD82: 2009-02-01 | AE82: 2009-03-01 | AF82: 2009-04-01 | AG82: 2009-05-01 | AH82: 2009-06-01 | AI82: 2009-07-01 | AJ82: 2009-08-01 | AK82: 2009-09-01 | AL82: 2009-10-01 | AM82: 2009-11-01 | AN82: 2009-12-01 | AO82: 2009 | AP82: 2010-01-31 | AQ82: 2010-02-28 | AR82: 2010-03-31 | AS82: 2010-04-30 | AT82: 2010-05-31 | AU82: 2010-06-30 | AV82: 2010-07-31 | AW82: 2010-08-31 | AX82: 2010-09-30 | AY82: 2010-10-31 | AZ82: 2010-11-30 | BA82: 2010-12-31 | BB82: 2010 | BC82: 2011-01-31 | BD82: 2011-02-28 | BE82: 2011-03-31 | BF82: 2011-04-30 | BG82: 2011-05-31 | BH82: 2011-06-30 | BI82: 2011-07-31 | BJ82: 2011-08-31 | BK82: 2011-09-30 | BL82: 2011-10-31 | BM82: 2011-11-30 | BN82: 2011-12-31 | BO82: 2011 | BP82: 2012-01-31 | BQ82: 2012-02-29 | BR82: 2012-03-31 | BS82: 2012-04-30 | BT82: 2012-05-31 | BU82: 2012-06-30 | BV82: 2012-07-31 | BW82: 2012-08-31 | BX82: 2012-09-30 | BY82: 2012-10-31 | BZ82: 2012-11-30 | CA82: 2012-12-31 | CB82: 2012 | CC82: 2013-01-31 | CD82: 2013-02-28 | CE82: 2013-03-31 | CF82: 2013-04-30 | CG82: 2013-05-31 | CH82: 2013-06-30 | CI82: 2013-07-31 | CJ82: 2013-08-31 | CK82: 2013-09-30 | CL82: 2013-10-31 | CM82: 2013-11-30 | CN82: 2013-12-31 | CO82: 2013 | CP82: 2014-01-31 | CQ82: 2014-02-28 | CR82: 2014-03-31 | CS82: 2014-04-30 | CT82: 2014-05-31 | CU82: 2014-06-30 | CV82: 2014-07-31 | CW82: 2014-08-31 | CX82: 2014-09-30 | CY82: 2014-10-31 | CZ82: 2014-11-30 | DA82: 2014-12-31 | DB82: 2014 | DC82: 2015-01-31 | DD82: 2015-02-28 | DE82: 2015-03-31 | DF82: 2015-04-30 | DG82: 2015-05-31 | DH82: 2015-06-30 | DI82: 2015-07-31 | DJ82: 2015-08-31 | DK82: 2015-09-30 | DL82: 2015-10-31 | DM82: 2015-11-30 | DN82: 2015-12-31 | DO82: 2015 | DP82: 2016-01-31 | DQ82: 2016-02-29 | DR82: 2016-03-31 | DS82: 2016-04-30 | DT82: 2016-05-31 | DU82: 2016-06-30 | DV82: 2016-07-31 | DW82: 2016-08-31 | DX82: 2016-09-30 | DY82: 2016-10-31 | DZ82: 2016-11-30 | EA82: 2016-12-31 | EB82: 2016 | EC82: 2017-01-31 | ED82: 2017-02-28 | EE82: 2017-03-31 | EF82: 2017-04-30 | EG82: 2017-05-31 | EH82: 2017-06-30 | EI82: 2017-07-31 | EJ82: 2017-08-31 | EK82: 2017-09-30 | EL82: 2017-10-31 | EM82: 2017-11-30 | EN82: 2017-12-31 | EO82: 2017
B83: Energía gestionada a subir | AP83: 418.939 | AQ83: 167.4702 | AR83: 300.2732 | AS83: 30.7354 | AT83: 85.7372 | AU83: 92.16 | AV83: 130.2662 | AW83: 153.0204 | AX83: 64.3805 | AY83: 21.7001 | AZ83: 320.6059 | BA83: 413.1391 | BB83: =F90 -> 2198.4272 | BC83: 261.2235 | BD83: 112.0228 | BE83: 106.1044 | BF83: 21.7 | BG83: 130.367 | BH83: 174.6514 | BI83: 46.9915 | BJ83: 315.1456 | BK83: 73.5483 | BL83: 39.2392 | BM83: 247.0587 | BN83: 246.5229 | BO83: =G90 -> 1774.5753 | BP83: 406.2723 | BQ83: 296.8822 | BR83: 156.8769 | BS83: 151.3974 | BT83: 105.7827 | BU83: 227.8451 | BV83: 94.9558 | BW83: 356.6202 | BX83: 36.5292 | BY83: 67.7698 | BZ83: 421.4633 | CA83: 335.901 | CB83: =H90 -> 2658.2959 | CC83: 219.4743 | CD83: 231.1867 | CE83: 173.4352 | CF83: 91.9174 | CG83: 121.3096 | CH83: 113.4507 | CI83: 140.9461 | CJ83: 235.1692 | CK83: 113.0881 | CL83: 145.9054 | CM83: 374.1256 | CN83: 386.6676 | CO83: =I90 -> 2346.6759 | CP83: 143.8799 | CQ83: 159.8165 | CR83: 104.1305 | CS83: 110.3318 | CT83: 95.9411 | CU83: 109.2553 | CV83: 146.7277 | CW83: 173.8064 | CX83: 214.2233 | CY83: 67.0949 | CZ83: 139.3107 | DA83: 400.9099 | DB83: =J90 -> 1865.428 | DC83: 464.2285 | DD83: 295.2725 | DE83: 113.2883 | DF83: 80.1855 | DG83: 114.4642 | DH83: 315.7111 | DI83: 352.9111 | DJ83: 148.7741 | DK83: 42.8492 | DL83: 118.8414 | DM83: 93.3253 | DN83: 74.4377 | DO83: =K90 -> 2214.2889 | DP83: 106.5989 | DQ83: 113.4988 | DR83: 115.4776 | DS83: 81.5872 | DT83: 59.6994 | DU83: 79.2796 | DV83: 141.1282 | DW83: 72.0973 | DX83: 155.2 | DY83: 70.97 | DZ83: 129.2457 | EA83: 58.4998 | EB83: =L90 -> 1183.2825 | EC83: 151.5086 | ED83: 31.8599 | EE83: - | EF83: - | EG83: - | EH83: - | EI83: - | EJ83: - | EK83: - | EL83: - | EM83: - | EN83: - | EO83: =M90 -> 183.3685
B84: Energía gestionada a bajar | AP84: 171.344 | AQ84: 390.1447 | AR84: 208.274 | AS84: 264.7964 | AT84: 175.8885 | AU84: 237.2927 | AV84: 66.286 | AW84: 99.8382 | AX84: 306.9079 | AY84: 426.5652 | AZ84: 134.8268 | BA84: 192.374 | BB84: =F91 -> 2674.5384 | BC84: 191.8707 | BD84: 414.9432 | BE84: 290.4867 | BF84: 269.5728 | BG84: 78.6548 | BH84: 51.2169 | BI84: 71.2493 | BJ84: 17.6198 | BK84: 137.0448 | BL84: 264.1569 | BM84: 83.3118 | BN84: 175.9251 | BO84: =G91 -> 2238.4268 | BP84: 85.6452 | BQ84: 162.7954 | BR84: 152.1473 | BS84: 96.6069 | BT84: 81.0612 | BU84: 64.662 | BV84: 66.9543 | BW84: 10.8 | BX84: 193.2134 | BY84: 233.3021 | BZ84: 13.7088 | CA84: 70.919 | CB84: =H91 -> 1231.8156 | CC84: 181.8346 | CD84: 90.7751 | CE84: 112.4418 | CF84: 124.3272 | CG84: 51.1136 | CH84: 58.6826 | CI84: 58.374 | CJ84: 9.6 | CK84: 34.4513 | CL84: 110.1372 | CM84: 28.9923 | CN84: 44.2702 | CO84: =I91 -> 904.9999 | CP84: 81.79 | CQ84: 76.026 | CR84: 136.2905 | CS84: 81.1806 | CT84: 46.6104 | CU84: 24.2332 | CV84: 18.2508 | CW84: 9.5528 | CX84: 13.6999 | CY84: 28.7779 | CZ84: 28.841 | DA84: 26.1878 | DB84: =J91 -> 571.4409 | DC84: 89.1758 | DD84: 35.8807 | DE84: 79.235 | DF84: 50.783 | DG84: 35.3816 | DH84: 29.4 | DI84: 11.1003 | DJ84: 85.4587 | DK84: 58.3724 | DL84: 24.3857 | DM84: 23.4576 | DN84: 25.9756 | DO84: =K91 -> 548.6064 | DP84: 44.5611 | DQ84: 34.2288 | DR84: 48.7045 | DS84: 30.1438 | DT84: 20.3538 | DU84: 25.6043 | DV84: 38.7616 | DW84: 53.6833 | DX84: 68.5903 | DY84: 37.5946 | DZ84: 22.7085 | EA84: 40.1604 | EB84: =L91 -> 465.095 | EC84: 47.0948 | ED84: 110.5849 | EE84: - | EF84: - | EG84: - | EH84: - | EI84: - | EJ84: - | EK84: - | EL84: - | EM84: - | EN84: - | EO84: =M91 -> 157.6797
B85: Precio medio a subir | AP85: 51.30349834 | AQ85: 35.47951433 | AR85: 34.96319139 | AS85: 31.26187621 | AT85: 42.3560598 | AU85: 44.65377539 | AV85: 48.16413567 | AW85: 46.7679895 | AX85: 45.47460333 | AY85: 48.79942028 | AZ85: 78.22012047 | BA85: 55.66246489 | BB85: 51.00571597 | BC85: 48.90782242 | BD85: 51.38200545 | BE85: 52.32738492 | BF85: 51.36262765 | BG85: 53.20619758 | BH85: 54.1875484 | BI85: 53.45534682 | BJ85: 58.94607461 | BK85: 56.03647358 | BL85: 62.04634498 | BM85: 56.02332353 | BN85: 53.81578989 | BO85: =G92 -> 54.29540261 | BP85: 61.15461276 | BQ85: 63.63534958 | BR85: 52.33982224 | BS85: 61.27917401 | BT85: 49.2108877 | BU85: 76.18083593 | BV85: 52.63678701 | BW85: 63.79185929 | BX85: 50.26036157 | BY85: 57.64727386 | BZ85: 53.12540318 | CA85: 60.95115344 | CB85: =H92 -> 60.24289665 | CC85: 65.48347515 | CD85: 56.20139372 | CE85: 51.2783454 | CF85: 50.19988892 | CG85: 49.86809453 | CH85: 47.48346568 | CI85: 65.34343334 | CJ85: 56.85428755 | CK85: 58.77726993 | CL85: 60.28785713 | CM85: 58.26256134 | CN85: 74.73767275 | CO85: =I92 -> 60.09732506 | CP85: 49.48491964 | CQ85: 38.22866913 | CR85: 39.91260812 | CS85: 37.84171671 | CT85: 50.20117416 | CU85: 63.11585864 | CV85: 54.50919043 | CW85: 55.36768548 | CX85: 68.56953492 | CY85: 67.18311556 | CZ85: 60.85760878 | DA85: 59.6856336 | DB85: 54.94588913 | DC85: 65.64711619 | DD85: 59.35646086 | DE85: 55.71067974 | DF85: 56.31465951 | DG85: 54.80853682 | DH85: 65.13673476 | DI85: 66.56462755 | DJ85: 67.90755158 | DK85: 55.37039898 | DL85: 53.53734944 | DM85: 60.62475995 | DN85: 58.17663012 | DO85: 62.31538071 | DP85: 48.9430875 | DQ85: 37.3515194 | DR85: 37.47493999 | DS85: 35.81221258 | DT85: 35.24133593 | DU85: 45.43784542 | DV85: 45.58387913 | DW85: 46.11907547 | DX85: 50.60600219 | DY85: 58.41328843 | DZ85: 64.99511195 | EA85: 67.59690478 | EB85: =L92 -> 47.76945947 | EC85: 84.92563234 | ED85: 75.52373736 | EE85: - | EF85: - | EG85: - | EH85: - | EI85: - | EJ85: - | EK85: - | EL85: - | EM85: - | EN85: - | EO85: =M92 -> 83.29207241
B86: Precio medio a bajar | AP86: 20.83929615 | AQ86: 10.46771221 | AR86: 5.620231714 | AS86: 15.2865798 | AT86: 21.33022648 | AU86: 22.8530372 | AV86: 30.45850391 | AW86: 31.01528673 | AX86: 31.93334232 | AY86: 23.89796127 | AZ86: 24.21007092 | BA86: 25.67896899 | BB86: 20.6995867 | BC86: 17.8635886 | BD86: 32.45641579 | BE86: 26.26829008 | BF86: 26.90614038 | BG86: 27.30503784 | BH86: 36.84901429 | BI86: 36.96531306 | BJ86: 37.38622289 | BK86: 38.19527549 | BL86: 35.40207646 | BM86: 26.05263816 | BN86: 29.43117833 | BO86: =G93 -> 29.83335407 | BP86: 35.76018808 | BQ86: 34.12439535 | BR86: 26.24022201 | BS86: 19.34160438 | BT86: 23.18979031 | BU86: 26.71998685 | BV86: 30.84196474 | BW86: 36.73083333 | BX86: 26.2084403 | BY86: 25.74070105 | BZ86: 23.10487716 | CA86: 25.42857993 | CB86: =H93 -> 27.38838562 | CC86: 31.26688903 | CD86: 25.87423093 | CE86: 6.833716198 | CF86: 2.608488328 | CG86: 21.56355823 | CH86: 20.47699659 | CI86: 32.20436067 | CJ86: 25.37333646 | CK86: 31.33011062 | CL86: 27.17499846 | CM86: 14.11347289 | CN86: 53.57240401 | CO86: =I93 -> 22.54954922 | CP86: 6.501511309 | CQ86: 1.215848131 | CR86: 6.348794744 | CS86: 2.620149642 | CT86: 19.99708477 | CU86: 33.35106424 | CV86: 26.60555099 | CW86: 33.49854388 | CX86: 42.11979795 | CY86: 28.08582489 | CZ86: 25.35023959 | DA86: 23.8843492 | DB86: 12.23210645 | DC86: 40.28282684 | DD86: 25.01406299 | DE86: 19.02389664 | DF86: 30.01325227 | DG86: 30.17035663 | DH86: 36.93627993 | DI86: 43.1021594 | DJ86: 38.86205383 | DK86: 42.31986555 | DL86: 32.5012007 | DM86: 32.07272142 | DN86: 33.81178337 | DO86: 33.48074966 | DP86: 14.42365449 | DQ86: 16.16851978 | DR86: 13.89181636 | DS86: 4.88161048 | DT86: 12.85252631 | DU86: 24.85945603 | DV86: 31.89916283 | DW86: 26.90442316 | DX86: 32.70448402 | DY86: 42.42782128 | DZ86: 39.59090297 | EA86: 47.52423656 | EB86: =L93 -> 26.32731902 | EC86: 56.50591084 | ED86: 39.27895246 | EE86: - | EF86: - | EG86: - | EH86: - | EI86: - | EJ86: - | EK86: - | EL86: - | EM86: - | EN86: - | EO86: =M93 -> 44.42419411
B89: Energía de gestión de desvíos y precios medios anuales | C89: 2007 | D89: 2008 | E89: 2009 | F89: 2010 | G89: 2011 | H89: 2012 | I89: 2013 | J89: 2014 | K89: 2015 | L89: 2016 | M89: 2017 | N89: 2018 | O89: 2019
B90: Energía gestionada a subir | F90: 2198.4272 | G90: 1774.5753 | H90: 2658.2959 | I90: 2346.6759 | J90: 1865.428 | K90: 2214.2889 | L90: 1183.2825 | M90: 183.3685 | N90: - | O90: -
B91: Energía gestionada a bajar | F91: 2674.5384 | G91: 2238.4268 | H91: 1231.8156 | I91: 904.9999 | J91: 571.4409 | K91: 548.6064 | L91: 465.095 | M91: 157.6797 | N91: - | O91: -
B92: Precio medio a subir | F92: 51.00571597 | G92: 54.29540261 | H92: 60.24289665 | I92: 60.09732506 | J92: 54.94588913 | K92: 62.31538071 | L92: 47.76945947 | M92: 83.29207241 | N92: - | O92: -
B93: Precio medio a bajar | F93: 20.6995867 | G93: 29.83335407 | H93: 27.38838562 | I93: 22.54954922 | J93: 12.23210645 | K93: 33.48074966 | L93: 26.32731902 | M93: 44.42419411 | N93: - | O93: -
B96: Energía de restricciones en tiempo real y precios medios mensuales | C96: 2007-01-01 | D96: 2007-02-01 | E96: 2007-03-01 | F96: 2007-04-01 | G96: 2007-05-01 | H96: 2007-06-01 | I96: 2007-07-01 | J96: 2007-08-01 | K96: 2007-09-01 | L96: 2007-10-01 | M96: 2007-11-01 | N96: 2007-12-01 | O96: 2007 | P96: 2008-01-01 | Q96: 2008-02-01 | R96: 2008-03-01 | S96: 2008-04-01 | T96: 2008-05-01 | U96: 2008-06-01 | V96: 2008-07-01 | W96: 2008-08-01 | X96: 2008-09-01 | Y96: 2008-10-01 | Z96: 2008-11-01 | AA96: 2008-12-01 | AB96: 2008 | AC96: 2009-01-01 | AD96: 2009-02-01 | AE96: 2009-03-01 | AF96: 2009-04-01 | AG96: 2009-05-01 | AH96: 2009-06-01 | AI96: 2009-07-01 | AJ96: 2009-08-01 | AK96: 2009-09-01 | AL96: 2009-10-01 | AM96: 2009-11-01 | AN96: 2009-12-01 | AO96: 2009 | AP96: 2010-01-31 | AQ96: 2010-02-28 | AR96: 2010-03-31 | AS96: 2010-04-30 | AT96: 2010-05-31 | AU96: 2010-06-30 | AV96: 2010-07-31 | AW96: 2010-08-31 | AX96: 2010-09-30 | AY96: 2010-10-31 | AZ96: 2010-11-30 | BA96: 2010-12-31 | BB96: 2010 | BC96: 2011-01-31 | BD96: 2011-02-28 | BE96: 2011-03-31 | BF96: 2011-04-30 | BG96: 2011-05-31 | BH96: 2011-06-30 | BI96: 2011-07-31 | BJ96: 2011-08-31 | BK96: 2011-09-30 | BL96: 2011-10-31 | BM96: 2011-11-30 | BN96: 2011-12-31 | BO96: 2011 | BP96: 2012-01-31 | BQ96: 2012-02-29 | BR96: 2012-03-31 | BS96: 2012-04-30 | BT96: 2012-05-31 | BU96: 2012-06-30 | BV96: 2012-07-31 | BW96: 2012-08-31 | BX96: 2012-09-30 | BY96: 2012-10-31 | BZ96: 2012-11-30 | CA96: 2012-12-31 | CB96: 2012 | CC96: 2013-01-31 | CD96: 2013-02-28 | CE96: 2013-03-31 | CF96: 2013-04-30 | CG96: 2013-05-31 | CH96: 2013-06-30 | CI96: 2013-07-31 | CJ96: 2013-08-31 | CK96: 2013-09-30 | CL96: 2013-10-31 | CM96: 2013-11-30 | CN96: 2013-12-31 | CO96: 2013 | CP96: 2014-01-31 | CQ96: 2014-02-28 | CR96: 2014-03-31 | CS96: 2014-04-30 | CT96: 2014-05-31 | CU96: 2014-06-30 | CV96: 2014-07-31 | CW96: 2014-08-31 | CX96: 2014-09-30 | CY96: 2014-10-31 | CZ96: 2014-11-30 | DA96: 2014-12-31 | DB96: 2014 | DC96: 2015-01-31 | DD96: 2015-02-28 | DE96: 2015-03-31 | DF96: 2015-04-30 | DG96: 2015-05-31 | DH96: 2015-06-30 | DI96: 2015-07-31 | DJ96: 2015-08-31 | DK96: 2015-09-30 | DL96: 2015-10-31 | DM96: 2015-11-30 | DN96: 2015-12-31 | DO96: 2015 | DP96: 2016-01-31 | DQ96: 2016-02-29 | DR96: 2016-03-31 | DS96: 2016-04-30 | DT96: 2016-05-31 | DU96: 2016-06-30 | DV96: 2016-07-31 | DW96: 2016-08-31 | DX96: 2016-09-30 | DY96: 2016-10-31 | DZ96: 2016-11-30 | EA96: 2016-12-31 | EB96: 2016 | EC96: 2017-01-31 | ED96: 2017-02-28 | EE96: 2017-03-31 | EF96: 2017-04-30 | EG96: 2017-05-31 | EH96: 2017-06-30 | EI96: 2017-07-31 | EJ96: 2017-08-31 | EK96: 2017-09-30 | EL96: 2017-10-31 | EM96: 2017-11-30 | EN96: 2017-12-31 | EO96: 2017
B97: Energía gestionada a subir | AP97: 104.0862 | AQ97: 73.0581 | AR97: 125.3482 | AS97: 60.5691 | AT97: 73.2906 | AU97: 31.1168 | AV97: 54.4828 | AW97: 50.1013 | AX97: 46.203 | AY97: 165.803 | AZ97: 52.126 | BA97: 50.8392 | BB97: =F104 -> 887.0243 | BC97: 68.6454 | BD97: 27.3744 | BE97: 92.2079 | BF97: 49.2167 | BG97: 52.6684 | BH97: 29.8229 | BI97: 24.2206 | BJ97: 35.5291 | BK97: 24.5561 | BL97: 82.9802 | BM97: 87.6849 | BN97: 82.4633 | BO97: =G104 -> 657.3699 | BP97: 35.5706 | BQ97: 50.0712 | BR97: 67.5283 | BS97: 69.9927 | BT97: 44.7615 | BU97: 70.043 | BV97: 29.4854 | BW97: 57.897 | BX97: 49.3553 | BY97: 66.8281 | BZ97: 38.0447 | CA97: 55.594 | CB97: =H104 -> 635.1718 | CC97: 41.3003 | CD97: 29.8341 | CE97: 92.6575 | CF97: 95.0147 | CG97: 33.7418 | CH97: 27.0409 | CI97: 16.8729 | CJ97: 47.5491 | CK97: 34.8312 | CL97: 45.7015 | CM97: 53.0301 | CN97: 40.758 | CO97: =I104 -> 558.3321 | CP97: 30.1149 | CQ97: 52.5362 | CR97: 44.5984 | CS97: 54.2247 | CT97: 33.3442 | CU97: 29.9564 | CV97: 43.135 | CW97: 50.8115 | CX97: 58.8955 | CY97: 64.0927 | CZ97: 57.5148 | DA97: 36.4114 | DB97: =J104 -> 555.6357 | DC97: 41.0855 | DD97: 57.4022 | DE97: 50.0138 | DF97: 59.4502 | DG97: 45.2619 | DH97: 46.4365 | DI97: 54.6712 | DJ97: 42.9146 | DK97: 23.5053 | DL97: 35.3333 | DM97: 48.5153 | DN97: 14.2358 | DO97: =K104 -> 518.8256 | DP97: 27.7134 | DQ97: 38.769 | DR97: 39.7632 | DS97: 47.7557 | DT97: 37.2708 | DU97: 42.1284 | DV97: 8.6616 | DW97: 25.2597 | DX97: 20.9897 | DY97: 42.4251 | DZ97: 35.0821 | EA97: 24.632 | EB97: =L104 -> 390.4507 | EC97: 34.5139 | ED97: 22.3091 | EE97: - | EF97: - | EG97: - | EH97: - | EI97: - | EJ97: - | EK97: - | EL97: - | EM97: - | EN97: - | EO97: =M104 -> 56.823
B98: Energía gestionada a bajar | AP98: 132.0453 | AQ98: 150.7334 | AR98: 159.4941 | AS98: 57.5318 | AT98: 29.5175 | AU98: 32.5909 | AV98: 42.9407 | AW98: 20.8107 | AX98: 42.7857 | AY98: 103.2082 | AZ98: 60.8752 | BA98: 68.2989 | BB98: =F105 -> 900.8324 | BC98: 87.8898 | BD98: 28.7318 | BE98: 46.3751 | BF98: 44.627 | BG98: 46.0699 | BH98: 39.1546 | BI98: 23.7358 | BJ98: 39.1116 | BK98: 20.2341 | BL98: 25.7468 | BM98: 61.5461 | BN98: 46.098 | BO98: =G105 -> 509.3206 | BP98: 18.2123 | BQ98: 19.2627 | BR98: 18.7131 | BS98: 80.8347 | BT98: 38.3752 | BU98: 36.238 | BV98: 27.0752 | BW98: 25.7802 | BX98: 62.01 | BY98: 82.815 | BZ98: 31.2724 | CA98: 43.2383 | CB98: =H105 -> 483.8271 | CC98: 99.4863 | CD98: 58.0301 | CE98: 544.5603 | CF98: 559.5229 | CG98: 76.3318 | CH98: 61.5489 | CI98: 13.8866 | CJ98: 50.9002 | CK98: 13.2068 | CL98: 45.1316 | CM98: 60.6258 | CN98: 118.2344 | CO98: =I105 -> 1701.4657 | CP98: 233.7446 | CQ98: 336.1011 | CR98: 193.3553 | CS98: 65.127 | CT98: 78.236 | CU98: 55.8891 | CV98: 43.8586 | CW98: 21.4546 | CX98: 25.1032 | CY98: 48.8337 | CZ98: 86.9776 | DA98: 85.3448 | DB98: =J105 -> 1274.0256 | DC98: 115.0553 | DD98: 66.9411 | DE98: 169.8557 | DF98: 127.9278 | DG98: 149.6146 | DH98: 66.1235 | DI98: 37.2492 | DJ98: 89.3535 | DK98: 92.1385 | DL98: 99.4956 | DM98: 67.9198 | DN98: 69.8974 | DO98: =K105 -> 1151.572 | DP98: 103.1041 | DQ98: 81.6075 | DR98: 63.4275 | DS98: 49.4731 | DT98: 49.2662 | DU98: 29.937 | DV98: 17.6595 | DW98: 16.7185 | DX98: 22.7591 | DY98: 56.2274 | DZ98: 52.3833 | EA98: 102.61 | EB98: =L105 -> 645.1732 | EC98: 55.794 | ED98: 96.1476 | EE98: - | EF98: - | EG98: - | EH98: - | EI98: - | EJ98: - | EK98: - | EL98: - | EM98: - | EN98: - | EO98: =M105 -> 151.9416
B99: Precio medio a subir | AP99: 113.1480083 | AQ99: 76.94740982 | AR99: 93.45567042 | AS99: 80.34158639 | AT99: 88.24556737 | AU99: 85.57860545 | AV99: 97.55776697 | AW99: 100.9187915 | AX99: 129.5784808 | AY99: 96.22339733 | AZ99: 127.5628221 | BA99: 150.404149 | BB99: =F106 -> 101.3869711 | BC99: 120.1626377 | BD99: 88.77714398 | BE99: 112.6348004 | BF99: 102.8362857 | BG99: 141.6558555 | BH99: 144.2529482 | BI99: 92.24419061 | BJ99: 104.8569651 | BK99: 139.2726736 | BL99: 154.8224407 | BM99: 156.6537155 | BN99: 134.593663 | BO99: =G106 -> 128.8540485 | BP99: 162.5332446 | BQ99: 131.8503491 | BR99: 135.285252 | BS99: 134.153464 | BT99: 158.4519596 | BU99: 132.5353185 | BV99: 156.8885425 | BW99: 154.4998979 | BX99: 200.6010787 | BY99: 535.0147171 | BZ99: 562.1597655 | CA99: 248.8875859 | CB99: =H106 -> 225.2974592 | CC99: 239.7775072 | CD99: 311.658284 | CE99: 146.5263402 | CF99: 168.8364627 | CG99: 275.072764 | CH99: 208.0629938 | CI99: 160.3535391 | CJ99: 173.0373395 | CK99: 211.1143766 | CL99: 416.8095717 | CM99: 312.7945392 | CN99: 250.7461676 | CO99: =I106 -> 228.5493252 | CP99: 238.7799505 | CQ99: 276.9290236 | CR99: 303.9145978 | CS99: 414.1184966 | CT99: 163.6986339 | CU99: 112.0620356 | CV99: 96.84067525 | CW99: 114.4189115 | CX99: 137.8872381 | CY99: 139.3844468 | CZ99: 131.0575009 | DA99: 121.4315868 | DB99: 187.9939557 | DC99: 116.6376609 | DD99: 122.6624761 | DE99: 105.2820789 | DF99: 105.4255255 | DG99: 93.27156426 | DH99: 87.54416538 | DI99: 102.0829285 | DJ99: 88.89779931 | DK99: 98.38838039 | DL99: 99.86889623 | DM99: 115.9217182 | DN99: 109.6104662 | DO99: 104.0872974 | DP99: 111.0513597 | DQ99: 83.93261401 | DR99: 97.37973755 | DS99: 90.42065161 | DT99: 84.99012995 | DU99: 69.79896665 | DV99: 57.72923017 | DW99: 79.06955227 | DX99: 88.3636606 | DY99: 114.3329621 | DZ99: 117.6549217 | EA99: 106.5830679 | EB99: =L106 -> 94.13199791 | EC99: 162.0228412 | ED99: 100.8488461 | EE99: - | EF99: - | EG99: - | EH99: - | EI99: - | EJ99: - | EK99: - | EL99: - | EM99: - | EN99: - | EO99: =M106 -> 137.4818026
B100: Precio medio a bajar | AP100: 5.223008922 | AQ100: 4.009540022 | AR100: 4.567091196 | AS100: 4.925736375 | AT100: 24.67457068 | AU100: 11.22062692 | AV100: 15.8156276 | AW100: 12.65747476 | AX100: 16.57568066 | AY100: 18.35538736 | AZ100: 10.76585933 | BA100: 16.87015516 | BB100: =F107 -> 9.257856628 | BC100: 10.30300701 | BD100: 16.17704358 | BE100: 16.53192067 | BF100: 17.94612516 | BG100: 20.66480877 | BH100: 20.3143065 | BI100: 33.88345022 | BJ100: 15.70259243 | BK100: 23.7841987 | BL100: 18.38767404 | BM100: 14.37064782 | BN100: 22.08448966 | BO100: =G107 -> 17.6872484 | BP100: 18.81804078 | BQ100: 22.9156795 | BR100: 17.57617339 | BS100: 11.32759929 | BT100: 17.37790751 | BU100: 28.89147283 | BV100: 22.14432106 | BW100: 20.01171433 | BX100: 16.87211376 | BY100: 15.35394492 | BZ100: 19.83129915 | CA100: 12.66264894 | CB100: =H107 -> 17.55992935 | CC100: 14.13730775 | CD100: 14.87574738 | CE100: 1.492865815 | CF100: 1.352754127 | CG100: 19.92531703 | CH100: 17.87539452 | CI100: 28.25600169 | CJ100: 28.77905277 | CK100: 22.92308743 | CL100: 20.48917307 | CM100: 15.95878727 | CN100: 14.87814762 | CO100: =I107 -> 8.122794834 | CP100: 5.872654131 | CQ100: 2.655461226 | CR100: 3.659198585 | CS100: 11.00117572 | CT100: 18.13297082 | CU100: 20.8537055 | CV100: 14.96196314 | CW100: 20.67378252 | CX100: 23.73675335 | CY100: 24.38405192 | CZ100: 22.57287478 | DA100: 18.1607171 | DB100: 11.30055255 | DC100: 18.55103561 | DD100: 16.09975601 | DE100: 17.59087785 | DF100: 15.78214399 | DG100: 17.18853691 | DH100: 19.90552163 | DI100: 34.44667119 | DJ100: 21.11142579 | DK100: 21.63990657 | DL100: 19.43854748 | DM100: 20.61950634 | DN100: 21.48898065 | DO100: 19.39059235 | DP100: 13.52283675 | DQ100: 6.474704703 | DR100: 9.36761062 | DS100: 9.063368631 | DT100: 10.14387663 | DU100: 18.76825656 | DV100: 7.302660004 | DW100: 16.28395427 | DX100: 19.10485642 | DY100: 20.74562013 | DZ100: 28.42515013 | EA100: 23.06481839 | EB100: =L107 -> 16.1514693 | EC100: 29.11605268 | ED100: 10.40375194 | EE100: - | EF100: - | EG100: - | EH100: - | EI100: - | EJ100: - | EK100: - | EL100: - | EM100: - | EN100: - | EO100: =M107 -> 18.88104349
B103: Energía de restricciones en tiempo real y precios medios anuales | C103: 2007 | D103: 2008 | E103: 2009 | F103: 2010 | G103: 2011 | H103: 2012 | I103: 2013 | J103: 2014 | K103: 2015 | L103: 2016 | M103: 2017 | N103: 2018 | O103: 2019
B104: Energía gestionada a subir | F104: =SUM([1]REST.TREAL!$D$147:$D$158) -> 887.0243 | G104: =SUM([1]REST.TREAL!$D$159:$D$170) -> 657.3699 | H104: =SUM([1]REST.TREAL!$D$171:$D$182) -> 635.1718 | I104: =SUM([1]REST.TREAL!$D$183:$D$194) -> 558.3321 | J104: 555.6357 | K104: 518.8256 | L104: 390.4507 | M104: 56.823 | N104: - | O104: -
B105: Energía gestionada a bajar | F105: =-SUM([1]REST.TREAL!$E$147:$E$158) -> 900.8324 | G105: =-SUM([1]REST.TREAL!$E$159:$E$170) -> 509.3206 | H105: =-SUM([1]REST.TREAL!$E$171:$E$182) -> 483.8271 | I105: =-SUM([1]REST.TREAL!$E$183:$E$194) -> 1701.4657 | J105: 1274.0256 | K105: 1151.572 | L105: 645.1732 | M105: 151.9416 | N105: - | O105: -
B106: Precio medio a subir | F106: 101.3869711 | G106: 128.8540485 | H106: 225.2974592 | I106: 228.5493252 | J106: 187.9939557 | K106: 104.0872974 | L106: 94.13199791 | M106: 137.4818026 | N106: - | O106: -
B107: Precio medio a bajar | F107: 9.257856628 | G107: 17.6872484 | H107: 17.55992935 | I107: 8.122794834 | J107: 11.30055255 | K107: 19.39059235 | L107: 16.1514693 | M107: 18.88104349 | N107: - | O107: -
B110: Energía gestionada en los servicios de ajuste mensual | C110: 2007-01-01 | D110: 2007-02-01 | E110: 2007-03-01 | F110: 2007-04-01 | G110: 2007-05-01 | H110: 2007-06-01 | I110: 2007-07-01 | J110: 2007-08-01 | K110: 2007-09-01 | L110: 2007-10-01 | M110: 2007-11-01 | N110: 2007-12-01 | O110: 2007 | P110: 2008-01-01 | Q110: 2008-02-01 | R110: 2008-03-01 | S110: 2008-04-01 | T110: 2008-05-01 | U110: 2008-06-01 | V110: 2008-07-01 | W110: 2008-08-01 | X110: 2008-09-01 | Y110: 2008-10-01 | Z110: 2008-11-01 | AA110: 2008-12-01 | AB110: 2008 | AC110: 2009-01-01 | AD110: 2009-02-01 | AE110: 2009-03-01 | AF110: 2009-04-01 | AG110: 2009-05-01 | AH110: 2009-06-01 | AI110: 2009-07-01 | AJ110: 2009-08-01 | AK110: 2009-09-01 | AL110: 2009-10-01 | AM110: 2009-11-01 | AN110: 2009-12-01 | AO110: 2009 | AP110: 2010-01-31 | AQ110: 2010-02-28 | AR110: 2010-03-31 | AS110: 2010-04-30 | AT110: 2010-05-31 | AU110: 2010-06-30 | AV110: 2010-07-31 | AW110: 2010-08-31 | AX110: 2010-09-30 | AY110: 2010-10-31 | AZ110: 2010-11-30 | BA110: 2010-12-31 | BB110: 2010 | BC110: 2011-01-31 | BD110: 2011-02-28 | BE110: 2011-03-31 | BF110: 2011-04-30 | BG110: 2011-05-31 | BH110: 2011-06-30 | BI110: 2011-07-31 | BJ110: 2011-08-31 | BK110: 2011-09-30 | BL110: 2011-10-31 | BM110: 2011-11-30 | BN110: 2011-12-31 | BO110: 2011 | BP110: 2012-01-31 | BQ110: 2012-02-29 | BR110: 2012-03-31 | BS110: 2012-04-30 | BT110: 2012-05-31 | BU110: 2012-06-30 | BV110: 2012-07-31 | BW110: 2012-08-31 | BX110: 2012-09-30 | BY110: 2012-10-31 | BZ110: 2012-11-30 | CA110: 2012-12-31 | CB110: 2012 | CC110: 2013-01-31 | CD110: 2013-02-28 | CE110: 2013-03-31 | CF110: 2013-04-30 | CG110: 2013-05-31 | CH110: 2013-06-30 | CI110: 2013-07-31 | CJ110: 2013-08-31 | CK110: 2013-09-30 | CL110: 2013-10-31 | CM110: 2013-11-30 | CN110: 2013-12-31 | CO110: 2013 | CP110: 2014-01-31 | CQ110: 2014-02-28 | CR110: 2014-03-31 | CS110: 2014-04-30 | CT110: 2014-05-31 | CU110: 2014-06-30 | CV110: 2014-07-31 | CW110: 2014-08-31 | CX110: 2014-09-30 | CY110: 2014-10-31 | CZ110: 2014-11-30 | DA110: 2014-12-31 | DB110: 2014 | DC110: 2015-01-31 | DD110: 2015-02-28 | DE110: 2015-03-31 | DF110: 2015-04-30 | DG110: 2015-05-31 | DH110: 2015-06-30 | DI110: 2015-07-31 | DJ110: 2015-08-31 | DK110: 2015-09-30 | DL110: 2015-10-31 | DM110: 2015-11-30 | DN110: 2015-12-31 | DO110: 2015 | DP110: 2016-01-31 | DQ110: 2016-02-29 | DR110: 2016-03-31 | DS110: 2016-04-30 | DT110: 2016-05-31 | DU110: 2016-06-30 | DV110: 2016-07-31 | DW110: 2016-08-31 | DX110: 2016-09-30 | DY110: 2016-10-31 | DZ110: 2016-11-30 | EA110: 2016-12-31 | EB110: 2016 | EC110: 2017-01-31 | ED110: 2017-02-28 | EE110: 2017-03-31 | EF110: 2017-04-30 | EG110: 2017-05-31 | EH110: 2017-06-30 | EI110: 2017-07-31 | EJ110: 2017-08-31 | EK110: 2017-09-30 | EL110: 2017-10-31 | EM110: 2017-11-30 | EN110: 2017-12-31 | EO110: 2017
B111: subir
B112: Restricciones garantia suministro | AP112: - | AQ112: - | AR112: - | AS112: - | AT112: - | AU112: - | AV112: - | AW112: - | AX112: - | AY112: - | AZ112: - | BA112: - | BB112: - | BC112: - | BD112: 88.1526 | BE112: 1443.2759 | BF112: 1436.3099 | BG112: 1897.5696 | BH112: 1581.9083 | BI112: 1728.5361 | BJ112: 1214.8078 | BK112: 791.9966 | BL112: 656.1344 | BM112: 1014.076 | BN112: 920.4277 | BO112: =SUM(BC112:BN112) -> 12773.1949 | BP112: 888.8611 | BQ112: 876.3716 | BR112: 1366.9492 | BS112: 605.5805 | BT112: 1308.0091 | BU112: 978.1552 | BV112: 1263.6622 | BW112: 1411.6549 | BX112: 977.8727 | BY112: 912.9793 | BZ112: 922.7407 | CA112: 495.3301 | CB112: =SUM(BP112:CA112) -> 12008.1666 | CC112: - | CD112: 76.6399 | CE112: 21.8684 | CF112: 42.4633 | CG112: 283.6204 | CH112: 739.9203 | CI112: 741.8104 | CJ112: 862.3616 | CK112: 696.4146 | CL112: 344.079 | CM112: 226.1154 | CN112: 50.0934 | CO112: =SUM(CC112:CN112) -> 4085.3867 | CP112: 96.3623 | CQ112: 8.288 | CR112: 79.9707 | CS112: 238.4946 | CT112: 509.6456 | CU112: 379.1636 | CV112: 703.0215 | CW112: 389.6326 | CX112: 150.5846 | CY112: 162.6155 | CZ112: 275.7073 | DA112: 266.3279 | DB112: =SUM(CP112:DA112) -> 3259.8142 | DC112: - | DD112: - | DE112: - | DF112: - | DG112: - | DH112: - | DI112: - | DJ112: - | DK112: - | DL112: - | DM112: - | DN112: - | DO112: - | DP112: - | DQ112: - | DR112: - | DS112: - | DT112: - | DU112: - | DV112: - | DW112: - | DX112: - | DY112: - | DZ112: - | EA112: - | EB112: - | EC112: - | ED112: - | EE112: - | EF112: - | EG112: - | EH112: - | EI112: - | EJ112: - | EK112: - | EL112: - | EM112: - | EN112: - | EO112: -
B113: Restricciones PBF | AP113: =AP41 -> 1246.3556 | AQ113: =AQ41 -> 1114.1255 | AR113: 1556.7549 | AS113: 912.1146 | AT113: 836.9094 | AU113: 595.3996 | AV113: 1034.7743 | AW113: 1045.1475 | AX113: 965.5187 | AY113: 1060.9296 | AZ113: 1114.044 | BA113: 1027.1989 | BB113: 12509.2726 | BC113: 1065.6909 | BD113: 715.6914 | BE113: 804.2683 | BF113: 609.6617 | BG113: 526.2795 | BH113: 560.7567 | BI113: 701.591 | BJ113: 939.7726 | BK113: 870.6166 | BL113: 1049.8657 | BM113: 1167.5563 | BN113: 985.8931 | BO113: 9997.6438 | BP113: 772.5054 | BQ113: 658.5591 | BR113: 733.8913 | BS113: 670.4243 | BT113: 526.6517 | BU113: 507.7034 | BV113: 565.8654 | BW113: 334.6298 | BX113: 190.0212 | BY113: 474.0741 | BZ113: 414.3008 | CA113: 313.4346 | CB113: 6162.0611 | CC113: 422.7793 | CD113: 578.4982 | CE113: 1034.7455 | CF113: 1006.4628 | CG113: 944.2459 | CH113: 762.761 | CI113: 202.0059 | CJ113: 199.3874 | CK113: 210.8465 | CL113: 563.0017 | CM113: 630.2775 | CN113: 684.7898 | CO113: 7239.8015 | CP113: 1022.415 | CQ113: 900.2014 | CR113: 1069.2001 | CS113: 1107.7966 | CT113: 908.4477 | CU113: 692.3854 | CV113: 709.7092 | CW113: 846.6535 | CX113: 523.5476 | CY113: 713.8999 | CZ113: 552.973 | DA113: 523.3842 | DB113: 9570.6136 | DC113: =DC41 -> 501.5451 | DD113: 540.9194 | DE113: 674.4164 | DF113: 734.9675 | DG113: 655.0535 | DH113: 427.2595 | DI113: 431.9092 | DJ113: 383.5959 | DK113: 417.997 | DL113: 598.6447 | DM113: 467.8419 | DN113: 449.0012 | DO113: 6283.1513 | DP113: 591.2924 | DQ113: 863.6377 | DR113: 1251.4126 | DS113: 1168.0612 | DT113: 1321.8996 | DU113: 1124.9644 | DV113: 1093.5414 | DW113: 1174.5786 | DX113: 1084.4208 | DY113: 772.888 | DZ113: 653.7732 | EA113: 733.2161 | EB113: 11833.686 | EC113: =EC41 -> 731.8852 | ED113: 864.4636 | EE113: =EE41 -> - | EF113: - | EG113: - | EH113: - | EI113: - | EJ113: - | EK113: - | EL113: - | EM113: - | EN113: - | EO113: 1596.3488
B114: Regulación secundaria | AP114: =AP55 -> 111.858454 | AQ114: =AQ55 -> 99.514529 | AR114: 140.082268 | AS114: 126.675298 | AT114: 98.163102 | AU114: 97.723265 | AV114: 82.81549 | AW114: 63.901694 | AX114: 68.299137 | AY114: 83.241492 | AZ114: 89.086753 | BA114: 103.729148 | BB114: 1165.09063 | BC114: 85.516715 | BD114: 75.794835 | BE114: 131.80452 | BF114: 115.394439 | BG114: 89.892108 | BH114: 91.209007 | BI114: 78.721741 | BJ114: 99.772314 | BK114: 92.656922 | BL114: 104.534155 | BM114: 122.793892 | BN114: 124.416893 | BO114: 1212.507541 | BP114: 95.829729 | BQ114: 104.23274 | BR114: 137.451841 | BS114: 150.499711 | BT114: 161.227113 | BU114: 102.838663 | BV114: 110.171751 | BW114: 88.11684 | BX114: 103.859213 | BY114: 128.616341 | BZ114: 143.905117 | CA114: 183.616021 | CB114: 1510.36508 | CC114: 171.797297 | CD114: 146.232013 | CE114: 176.833415 | CF114: 192.209758 | CG114: 170.306426 | CH114: 149.065025 | CI114: 124.773447 | CJ114: 125.844602 | CK114: 111.608235 | CL114: 133.014772 | CM114: 153.516442 | CN114: 150.426562 | CO114: 1805.627994 | CP114: 196.8298 | CQ114: 172.7872 | CR114: 178.5847 | CS114: 205.6702 | CT114: 173.4267 | CU114: 125.3752 | CV114: 106.9522 | CW114: 89.7441 | CX114: 78.6827 | CY114: 130.5561 | CZ114: 145.1723 | DA114: 142.2369 | DB114: 1746.015378 | DC114: =DC55 -> 133.7914 | DD114: 135.2947 | DE114: 144.5723 | DF114: 138.8812 | DG114: 138.1009 | DH114: 95.6628 | DI114: 71.1966 | DJ114: 106.6875 | DK114: 88.6117 | DL114: 108.8086 | DM114: 100.2275 | DN114: 104.4678 | DO114: 1366.304665 | DP114: 161.8609 | DQ114: 141.6763 | DR114: 162.7447 | DS114: 158.011 | DT114: 182.3069 | DU114: 127.4445 | DV114: 94.8435 | DW114: 101.2487 | DX114: 95.4527 | DY114: 89.6595 | DZ114: 103.0812 | EA114: 111.6551 | EB114: 1529.977857 | EC114: =EC55 -> 114.0994 | ED114: 123.0622 | EE114: =EE55 -> - | EF114: - | EG114: - | EH114: - | EI114: - | EJ114: - | EK114: - | EL114: - | EM114: - | EN114: - | EO114: 237.162199
B115: Regulación terciaria | AP115: =AP69 -> 438.9729 | AQ115: =AQ69 -> 229.856 | AR115: 270.0987 | AS115: 129.6391 | AT115: 196.3184 | AU115: 139.5306 | AV115: 174.9237 | AW115: 231.0397 | AX115: 105.3176 | AY115: 101.8513 | AZ115: 360.7269 | BA115: 347.4697 | BB115: 2725.7446 | BC115: 263.3304 | BD115: 158.3059 | BE115: 227.2592 | BF115: 134.2591 | BG115: 293.5372 | BH115: 239.2959 | BI115: 156.8705 | BJ115: 301.056 | BK115: 164.5843 | BL115: 154.0874 | BM115: 279.803 | BN115: 321.4388 | BO115: 2693.8277 | BP115: 321.9637 | BQ115: 218.4861 | BR115: 206.0524 | BS115: 253.2746 | BT115: 223.5064 | BU115: 269.2574 | BV115: 203.0835 | BW115: 285.0872 | BX115: 131.2475 | BY115: 182.7602 | BZ115: 391.3443 | CA115: 305.5519 | CB115: 2991.6152 | CC115: 321.3479 | CD115: 357.9102 | CE115: 221.207 | CF115: 187.1326 | CG115: 252.4547 | CH115: 215.8065 | CI115: 298.5499 | CJ115: 307.2236 | CK115: 235.2833 | CL115: 274.0867 | CM115: 305.5878 | CN115: 353.716 | CO115: 3330.3062 | CP115: 251.7104 | CQ115: 180.2362 | CR115: 169.8579 | CS115: 215.7807 | CT115: 226.9061 | CU115: 271.7799 | CV115: 286.6646 | CW115: 296.2868 | CX115: 274.0463 | CY115: 228.0859 | CZ115: 307.2396 | DA115: 357.7933 | DB115: 3066.3833 | DC115: =DC69 -> 388.3984 | DD115: 273.7279 | DE115: 216.9294 | DF115: 209.1475 | DG115: 236.1656 | DH115: 333.4924 | DI115: 342.74 | DJ115: 262.3873 | DK115: 164.4892 | DL115: 252.0727 | DM115: 234.1187 | DN115: 212.27 | DO115: 3125.9391 | DP115: 208.4952 | DQ115: 194.6998 | DR115: 220.7757 | DS115: 219.3501 | DT115: 223.8897 | DU115: 229.5702 | DV115: 225.1188 | DW115: 171.3991 | DX115: 185.258 | DY115: 208.3675 | DZ115: 266.9272 | EA115: 202.9035 | EB115: 2556.7548 | EC115: =EC69 -> 289.6221 | ED115: 110.8397 | EE115: =EE69 -> - | EF115: - | EG115: - | EH115: - | EI115: - | EJ115: - | EK115: - | EL115: - | EM115: - | EN115: - | EO115: 400.4618
B116: Gestión de desvíos | AP116: =AP83 -> 418.939 | AQ116: =AQ83 -> 167.4702 | AR116: 300.2732 | AS116: 30.7354 | AT116: 85.7372 | AU116: 92.16 | AV116: 130.2662 | AW116: 153.0204 | AX116: 64.3805 | AY116: 21.7001 | AZ116: 320.6059 | BA116: 413.1391 | BB116: 2198.4272 | BC116: 261.2235 | BD116: 112.0228 | BE116: 106.1044 | BF116: 21.7 | BG116: 130.367 | BH116: 174.6514 | BI116: 46.9915 | BJ116: 315.1456 | BK116: 73.5483 | BL116: 39.2392 | BM116: 247.0587 | BN116: 246.5229 | BO116: 1774.5753 | BP116: 406.2723 | BQ116: 296.8822 | BR116: 156.8769 | BS116: 151.3974 | BT116: 105.7827 | BU116: 227.8451 | BV116: 94.9558 | BW116: 356.6202 | BX116: 36.5292 | BY116: 67.7698 | BZ116: 421.4633 | CA116: 335.901 | CB116: 2658.2959 | CC116: 219.4743 | CD116: 231.1867 | CE116: 173.4352 | CF116: 91.9174 | CG116: 121.3096 | CH116: 113.4507 | CI116: 140.9461 | CJ116: 235.1692 | CK116: 113.0881 | CL116: 145.9054 | CM116: 374.1256 | CN116: 386.6676 | CO116: 2346.6759 | CP116: 143.8799 | CQ116: 159.8165 | CR116: 104.1305 | CS116: 110.3318 | CT116: 95.9411 | CU116: 109.2553 | CV116: 146.7277 | CW116: 173.8064 | CX116: 214.2233 | CY116: 67.0949 | CZ116: 139.3107 | DA116: 400.9099 | DB116: 1865.428 | DC116: =DC83 -> 464.2285 | DD116: 295.2725 | DE116: 113.2883 | DF116: 80.1855 | DG116: 114.4642 | DH116: 315.7111 | DI116: 352.9111 | DJ116: 148.7741 | DK116: 42.8492 | DL116: 118.8414 | DM116: 93.3253 | DN116: 74.4377 | DO116: 2214.2889 | DP116: 106.5989 | DQ116: 113.4988 | DR116: 115.4776 | DS116: 81.5872 | DT116: 59.6994 | DU116: 79.2796 | DV116: 141.1282 | DW116: 72.0973 | DX116: 155.2 | DY116: 70.97 | DZ116: 129.2457 | EA116: 58.4998 | EB116: 1183.2825 | EC116: =EC83 -> 151.5086 | ED116: 31.8599 | EE116: =EE83 -> - | EF116: - | EG116: - | EH116: - | EI116: - | EJ116: - | EK116: - | EL116: - | EM116: - | EN116: - | EO116: 183.3685
B117: Restricciones en tiempo real | AP117: =AP97 -> 104.0862 | AQ117: =AQ97 -> 73.0581 | AR117: 125.3482 | AS117: 60.5691 | AT117: 73.2906 | AU117: 31.1168 | AV117: 54.4828 | AW117: 50.1013 | AX117: 46.203 | AY117: 165.803 | AZ117: 52.126 | BA117: 50.8392 | BB117: 887.0243 | BC117: 68.6454 | BD117: 27.3744 | BE117: 92.2079 | BF117: 49.2167 | BG117: 52.6684 | BH117: 29.8229 | BI117: 24.2206 | BJ117: 35.5291 | BK117: 24.5561 | BL117: 82.9802 | BM117: 87.6849 | BN117: 82.4633 | BO117: 657.3699 | BP117: 35.5706 | BQ117: 50.0712 | BR117: 67.5283 | BS117: 69.9927 | BT117: 44.7615 | BU117: 70.043 | BV117: 29.4854 | BW117: 57.897 | BX117: 49.3553 | BY117: 66.8281 | BZ117: 38.0447 | CA117: 55.594 | CB117: 635.1718 | CC117: 41.3003 | CD117: 29.8341 | CE117: 92.6575 | CF117: 95.0147 | CG117: 33.7418 | CH117: 27.0409 | CI117: 16.8729 | CJ117: 47.5491 | CK117: 34.8312 | CL117: 45.7015 | CM117: 53.0301 | CN117: 40.758 | CO117: 558.3321 | CP117: 30.1149 | CQ117: 52.5362 | CR117: 44.5984 | CS117: 54.2247 | CT117: 33.3442 | CU117: 29.9564 | CV117: 43.135 | CW117: 50.8115 | CX117: 58.8955 | CY117: 64.0927 | CZ117: 57.5148 | DA117: 36.4114 | DB117: 555.6357 | DC117: =DC97 -> 41.0855 | DD117: 57.4022 | DE117: 50.0138 | DF117: 59.4502 | DG117: 45.2619 | DH117: 46.4365 | DI117: 54.6712 | DJ117: 42.9146 | DK117: 23.5053 | DL117: 35.3333 | DM117: 48.5153 | DN117: 14.2358 | DO117: 518.8256 | DP117: 27.7134 | DQ117: 38.769 | DR117: 39.7632 | DS117: 47.7557 | DT117: 37.2708 | DU117: 42.1284 | DV117: 8.6616 | DW117: 25.2597 | DX117: 20.9897 | DY117: 42.4251 | DZ117: 35.0821 | EA117: 24.632 | EB117: 390.4507 | EC117: =EC97 -> 34.5139 | ED117: 22.3091 | EE117: =EE97 -> - | EF117: - | EG117: - | EH117: - | EI117: - | EJ117: - | EK117: - | EL117: - | EM117: - | EN117: - | EO117: 56.823
B118: Total subir
B119: bajar
B120: Restricciones garantia suministro | AP120: - | AQ120: - | AR120: - | AS120: - | AT120: - | AU120: - | AV120: - | AW120: - | AX120: - | AY120: - | AZ120: - | BA120: - | BB120: - | BC120: - | BD120: - | BE120: - | BF120: - | BG120: - | BH120: - | BI120: - | BJ120: - | BK120: - | BL120: - | BM120: - | BN120: - | BO120: - | BP120: - | BQ120: - | BR120: - | BS120: - | BT120: - | BU120: - | BV120: - | BW120: - | BX120: - | BY120: - | BZ120: - | CA120: - | CB120: - | CC120: - | CD120: - | CE120: - | CF120: - | CG120: - | CH120: - | CI120: - | CJ120: - | CK120: - | CL120: - | CM120: - | CN120: - | CO120: - | CP120: - | CQ120: - | CR120: - | CS120: - | CT120: - | CU120: - | CV120: - | CW120: - | CX120: - | CY120: - | CZ120: - | DA120: - | DB120: - | DC120: - | DD120: - | DE120: - | DF120: - | DG120: - | DH120: - | DI120: - | DJ120: - | DK120: - | DL120: - | DM120: - | DN120: - | DO120: - | DP120: - | DQ120: - | DR120: - | DS120: - | DT120: - | DU120: - | DV120: - | DW120: - | DX120: - | DY120: - | DZ120: - | EA120: - | EB120: - | EC120: - | ED120: - | EE120: - | EF120: - | EG120: - | EH120: - | EI120: - | EJ120: - | EK120: - | EL120: - | EM120: - | EN120: - | EO120: -
B121: Restricciones PBF | AP121: =AP42 -> 12.3608 | AQ121: =AQ42 -> 3.7662 | AR121: 10.0455 | AS121: 31.8173 | AT121: 0.1733 | AU121: 17.8649 | AV121: 215.9127 | AW121: 36.1145 | AX121: 47.2595 | AY121: 62.1884 | AZ121: 9.1905 | BB121: 446.6936 | BC121: 0.2365 | BE121: 5.3513 | BF121: 0.2425 | BG121: 2.6549 | BH121: 13.7782 | BI121: 18.1326 | BJ121: 53.4919 | BK121: 3.6821 | BL121: 130.0666 | BM121: 0.175 | BN121: 0.614 | BO121: 228.4256 | BP121: 0.6017 | BQ121: 2.8 | BR121: 8.9879 | BT121: 7.3286 | BU121: 10.9447 | BV121: 14.3815 | BW121: 7.8339 | BX121: 5.1984 | BY121: 2.7624 | BZ121: 0.05 | CB121: 60.8891 | CC121: 4.8518 | CD121: 0.6488 | CE121: 1.6876 | CF121: 0.4573 | CG121: 1.4307 | CH121: 6.0181 | CI121: 27.6272 | CJ121: 56.8951 | CK121: 26.0924 | CL121: 23.3988 | CM121: 2.2016 | CN121: 42.0387 | CO121: 193.3481 | CR121: 7.5732 | CS121: 0.3384 | CT121: 7.9404 | CU121: 19.5732 | CV121: 27.7712 | CW121: 13.5751 | CX121: 26.3157 | CY121: 5.9191 | CZ121: 0.7442 | DA121: 0.6098 | DB121: 110.357 | DD121: =DD42 -> 30.7586 | DE121: 4.6139 | DF121: 6.3235 | DG121: 16.4235 | DH121: 2.9248 | DI121: 22.357 | DJ121: 43.9448 | DK121: 21.8325 | DL121: 7.6466 | DM121: 21.3505 | DN121: 0.0022 | DO121: 178.1587 | DP121: 0.7061 | DQ121: 5.7799 | DR121: 19.823 | DS121: 7.3641 | DT121: 21.6872 | DU121: 12.9667 | DV121: 27.9263 | DW121: 18.4174 | DX121: 9.5168 | DY121: 47.0904 | DZ121: 6.2158 | EA121: 3.4174 | EB121: 180.9111 | EC121: =EC42 -> 3.1632 | ED121: =ED42 -> 67.0397 | EE121: =EE42 -> - | EF121: - | EG121: - | EH121: - | EI121: - | EJ121: - | EK121: - | EL121: - | EM121: - | EN121: - | EO121: 70.2029
B122: Regulación secundaria | AP122: =AP56 -> 134.546976 | AQ122: =AQ56 -> 141.970603 | AR122: 140.098791 | AS122: 102.705868 | AT122: 135.314162 | AU122: 121.521492 | AV122: 150.075622 | AW122: 164.768756 | AX122: 170.058544 | AY122: 155.938918 | AZ122: 161.886162 | BA122: 144.94361 | BB122: 1723.829504 | BC122: 153.223893 | BD122: 150.996311 | BE122: 129.528206 | BF122: 100.377704 | BG122: 147.394674 | BH122: 128.570257 | BI122: 135.588178 | BJ122: 115.535485 | BK122: 125.95819 | BL122: 108.941399 | BM122: 104.671733 | BN122: 113.555614 | BO122: 1514.341644 | BP122: 124.638602 | BQ122: 125.344257 | BR122: 107.943651 | BS122: 82.488203 | BT122: 78.09535 | BU122: 104.375774 | BV122: 115.074921 | BW122: 130.543715 | BX122: 121.41987 | BY122: 118.735159 | BZ122: 87.96219 | CA122: 65.794982 | CB122: 1262.416674 | CC122: 94.28603 | CD122: 81.404216 | CE122: 98.453813 | CF122: 86.494075 | CG122: 76.51819 | CH122: 77.887855 | CI122: 87.973297 | CJ122: 92.756681 | CK122: 100.823924 | CL122: 101.598428 | CM122: 84.130255 | CN122: 87.995928 | CO122: 1070.322692 | CP122: 68.6774 | CQ122: 64.8063 | CR122: 73.3321 | CS122: 47.3893 | CT122: 71.7153 | CU122: 77.5647 | CV122: 88.2712 | CW122: 113.1287 | CX122: 124.612 | CY122: 100.2405 | CZ122: 80.9826 | DA122: 83.9211 | DB122: 994.640484 | DC122: =DC56 -> 114.7587 | DD122: 97.158 | DE122: 82.3575 | DF122: 85.6222 | DG122: 83.4013 | DH122: 92.2485 | DI122: 120.2382 | DJ122: 107.0094 | DK122: 111.1308 | DL122: 98.4427 | DM122: 99.3269 | DN122: 101.3148 | DO122: 1193.016203 | DP122: 87.594 | DQ122: 72.1719 | DR122: 69.4784 | DS122: 69.2375 | DT122: 57.7356 | DU122: 73.0813 | DV122: 91.8609 | DW122: 86.7543 | DX122: 97.6004 | DY122: 116.4398 | DZ122: 105.778 | EA122: 84.5953 | EB122: 1012.33132 | EC122: 108.0405 | ED122: 65.0634 | EE122: - | EF122: - | EG122: - | EH122: - | EI122: - | EJ122: - | EK122: - | EL122: - | EM122: - | EN122: - | EO122: 173.09948
B123: Regulación terciaria | AP123: =AP70 -> 238.8434 | AQ123: =AQ70 -> 292.6736 | AR123: 309.0188 | AS123: 248.7834 | AT123: 228.6602 | AU123: 246.7493 | AV123: 205.0861 | AW123: 175.5663 | AX123: 281.6858 | AY123: 388.6523 | AZ123: 153.5247 | BA123: 213.3963 | BB123: 2982.6402 | BC123: 206.0456 | BD123: 321.0029 | BE123: 399.6712 | BF123: 295.2901 | BG123: 127.7918 | BH123: 98.3467 | BI123: 235.7071 | BJ123: 116.5237 | BK123: 185.7216 | BL123: 252.5488 | BM123: 145.4596 | BN123: 207.3213 | BO123: 2804.8267 | BP123: 152.1158 | BQ123: 215.777 | BR123: 282.3968 | BS123: 248.5352 | BT123: 170.6696 | BU123: 159.9353 | BV123: 194.8232 | BW123: 113.161 | BX123: 300.1932 | BY123: 245.7866 | BZ123: 74.3538 | CA123: 172.4455 | CB123: 2330.193 | CC123: 220.8507 | CD123: 135.4076 | CE123: 208.6698 | CF123: 170.5397 | CG123: 153.6566 | CH123: 152.2126 | CI123: 129.5262 | CJ123: 93.7404 | CK123: 126.3302 | CL123: 192.603 | CM123: 103.0528 | CN123: 125.0324 | CO123: 1811.622 | CP123: 205.168 | CQ123: 198.4688 | CR123: 266.7104 | CS123: 198.6982 | CT123: 166.9489 | CU123: 94.2595 | CV123: 105.7402 | CW123: 72.0309 | CX123: 92.2257 | CY123: 162.754 | CZ123: 116.9655 | DA123: 85.2625 | DB123: 1765.2282 | DC123: =DC70 -> 155.8221 | DD123: 157.6778 | DE123: 182.5211 | DF123: 165.6923 | DG123: 115.4867 | DH123: 57.1059 | DI123: 58.5253 | DJ123: 172.2849 | DK123: 179.5205 | DL123: 134.7604 | DM123: 126.9627 | DN123: 120.2115 | DO123: 1626.5712 | DP123: 159.9994 | DQ123: 143.5981 | DR123: 162.378 | DS123: 154.0937 | DT123: 130.5845 | DU123: 92.0868 | DV123: 80.4367 | DW123: 116.6096 | DX123: 129.5468 | DY123: 118.5087 | DZ123: 127.074 | EA123: 138.4241 | EB123: 1553.3404 | EC123: =EC70 -> 145.4631 | ED123: 223.4613 | EE123: - | EF123: - | EG123: - | EH123: - | EI123: - | EJ123: - | EK123: - | EL123: - | EM123: - | EN123: - | EO123: 368.9244
B124: Gestión de desvíos | AP124: =AP84 -> 171.344 | AQ124: =AQ84 -> 390.1447 | AR124: 208.274 | AS124: 264.7964 | AT124: 175.8885 | AU124: 237.2927 | AV124: 66.286 | AW124: 99.8382 | AX124: 306.9079 | AY124: 426.5652 | AZ124: 134.8268 | BA124: 192.374 | BB124: 2674.5384 | BC124: 191.8707 | BD124: 414.9432 | BE124: 290.4867 | BF124: 269.5728 | BG124: 78.6548 | BH124: 51.2169 | BI124: 71.2493 | BJ124: 17.6198 | BK124: 137.0448 | BL124: 264.1569 | BM124: 83.3118 | BN124: 175.9251 | BO124: 2238.4268 | BP124: 85.6452 | BQ124: 162.7954 | BR124: 152.1473 | BS124: 96.6069 | BT124: 81.0612 | BU124: 64.662 | BV124: 66.9543 | BW124: 10.8 | BX124: 193.2134 | BY124: 233.3021 | BZ124: 13.7088 | CA124: 70.919 | CB124: 1231.8156 | CC124: 181.8346 | CD124: 90.7751 | CE124: 112.4418 | CF124: 124.3272 | CG124: 51.1136 | CH124: 58.6826 | CI124: 58.374 | CJ124: 9.6 | CK124: 34.4513 | CL124: 110.1372 | CM124: 28.9923 | CN124: 44.2702 | CO124: 904.9999 | CP124: 81.79 | CQ124: 76.026 | CR124: 136.2905 | CS124: 81.1806 | CT124: 46.6104 | CU124: 24.2332 | CV124: 18.2508 | CW124: 9.5528 | CX124: 13.6999 | CY124: 28.7779 | CZ124: 28.841 | DA124: 26.1878 | DB124: 571.4409 | DC124: =DC84 -> 89.1758 | DD124: 35.8807 | DE124: 79.235 | DF124: 50.783 | DG124: 35.3816 | DH124: 29.4 | DI124: 11.1003 | DJ124: 85.4587 | DK124: 58.3724 | DL124: 24.3857 | DM124: 23.4576 | DN124: 25.9756 | DO124: 548.6064 | DP124: 44.5611 | DQ124: 34.2288 | DR124: 48.7045 | DS124: 30.1438 | DT124: 20.3538 | DU124: 25.6043 | DV124: 38.7616 | DW124: 53.6833 | DX124: 68.5903 | DY124: 37.5946 | DZ124: 22.7085 | EA124: 40.1604 | EB124: 465.095 | EC124: =EC84 -> 47.0948 | ED124: 110.5849 | EE124: - | EF124: - | EG124: - | EH124: - | EI124: - | EJ124: - | EK124: - | EL124: - | EM124: - | EN124: - | EO124: 157.6797
B125: Restricciones en tiempo real | AP125: =AP98 -> 132.0453 | AQ125: =AQ98 -> 150.7334 | AR125: 159.4941 | AS125: 57.5318 | AT125: 29.5175 | AU125: 32.5909 | AV125: 42.9407 | AW125: 20.8107 | AX125: 42.7857 | AY125: 103.2082 | AZ125: 60.8752 | BA125: 68.2989 | BB125: 900.8324 | BC125: 87.8898 | BD125: 28.7318 | BE125: 46.3751 | BF125: 44.627 | BG125: 46.0699 | BH125: 39.1546 | BI125: 23.7358 | BJ125: 39.1116 | BK125: 20.2341 | BL125: 25.7468 | BM125: 61.5461 | BN125: 46.098 | BO125: 509.3206 | BP125: 18.2123 | BQ125: 19.2627 | BR125: 18.7131 | BS125: 80.8347 | BT125: 38.3752 | BU125: 36.238 | BV125: 27.0752 | BW125: 25.7802 | BX125: 62.01 | BY125: 82.815 | BZ125: 31.2724 | CA125: 43.2383 | CB125: 483.8271 | CC125: 99.4863 | CD125: 58.0301 | CE125: 544.5603 | CF125: 559.5229 | CG125: 76.3318 | CH125: 61.5489 | CI125: 13.8866 | CJ125: 50.9002 | CK125: 13.2068 | CL125: 45.1316 | CM125: 60.6258 | CN125: 118.2344 | CO125: 1701.4657 | CP125: 233.7446 | CQ125: 336.1011 | CR125: 193.3553 | CS125: 65.127 | CT125: 78.236 | CU125: 55.8891 | CV125: 43.8586 | CW125: 21.4546 | CX125: 25.1032 | CY125: 48.8337 | CZ125: 86.9776 | DA125: 85.3448 | DB125: 1274.0256 | DC125: =DC98 -> 115.0553 | DD125: 66.9411 | DE125: 169.8557 | DF125: 127.9278 | DG125: 149.6146 | DH125: 66.1235 | DI125: 37.2492 | DJ125: 89.3535 | DK125: 92.1385 | DL125: 99.4956 | DM125: 67.9198 | DN125: 69.8974 | DO125: 1151.572 | DP125: 103.1041 | DQ125: 81.6075 | DR125: 63.4275 | DS125: 49.4731 | DT125: 49.2662 | DU125: 29.937 | DV125: 17.6595 | DW125: 16.7185 | DX125: 22.7591 | DY125: 56.2274 | DZ125: 52.3833 | EA125: 102.61 | EB125: 645.1732 | EC125: =EC98 -> 55.794 | ED125: 96.1476 | EE125: - | EF125: - | EG125: - | EH125: - | EI125: - | EJ125: - | EK125: - | EL125: - | EM125: - | EN125: - | EO125: 151.9416
B126: Total bajar
B127: volumen
B128: Restricciones garantia suministro | AP128: =AP112 -> - | AQ128: =AQ112 -> - | AR128: - | AS128: - | AT128: - | AU128: - | AV128: - | AW128: - | AX128: - | AY128: - | AZ128: - | BA128: - | BB128: - | BC128: - | BD128: 88.1526 | BE128: 1443.2759 | BF128: 1436.3099 | BG128: 1897.5696 | BH128: 1581.9083 | BI128: 1728.5361 | BJ128: 1214.8078 | BK128: 791.9966 | BL128: 656.1344 | BM128: 1014.076 | BN128: 920.4277 | BO128: 12773.1949 | BP128: 888.8611 | BQ128: 876.3716 | BR128: 1366.9492 | BS128: 605.5805 | BT128: 1308.0091 | BU128: 978.1552 | BV128: 1263.6622 | BW128: 1411.6549 | BX128: 977.8727 | BY128: 912.9793 | BZ128: 922.7407 | CA128: 495.3301 | CB128: 12008.1666 | CC128: - | CD128: 76.6399 | CE128: 21.8684 | CF128: 42.4633 | CG128: 283.6204 | CH128: 739.9203 | CI128: 741.8104 | CJ128: 862.3616 | CK128: 696.4146 | CL128: 344.079 | CM128: 226.1154 | CN128: 50.0934 | CO128: 4085.3867 | CP128: 96.3623 | CQ128: 8.288 | CR128: 79.9707 | CS128: 238.4946 | CT128: 509.6456 | CU128: 379.1636 | CV128: 703.0215 | CW128: 389.6326 | CX128: 150.5846 | CY128: 162.6155 | CZ128: 275.7073 | DA128: 266.3279 | DB128: 3259.8142 | DC128: =DC112 -> - | DD128: - | DE128: - | DF128: - | DG128: - | DH128: - | DI128: - | DJ128: - | DK128: - | DL128: - | DM128: - | DN128: - | DO128: - | DP128: - | DQ128: - | DR128: - | DS128: - | DT128: - | DU128: - | DV128: - | DW128: - | DX128: - | DY128: - | DZ128: - | EA128: - | EB128: - | EC128: =EC112 -> - | ED128: - | EE128: - | EF128: - | EG128: - | EH128: - | EI128: - | EJ128: - | EK128: - | EL128: - | EM128: - | EN128: - | EO128: -
B129: Restricciones PBF | AP129: =AP113+AP121 -> 1258.7164 | AQ129: =AQ113+AQ121 -> 1117.8917 | AR129: 1566.8004 | AS129: 943.9319 | AT129: 837.0827 | AU129: 613.2645 | AV129: 1250.687 | AW129: 1081.262 | AX129: 1012.7782 | AY129: 1123.118 | AZ129: 1123.2345 | BA129: 1027.1989 | BB129: 12955.9662 | BC129: 1065.9274 | BD129: 715.6914 | BE129: 809.6196 | BF129: 609.9042 | BG129: 528.9344 | BH129: 574.5349 | BI129: 719.7236 | BJ129: 993.2645 | BK129: 874.2987 | BL129: 1179.9323 | BM129: 1167.7313 | BN129: 986.5071 | BO129: 10226.0694 | BP129: 773.1071 | BQ129: 661.3591 | BR129: 742.8792 | BS129: 670.4243 | BT129: 533.9803 | BU129: 518.6481 | BV129: 580.2469 | BW129: 342.4637 | BX129: 195.2196 | BY129: 476.8365 | BZ129: 414.3508 | CA129: 313.4346 | CB129: 6222.9502 | CC129: 427.6311 | CD129: 579.147 | CE129: 1036.4331 | CF129: 1006.9201 | CG129: 945.6766 | CH129: 768.7791 | CI129: 229.6331 | CJ129: 256.2825 | CK129: 236.9389 | CL129: 586.4005 | CM129: 632.4791 | CN129: 726.8285 | CO129: 7433.1496 | CP129: 1022.415 | CQ129: 900.2014 | CR129: 1076.7733 | CS129: 1108.135 | CT129: 916.3881 | CU129: 711.9586 | CV129: 737.4804 | CW129: 860.2286 | CX129: 549.8633 | CY129: 719.819 | CZ129: 553.7172 | DA129: 523.994 | DB129: 9680.9706 | DC129: =DC113+DC121 -> 501.5451 | DD129: 571.678 | DE129: 679.0303 | DF129: 741.291 | DG129: 671.477 | DH129: 430.1843 | DI129: 454.2662 | DJ129: 427.5407 | DK129: 439.8295 | DL129: 606.2913 | DM129: 489.1924 | DN129: 449.0034 | DO129: =DO113+DO121 -> 6461.31 | DP129: 591.9985 | DQ129: 869.4176 | DR129: 1271.2356 | DS129: 1175.4253 | DT129: 1343.5868 | DU129: 1137.9311 | DV129: 1121.4677 | DW129: 1192.996 | DX129: 1093.9376 | DY129: 819.9784 | DZ129: 659.989 | EA129: 736.6335 | EB129: 12014.5971 | EC129: =EC113+EC121 -> 735.0484 | ED129: 931.5033 | EE129: =IF(EE113="-","-",EE113+EE121) -> - | EF129: =IF(EF113="-","-",EF113+EF121) -> - | EG129: - | EH129: - | EI129: - | EJ129: - | EK129: - | EL129: - | EM129: - | EN129: - | EO129: 1666.5517
B130: Regulación secundaria | AP130: =AP114+AP122 -> 246.40543 | AQ130: 241.485132 | AR130: 280.181059 | AS130: 229.381166 | AT130: 233.477264 | AU130: 219.244757 | AV130: 232.891112 | AW130: 228.67045 | AX130: 238.357681 | AY130: 239.18041 | AZ130: 250.972915 | BA130: 248.672758 | BB130: 2888.920134 | BC130: 238.740608 | BD130: 226.791146 | BE130: 261.332726 | BF130: 215.772143 | BG130: 237.286782 | BH130: 219.779264 | BI130: 214.309919 | BJ130: 215.307799 | BK130: 218.615112 | BL130: 213.475554 | BM130: 227.465625 | BN130: 237.972507 | BO130: 2726.849185 | BP130: 220.468331 | BQ130: 229.576997 | BR130: 245.395492 | BS130: 232.987914 | BT130: 239.322463 | BU130: 207.214437 | BV130: 225.246672 | BW130: 218.660555 | BX130: 225.279083 | BY130: 247.3515 | BZ130: 231.867307 | CA130: 249.411003 | CB130: 2772.781754 | CC130: 266.083327 | CD130: 227.636229 | CE130: 275.287228 | CF130: 278.703833 | CG130: 246.824616 | CH130: 226.95288 | CI130: 212.746744 | CJ130: 218.601283 | CK130: 212.432159 | CL130: 234.6132 | CM130: 237.646697 | CN130: 238.42249 | CO130: 2875.950686 | CP130: 265.5072 | CQ130: 237.5935 | CR130: 251.9168 | CS130: 253.0595 | CT130: 245.142 | CU130: 202.9399 | CV130: 195.2234 | CW130: 202.8728 | CX130: 203.2947 | CY130: 230.7966 | CZ130: 226.1549 | DA130: 226.158 | DB130: 2740.655862 | DC130: 248.5501 | DD130: 232.4527 | DE130: 226.9298 | DF130: 224.5034 | DG130: 221.5022 | DH130: 187.9113 | DI130: 191.4348 | DJ130: 213.6969 | DK130: 199.7425 | DL130: 207.2513 | DM130: 199.5544 | DN130: 205.7826 | DO130: =DO114+DO122 -> 2559.320868 | DP130: 249.4549 | DQ130: 213.8482 | DR130: 232.2231 | DS130: 227.2485 | DT130: 240.0425 | DU130: 200.5258 | DV130: 186.7044 | DW130: 188.003 | DX130: 193.0531 | DY130: 206.0993 | DZ130: 208.8592 | EA130: 196.2504 | EB130: 2542.309177 | EC130: =EC114+EC122 -> 222.1399 | ED130: 188.1256 | EE130: =IF(EE114="-","-",EE114+EE122) -> - | EF130: - | EG130: - | EH130: - | EI130: - | EJ130: - | EK130: - | EL130: - | EM130: - | EN130: - | EO130: 410.261679
B131: Regulación terciaria | AP131: =AP115+AP123 -> 677.8163 | AQ131: 522.5296 | AR131: 579.1175 | AS131: 378.4225 | AT131: 424.9786 | AU131: 386.2799 | AV131: 380.0098 | AW131: 406.606 | AX131: 387.0034 | AY131: 490.5036 | AZ131: 514.2516 | BA131: 560.866 | BB131: 5708.3848 | BC131: 469.376 | BD131: 479.3088 | BE131: 626.9304 | BF131: 429.5492 | BG131: 421.329 | BH131: 337.6426 | BI131: 392.5776 | BJ131: 417.5797 | BK131: 350.3059 | BL131: 406.6362 | BM131: 425.2626 | BN131: 528.7601 | BO131: 5498.6544 | BP131: 474.0795 | BQ131: 434.2631 | BR131: 488.4492 | BS131: 501.8098 | BT131: 394.176 | BU131: 429.1927 | BV131: 397.9067 | BW131: 398.2482 | BX131: 431.4407 | BY131: 428.5468 | BZ131: 465.6981 | CA131: 477.9974 | CB131: 5321.8082 | CC131: 542.1986 | CD131: 493.3178 | CE131: 429.8768 | CF131: 357.6723 | CG131: 406.1113 | CH131: 368.0191 | CI131: 428.0761 | CJ131: 400.964 | CK131: 361.6135 | CL131: 466.6897 | CM131: 408.6406 | CN131: 478.7484 | CO131: 5141.9282 | CP131: 456.8784 | CQ131: 378.705 | CR131: 436.5683 | CS131: 414.4789 | CT131: 393.855 | CU131: 366.0394 | CV131: 392.4048 | CW131: 368.3177 | CX131: 366.272 | CY131: 390.8399 | CZ131: 424.2051 | DA131: 443.0558 | DB131: 4831.6115 | DC131: 544.2205 | DD131: 431.4057 | DE131: 399.4505 | DF131: 374.8398 | DG131: 351.6523 | DH131: 390.5983 | DI131: 401.2653 | DJ131: 434.6722 | DK131: 344.0097 | DL131: 386.8331 | DM131: 361.0814 | DN131: 332.4815 | DO131: =DO115+DO123 -> 4752.5103 | DP131: 368.4946 | DQ131: 338.2979 | DR131: 383.1537 | DS131: 373.4438 | DT131: 354.4742 | DU131: 321.657 | DV131: 305.5555 | DW131: 288.0087 | DX131: 314.8048 | DY131: 326.8762 | DZ131: 394.0012 | EA131: 341.3276 | EB131: 4110.0952 | EC131: =EC115+EC123 -> 435.0852 | ED131: 334.301 | EE131: - | EF131: - | EG131: - | EH131: - | EI131: - | EJ131: - | EK131: - | EL131: - | EM131: - | EN131: - | EO131: 769.3862
B132: Gestión de desvíos | AP132: 590.283 | AQ132: 557.6149 | AR132: 508.5472 | AS132: 295.5318 | AT132: 261.6257 | AU132: 329.4527 | AV132: 196.5522 | AW132: 252.8586 | AX132: 371.2884 | AY132: 448.2653 | AZ132: 455.4327 | BA132: 605.5131 | BB132: 4872.9656 | BC132: 453.0942 | BD132: 526.966 | BE132: 396.5911 | BF132: 291.2728 | BG132: 209.0218 | BH132: 225.8683 | BI132: 118.2408 | BJ132: 332.7654 | BK132: 210.5931 | BL132: 303.3961 | BM132: 330.3705 | BN132: 422.448 | BO132: 4013.0021 | BP132: 491.9175 | BQ132: 459.6776 | BR132: 309.0242 | BS132: 248.0043 | BT132: 186.8439 | BU132: 292.5071 | BV132: 161.9101 | BW132: 367.4202 | BX132: 229.7426 | BY132: 301.0719 | BZ132: 435.1721 | CA132: 406.82 | CB132: 3890.1115 | CC132: 401.3089 | CD132: 321.9618 | CE132: 285.877 | CF132: 216.2446 | CG132: 172.4232 | CH132: 172.1333 | CI132: 199.3201 | CJ132: 244.7692 | CK132: 147.5394 | CL132: 256.0426 | CM132: 403.1179 | CN132: 430.9378 | CO132: 3251.6758 | CP132: 225.6699 | CQ132: 235.8425 | CR132: 240.421 | CS132: 191.5124 | CT132: 142.5515 | CU132: 133.4885 | CV132: 164.9785 | CW132: 183.3592 | CX132: 227.9232 | CY132: 95.8728 | CZ132: 168.1517 | DA132: 427.0977 | DB132: 2436.8689 | DC132: 553.4043 | DD132: 331.1532 | DE132: 192.5233 | DF132: 130.9685 | DG132: 149.8458 | DH132: 345.1111 | DI132: 364.0114 | DJ132: 234.2328 | DK132: 101.2216 | DL132: 143.2271 | DM132: 116.7829 | DN132: 100.4133 | DO132: =DO116+DO124 -> 2762.8953 | DP132: 151.16 | DQ132: 147.7276 | DR132: 164.1821 | DS132: 111.731 | DT132: 80.0532 | DU132: 104.8839 | DV132: 179.8898 | DW132: 125.7806 | DX132: 223.7903 | DY132: 108.5646 | DZ132: 151.9542 | EA132: 98.6602 | EB132: 1648.3775 | EC132: =EC116+EC124 -> 198.6034 | ED132: 142.4448 | EE132: - | EF132: - | EG132: - | EH132: - | EI132: - | EJ132: - | EK132: - | EL132: - | EM132: - | EN132: - | EO132: 341.0482
B133: Restricciones en tiempo real | AP133: 236.1315 | AQ133: 223.7915 | AR133: 284.8423 | AS133: 118.1009 | AT133: 102.8081 | AU133: 63.7077 | AV133: 97.4235 | AW133: 70.912 | AX133: 88.9887 | AY133: 269.0112 | AZ133: 113.0012 | BA133: 119.1381 | BB133: 1787.8567 | BC133: 156.5352 | BD133: 56.1062 | BE133: 138.583 | BF133: 93.8437 | BG133: 98.7383 | BH133: 68.9775 | BI133: 47.9564 | BJ133: 74.6407 | BK133: 44.7902 | BL133: 108.727 | BM133: 149.231 | BN133: 128.5613 | BO133: 1166.6905 | BP133: 53.7829 | BQ133: 69.3339 | BR133: 86.2414 | BS133: 150.8274 | BT133: =BT117+BT125 -> 83.1367 | BU133: 106.281 | BV133: 56.5606 | BW133: 83.6772 | BX133: 111.3653 | BY133: 149.6431 | BZ133: 69.3171 | CA133: 98.8323 | CB133: 1118.9989 | CC133: 140.7866 | CD133: 87.8642 | CE133: 637.2178 | CF133: 654.5376 | CG133: 110.0736 | CH133: 88.5898 | CI133: 30.7595 | CJ133: 98.4493 | CK133: 48.038 | CL133: 90.8331 | CM133: 113.6559 | CN133: 158.9924 | CO133: 2259.7978 | CP133: 263.8595 | CQ133: 388.6373 | CR133: 237.9537 | CS133: 119.3517 | CT133: 111.5802 | CU133: 85.8455 | CV133: 86.9936 | CW133: 72.2661 | CX133: 83.9987 | CY133: 112.9264 | CZ133: 144.4924 | DA133: 121.7562 | DB133: 1829.6613 | DC133: 156.1408 | DD133: 124.3433 | DE133: 219.8695 | DF133: 187.378 | DG133: 194.8765 | DH133: 112.56 | DI133: 91.9204 | DJ133: 132.2681 | DK133: 115.6438 | DL133: 134.8289 | DM133: 116.4351 | DN133: 84.1332 | DO133: =DO117+DO125 -> 1670.3976 | DP133: 130.8175 | DQ133: 120.3765 | DR133: 103.1907 | DS133: 97.2288 | DT133: 86.537 | DU133: 72.0654 | DV133: 26.3211 | DW133: 41.9782 | DX133: 43.7488 | DY133: 98.6525 | DZ133: 87.4654 | EA133: 127.242 | EB133: 1035.6239 | EC133: =EC117+EC125 -> 90.3079 | ED133: 118.4567 | EE133: - | EF133: - | EG133: - | EH133: - | EI133: - | EJ133: - | EK133: - | EL133: - | EM133: - | EN133: - | EO133: 208.7646
B134: Volumen de energía
B137: Energía gestionada en los servicios de ajuste anual | C137: 2007 | D137: 2008 | E137: 2009 | F137: 2010 | G137: 2011 | H137: 2012 | I137: 2013 | J137: 2014 | K137: 2015 | L137: 2016 | M137: 2017 | N137: 2018 | O137: 2019
B138: subir
B139: Restricciones garantia suministro | F139: - | G139: 12773.1949 | H139: 12008.1666 | I139: 4085.3867 | J139: 3259.8142 | K139: - | L139: - | M139: - | N139: - | O139: -
B140: Restricciones PBF | F140: =F48 -> 12509.2726 | G140: =G48 -> 9997.6438 | H140: 6162.0611 | I140: 7239.8015 | J140: 9570.6136 | K140: 6283.1513 | L140: 11833.686 | M140: =M48 -> 1596.3488 | N140: - | O140: -
B141: Regulación secundaria | F141: =F62 -> 1165.09063 | G141: =G62 -> 1212.507541 | H141: 1510.36508 | I141: 1805.627994 | J141: 1746.015378 | K141: 1366.304665 | L141: 1529.977857 | M141: 237.162199 | N141: - | O141: -
B142: Regulación terciaria | F142: =F76 -> 2725.7446 | G142: =G76 -> 2693.8277 | H142: 2991.6152 | I142: 3330.3062 | J142: 3066.3833 | K142: 3125.9391 | L142: 2556.7548 | M142: 400.4618 | N142: - | O142: -
B143: Gestión de desvíos | F143: =F90 -> 2198.4272 | G143: =G90 -> 1774.5753 | H143: 2658.2959 | I143: 2346.6759 | J143: 1865.428 | K143: 2214.2889 | L143: 1183.2825 | M143: 183.3685 | N143: - | O143: -
B144: Restricciones en tiempo real | F144: =F104 -> 887.0243 | G144: =G104 -> 657.3699 | H144: 635.1718 | I144: 558.3321 | J144: 555.6357 | K144: 518.8256 | L144: 390.4507 | M144: 56.823 | N144: - | O144: -
B145: Total subir
B146: bajar
B147: Restricciones garantia suministro | F147: - | G147: - | H147: - | I147: - | J147: - | K147: - | L147: - | M147: - | N147: - | O147: -
B148: Restricciones PBF | F148: =F49 -> 446.6936 | G148: =G49 -> 228.4256 | H148: 60.8891 | I148: 193.3481 | J148: 110.357 | K148: 178.1587 | L148: 180.9111 | M148: 70.2029 | N148: - | O148: -
B149: Regulación secundaria | F149: =F63 -> 1723.829504 | G149: =G63 -> 1514.341644 | H149: 1262.416674 | I149: 1070.322692 | J149: 994.640484 | K149: 1193.016203 | L149: 1012.33132 | M149: 173.09948 | N149: - | O149: -
B150: Regulación terciaria | F150: =F77 -> 2982.6402 | G150: =G77 -> 2804.8267 | H150: 2330.193 | I150: 1811.622 | J150: 1765.2282 | K150: 1626.5712 | L150: 1553.3404 | M150: 368.9244 | N150: - | O150: -
B151: Gestión de desvíos | F151: =F91 -> 2674.5384 | G151: =G91 -> 2238.4268 | H151: 1231.8156 | I151: 904.9999 | J151: 571.4409 | K151: 548.6064 | L151: 465.095 | M151: 157.6797 | N151: - | O151: -
B152: Restricciones en tiempo real | F152: =F105 -> 900.8324 | G152: =G105 -> 509.3206 | H152: 483.8271 | I152: 1701.4657 | J152: 1274.0256 | K152: 1151.572 | L152: 645.1732 | M152: 151.9416 | N152: - | O152: -
B153: Total bajar
B154: volumen
B155: Restricciones garantia suministro | F155: =F139 -> - | G155: =G139 -> 12773.1949 | H155: 12008.1666 | I155: 4085.3867 | J155: =J139 -> 3259.8142 | K155: - | L155: - | M155: - | N155: - | O155: -
B156: Restricciones PBF | F156: =F140+F148 -> 12955.9662 | G156: =G140+G148 -> 10226.0694 | H156: 6222.9502 | I156: 7433.1496 | J156: =J140+J148 -> 9680.9706 | K156: =K140+K148 -> 6461.31 | L156: 12014.5971 | M156: 1666.5517 | N156: - | O156: -
B157: Regulación secundaria | F157: =F141+F149 -> 2888.920134 | G157: 2726.849185 | H157: 2772.781754 | I157: 2875.950686 | J157: 2740.655862 | K157: =K141+K149 -> 2559.320868 | L157: 2542.309177 | M157: 410.261679 | N157: - | O157: -
B158: Regulación terciaria | F158: 5708.3848 | G158: 5498.6544 | H158: 5321.8082 | I158: 5141.9282 | J158: 4831.6115 | K158: =K142+K150 -> 4752.5103 | L158: 4110.0952 | M158: 769.3862 | N158: - | O158: -
B159: Gestión de desvíos | F159: 4872.9656 | G159: 4013.0021 | H159: 3890.1115 | I159: 3251.6758 | J159: 2436.8689 | K159: =K143+K151 -> 2762.8953 | L159: 1648.3775 | M159: 341.0482 | N159: - | O159: -
B160: Restricciones en tiempo real | F160: 1787.8567 | G160: 1166.6905 | H160: 1118.9989 | I160: 2259.7978 | J160: 1829.6613 | K160: =K144+K152 -> 1670.3976 | L160: 1035.6239 | M160: 208.7646 | N160: - | O160: -
B161: Volumen de energía
B164: Reserva adicional a subir mensual | C164: 2007-01-01 | D164: 2007-02-01 | E164: 2007-03-01 | F164: 2007-04-01 | G164: 2007-05-01 | H164: 2007-06-01 | I164: 2007-07-01 | J164: 2007-08-01 | K164: 2007-09-01 | L164: 2007-10-01 | M164: 2007-11-01 | N164: 2007-12-01 | O164: 2007 | P164: 2008-01-01 | Q164: 2008-02-01 | R164: 2008-03-01 | S164: 2008-04-01 | T164: 2008-05-01 | U164: 2008-06-01 | V164: 2008-07-01 | W164: 2008-08-01 | X164: 2008-09-01 | Y164: 2008-10-01 | Z164: 2008-11-01 | AA164: 2008-12-01 | AB164: 2008 | AC164: 2009-01-01 | AD164: 2009-02-01 | AE164: 2009-03-01 | AF164: 2009-04-01 | AG164: 2009-05-01 | AH164: 2009-06-01 | AI164: 2009-07-01 | AJ164: 2009-08-01 | AK164: 2009-09-01 | AL164: 2009-10-01 | AM164: 2009-11-01 | AN164: 2009-12-01 | AO164: 2009 | AP164: 2010-01-31 | AQ164: 2010-02-28 | AR164: 2010-03-31 | AS164: 2010-04-30 | AT164: 2010-05-31 | AU164: 2010-06-30 | AV164: 2010-07-31 | AW164: 2010-08-31 | AX164: 2010-09-30 | AY164: 2010-10-31 | AZ164: 2010-11-30 | BA164: 2010-12-31 | BB164: 2010 | BC164: 2011-01-31 | BD164: 2011-02-28 | BE164: 2011-03-31 | BF164: 2011-04-30 | BG164: 2011-05-31 | BH164: 2011-06-30 | BI164: 2011-07-31 | BJ164: 2011-08-31 | BK164: 2011-09-30 | BL164: 2011-10-31 | BM164: 2011-11-30 | BN164: 2011-12-31 | BO164: 2011 | BP164: 2012-01-31 | BQ164: 2012-02-29 | BR164: 2012-03-31 | BS164: 2012-04-30 | BT164: 2012-05-31 | BU164: 2012-06-30 | BV164: 2012-07-31 | BW164: 2012-08-31 | BX164: 2012-09-30 | BY164: 2012-10-31 | BZ164: 2012-11-30 | CA164: 2012-12-31 | CB164: 2012 | CC164: 2013-01-31 | CD164: 2013-02-28 | CE164: 2013-03-31 | CF164: 2013-04-30 | CG164: 2013-05-31 | CH164: 2013-06-30 | CI164: 2013-07-31 | CJ164: 2013-08-31 | CK164: 2013-09-30 | CL164: 2013-10-31 | CM164: 2013-11-30 | CN164: 2013-12-31 | CO164: 2013 | CP164: 2014-01-31 | CQ164: 2014-02-28 | CR164: 2014-03-31 | CS164: 2014-04-30 | CT164: 2014-05-31 | CU164: 2014-06-30 | CV164: 2014-07-31 | CW164: 2014-08-31 | CX164: 2014-09-30 | CY164: 2014-10-31 | CZ164: 2014-11-30 | DA164: 2014-12-31 | DB164: 2014 | DC164: 2015-01-31 | DD164: 2015-02-28 | DE164: 2015-03-31 | DF164: 2015-04-30 | DG164: 2015-05-31 | DH164: 2015-06-30 | DI164: 2015-07-31 | DJ164: 2015-08-31 | DK164: 2015-09-30 | DL164: 2015-10-31 | DM164: 2015-11-30 | DN164: 2015-12-31 | DO164: 2015 | DP164: 2016-01-31 | DQ164: 2016-02-29 | DR164: 2016-03-31 | DS164: 2016-04-30 | DT164: 2016-05-31 | DU164: 2016-06-30 | DV164: 2016-07-31 | DW164: 2016-08-31 | DX164: 2016-09-30 | DY164: 2016-10-31 | DZ164: 2016-11-30 | EA164: 2016-12-31 | EB164: 2016 | EC164: 2017-01-31 | ED164: 2017-02-28 | EE164: 2017-03-31 | EF164: 2017-04-30 | EG164: 2017-05-31 | EH164: 2017-06-30 | EI164: 2017-07-31 | EJ164: 2017-08-31 | EK164: 2017-09-30 | EL164: 2017-10-31 | EM164: 2017-11-30 | EN164: 2017-12-31 | EO164: 2017
B165: Energía gestionada a subir | AP165: - | AQ165: - | AR165: - | AS165: - | AT165: - | AU165: - | AV165: - | AW165: - | AX165: - | AY165: - | AZ165: - | BA165: - | BB165: - | BC165: - | BD165: - | BE165: - | BF165: - | BG165: - | BH165: - | BI165: - | BJ165: - | BK165: - | BL165: - | BM165: - | BN165: - | BO165: - | BP165: - | BQ165: - | BR165: - | BS165: - | BT165: 31.2027 | BU165: 4.7 | BV165: 5.2186 | BW165: 7.896 | BX165: 41.8694 | BY165: 285.3611 | BZ165: 661.485 | CA165: 597.9371 | CB165: =H170 -> 1635.6699 | CC165: 364.8037 | CD165: 273.7203 | CE165: 354.8549 | CF165: 251.0849 | CG165: 106.2975 | CH165: 0 | CI165: 1.5 | CJ165: 43.448 | CK165: 134.6922 | CL165: 440.0684 | CM165: 778.8737 | CN165: 260.5668 | CO165: =I170 -> 3009.9104 | CP165: 608.4633 | CQ165: 797.1034 | CR165: 568.1981 | CS165: 312.2651 | CT165: 34.8794 | CU165: 3.8498 | CV165: 0 | CW165: 1.8654 | CX165: 289.9918 | CY165: 403.4524 | CZ165: 571.0558 | DA165: 688.0003 | DB165: =J170 -> 4279.1248 | DC165: 501.6128 | DD165: 618.7462 | DE165: 359.8557 | DF165: 40.9976 | DG165: 66.0541 | DH165: 0 | DI165: 0 | DJ165: 19.6533 | DK165: 45.666 | DL165: 131.5904 | DM165: 231.449 | DN165: 93.013 | DO165: =K170 -> 2108.6381 | DP165: 201.823 | DQ165: 231.935 | DR165: 300.2249 | DS165: 242.8283 | DT165: 292.0991 | DU165: 3.1137 | DV165: 0 | DW165: 0 | DX165: 19.3568 | DY165: 367.0204 | DZ165: 219.8644 | EA165: 118.0748 | EB165: =L170 -> 1996.3404 | EC165: 184.5529 | ED165: 12.0976 | EE165: - | EF165: - | EG165: - | EH165: - | EI165: - | EJ165: - | EK165: - | EL165: - | EM165: - | EN165: - | EO165: =M170 -> 196.6505
B166: Precio medio a subir | AP166: - | AQ166: - | AR166: - | AS166: - | AT166: - | AU166: - | AV166: - | AW166: - | AX166: - | AY166: - | AZ166: - | BA166: - | BB166: - | BC166: - | BD166: - | BE166: - | BF166: - | BG166: - | BH166: - | BI166: - | BJ166: - | BK166: - | BL166: - | BM166: - | BN166: - | BO166: - | BP166: - | BQ166: - | BR166: - | BS166: - | BT166: 20.01771802 | BU166: 3.818723404 | BV166: 3.865329782 | BW166: 15.12049139 | BX166: 19.83622376 | BY166: 60.46237182 | BZ166: 47.21184567 | CA166: 24.76168124 | CB166: =H171 -> 39.6792245 | CC166: 24.49297866 | CD166: 31.39343768 | CE166: 49.3207646 | CF166: 59.91673163 | CG166: 38.90397159 | CI166: 9.98 | CJ166: 26.38650018 | CK166: 32.15253586 | CL166: 43.39225155 | CM166: 32.0828915 | CN166: 28.35156674 | CO166: =I171 -> 36.93568735 | CP166: 34.80287606 | CQ166: 40.64984887 | CR166: 34.32552999 | CS166: 38.36814031 | CT166: 38.20134578 | CU166: 48 | CV166: - | CW166: 68 | CX166: 34.46934224 | CY166: 36.3982587 | CZ166: 28.09246079 | DA166: 26.9163763 | DB166: =J171 -> 34.10692776 | DC166: 19.88056886 | DD166: 27.02395682 | DE166: 27.64883847 | DF166: 24.2181596 | DG166: 25.94453138 | DH166: - | DI166: - | DJ166: 30.23539762 | DK166: 24.16115951 | DL166: 23.54560089 | DM166: 19.05991363 | DN166: 15.94977734 | DO166: =K171 -> 23.73115524 | DP166: 17.04271981 | DQ166: 23.1760329 | DR166: 27.33270775 | DS166: 24.68469079 | DT166: 21.12175447 | DU166: 15.35000482 | DV166: - | DW166: - | DX166: 24.21656885 | DY166: 14.40842994 | DZ166: 14.48691872 | EA166: 14.40116638 | EB166: =L171 -> 19.98947758 | EC166: 35.27002849 | ED166: 27.78792653 | EE166: - | EF166: - | EG166: - | EH166: - | EI166: - | EJ166: - | EK166: - | EL166: - | EM166: - | EN166: - | EO166: =M171 -> 34.80974246
DC168: -1
B169: Reserva adicional a subir anual | C169: 2007 | D169: 2008 | E169: 2009 | F169: 2010 | G169: 2011 | H169: 2012 | I169: 2013 | J169: 2014 | K169: 2015 | L169: 2016 | M169: 2017 | N169: 2018 | O169: 2019
B170: Energía gestionada a subir | F170: - | G170: - | H170: 1635.6699 | I170: 3009.9104 | J170: 4279.1248 | K170: 2108.6381 | L170: 1996.3404 | M170: 196.6505 | N170: - | O170: -
B171: Precio medio a subir | F171: - | G171: - | H171: 39.6792245 | I171: 36.93568735 | J171: 34.10692776 | K171: 23.73115524 | L171: 19.98947758 | M171: 34.80974246 | N171: - | O171: -
B174: Banda mensual | C174: 2007-01-01 | D174: 2007-02-01 | E174: 2007-03-01 | F174: 2007-04-01 | G174: 2007-05-01 | H174: 2007-06-01 | I174: 2007-07-01 | J174: 2007-08-01 | K174: 2007-09-01 | L174: 2007-10-01 | M174: 2007-11-01 | N174: 2007-12-01 | O174: 2007 | P174: 2008-01-01 | Q174: 2008-02-01 | R174: 2008-03-01 | S174: 2008-04-01 | T174: 2008-05-01 | U174: 2008-06-01 | V174: 2008-07-01 | W174: 2008-08-01 | X174: 2008-09-01 | Y174: 2008-10-01 | Z174: 2008-11-01 | AA174: 2008-12-01 | AB174: 2008 | AC174: 2009-01-01 | AD174: 2009-02-01 | AE174: 2009-03-01 | AF174: 2009-04-01 | AG174: 2009-05-01 | AH174: 2009-06-01 | AI174: 2009-07-01 | AJ174: 2009-08-01 | AK174: 2009-09-01 | AL174: 2009-10-01 | AM174: 2009-11-01 | AN174: 2009-12-01 | AO174: 2009 | AP174: 2010-01-31 | AQ174: 2010-02-28 | AR174: 2010-03-31 | AS174: 2010-04-30 | AT174: 2010-05-31 | AU174: 2010-06-30 | AV174: 2010-07-31 | AW174: 2010-08-31 | AX174: 2010-09-30 | AY174: 2010-10-31 | AZ174: 2010-11-30 | BA174: 2010-12-31 | BB174: 2010 | BC174: 2011-01-31 | BD174: 2011-02-28 | BE174: 2011-03-31 | BF174: 2011-04-30 | BG174: 2011-05-31 | BH174: 2011-06-30 | BI174: 2011-07-31 | BJ174: 2011-08-31 | BK174: 2011-09-30 | BL174: 2011-10-31 | BM174: 2011-11-30 | BN174: 2011-12-31 | BO174: 2011 | BP174: 2012-01-31 | BQ174: 2012-02-29 | BR174: 2012-03-31 | BS174: 2012-04-30 | BT174: 2012-05-31 | BU174: 2012-06-30 | BV174: 2012-07-31 | BW174: 2012-08-31 | BX174: 2012-09-30 | BY174: 2012-10-31 | BZ174: 2012-11-30 | CA174: 2012-12-31 | CB174: 2012 | CC174: 2013-01-31 | CD174: 2013-02-28 | CE174: 2013-03-31 | CF174: 2013-04-30 | CG174: 2013-05-31 | CH174: 2013-06-30 | CI174: 2013-07-31 | CJ174: 2013-08-31 | CK174: 2013-09-30 | CL174: 2013-10-31 | CM174: 2013-11-30 | CN174: 2013-12-31 | CO174: 2013 | CP174: 2014-01-31 | CQ174: 2014-02-28 | CR174: 2014-03-31 | CS174: 2014-04-30 | CT174: 2014-05-31 | CU174: 2014-06-30 | CV174: 2014-07-31 | CW174: 2014-08-31 | CX174: 2014-09-30 | CY174: 2014-10-31 | CZ174: 2014-11-30 | DA174: 2014-12-31 | DB174: 2014 | DC174: 2015-01-31 | DD174: 2015-02-28 | DE174: 2015-03-31 | DF174: 2015-04-30 | DG174: 2015-05-31 | DH174: 2015-06-30 | DI174: 2015-07-31 | DJ174: 2015-08-31 | DK174: 2015-09-30 | DL174: 2015-10-31 | DM174: 2015-11-30 | DN174: 2015-12-31 | DO174: 2015 | DP174: 2016-01-31 | DQ174: 2016-02-29 | DR174: 2016-03-31 | DS174: 2016-04-30 | DT174: 2016-05-31 | DU174: 2016-06-30 | DV174: 2016-07-31 | DW174: 2016-08-31 | DX174: 2016-09-30 | DY174: 2016-10-31 | DZ174: 2016-11-30 | EA174: 2016-12-31 | EB174: 2016 | EC174: 2017-01-31 | ED174: 2017-02-28 | EE174: 2017-03-31 | EF174: 2017-04-30 | EG174: 2017-05-31 | EH174: 2017-06-30 | EI174: 2017-07-31 | EJ174: 2017-08-31 | EK174: 2017-09-30 | EL174: 2017-10-31 | EM174: 2017-11-30 | EN174: 2017-12-31 | EO174: 2017
B175: Potencia subir | AP175: 748.1841398 | AQ175: 751.2559524 | AR175: 731.1332436 | AS175: 714.0666667 | AT175: 705.2567204 | AU175: 709.7583333 | AV175: 743.0201613 | AW175: 734.3629032 | AX175: 723.3291667 | AY175: 699.2993289 | AZ175: 721.7319444 | BA175: 745.3857527 | BB175: =F181 -> 727.1406393 | BC175: 736.2083333 | BD175: 728.0223214 | BE175: 723.8869448 | BF175: 697.8361111 | BG175: 703.2432796 | BH175: 714.9333333 | BI175: 711.3615591 | BJ175: 724.7701613 | BK175: 727.3833333 | BL175: 696.1852349 | BM175: 716.3111111 | BN175: 714.9758065 | BO175: =G181 -> 716.1834475 | BP175: 728.9354839 | BQ175: 756.0057471 | BR175: 706.6043069 | BS175: 690.9055556 | BT175: 687.5362903 | BU175: 694.3861111 | BV175: 693.1357527 | BW175: 718.9126344 | BX175: 701.5319444 | BY175: 702.2053691 | BZ175: 709.0986111 | CA175: 719.1532258 | CB175: =H181 -> 708.8869536 | CC175: 722.3158602 | CD175: 703.2708333 | CE175: 697.9273217 | CF175: 679.3208333 | CG175: 678.9126344 | CH175: 676.8555556 | CI175: 698.0201613 | CJ175: 693.6801075 | CK175: 666.4527778 | CL175: 685.7167785 | CM175: 697.7763889 | CN175: 695.7715054 | CO175: =I181 -> 691.3586758 | CP175: 699.4919355 | CQ175: 653.8616071 | CR175: 663.218035 | CS175: 677.0486111 | CT175: 644.8319892 | CU175: 660.5861111 | CV175: 671.6008065 | CW175: 670.266129 | CX175: 703.3805556 | CY175: 683.1758389 | CZ175: 687.5888889 | DA175: 704.6827957 | DB175: =J181 -> 676.7736301 | DC175: 710.6209677 | DD175: 716.5386905 | DE175: 692.0592194 | DF175: 672.6583333 | DG175: 666.3884409 | DH175: 661.3930556 | DI175: 700.1895161 | DJ175: 681.0645161 | DK175: 680.0958333 | DL175: 673.390604 | DM175: 682.5819444 | DN175: 687.2110215 | DO175: =K181 -> 685.213242 | DP175: 685.8427419 | DQ175: 675.1422414 | DR175: 685.4064603 | DS175: 677.2152778 | DT175: 666.327957 | DU175: 664.2916667 | DV175: 686.7876344 | DW175: 694.5604839 | DX175: 691.8888889 | DY175: 669.590604 | DZ175: 686.0444444 | EA175: 698.8360215 | EB175: =L181 -> 681.8841075 | EC175: 712.5201613 | ED175: 690.0669643 | EE175: - | EF175: - | EG175: - | EH175: - | EI175: - | EJ175: - | EK175: - | EL175: - | EM175: - | EN175: - | EO175: =M181 -> 701.8644068
B176: Potencia bajar | AP176: 542.1545699 | AQ176: 549.0580357 | AR176: 539.0834455 | AS176: 524.4416667 | AT176: 513.5604839 | AU176: 520.2527778 | AV176: 548.0120968 | AW176: 529.0026882 | AX176: 523.9486111 | AY176: 514.3597315 | AZ176: 531.4208333 | BA176: 538.8561828 | BB176: =F182 -> 531.097032 | BC176: 540.2768817 | BD176: 543.0565476 | BE176: 537.192463 | BF176: 511.3263889 | BG176: 514.7526882 | BH176: 522.7222222 | BI176: 532.0268817 | BJ176: 527.0873656 | BK176: 525.1819444 | BL176: 513.9315436 | BM176: 523.6388889 | BN176: 526.4086022 | BO176: =G182 -> 526.3908676 | BP176: 539.9005376 | BQ176: 549.9827586 | BR176: 530.3351279 | BS176: 510.3486111 | BT176: 510.2258065 | BU176: 516.0625 | BV176: 522.5295699 | BW176: 524.6061828 | BX176: 515.3555556 | BY176: 507.9234899 | BZ176: 520.7138889 | CA176: 520.9610215 | CB176: =H182 -> 522.3331056 | CC176: 529.3064516 | CD176: 526.5089286 | CE176: 516.9959623 | CF176: 504.975 | CG176: 506.0255376 | CH176: 506.3375 | CI176: 519.8454301 | CJ176: 509.6129032 | CK176: 491.8416667 | CL176: 505.5248322 | CM176: 509.2 | CN176: 516.1438172 | CO176: =I182 -> 511.8342466 | CP176: 515.4650538 | CQ176: 491.1071429 | CR176: 498.8815612 | CS176: 496.2194444 | CT176: 483.4556452 | CU176: 494.5 | CV176: 510.219086 | CW176: 497.0510753 | CX176: 507.9361111 | CY176: 506.3543624 | CZ176: 506.8763889 | DA176: 514.6303763 | DB176: =J182 -> 501.9864155 | DC176: 525.5322581 | DD176: 531.7782738 | DE176: 519.5316285 | DF176: 507.8125 | DG176: 503.3293011 | DH176: 503.5319444 | DI176: 521.6223118 | DJ176: 500.7620968 | DK176: 501.5236111 | DL176: 502.1758389 | DM176: 504.6375 | DN176: 512.8682796 | DO176: =K182 -> 511.1635845 | DP176: 510.4892473 | DQ176: 509.4827586 | DR176: 516.1641992 | DS176: 505.7013889 | DT176: 499.5013441 | DU176: 497.6458333 | DV176: 513.0913978 | DW176: 509.9475806 | DX176: 514.5902778 | DY176: 502.757047 | DZ176: 509.3888889 | EA176: 515.3494624 | EB176: =L182 -> 508.6900046 | EC176: 520.0322581 | ED176: 516.8973214 | EE176: - | EF176: - | EG176: - | EH176: - | EI176: - | EJ176: - | EK176: - | EL176: - | EM176: - | EN176: - | EO176: =M182 -> 518.5444915
B177: Precio medio | AP177: 22.46874354 | AQ177: 21.69541767 | AR177: 21.14542428 | AS177: 9.199254838 | AT177: 10.72709642 | AU177: 8.903432184 | AV177: 7.371986897 | AW177: 8.574851683 | AX177: 10.34310236 | AY177: 17.54099139 | AZ177: 17.9491055 | BA177: 20.32619108 | BB177: 14.71631043 | BC177: 16.10079747 | BD177: 9.554443778 | BE177: 9.023380212 | BF177: 9.698904613 | BG177: 10.8710424 | BH177: 12.32066561 | BI177: 13.29002151 | BJ177: 16.02708259 | BK177: 19.25421082 | BL177: 26.97401453 | BM177: 28.41068011 | BN177: 18.76447344 | BO177: =G183 -> 15.8733909 | BP177: 19.70920175 | BQ177: 25.29155775 | BR177: 28.54101065 | BS177: 40.36729091 | BT177: 22.30191026 | BU177: 22.58180816 | BV177: 21.47453224 | BW177: 28.66385022 | BX177: 33.52762497 | BY177: 36.56552946 | BZ177: 32.18342613 | CA177: 26.41529841 | CB177: 28.05767823 | CC177: 32.41057332 | CD177: 32.67322323 | CE177: 36.42895093 | CF177: 28.52025416 | CG177: 20.77698021 | CH177: 30.34919404 | CI177: 26.83415193 | CJ177: 26.29147137 | CK177: 25.43311745 | CL177: 30.12122383 | CM177: 26.1115121 | CN177: 38.19459173 | CO177: 29.55221243 | CP177: 28.82387623 | CQ177: 30.98205959 | CR177: 17.8744858 | CS177: 17.50428992 | CT177: 16.50961185 | CU177: 21.74793034 | CV177: 20.66076279 | CW177: 21.01118405 | CX177: 26.31430093 | CY177: 31.22063464 | CZ177: 28.21311655 | DA177: 18.67313555 | DB177: 23.27096382 | DC177: 21.38199138 | DD177: 24.04035519 | DE177: 20.63785241 | DF177: 23.84363874 | DG177: 22.39822085 | DH177: 19.65417088 | DI177: 14.886628 | DJ177: 18.13087275 | DK177: 18.790171 | DL177: 16.79571597 | DM177: 15.15914969 | DN177: 19.28202819 | DO177: 19.56033328 | DP177: 20.34964477 | DQ177: 25.36896691 | DR177: 22.01253712 | DS177: 18.95040315 | DT177: 18.6160687 | DU177: 11.49891933 | DV177: 11.05181203 | DW177: 10.70518546 | DX177: 8.696503186 | DY177: 10.66789423 | DZ177: 15.12751134 | EA177: 13.98842629 | EB177: 15.54567303 | EC177: 19.84042446 | ED177: - | EE177: - | EF177: - | EG177: - | EH177: - | EI177: - | EJ177: - | EK177: - | EL177: - | EM177: - | EN177: - | EO177: 17.62727956
DC179: -1
B180: Banda anual | C180: 2007 | D180: 2008 | E180: 2009 | F180: 2010 | G180: 2011 | H180: 2012 | I180: 2013 | J180: 2014 | K180: 2015 | L180: 2016 | M180: 2017 | N180: 2018 | O180: 2019
B181: Potencia subir | F181: 727.1406393 | G181: 716.1834475 | H181: 708.8869536 | I181: 691.3586758 | J181: 676.7736301 | K181: 685.213242 | L181: 681.8841075 | M181: 701.8644068 | N181: - | O181: -
B182: Potencia bajar | F182: 531.097032 | G182: 526.3908676 | H182: 522.3331056 | I182: 511.8342466 | J182: 501.9864155 | K182: 511.1635845 | L182: 508.6900046 | M182: 518.5444915 | N182: - | O182: -
B183: Precio medio | F183: 14.71631043 | G183: 15.8733909 | H183: 28.05767823 | I183: 29.55221243 | J183: 23.27096382 | K183: 19.56033328 | L183: 15.54567303 | M183: 17.62727956 | N183: - | O183: -
B187: Servicios transfronterizos de Balance
B188: Energía y precios ofertados desde el sistema eléctrico español y activado por operadores externos | C188: 2007-01-01 | D188: 2007-02-01 | E188: 2007-03-01 | F188: 2007-04-01 | G188: 2007-05-01 | H188: 2007-06-01 | I188: 2007-07-01 | J188: 2007-08-01 | K188: 2007-09-01 | L188: 2007-10-01 | M188: 2007-11-01 | N188: 2007-12-01 | O188: 2007 | P188: 2008-01-01 | Q188: 2008-02-01 | R188: 2008-03-01 | S188: 2008-04-01 | T188: 2008-05-01 | U188: 2008-06-01 | V188: 2008-07-01 | W188: 2008-08-01 | X188: 2008-09-01 | Y188: 2008-10-01 | Z188: 2008-11-01 | AA188: 2008-12-01 | AB188: 2008 | AC188: 2009-01-01 | AD188: 2009-02-01 | AE188: 2009-03-01 | AF188: 2009-04-01 | AG188: 2009-05-01 | AH188: 2009-06-01 | AI188: 2009-07-01 | AJ188: 2009-08-01 | AK188: 2009-09-01 | AL188: 2009-10-01 | AM188: 2009-11-01 | AN188: 2009-12-01 | AO188: 2009 | AP188: 2010-01-31 | AQ188: 2010-02-28 | AR188: 2010-03-31 | AS188: 2010-04-30 | AT188: 2010-05-31 | AU188: 2010-06-30 | AV188: 2010-07-31 | AW188: 2010-08-31 | AX188: 2010-09-30 | AY188: 2010-10-31 | AZ188: 2010-11-30 | BA188: 2010-12-31 | BB188: 2010 | BC188: 2011-01-31 | BD188: 2011-02-28 | BE188: 2011-03-31 | BF188: 2011-04-30 | BG188: 2011-05-31 | BH188: 2011-06-30 | BI188: 2011-07-31 | BJ188: 2011-08-31 | BK188: 2011-09-30 | BL188: 2011-10-31 | BM188: 2011-11-30 | BN188: 2011-12-31 | BO188: 2011 | BP188: 2012-01-31 | BQ188: 2012-02-29 | BR188: 2012-03-31 | BS188: 2012-04-30 | BT188: 2012-05-31 | BU188: 2012-06-30 | BV188: 2012-07-31 | BW188: 2012-08-31 | BX188: 2012-09-30 | BY188: 2012-10-31 | BZ188: 2012-11-30 | CA188: 2012-12-31 | CB188: 2012 | CC188: 2013-01-31 | CD188: 2013-02-28 | CE188: 2013-03-31 | CF188: 2013-04-30 | CG188: 2013-05-31 | CH188: 2013-06-30 | CI188: 2013-07-31 | CJ188: 2013-08-31 | CK188: 2013-09-30 | CL188: 2013-10-31 | CM188: 2013-11-30 | CN188: 2013-12-31 | CO188: 2013 | CP188: 2014-01-31 | CQ188: 2014-02-28 | CR188: 2014-03-31 | CS188: 2014-04-30 | CT188: 2014-05-31 | CU188: 2014-06-30 | CV188: 2014-07-31 | CW188: 2014-08-31 | CX188: 2014-09-30 | CY188: 2014-10-31 | CZ188: 2014-11-30 | DA188: 2014-12-31 | DB188: 2014 | DC188: 2015-01-31 | DD188: 2015-02-28 | DE188: 2015-03-31 | DF188: 2015-04-30 | DG188: 2015-05-31 | DH188: 2015-06-30 | DI188: 2015-07-31 | DJ188: 2015-08-31 | DK188: 2015-09-30 | DL188: 2015-10-31 | DM188: 2015-11-30 | DN188: 2015-12-31 | DO188: 2015 | DP188: 2016-01-31 | DQ188: 2016-02-29 | DR188: 2016-03-31 | DS188: 2016-04-30 | DT188: 2016-05-31 | DU188: 2016-06-30 | DV188: 2016-07-31 | DW188: 2016-08-31 | DX188: 2016-09-30 | DY188: 2016-10-31 | DZ188: 2016-11-30 | EA188: 2016-12-31 | EB188: 2016 | EC188: 2017-01-31 | ED188: 2017-02-28 | EE188: 2017-03-31 | EF188: 2017-04-30 | EG188: 2017-05-31 | EH188: 2017-06-30 | EI188: 2017-07-31 | EJ188: 2017-08-31 | EK188: 2017-09-30 | EL188: 2017-10-31 | EM188: 2017-11-30 | EN188: 2017-12-31 | EO188: 2017
B189: Capacidad ofertada importación | C189: - | D189: - | E189: - | F189: - | G189: - | H189: - | I189: - | J189: - | K189: - | L189: - | M189: - | N189: - | O189: - | P189: - | Q189: - | R189: - | S189: - | T189: - | U189: - | V189: - | W189: - | X189: - | Y189: - | Z189: - | AA189: - | AB189: - | AC189: - | AD189: - | AE189: - | AF189: - | AG189: - | AH189: - | AI189: - | AJ189: - | AK189: - | AL189: - | AM189: - | AN189: - | AO189: - | AP189: - | AQ189: - | AR189: - | AS189: - | AT189: - | AU189: - | AV189: - | AW189: - | AX189: - | AY189: - | AZ189: - | BA189: - | BB189: - | BC189: - | BD189: - | BE189: - | BF189: - | BG189: - | BH189: - | BI189: - | BJ189: - | BK189: - | BL189: - | BM189: - | BN189: - | BO189: - | BP189: - | BQ189: - | BR189: - | BS189: - | BT189: - | BU189: - | BV189: - | BW189: - | BX189: - | BY189: - | BZ189: - | CA189: - | CB189: - | CC189: - | CD189: - | CE189: - | CF189: - | CG189: - | CH189: - | CI189: - | CJ189: - | CK189: - | CL189: - | CM189: - | CN189: - | CO189: - | CP189: - | CQ189: - | CR189: - | CS189: - | CT189: - | CU189: 160.6 | CV189: 261.1 | CW189: 282.25 | CX189: 275.45 | CY189: 255.2 | CZ189: 206.2 | DA189: 216.95 | DB189: =J224 -> 1657.75 | DC189: 226.8 | DD189: 169 | DE189: 206.65 | DF189: 214.75 | DG189: 243.05 | DH189: 264.5 | DI189: 276.35 | DJ189: 274.45 | DK189: 284.9 | DL189: 266.45 | DM189: 258.7 | DN189: 255.5 | DO189: =K224 -> 2941.1 | DP189: 184.2 | DQ189: 161.2 | DR189: 189.8 | DS189: 123.25 | DT189: 146.85 | DU189: 290.25 | DV189: 295.2 | DW189: 302.4 | DX189: 289.5 | DY189: 306.35 | DZ189: 279.8 | EA189: 311.05 | EB189: =L224 -> 2879.85 | EC189: 318.6 | ED189: 288.05 | EE189: - | EF189: - | EG189: - | EH189: - | EI189: - | EJ189: - | EK189: - | EL189: - | EM189: - | EN189: - | EO189: =M224 -> 606.65
B190: Precio ofertado importación | C190: - | D190: - | E190: - | F190: - | G190: - | H190: - | I190: - | J190: - | K190: - | L190: - | M190: - | N190: - | O190: - | P190: - | Q190: - | R190: - | S190: - | T190: - | U190: - | V190: - | W190: - | X190: - | Y190: - | Z190: - | AA190: - | AB190: - | AC190: - | AD190: - | AE190: - | AF190: - | AG190: - | AH190: - | AI190: - | AJ190: - | AK190: - | AL190: - | AM190: - | AN190: - | AO190: - | AP190: - | AQ190: - | AR190: - | AS190: - | AT190: - | AU190: - | AV190: - | AW190: - | AX190: - | AY190: - | AZ190: - | BA190: - | BB190: - | BC190: - | BD190: - | BE190: - | BF190: - | BG190: - | BH190: - | BI190: - | BJ190: - | BK190: - | BL190: - | BM190: - | BN190: - | BO190: - | BP190: - | BQ190: - | BR190: - | BS190: - | BT190: - | BU190: - | BV190: - | BW190: - | BX190: - | BY190: - | BZ190: - | CA190: - | CB190: - | CC190: - | CD190: - | CE190: - | CF190: - | CG190: - | CH190: - | CI190: - | CJ190: - | CK190: - | CL190: - | CM190: - | CN190: - | CO190: - | CP190: - | CQ190: - | CR190: - | CS190: - | CT190: - | CU190: 5.17607721 | CV190: 1.68232478 | CW190: 1.205039858 | CX190: 5.609017971 | CY190: 4.696332288 | CZ190: 5.071389428 | DA190: 6.368624107 | DB190: =J225 -> 4.090820088 | DC190: 11.80811508 | DD190: 6.789784024 | DE190: 3.602859908 | DF190: 2.20687078 | DG190: 2.599720222 | DH190: 10.60655577 | DI190: 17.60476389 | DJ190: 13.42387502 | DK190: 11.09706739 | DL190: 11.72958153 | DM190: 16.45686896 | DN190: 18.75572407 | DO190: =K225 -> 11.00504794 | DP190: 8.045089577 | DQ190: 2.861364764 | DR190: 2.788016333 | DS190: 2.688385396 | DT190: 2.268873 | DU190: 3.728787252 | DV190: 7.671143293 | DW190: 8.276473214 | DX190: 10.28329706 | DY190: 21.44831076 | DZ190: 22.65268763 | EA190: 22.14368108 | EB190: =L225 -> 11.02841346 | EC190: 27.13340709 | ED190: 7.450815831 | EE190: - | EF190: - | EG190: - | EH190: - | EI190: - | EJ190: - | EK190: - | EL190: - | EM190: - | EN190: - | EO190: 17.78770461
B191: Capacidad ofertada exportación | C191: - | D191: - | E191: - | F191: - | G191: - | H191: - | I191: - | J191: - | K191: - | L191: - | M191: - | N191: - | O191: - | P191: - | Q191: - | R191: - | S191: - | T191: - | U191: - | V191: - | W191: - | X191: - | Y191: - | Z191: - | AA191: - | AB191: - | AC191: - | AD191: - | AE191: - | AF191: - | AG191: - | AH191: - | AI191: - | AJ191: - | AK191: - | AL191: - | AM191: - | AN191: - | AO191: - | AP191: - | AQ191: - | AR191: - | AS191: - | AT191: - | AU191: - | AV191: - | AW191: - | AX191: - | AY191: - | AZ191: - | BA191: - | BB191: - | BC191: - | BD191: - | BE191: - | BF191: - | BG191: - | BH191: - | BI191: - | BJ191: - | BK191: - | BL191: - | BM191: - | BN191: - | BO191: - | BP191: - | BQ191: - | BR191: - | BS191: - | BT191: - | BU191: - | BV191: - | BW191: - | BX191: - | BY191: - | BZ191: - | CA191: - | CB191: - | CC191: - | CD191: - | CE191: - | CF191: - | CG191: - | CH191: - | CI191: - | CJ191: - | CK191: - | CL191: - | CM191: - | CN191: - | CO191: - | CP191: - | CQ191: - | CR191: - | CS191: - | CT191: - | CU191: 195.3 | CV191: 313.45 | CW191: 309.35 | CX191: 283.55 | CY191: 324.3 | CZ191: 302.25 | DA191: 296.1 | DB191: 2024.3 | DC191: 283.7 | DD191: 273.9 | DE191: 312.5 | DF191: 319.5 | DG191: 320.7 | DH191: 280.15 | DI191: 281.65 | DJ191: 309 | DK191: 321.3 | DL191: 315.35 | DM191: 322.55 | DN191: 330.05 | DO191: 3670.35 | DP191: 316.55 | DQ191: 301.1 | DR191: 313.5 | DS191: 312.4 | DT191: 334.1 | DU191: 319.15 | DV191: 310 | DW191: 329.1 | DX191: 294.55 | DY191: 312.6 | DZ191: 299.3 | EA191: 321.7 | EB191: 3764.05 | EC191: 306.6 | ED191: 290.7 | EE191: - | EF191: - | EG191: - | EH191: - | EI191: - | EJ191: - | EK191: - | EL191: - | EM191: - | EN191: - | EO191: 597.3
B192: Precio ofertado exportación | C192: - | D192: - | E192: - | F192: - | G192: - | H192: - | I192: - | J192: - | K192: - | L192: - | M192: - | N192: - | O192: - | P192: - | Q192: - | R192: - | S192: - | T192: - | U192: - | V192: - | W192: - | X192: - | Y192: - | Z192: - | AA192: - | AB192: - | AC192: - | AD192: - | AE192: - | AF192: - | AG192: - | AH192: - | AI192: - | AJ192: - | AK192: - | AL192: - | AM192: - | AN192: - | AO192: - | AP192: - | AQ192: - | AR192: - | AS192: - | AT192: - | AU192: - | AV192: - | AW192: - | AX192: - | AY192: - | AZ192: - | BA192: - | BB192: - | BC192: - | BD192: - | BE192: - | BF192: - | BG192: - | BH192: - | BI192: - | BJ192: - | BK192: - | BL192: - | BM192: - | BN192: - | BO192: - | BP192: - | BQ192: - | BR192: - | BS192: - | BT192: - | BU192: - | BV192: - | BW192: - | BX192: - | BY192: - | BZ192: - | CA192: - | CB192: - | CC192: - | CD192: - | CE192: - | CF192: - | CG192: - | CH192: - | CI192: - | CJ192: - | CK192: - | CL192: - | CM192: - | CN192: - | CO192: - | CP192: - | CQ192: - | CR192: - | CS192: - | CT192: - | CU192: 85.84137993 | CV192: 70.54995534 | CW192: 71.49728625 | CX192: 92.45155175 | CY192: 98.14867715 | CZ192: 79.82990902 | DA192: 76.85847687 | DB192: 81.96760806 | DC192: 81.58073141 | DD192: 77.12119022 | DE192: 75.8103696 | DF192: 73.36499531 | DG192: 74.96116464 | DH192: 88.78441371 | DI192: 96.88112374 | DJ192: 86.1432055 | DK192: 88.9618503 | DL192: 91.35656255 | DM192: 83.61811192 | DN192: 75.45459476 | DO192: 82.68534813 | DP192: 64.38017691 | DQ192: 58.55628529 | DR192: 54.76170494 | DS192: 65.88084507 | DT192: 60.76582161 | DU192: 55.5887639 | DV192: 55.16647097 | DW192: 53.48606806 | DX192: 63.18627058 | DY192: 83.32252399 | DZ192: 78.47409455 | EA192: 84.83409854 | EB192: 64.80871986 | EC192: 102.3684866 | ED192: 81.47418645 | EE192: - | EF192: - | EG192: - | EH192: - | EI192: - | EJ192: - | EK192: - | EL192: - | EM192: - | EN192: - | EO192: 92.19943747
B193: Activado Francia Importación | C193: - | D193: - | E193: - | F193: - | G193: - | H193: - | I193: - | J193: - | K193: - | L193: - | M193: - | N193: - | O193: - | P193: - | Q193: - | R193: - | S193: - | T193: - | U193: - | V193: - | W193: - | X193: - | Y193: - | Z193: - | AA193: - | AB193: - | AC193: - | AD193: - | AE193: - | AF193: - | AG193: - | AH193: - | AI193: - | AJ193: - | AK193: - | AL193: - | AM193: - | AN193: - | AO193: - | AP193: - | AQ193: - | AR193: - | AS193: - | AT193: - | AU193: - | AV193: - | AW193: - | AX193: - | AY193: - | AZ193: - | BA193: - | BB193: - | BC193: - | BD193: - | BE193: - | BF193: - | BG193: - | BH193: - | BI193: - | BJ193: - | BK193: - | BL193: - | BM193: - | BN193: - | BO193: - | BP193: - | BQ193: - | BR193: - | BS193: - | BT193: - | BU193: - | BV193: - | BW193: - | BX193: - | BY193: - | BZ193: - | CA193: - | CB193: - | CC193: - | CD193: - | CE193: - | CF193: - | CG193: - | CH193: - | CI193: - | CJ193: - | CK193: - | CL193: - | CM193: - | CN193: - | CO193: - | CP193: - | CQ193: - | CR193: - | CS193: - | CT193: - | CU193: - | CV193: - | CW193: - | CX193: - | CY193: - | CZ193: - | DA193: 0.2 | DB193: 0.2 | DC193: - | DD193: - | DE193: - | DF193: - | DG193: - | DH193: - | DI193: - | DJ193: - | DK193: - | DL193: - | DM193: - | DN193: - | DO193: - | DP193: - | DQ193: - | DR193: - | DS193: - | DT193: 1.15 | DU193: 0.8 | DV193: - | DW193: - | DX193: 0.5 | DY193: 1.1 | DZ193: 6.55 | EA193: 4.65 | EB193: 14.75 | EC193: 1.2 | ED193: 4.45 | EE193: - | EF193: - | EG193: - | EH193: - | EI193: - | EJ193: - | EK193: - | EL193: - | EM193: - | EN193: - | EO193: 5.65
B194: Precio Francia Importación | C194: - | D194: - | E194: - | F194: - | G194: - | H194: - | I194: - | J194: - | K194: - | L194: - | M194: - | N194: - | O194: - | P194: - | Q194: - | R194: - | S194: - | T194: - | U194: - | V194: - | W194: - | X194: - | Y194: - | Z194: - | AA194: - | AB194: - | AC194: - | AD194: - | AE194: - | AF194: - | AG194: - | AH194: - | AI194: - | AJ194: - | AK194: - | AL194: - | AM194: - | AN194: - | AO194: - | AP194: - | AQ194: - | AR194: - | AS194: - | AT194: - | AU194: - | AV194: - | AW194: - | AX194: - | AY194: - | AZ194: - | BA194: - | BB194: - | BC194: - | BD194: - | BE194: - | BF194: - | BG194: - | BH194: - | BI194: - | BJ194: - | BK194: - | BL194: - | BM194: - | BN194: - | BO194: - | BP194: - | BQ194: - | BR194: - | BS194: - | BT194: - | BU194: - | BV194: - | BW194: - | BX194: - | BY194: - | BZ194: - | CA194: - | CB194: - | CC194: - | CD194: - | CE194: - | CF194: - | CG194: - | CH194: - | CI194: - | CJ194: - | CK194: - | CL194: - | CM194: - | CN194: - | CO194: - | CP194: - | CQ194: - | CR194: - | CS194: - | CT194: - | CU194: - | CV194: - | CW194: - | CX194: - | CY194: - | CZ194: - | DA194: 21.6375 | DB194: 21.6375 | DC194: - | DD194: - | DE194: - | DF194: - | DG194: - | DH194: - | DI194: - | DJ194: - | DK194: - | DL194: - | DM194: - | DN194: - | DO194: - | DP194: - | DQ194: - | DR194: - | DS194: - | DT194: 11.52173913 | DU194: 7.213125 | DV194: - | DW194: - | DX194: 41.534 | DY194: 29.365 | DZ194: 43.44442748 | EA194: 52.73935484 | EB194: 40.8059661 | EC194: 67.19833333 | ED194: 30.74932584 | EE194: - | EF194: - | EG194: - | EH194: - | EI194: - | EJ194: - | EK194: - | EL194: - | EM194: - | EN194: - | EO194: 38.49070796
